Workbook

Sheet Cover

Sheet Assumptions - General
B1: GENERAL INPUTS
B3: ="All units in " &E27& " millions unless otherwise stated" -> All units in R$ millions unless otherwise stated
C5: Color indicates assumptions to be entered | F5: 1
C6: Color indicates historical data to be entered
B8: Model scope, names, dates and timings
K9: Freight and infrastructure (integrated) | N9: Freight and infrastructure entities produce one shared set of financial statements. Fixed asset and financing assumptions are entered only once under the freight entity. Revenue and cost assumptions are entered separately for each entity. Results are only shown in a consolidated form.
B10: Is the railway entity integrated or separated? | D10: Select | E10: 2 | G10: Integrated | H10: TRUE | I10: =IF(H10=TRUE,2,0) -> 2 | K10: Passenger and infrastructure (integrated) | N10: Passenger and infrastructure entities produce one shared set of financial statements. Fixed asset and financing assumptions are entered only once under the infrastructure entity. Revenue and cost assumptions are entered separately for each entity. Results are only shown in a consolidated form.
B11: Which railway entities are included in the model? | D11: Select | G11: Separated | H11: TRUE | I11: =IF(H11=TRUE,5,0) -> 5 | K11: Passenger and infrastructure (separated) | N11: Passenger and infrastucture entities produce separate financial statements. Assumptions are entered separately for each entity. Results are ashown separately and in a consolidated form.
K12: All entities integrated | N12: Freight, passenger and infrastucture entities produce one shared set of financial statements. Fixed asset and financing assumptions are entered only once under the freight entity. Revenue and cost assumptions are entered separately for each entity. Results are only shown in a consolidated form.
H13: TRUE | I13: =IF(H13=TRUE,10,0) -> 10 | K13: Freight and passenger (integrated) | N13: Freight and passenger entities produce one shared set of financial statements. Fixed asset and financing assumptions are entered only once under the freight entity. Revenue and cost assumptions are entered separately for each entity. Results are only shown in a consolidated form.
B14: FOLLOW THESE STEPS TO SET MODEL UP: | D14: Defined railway combination: | E14: =IF($I$14=4,K15,IF($I$14=7,K16,IF($I$14=12,K17,IF($I$14=9,K18,IF($I$14=14,K19,IF($I$14=17,K11,IF($I$14=18,K12,IF($I$14=8,K13,IF($I$14=13,K9,IF($I$14=16,K10,IF($I$14=19,K14,"Not applicable"))))))))))) -> Freight, passenger and infrastructure (separated) | I14: =E10+I10+I11+I13 -> 19 | K14: Freight, passenger and infrastructure (separated) | N14: Freight, passenger and infrastucture entities produce separate financial statements. Assumptions are entered separately for each entity. Results are shown separately and in a consolidated form.
B15: 1) Select if entity is integrated or separated | D15: Description of defined combination: | K15: Only freight | N15: Assumptions are entered and results shown only for the freight company.
B16: 2) Select which railway entities are included | D16: =IF($I$14=4,N15,IF($I$14=7,N16,IF($I$14=12,N17,IF($I$14=9,N18,IF($I$14=14,N19,IF($I$14=17,N11,IF($I$14=18,N12,IF($I$14=8,N13,IF($I$14=13,N9,IF($I$14=16,N10,IF($I$14=19,N14," "))))))))))) -> Freight, passenger and infrastucture entities produce separate financial statements. Assumptions are entered separately for each entity. Results are shown separately and in a consolidated form. | K16: Only passenger | N16: Assumptions are entered and results shown only for the passenger company.
B17: After entity specification, the model will automatically run a macro to show the relevant assumptions and results. Ensure that macros and activeX controls are enabled when specifying the model. After specification, the model can be saved as a macro-free workbook. | K17: Only infrastructure | N17: Assumptions are entered and results shown only for the infrastructure company.
K18: Freight and passenger (separated) | N18: Freight and passenger entities produce separate financial statements. Assumptions are entered separately for each entity. Results are shown separately and in a consolidated form.
K19: Freight and infrastructure (separated) | N19: Freight and infrastucture entities produce separate financial statements. Assumptions are entered separately for each entity. Results are shown separately and in a consolidated form.
D20: =IF(E14=K14, "Default model definition",IF(E14<>"Not applicable","Run model by clicking on defined combination button below"," ")) -> Default model definition
J21: =IF(OR($I$14=4,$I$14=8, $I$14=9, $I$14=13, $I$14=14, $I$14=19, $I$14=18),1,0) -> 1 | K21: Show freight?
J22: =IF(OR($I$14=7, $I$14=9, $I$14=17, $I$14=19),1,0) -> 1 | K22: Show passenger?
B23: =IF(E10=1,"Name of integrated railway entity","Name of consolidated railway entity") -> Name of consolidated railway entity | D23: Text | E23: Ruritania Railways | J23: =IF(OR($I$14=12, $I$14=14, $I$14=16, $I$14=17, $I$14=19),1,0) -> 1 | K23: Show infastructure?
B24: Name of freight railway entity | D24: Text | E24: Ruritania Freight Rail Company | J24: =IF(OR($I$14=8,$I$14=9, $I$14=13, $I$14=14, $I$14=16, $I$14=17,$I$14=18,$I$14=19),1,0) -> 1 | K24: Show consolidated?
B25: Name of passenger railway entity | D25: Text | E25: Ruritania Passenger Rail Company | J25: =IF($I$14=16,1,0) -> 0 | K25: Show freight integrated?
B26: Name of railway infrastructure entity | D26: Text | E26: Ruritania Railway Infrastructure Company | J26: =IF(OR($I$14=8, $I$14=16, $I$14=18),1,0) -> 0 | K26: Show passenger integrated?
B27: Unit of currency | D27: Text | E27: R$ | J27: =IF(OR($I$14=13, $I$14=18),1,0) -> 0 | K27: Show infrastructured integrated?
B28: Model starting date | D28: Date | E28: 2010-01-01
B29: Model ending date | D29: Date | E29: 2039-12-31
B31: Macroeconomic assumptions
B33: Year | E33: 1 | F33: 2 | G33: 3 | H33: 4 | I33: 5 | J33: 6 | K33: 7 | L33: 8 | M33: 9 | N33: 10 | O33: 11 | P33: 12 | Q33: 13 | R33: 14 | S33: 15 | T33: 16 | U33: 17 | V33: 18 | W33: 19 | X33: 20 | Y33: 21 | Z33: 22 | AA33: 23 | AB33: 24 | AC33: 25 | AD33: 26 | AE33: 27 | AF33: 28 | AG33: 29 | AH33: 30
B34: Period from | E34: =$E$28 -> 2010-01-01 | F34: =E35+1 -> 2011-01-01 | G34: 2012-01-01 | H34: 2013-01-01 | I34: 2014-01-01 | J34: =I35+1 -> 2015-01-01 | K34: 2016-01-01 | L34: 2017-01-01 | M34: =L35+1 -> 2018-01-01 | N34: 2019-01-01 | O34: 2020-01-01 | P34: 2021-01-01 | Q34: 2022-01-01 | R34: 2023-01-01 | S34: 2024-01-01 | T34: 2025-01-01 | U34: 2026-01-01 | V34: 2027-01-01 | W34: 2028-01-01 | X34: 2029-01-01 | Y34: 2030-01-01 | Z34: 2031-01-01 | AA34: 2032-01-01 | AB34: 2033-01-01 | AC34: 2034-01-01 | AD34: 2035-01-01 | AE34: 2036-01-01 | AF34: 2037-01-01 | AG34: 2038-01-01 | AH34: 2039-01-01
B35: Period to | E35: =DATE(YEAR(E34)+1, MONTH(E34), DAY(E34)-1) -> 2010-12-31 | F35: 2011-12-31 | G35: 2012-12-31 | H35: 2013-12-31 | I35: 2014-12-31 | J35: 2015-12-31 | K35: 2016-12-31 | L35: 2017-12-31 | M35: 2018-12-31 | N35: 2019-12-31 | O35: 2020-12-31 | P35: 2021-12-31 | Q35: 2022-12-31 | R35: 2023-12-31 | S35: 2024-12-31 | T35: 2025-12-31 | U35: 2026-12-31 | V35: 2027-12-31 | W35: 2028-12-31 | X35: 2029-12-31 | Y35: 2030-12-31 | Z35: 2031-12-31 | AA35: 2032-12-31 | AB35: 2033-12-31 | AC35: 2034-12-31 | AD35: 2035-12-31 | AE35: 2036-12-31 | AF35: 2037-12-31 | AG35: 2038-12-31 | AH35: 2039-12-31
B37: Inflation | D37: % | E37: 0.03 | F37: =E37 -> 0.03 | G37: 0.03 | H37: 0.03 | I37: 0.03 | J37: =I37 -> 0.03 | K37: 0.03 | L37: 0.03 | M37: =L37 -> 0.03 | N37: 0.03 | O37: 0.03 | P37: 0.03 | Q37: 0.03 | R37: 0.03 | S37: 0.03 | T37: 0.03 | U37: 0.03 | V37: 0.03 | W37: 0.03 | X37: 0.03 | Y37: 0.03 | Z37: 0.03 | AA37: 0.03 | AB37: 0.03 | AC37: 0.03 | AD37: 0.03 | AE37: 0.03 | AF37: 0.03 | AG37: 0.03 | AH37: 0.03
B38: LIBOR | D38: % | E38: 0.004 | F38: 0.0163 | G38: 0.0297 | H38: 0.0394 | I38: 0.0463 | J38: 0.0508 | K38: 0.0538 | L38: 0.0557 | M38: 0.0577 | N38: 0.0591 | O38: 0.0506 | P38: 0.05 | Q38: 0.05 | R38: 0.05 | S38: 0.05 | T38: 0.05 | U38: 0.05 | V38: 0.05 | W38: 0.05 | X38: 0.05 | Y38: 0.05 | Z38: 0.05 | AA38: 0.05 | AB38: 0.05 | AC38: 0.05 | AD38: 0.05 | AE38: 0.05 | AF38: 0.05 | AG38: 0.05 | AH38: 0.05
B39: Name of foreign currency 1 | D39: Text | E39: USD
B40: Name of foreign currency 2 | D40: Text | E40: EUR
B41: ="Exchange rate (local currency/"&E39&")" -> Exchange rate (local currency/USD) | D41: Rate | E41: 2.5 | F41: 2.5 | G41: 2.5 | H41: 2.5 | I41: 2.5 | J41: 2.5 | K41: 2.5 | L41: 2.5 | M41: 2.5 | N41: 2.5 | O41: 2.5 | P41: 2.5 | Q41: 2.5 | R41: 2.5 | S41: 2.5 | T41: 2.5 | U41: 2.5 | V41: 2.5 | W41: 2.5 | X41: 2.5 | Y41: 2.5 | Z41: 2.5 | AA41: 2.5 | AB41: 2.5 | AC41: 2.5 | AD41: 2.5 | AE41: 2.5 | AF41: 2.5 | AG41: 2.5 | AH41: 2.5
B42: ="Exchange rate (local currency/"&E40&")" -> Exchange rate (local currency/EUR) | D42: Rate | E42: 3 | F42: 3 | G42: 3 | H42: 3 | I42: 3 | J42: 3 | K42: 3 | L42: 3 | M42: 3 | N42: 3 | O42: 3 | P42: 3 | Q42: 3 | R42: 3 | S42: 3 | T42: 3 | U42: 3 | V42: 3 | W42: 3 | X42: 3 | Y42: 3 | Z42: 3 | AA42: 3 | AB42: 3 | AC42: 3 | AD42: 3 | AE42: 3 | AF42: 3 | AG42: 3 | AH42: 3

Sheet Assumptions - Freight
B1: INPUTS
B2: ='Assumptions - General'!$E$24 -> Ruritania Freight Rail Company
B3: ="All units in " &'Assumptions - General'!$E$27& " millions unless otherwise stated" -> All units in R$ millions unless otherwise stated
B4: Year | E4: 1 | F4: 2 | G4: 3 | H4: 4 | I4: 5 | J4: 6 | K4: 7 | L4: 8 | M4: 9 | N4: 10 | O4: 11 | P4: 12 | Q4: 13 | R4: 14 | S4: 15 | T4: 16 | U4: 17 | V4: 18 | W4: 19 | X4: 20 | Y4: 21 | Z4: 22 | AA4: 23 | AB4: 24 | AC4: 25 | AD4: 26 | AE4: 27 | AF4: 28 | AG4: 29 | AH4: 30
B5: Period from | E5: ='Assumptions - General'!$E$28 -> 2010-01-01 | F5: =E6+1 -> 2011-01-01 | G5: 2012-01-01 | H5: 2013-01-01 | I5: 2014-01-01 | J5: 2015-01-01 | K5: 2016-01-01 | L5: 2017-01-01 | M5: 2018-01-01 | N5: 2019-01-01 | O5: 2020-01-01 | P5: 2021-01-01 | Q5: 2022-01-01 | R5: 2023-01-01 | S5: 2024-01-01 | T5: 2025-01-01 | U5: 2026-01-01 | V5: 2027-01-01 | W5: 2028-01-01 | X5: 2029-01-01 | Y5: 2030-01-01 | Z5: 2031-01-01 | AA5: 2032-01-01 | AB5: 2033-01-01 | AC5: 2034-01-01 | AD5: 2035-01-01 | AE5: 2036-01-01 | AF5: 2037-01-01 | AG5: 2038-01-01 | AH5: 2039-01-01
B6: Period to | E6: =DATE(YEAR(E5)+1, MONTH(E5), DAY(E5)-1) -> 2010-12-31 | F6: 2011-12-31 | G6: 2012-12-31 | H6: 2013-12-31 | I6: 2014-12-31 | J6: 2015-12-31 | K6: 2016-12-31 | L6: 2017-12-31 | M6: 2018-12-31 | N6: 2019-12-31 | O6: 2020-12-31 | P6: 2021-12-31 | Q6: 2022-12-31 | R6: 2023-12-31 | S6: 2024-12-31 | T6: 2025-12-31 | U6: 2026-12-31 | V6: 2027-12-31 | W6: 2028-12-31 | X6: 2029-12-31 | Y6: 2030-12-31 | Z6: 2031-12-31 | AA6: 2032-12-31 | AB6: 2033-12-31 | AC6: 2034-12-31 | AD6: 2035-12-31 | AE6: 2036-12-31 | AF6: 2037-12-31 | AG6: 2038-12-31 | AH6: 2039-12-31
C8: Color indicates assumptions to be entered | E8: =IF('Scenarios - Freight'!F3=1,"NOTE: SCENARIO ANALYSIS ASSUMPTIONS IN USE"," ") ->  | F8: 1
C9: Color indicates historical data to be entered
B11: ="Network and operational assumptions for "&'Assumptions - General'!E24 -> Network and operational assumptions for Ruritania Freight Rail Company | E11: =IF(OR(AND('Scenarios - Consolidated'!$F$3=1,'Scenarios - Consolidated'!$H$20=1),AND('Scenarios - Freight'!$F$3=1,'Scenarios - Freight'!$H$20=1)),"NOTE: SCENARIO ANALYSIS STAFF ASSUMPTIONS IN USE"," ") -> 
B13: Length of network in use | D13: Track-km | E13: 15000 | F13: 15000 | G13: 15000 | H13: 15000 | I13: 15000 | J13: 15000 | K13: 15000 | L13: 15000 | M13: 15000 | N13: 15000 | O13: 15000 | P13: 15000 | Q13: 15000 | R13: 15000 | S13: 15000 | T13: 15000 | U13: 15000 | V13: 15000 | W13: 15000 | X13: 15000 | Y13: 15000 | Z13: 15000 | AA13: 15000 | AB13: 15000 | AC13: 15000 | AD13: 15000 | AE13: 15000 | AF13: 15000 | AG13: 15000 | AH13: 15000
B14: ="Staff of "&'Assumptions - General'!E24 -> Staff of Ruritania Freight Rail Company | D14: Staff count | E14: 15000 | F14: 15000 | G14: 15000 | H14: 18000 | I14: 20000 | J14: 20000 | K14: 20000 | L14: 20000 | M14: 20000 | N14: 20000 | O14: 20000 | P14: 20000 | Q14: 20000 | R14: 20000 | S14: 20000 | T14: 20000 | U14: 20000 | V14: 20000 | W14: 20000 | X14: 20000 | Y14: 20000 | Z14: 20000 | AA14: 20000 | AB14: 20000 | AC14: 20000 | AD14: 20000 | AE14: 20000 | AF14: 20000 | AG14: 20000 | AH14: 20000
B15: Freight traffic volume | D15: Gross ton-km | E15: 50000
B16: Electric traction share of freight traffic | D16: % | E16: 0.5 | F16: =E16+F17 -> 0.51 | G16: 0.52 | H16: 0.53 | I16: 0.54 | J16: 0.55 | K16: 0.56 | L16: 0.57 | M16: 0.58 | N16: 0.59 | O16: 0.6 | P16: 0.61 | Q16: 0.62 | R16: 0.63 | S16: 0.64 | T16: 0.65 | U16: 0.66 | V16: 0.67 | W16: 0.68 | X16: 0.69 | Y16: 0.7 | Z16: 0.71 | AA16: 0.72 | AB16: 0.73 | AC16: 0.74 | AD16: 0.75 | AE16: 0.76 | AF16: 0.77 | AG16: 0.78 | AH16: 0.79
B17: Enter change in electric traction share of total freight traffic | D17: Percentage points | F17: 0.01 | G17: 0.01 | H17: 0.01 | I17: 0.01 | J17: 0.01 | K17: 0.01 | L17: 0.01 | M17: 0.01 | N17: 0.01 | O17: 0.01 | P17: 0.01 | Q17: 0.01 | R17: 0.01 | S17: 0.01 | T17: 0.01 | U17: 0.01 | V17: 0.01 | W17: 0.01 | X17: 0.01 | Y17: 0.01 | Z17: 0.01 | AA17: 0.01 | AB17: 0.01 | AC17: 0.01 | AD17: 0.01 | AE17: 0.01 | AF17: 0.01 | AG17: 0.01 | AH17: 0.01
B18: Diesel traction share of freight traffic | D18: % | E18: =100%-E16 -> 0.5 | F18: 0.49 | G18: 0.48 | H18: 0.47 | I18: 0.46 | J18: 0.45 | K18: 0.44 | L18: 0.43 | M18: 0.42 | N18: 0.41 | O18: 0.4 | P18: 0.39 | Q18: 0.38 | R18: 0.37 | S18: 0.36 | T18: 0.35 | U18: 0.34 | V18: 0.33 | W18: 0.32 | X18: 0.31 | Y18: 0.3 | Z18: 0.29 | AA18: 0.28 | AB18: 0.27 | AC18: 0.26 | AD18: 0.25 | AE18: 0.24 | AF18: 0.23 | AG18: 0.22 | AH18: 0.21
B19: Operational benchmark | D19: Text | E19: EU railways
B20: Traffic units (millions) per staff | D20: Ratio | E20: 1
B21: Traffic units (millions) per track-km | D21: Ratio | E21: 1
B22: Staff per track-km | D22: Ratio | E22: 1
B24: ="Fixed asset assumptions for "&'Assumptions - General'!E24 -> Fixed asset assumptions for Ruritania Freight Rail Company | E24: =IF(OR(AND('Scenarios - Consolidated'!$F$3=1,'Scenarios - Consolidated'!$I$20=1),AND('Scenarios - Freight'!$F$3=1,'Scenarios - Freight'!$I$20=1)),"NOTE: SCENARIO ANALYSIS CAPEX ASSUMPTIONS IN USE"," ") -> 
B26: Name of fixed asset class 1 | D26: Text | E26: Land | F26: =IF(E26<>"Land", "Note: first asset class should be land"," ") -> 
B27: Name of fixed asset class 2 | D27: Text | E27: Buildings and structures
B28: Name of fixed asset class 3 | D28: Text | E28: Track and infrastructure
B29: Name of fixed asset class 4 | D29: Text | E29: Locomotives and railway cars
B30: Name of fixed asset class 5 | D30: Text | E30: Machines, equipment and spare parts
B31: Name of fixed asset class 6 | D31: Text | E31: Others
B33: ="Net asset value at the end of first year of " &E$26 -> Net asset value at the end of first year of Land | D33: ='Assumptions - General'!$E$27 &" millions" -> R$ millions | E33: 100
B34: ="Net asset value at the end of first year of " &E$27 -> Net asset value at the end of first year of Buildings and structures | D34: ='Assumptions - General'!$E$27 &" millions" -> R$ millions | E34: 150
B35: ="Net asset value at the end of first year of " &E$28 -> Net asset value at the end of first year of Track and infrastructure | D35: ='Assumptions - General'!$E$27 &" millions" -> R$ millions | E35: 200
B36: ="Net asset value at the end of first year of " &E$29 -> Net asset value at the end of first year of Locomotives and railway cars | D36: ='Assumptions - General'!$E$27 &" millions" -> R$ millions | E36: 300
B37: ="Net asset value at the end of first year of " &E$30 -> Net asset value at the end of first year of Machines, equipment and spare parts | D37: ='Assumptions - General'!$E$27 &" millions" -> R$ millions | E37: 300
B38: ="Net asset value at the end of first year of " &E$31 -> Net asset value at the end of first year of Others | D38: ='Assumptions - General'!$E$27 &" millions" -> R$ millions | E38: 50
B40: ="Annual capital expenditure on " &E$26 -> Annual capital expenditure on Land | D40: ='Assumptions - General'!$E$27 &" millions" -> R$ millions | F40: 10 | G40: 10 | H40: 10 | I40: 10 | J40: 10 | K40: 10 | L40: 10 | M40: 10 | N40: 10 | O40: 10 | P40: 10 | Q40: 10 | R40: 10 | S40: 10 | T40: 10 | U40: 10 | V40: 10 | W40: 10 | X40: 10 | Y40: 10 | Z40: 10 | AA40: 10 | AB40: 10 | AC40: 10 | AD40: 10 | AE40: 10 | AF40: 10 | AG40: 10 | AH40: 10
B41: ="Annual capital expenditure on " &E$27 -> Annual capital expenditure on Buildings and structures | D41: ='Assumptions - General'!$E$27 &" millions" -> R$ millions | F41: 20 | G41: 20 | H41: 20 | I41: 20 | J41: 20 | K41: 20 | L41: 20 | M41: 20 | N41: 20 | O41: 20 | P41: 20 | Q41: 20 | R41: 20 | S41: 20 | T41: 20 | U41: 20 | V41: 20 | W41: 20 | X41: 20 | Y41: 20 | Z41: 20 | AA41: 20 | AB41: 20 | AC41: 20 | AD41: 20 | AE41: 20 | AF41: 20 | AG41: 20 | AH41: 20
B42: ="Annual capital expenditure on " &E$28 -> Annual capital expenditure on Track and infrastructure | D42: ='Assumptions - General'!$E$27 &" millions" -> R$ millions | F42: 20 | G42: 100 | H42: 100 | I42: 100 | J42: 100 | K42: 100 | L42: 100 | M42: 100 | N42: 100 | O42: 100 | P42: 100 | Q42: 100 | R42: 100 | S42: 100 | T42: 100 | U42: 100 | V42: 100 | W42: 100 | X42: 100 | Y42: 100 | Z42: 100 | AA42: 100 | AB42: 100 | AC42: 100 | AD42: 100 | AE42: 100 | AF42: 100 | AG42: 100 | AH42: 100
B43: ="Annual capital expenditure on " &E$29 -> Annual capital expenditure on Locomotives and railway cars | D43: ='Assumptions - General'!$E$27 &" millions" -> R$ millions | F43: 25 | G43: 100 | H43: 100 | I43: 100 | J43: 100 | K43: 100 | L43: 100 | M43: 100 | N43: 100 | O43: 100 | P43: 100 | Q43: 100 | R43: 100 | S43: 100 | T43: 100 | U43: 100 | V43: 100 | W43: 100 | X43: 100 | Y43: 100 | Z43: 100 | AA43: 100 | AB43: 100 | AC43: 100 | AD43: 100 | AE43: 100 | AF43: 100 | AG43: 100 | AH43: 100
B44: ="Annual capital expenditure on " &E$30 -> Annual capital expenditure on Machines, equipment and spare parts | D44: ='Assumptions - General'!$E$27 &" millions" -> R$ millions | F44: 25 | G44: 25 | H44: 25 | I44: 25 | J44: 25 | K44: 25 | L44: 25 | M44: 25 | N44: 25 | O44: 25 | P44: 25 | Q44: 25 | R44: 25 | S44: 25 | T44: 25 | U44: 25 | V44: 25 | W44: 25 | X44: 25 | Y44: 25 | Z44: 25 | AA44: 25 | AB44: 25 | AC44: 25 | AD44: 25 | AE44: 25 | AF44: 25 | AG44: 25 | AH44: 25
B45: ="Annual capital expenditure on " &E$31 -> Annual capital expenditure on Others | D45: ='Assumptions - General'!$E$27 &" millions" -> R$ millions | F45: 25 | G45: 25 | H45: 25 | I45: 25 | J45: 25 | K45: 25 | L45: 25 | M45: 25 | N45: 25 | O45: 25 | P45: 25 | Q45: 25 | R45: 25 | S45: 25 | T45: 25 | U45: 25 | V45: 25 | W45: 25 | X45: 25 | Y45: 25 | Z45: 25 | AA45: 25 | AB45: 25 | AC45: 25 | AD45: 25 | AE45: 25 | AF45: 25 | AG45: 25 | AH45: 25
B46: Total | D46: ='Assumptions - General'!$E$27 &" millions" -> R$ millions | F46: =SUM(F40:F45) -> 125 | G46: 280 | H46: 280 | I46: 280 | J46: 280 | K46: 280 | L46: 280 | M46: 280 | N46: 280 | O46: 280 | P46: 280 | Q46: 280 | R46: 280 | S46: 280 | T46: 280 | U46: 280 | V46: 280 | W46: 280 | X46: 280 | Y46: 280 | Z46: 280 | AA46: 280 | AB46: 280 | AC46: 280 | AD46: 280 | AE46: 280 | AF46: 280 | AG46: 280 | AH46: 280
B48: ="Annual sale of " &E$26 -> Annual sale of Land | D48: ='Assumptions - General'!$E$27 &" millions" -> R$ millions | E48: =IF(SUM(F48:AH48)>E33,"WARNING: ASSETS SALES>INITIAL VALUE"," ") ->  | F48: 0 | G48: 0 | H48: 0 | I48: 0 | J48: 0 | K48: 0 | L48: 0 | M48: 0 | N48: 0 | O48: 0 | P48: 0 | Q48: 0 | R48: 0 | S48: 0 | T48: 0 | U48: 0 | V48: 0 | W48: 0 | X48: 0 | Y48: 0 | Z48: 0 | AA48: 0 | AB48: 0 | AC48: 0 | AD48: 0 | AE48: 0 | AF48: 0 | AG48: 0 | AH48: 0
B49: ="Annual sale of " &E$27 -> Annual sale of Buildings and structures | D49: ='Assumptions - General'!$E$27 &" millions" -> R$ millions | F49: 5 | G49: 5 | H49: 5 | I49: 5 | J49: 5 | K49: 5 | L49: 5 | M49: 5 | N49: 5 | O49: 5 | P49: 5 | Q49: 5 | R49: 5 | S49: 5 | T49: 5 | U49: 5 | V49: 5 | W49: 5 | X49: 5 | Y49: 5 | Z49: 5 | AA49: 5 | AB49: 5 | AC49: 5 | AD49: 5 | AE49: 5 | AF49: 5 | AG49: 5 | AH49: 5
B50: ="Annual sale of " &E$28 -> Annual sale of Track and infrastructure | D50: ='Assumptions - General'!$E$27 &" millions" -> R$ millions | F50: 5 | G50: 5 | H50: 5 | I50: 5 | J50: 5 | K50: 5 | L50: 5 | M50: 5 | N50: 5 | O50: 5 | P50: 5 | Q50: 5 | R50: 5 | S50: 5 | T50: 5 | U50: 5 | V50: 5 | W50: 5 | X50: 5 | Y50: 5 | Z50: 5 | AA50: 5 | AB50: 5 | AC50: 5 | AD50: 5 | AE50: 5 | AF50: 5 | AG50: 5 | AH50: 5
B51: ="Annual sale of " &E$29 -> Annual sale of Locomotives and railway cars | D51: ='Assumptions - General'!$E$27 &" millions" -> R$ millions | F51: 5 | G51: 5 | H51: 5 | I51: 5 | J51: 5 | K51: 5 | L51: 5 | M51: 5 | N51: 5 | O51: 5 | P51: 5 | Q51: 5 | R51: 5 | S51: 5 | T51: 5 | U51: 5 | V51: 5 | W51: 5 | X51: 5 | Y51: 5 | Z51: 5 | AA51: 5 | AB51: 5 | AC51: 5 | AD51: 5 | AE51: 5 | AF51: 5 | AG51: 5 | AH51: 5
B52: ="Annual sale of " &E$30 -> Annual sale of Machines, equipment and spare parts | D52: ='Assumptions - General'!$E$27 &" millions" -> R$ millions | F52: 5 | G52: 5 | H52: 5 | I52: 5 | J52: 5 | K52: 5 | L52: 5 | M52: 5 | N52: 5 | O52: 5 | P52: 5 | Q52: 5 | R52: 5 | S52: 5 | T52: 5 | U52: 5 | V52: 5 | W52: 5 | X52: 5 | Y52: 5 | Z52: 5 | AA52: 5 | AB52: 5 | AC52: 5 | AD52: 5 | AE52: 5 | AF52: 5 | AG52: 5 | AH52: 5
B53: ="Annual sale of " &E$31 -> Annual sale of Others | D53: ='Assumptions - General'!$E$27 &" millions" -> R$ millions | F53: 0 | G53: 0 | H53: 0 | I53: 0 | J53: 0 | K53: 0 | L53: 0 | M53: 0 | N53: 0 | O53: 0 | P53: 0 | Q53: 0 | R53: 0 | S53: 0 | T53: 0 | U53: 0 | V53: 0 | W53: 0 | X53: 0 | Y53: 0 | Z53: 0 | AA53: 0 | AB53: 0 | AC53: 0 | AD53: 0 | AE53: 0 | AF53: 0 | AG53: 0 | AH53: 0
B54: Total | D54: ='Assumptions - General'!$E$27 &" millions" -> R$ millions | F54: =SUM(F48:F53) -> 20 | G54: 20 | H54: 20 | I54: 20 | J54: 20 | K54: 20 | L54: 20 | M54: 20 | N54: 20 | O54: 20 | P54: 20 | Q54: 20 | R54: 20 | S54: 20 | T54: 20 | U54: 20 | V54: 20 | W54: 20 | X54: 20 | Y54: 20 | Z54: 20 | AA54: 20 | AB54: 20 | AC54: 20 | AD54: 20 | AE54: 20 | AF54: 20 | AG54: 20 | AH54: 20
B56: Depreciation expense in first year (total) | D56: ='Assumptions - General'!$E$27 &" millions" -> R$ millions | E56: 50
B58: ="Depreciation of " &E$26 -> Depreciation of Land
B59: If existing land depreciates, enter it manually | D59: ='Assumptions - General'!$E$27 &" millions" -> R$ millions | F59: 0 | G59: 0 | H59: 0 | I59: 0 | J59: 0 | K59: 0 | L59: 0 | M59: 0 | N59: 0 | O59: 0 | P59: 0 | Q59: 0 | R59: 0 | S59: 0 | T59: 0 | U59: 0 | V59: 0 | W59: 0 | X59: 0 | Y59: 0 | Z59: 0 | AA59: 0 | AB59: 0 | AC59: 0 | AD59: 0 | AE59: 0 | AF59: 0 | AG59: 0 | AH59: 0
A60: Model | B60: Let model calculate new land depreciation or enter it manually? | D60: Select | E60: =IF(F60="Model",1,2) -> 1 | F60: Model
A61: Manual entry
B62: =IF(E60=1,"If calculated, define the average life of new assets"," ") -> If calculated, define the average life of new assets | D62: =IF(E60=1,"Years"," ") -> Years | E62: 20
B63: =IF(E60=2,"If entered manually, define annual depreciation expense"," ") ->  | D63: =IF(E60=2,'Assumptions - General'!$E$27 &" millions"," ") -> 
B64: ="Depreciation of " &E$27 -> Depreciation of Buildings and structures | E64: =IF(AND(E65=1,SUM(E70:AH70)>0),"WARNING: MANUAL INPUT OF DEPRECIATION WITH MODEL CALCULATION",IF(AND(E65=2,SUM(E70:AH70)=0),"WARNING: DEPRECIATION MISSING WITH MANUAL ENTRY"," ")) -> 
B65: Let model calculate depreciation or enter it manually? | D65: Select | E65: =IF(F65="Model",1,2) -> 1 | F65: Model
B67: =IF(E65=1,"If calculated, define the average remaining life of existing assets"," ") -> If calculated, define the average remaining life of existing assets | D67: =IF(E65=1,"Years"," ") -> Years | E67: 7
B69: =IF(E65=1,"If calculated, define the average life of new assets"," ") -> If calculated, define the average life of new assets | D69: =IF(E65=1,"Years"," ") -> Years | E69: 20
B70: =IF(E65=2,"If entered manually, define annual depreciation expense"," ") ->  | D70: =IF(E65=2,'Assumptions - General'!$E$27 &" millions"," ") -> 
B72: ="Depreciation of " &E$28 -> Depreciation of Track and infrastructure | E72: =IF(AND(E73=1,SUM(E78:AH78)>0),"WARNING: MANUAL INPUT OF DEPRECIATION WITH MODEL CALCULATION",IF(AND(E73=2,SUM(E78:AH78)=0),"WARNING: DEPRECIATION MISSING WITH MANUAL ENTRY"," ")) -> 
B73: Let model calculate depreciation or enter it manually? | D73: Select | E73: =IF(F73="Model",1,2) -> 1 | F73: Model
B75: =IF(E73=1,"If calculated, define the average remaining life of existing assets"," ") -> If calculated, define the average remaining life of existing assets | D75: =IF(E73=1,"Years"," ") -> Years | E75: 21
B77: =IF(E73=1,"If calculated, define the average life of new assets"," ") -> If calculated, define the average life of new assets | D77: =IF(E73=1,"Years"," ") -> Years | E77: 31
B78: =IF(E73=2,"If entered manually, define annual depreciation expense"," ") ->  | D78: =IF(E73=2,'Assumptions - General'!$E$27 &" millions"," ") -> 
B80: ="Depreciation of " &E$29 -> Depreciation of Locomotives and railway cars | E80: =IF(AND(E81=1,SUM(E86:AH86)>0),"WARNING: MANUAL INPUT OF DEPRECIATION WITH MODEL CALCULATION",IF(AND(E81=2,SUM(E86:AH86)=0),"WARNING: DEPRECIATION MISSING WITH MANUAL ENTRY"," ")) -> 
B81: Let model calculate depreciation or enter it manually? | D81: Select | E81: =IF(F81="Model",1,2) -> 1 | F81: Model
B83: =IF(E81=1,"If calculated, define the average remaining life of existing assets"," ") -> If calculated, define the average remaining life of existing assets | D83: =IF(E81=1,"Years"," ") -> Years | E83: 20
B85: =IF(E81=1,"If calculated, define the average life of new assets"," ") -> If calculated, define the average life of new assets | D85: =IF(E81=1,"Years"," ") -> Years | E85: 30
B86: =IF(E81=2,"If entered manually, define annual depreciation expense"," ") ->  | D86: =IF(E81=2,'Assumptions - General'!$E$27 &" millions"," ") -> 
B88: ="Depreciation of " &E$30 -> Depreciation of Machines, equipment and spare parts | E88: =IF(AND(E89=1,SUM(E94:AH94)>0),"WARNING: MANUAL INPUT OF DEPRECIATION WITH MODEL CALCULATION",IF(AND(E89=2,SUM(E94:AH94)=0),"WARNING: DEPRECIATION MISSING WITH MANUAL ENTRY"," ")) -> 
B89: Let model calculate depreciation or enter it manually? | D89: Select | E89: =IF(F89="Model",1,2) -> 1 | F89: Model
B91: =IF(E89=1,"If calculated, define the average remaining life of existing assets"," ") -> If calculated, define the average remaining life of existing assets | D91: =IF(E89=1,"Years"," ") -> Years | E91: 20
B93: =IF(E89=1,"If calculated, define the average life of new assets"," ") -> If calculated, define the average life of new assets | D93: =IF(E89=1,"Years"," ") -> Years | E93: 30
B94: =IF(E89=2,"If entered manually, define annual depreciation expense"," ") ->  | D94: =IF(E89=2,'Assumptions - General'!$E$27 &" millions"," ") -> 
B96: ="Depreciation of " &E$31 -> Depreciation of Others | E96: =IF(AND(E97=1,SUM(E102:AH102)>0),"WARNING: MANUAL INPUT OF DEPRECIATION WITH MODEL CALCULATION",IF(AND(E97=2,SUM(E102:AH102)=0),"WARNING: DEPRECIATION MISSING WITH MANUAL ENTRY"," ")) -> 
B97: Let model calculate depreciation or enter it manually? | D97: Select | E97: =IF(F97="Model",1,2) -> 1 | F97: Model
B99: =IF(E97=1,"If calculated, define the average remaining life of existing assets"," ") -> If calculated, define the average remaining life of existing assets | D99: =IF(E97=1,"Years"," ") -> Years | E99: 20
B101: =IF(E97=1,"If calculated, define the average life of new assets"," ") -> If calculated, define the average life of new assets | D101: =IF(E97=1,"Years"," ") -> Years | E101: 31
B102: =IF(E97=2,"If entered manually, define annual depreciation expense"," ") ->  | D102: =IF(E97=2,'Assumptions - General'!$E$27 &" millions"," ") -> 
B104: ="Other long-term assets for " &'Assumptions - General'!$E$24 -> Other long-term assets for Ruritania Freight Rail Company
B106: Other long-term assets
B107: Annual amount | D107: ='Assumptions - General'!$E$27 &" millions" -> R$ millions | E107: 10 | F107: =E107 -> 10 | G107: =F107 -> 10 | H107: 10 | I107: 10 | J107: 10 | K107: 10 | L107: 10 | M107: 10 | N107: 10 | O107: 10 | P107: 10 | Q107: 10 | R107: 10 | S107: 10 | T107: 10 | U107: 10 | V107: 10 | W107: 10 | X107: 10 | Y107: 10 | Z107: 10 | AA107: 10 | AB107: 10 | AC107: 10 | AD107: 10 | AE107: 10 | AF107: 10 | AG107: 10 | AH107: 10
B109: Traffic assumptions - Freight | E109: =IF(OR(AND('Scenarios - Consolidated'!$F$3=1,OR('Scenarios - Consolidated'!$F$20=1,'Scenarios - Consolidated'!$G$20=1)),AND('Scenarios - Infra'!$F$3=1,OR('Scenarios - Infra'!$F$20=1,'Scenarios - Infra'!$G$20=1)),AND('Scenarios - Freight'!$F$3=1,OR('Scenarios - Freight'!$F$20=1,'Scenarios - Freight'!$G$20=1))),"NOTE: SCENARIO ANALYSIS TRAFFIC ASSUMPTIONS IN USE"," ") -> 
F110: Net ton-km
B111: Traffic data in net ton-kilometers or tons? | D111: Net ton-km/tons | E111: =IF(F110="Net ton-km",1,2) -> 1 | F111: Net ton-km | G111: Yes
F112: Tons | G112: No
B113: Enter average length of cargo haul | D113: km | E113: 100
B114: Enter weight of train load (net) | D114: Tons | E114: 100
B116: Name of traffic flow 1 | D116: Text | E116: Commodity 1
B117: Name of traffic flow 2 | D117: Text | E117: Commodity 2
B118: Name of traffic flow 3 | D118: Text | E118: Commodity 3
B119: Name of traffic flow 4 | D119: Text | E119: Commodity 4
B120: Name of traffic flow 5 | D120: Text | E120: Commodity 5
B121: Name of traffic flow 6 | D121: Text | E121: Commodity 6
B122: Name of traffic flow 7 | D122: Text | E122: Commodity 7
B123: Name of traffic flow 8 | D123: Text | E123: Commodity 8
B124: Name of traffic flow 9 | D124: Text | E124: Commodity 9
B125: Name of traffic flow 10 | D125: Text | E125: Commodity 10
E126: =IF(SUM(E129:AH129)>0,"WARNING: IMPLIED GTK/NTK RATIO CANNOT BE BELOW 1"," ") -> 
B127: Implied gross ton-km/net ton-km ratio | D127: Ratio | E127: =IF(E15<>0,IF(E$111=1,$E$15/(E130+E131+E132+E133+E134+E135+E136+E137+E138+E139),$E$15/($E$113*(E130+E131+E132+E133+E134+E135+E136+E137+E138+E139))),0) -> 1.219512195 | F127: =E127*(1+F128) -> 1.219512195 | G127: 1.219512195 | H127: 1.219512195 | I127: 1.219512195 | J127: 1.219512195 | K127: 1.219512195 | L127: 1.219512195 | M127: 1.219512195 | N127: 1.219512195 | O127: 1.219512195 | P127: 1.219512195 | Q127: 1.219512195 | R127: 1.219512195 | S127: 1.219512195 | T127: 1.219512195 | U127: 1.219512195 | V127: 1.219512195 | W127: 1.219512195 | X127: 1.219512195 | Y127: 1.219512195 | Z127: 1.219512195 | AA127: 1.219512195 | AB127: 1.219512195 | AC127: 1.219512195 | AD127: 1.219512195 | AE127: 1.219512195 | AF127: 1.219512195 | AG127: 1.219512195 | AH127: 1.219512195
B128: Enter change in GTK/NTK ratio | D128: % | F128: 0 | G128: 0 | H128: 0 | I128: 0 | J128: 0 | K128: 0 | L128: 0 | M128: 0 | N128: 0 | O128: 0 | P128: 0 | Q128: 0 | R128: 0 | S128: 0 | T128: 0 | U128: 0 | V128: 0 | W128: 0 | X128: 0 | Y128: 0 | Z128: 0 | AA128: 0 | AB128: 0 | AC128: 0 | AD128: 0 | AE128: 0 | AF128: 0 | AG128: 0 | AH128: 0
E129: =IF(AND(E127<1,Calculations!E16=1),1,0) -> 0 | F129: =IF(AND(F127<1,Calculations!F16=1),1,0) -> 0 | G129: =IF(AND(G127<1,Calculations!G16=1),1,0) -> 0 | H129: =IF(AND(H127<1,Calculations!H16=1),1,0) -> 0 | I129: =IF(AND(I127<1,Calculations!I16=1),1,0) -> 0 | J129: =IF(AND(J127<1,Calculations!J16=1),1,0) -> 0 | K129: =IF(AND(K127<1,Calculations!K16=1),1,0) -> 0 | L129: =IF(AND(L127<1,Calculations!L16=1),1,0) -> 0 | M129: =IF(AND(M127<1,Calculations!M16=1),1,0) -> 0 | N129: =IF(AND(N127<1,Calculations!N16=1),1,0) -> 0 | O129: =IF(AND(O127<1,Calculations!O16=1),1,0) -> 0 | P129: =IF(AND(P127<1,Calculations!P16=1),1,0) -> 0 | Q129: =IF(AND(Q127<1,Calculations!Q16=1),1,0) -> 0 | R129: =IF(AND(R127<1,Calculations!R16=1),1,0) -> 0 | S129: =IF(AND(S127<1,Calculations!S16=1),1,0) -> 0 | T129: =IF(AND(T127<1,Calculations!T16=1),1,0) -> 0 | U129: =IF(AND(U127<1,Calculations!U16=1),1,0) -> 0 | V129: =IF(AND(V127<1,Calculations!V16=1),1,0) -> 0 | W129: =IF(AND(W127<1,Calculations!W16=1),1,0) -> 0 | X129: =IF(AND(X127<1,Calculations!X16=1),1,0) -> 0 | Y129: =IF(AND(Y127<1,Calculations!Y16=1),1,0) -> 0 | Z129: =IF(AND(Z127<1,Calculations!Z16=1),1,0) -> 0 | AA129: =IF(AND(AA127<1,Calculations!AA16=1),1,0) -> 0 | AB129: =IF(AND(AB127<1,Calculations!AB16=1),1,0) -> 0 | AC129: =IF(AND(AC127<1,Calculations!AC16=1),1,0) -> 0 | AD129: =IF(AND(AD127<1,Calculations!AD16=1),1,0) -> 0 | AE129: =IF(AND(AE127<1,Calculations!AE16=1),1,0) -> 0 | AF129: =IF(AND(AF127<1,Calculations!AF16=1),1,0) -> 0 | AG129: =IF(AND(AG127<1,Calculations!AG16=1),1,0) -> 0 | AH129: =IF(AND(AH127<1,Calculations!AH16=1),1,0) -> 0
B130: =E116&" annual traffic volume" -> Commodity 1 annual traffic volume | D130: =IF($E$111=1,"Net ton-km (million)", "Tons (million)") -> Net ton-km (million) | E130: 4000 | F130: 4000 | G130: 4000 | H130: 4000 | I130: 4000 | J130: 4000 | K130: 4500 | L130: 4500 | M130: 4500 | N130: 4500 | O130: 4500 | P130: 4500 | Q130: 4500 | R130: 4500 | S130: 4500 | T130: 4500 | U130: 4500 | V130: 4500 | W130: 4500 | X130: 4500 | Y130: 4500 | Z130: 4500 | AA130: 4500 | AB130: 4500 | AC130: 4500 | AD130: 4500 | AE130: 4500 | AF130: 4500 | AG130: 4500 | AH130: 4500
B131: Commodity 2 annual traffic volume | D131: Net ton-km (million) | E131: 4000 | F131: 4000 | G131: 4000 | H131: 4000 | I131: 4000 | J131: 4000 | K131: 4500 | L131: 4500 | M131: 4500 | N131: 4500 | O131: 4500 | P131: 4500 | Q131: 4500 | R131: 4500 | S131: 4500 | T131: 4500 | U131: 4500 | V131: 4500 | W131: 4500 | X131: 4500 | Y131: 4500 | Z131: 4500 | AA131: 4500 | AB131: 4500 | AC131: 4500 | AD131: 4500 | AE131: 4500 | AF131: 4500 | AG131: 4500 | AH131: 4500
B132: Commodity 3 annual traffic volume | D132: Net ton-km (million) | E132: 5000 | F132: 4000 | G132: 4000 | H132: 4000 | I132: 4000 | J132: 4000 | K132: 4500 | L132: 4500 | M132: 4500 | N132: 4500 | O132: 4500 | P132: 4500 | Q132: 4500 | R132: 4500 | S132: 4500 | T132: 4500 | U132: 4500 | V132: 4500 | W132: 4500 | X132: 4500 | Y132: 4500 | Z132: 4500 | AA132: 4500 | AB132: 4500 | AC132: 4500 | AD132: 4500 | AE132: 4500 | AF132: 4500 | AG132: 4500 | AH132: 4500
B133: Commodity 4 annual traffic volume | D133: Net ton-km (million) | E133: 4000 | F133: 4000 | G133: 4000 | H133: 4000 | I133: 4000 | J133: 4000 | K133: 4500 | L133: 4500 | M133: 4500 | N133: 4500 | O133: 4500 | P133: 4500 | Q133: 4500 | R133: 4500 | S133: 4500 | T133: 4500 | U133: 4500 | V133: 4500 | W133: 4500 | X133: 4500 | Y133: 4500 | Z133: 4500 | AA133: 4500 | AB133: 4500 | AC133: 4500 | AD133: 4500 | AE133: 4500 | AF133: 4500 | AG133: 4500 | AH133: 4500
B134: Commodity 5 annual traffic volume | D134: Net ton-km (million) | E134: 4000 | F134: 4000 | G134: 4000 | H134: 4000 | I134: 4000 | J134: 4000 | K134: 4500 | L134: 4500 | M134: 4500 | N134: 4500 | O134: 4500 | P134: 4500 | Q134: 4500 | R134: 4500 | S134: 4500 | T134: 4500 | U134: 4500 | V134: 4500 | W134: 4500 | X134: 4500 | Y134: 4500 | Z134: 4500 | AA134: 4500 | AB134: 4500 | AC134: 4500 | AD134: 4500 | AE134: 4500 | AF134: 4500 | AG134: 4500 | AH134: 4500
B135: Commodity 6 annual traffic volume | D135: Net ton-km (million) | E135: 4000 | F135: 4000 | G135: 4000 | H135: 4000 | I135: 4000 | J135: 4000 | K135: 4500 | L135: 4500 | M135: 4500 | N135: 4500 | O135: 4500 | P135: 4500 | Q135: 4500 | R135: 4500 | S135: 4500 | T135: 4500 | U135: 4500 | V135: 4500 | W135: 4500 | X135: 4500 | Y135: 4500 | Z135: 4500 | AA135: 4500 | AB135: 4500 | AC135: 4500 | AD135: 4500 | AE135: 4500 | AF135: 4500 | AG135: 4500 | AH135: 4500
B136: Commodity 7 annual traffic volume | D136: Net ton-km (million) | E136: 4000 | F136: 4000 | G136: 4000 | H136: 4000 | I136: 4000 | J136: 4000 | K136: 4500 | L136: 4500 | M136: 4500 | N136: 4500 | O136: 4500 | P136: 4500 | Q136: 4500 | R136: 4500 | S136: 4500 | T136: 4500 | U136: 4500 | V136: 4500 | W136: 4500 | X136: 4500 | Y136: 4500 | Z136: 4500 | AA136: 4500 | AB136: 4500 | AC136: 4500 | AD136: 4500 | AE136: 4500 | AF136: 4500 | AG136: 4500 | AH136: 4500
B137: Commodity 8 annual traffic volume | D137: Net ton-km (million) | E137: 4000 | F137: 4000 | G137: 4000 | H137: 4000 | I137: 4000 | J137: 4000 | K137: 4500 | L137: 4500 | M137: 4500 | N137: 4500 | O137: 4500 | P137: 4500 | Q137: 4500 | R137: 4500 | S137: 4500 | T137: 4500 | U137: 4500 | V137: 4500 | W137: 4500 | X137: 4500 | Y137: 4500 | Z137: 4500 | AA137: 4500 | AB137: 4500 | AC137: 4500 | AD137: 4500 | AE137: 4500 | AF137: 4500 | AG137: 4500 | AH137: 4500
B138: Commodity 9 annual traffic volume | D138: Net ton-km (million) | E138: 4000 | F138: 4000 | G138: 4000 | H138: 4000 | I138: 4000 | J138: 4000 | K138: 4500 | L138: 4500 | M138: 4500 | N138: 4500 | O138: 4500 | P138: 4500 | Q138: 4500 | R138: 4500 | S138: 4500 | T138: 4500 | U138: 4500 | V138: 4500 | W138: 4500 | X138: 4500 | Y138: 4500 | Z138: 4500 | AA138: 4500 | AB138: 4500 | AC138: 4500 | AD138: 4500 | AE138: 4500 | AF138: 4500 | AG138: 4500 | AH138: 4500
B139: Commodity 10 annual traffic volume | D139: Net ton-km (million) | E139: 4000 | F139: 4000 | G139: 4000 | H139: 4000 | I139: 4000 | J139: 4000 | K139: 4500 | L139: 4500 | M139: 4500 | N139: 4500 | O139: 4500 | P139: 4500 | Q139: 4500 | R139: 4500 | S139: 4500 | T139: 4500 | U139: 4500 | V139: 4500 | W139: 4500 | X139: 4500 | Y139: 4500 | Z139: 4500 | AA139: 4500 | AB139: 4500 | AC139: 4500 | AD139: 4500 | AE139: 4500 | AF139: 4500 | AG139: 4500 | AH139: 4500
B141: Tariff assumptions - Freight | E141: =IF(OR(AND('Scenarios - Consolidated'!$F$3=1,OR('Scenarios - Consolidated'!$D$20=1,'Scenarios - Consolidated'!$E$20=1)),AND('Scenarios - Freight'!$F$3=1,OR('Scenarios - Freight'!$D$20=1,'Scenarios - Freight'!$E$20=1))),"NOTE: SCENARIO ANALYSIS TARIFF ASSUMPTIONS IN USE"," ") -> 
B143: Grow tariffs by inflation in forecast period? | D143: yes/no | E143: =IF(F143="Yes",1,2) -> 1 | F143: Yes
B145: =E116 -> Commodity 1
B146: Average tariff in first year | D146: =IF($E$111=1,'Assumptions - General'!$E$27 & "/Ton-km", 'Assumptions - General'!$E$27 & "/Tons") -> R$/Ton-km | E146: 1
B147: Proportion of inflation indexation after year 1 | D147: % | E147: =F147/100 -> 0.35 | F147: 35
B148: Additional change in tariff | D148: %
B150: =E117 -> Commodity 2
B151: Average tariff in first year | D151: =D146 -> R$/Ton-km | E151: 1
B152: Proportion of inflation indexation after year 1 | D152: % | E152: =F152/100 -> 0.89 | F152: 89
B153: Additional change in tariff | D153: %
B155: =E118 -> Commodity 3
B156: Average tariff in first year | D156: =D151 -> R$/Ton-km | E156: 1
B157: Proportion of inflation indexation after year 1 | D157: % | E157: =F157/100 -> 1 | F157: 100
B158: Additional change in tariff | D158: %
B160: =E119 -> Commodity 4
B161: Average tariff in first year | D161: =D156 -> R$/Ton-km | E161: 1
B162: Proportion of inflation indexation after year 1 | D162: % | E162: =F162/100 -> 1 | F162: 100
B163: Additional change in tariff | D163: %
B165: =E120 -> Commodity 5
B166: Average tariff in first year | D166: =D161 -> R$/Ton-km | E166: 1
B167: Proportion of inflation indexation after year 1 | D167: % | E167: =F167/100 -> 0.99 | F167: 99
B168: Additional change in tariff | D168: %
B170: =E121 -> Commodity 6
B171: Average tariff in first year | D171: =D166 -> R$/Ton-km | E171: 1
B172: Proportion of inflation indexation after year 1 | D172: % | E172: =F172/100 -> 1 | F172: 100
B173: Additional change in tariff | D173: %
B175: =E122 -> Commodity 7
B176: Average tariff in first year | D176: =D171 -> R$/Ton-km | E176: 1
B177: Proportion of inflation indexation after year 1 | D177: % | E177: =F177/100 -> 1 | F177: 100
B178: Additional change in tariff | D178: %
B180: =E123 -> Commodity 8
B181: Average tariff in first year | D181: =D176 -> R$/Ton-km | E181: 1
B182: Proportion of inflation indexation after year 1 | D182: % | E182: =F182/100 -> 1 | F182: 100
B183: Additional change in tariff | D183: %
B185: =E124 -> Commodity 9
B186: Average tariff in first year | D186: =D181 -> R$/Ton-km | E186: 1
B187: Proportion of inflation indexation after year 1 | D187: % | E187: =F187/100 -> 0.96 | F187: 96
B188: Additional change in tariff | D188: %
B190: =E125 -> Commodity 10
B191: Average tariff in first year | D191: =D186 -> R$/Ton-km | E191: 1
B192: Proportion of inflation indexation after year 1 | D192: % | E192: =F192/100 -> 0.99 | F192: 99
B193: Additional change in tariff | D193: %
B195: =B145& " -tariff in forecast period" -> Commodity 1 -tariff in forecast period | D195: =D146 -> R$/Ton-km | F195: =Calculations!F211 -> 1.0105 | G195: =Calculations!G211 -> 1.02111025 | H195: =Calculations!H211 -> 1.031831908 | I195: =Calculations!I211 -> 1.042666143 | J195: =Calculations!J211 -> 1.053614137 | K195: =Calculations!K211 -> 1.064677086 | L195: =Calculations!L211 -> 1.075856195 | M195: =Calculations!M211 -> 1.087152685 | N195: =Calculations!N211 -> 1.098567788 | O195: =Calculations!O211 -> 1.11010275 | P195: =Calculations!P211 -> 1.121758829 | Q195: =Calculations!Q211 -> 1.133537297 | R195: =Calculations!R211 -> 1.145439438 | S195: =Calculations!S211 -> 1.157466552 | T195: =Calculations!T211 -> 1.169619951 | U195: =Calculations!U211 -> 1.181900961 | V195: =Calculations!V211 -> 1.194310921 | W195: =Calculations!W211 -> 1.206851185 | X195: =Calculations!X211 -> 1.219523123 | Y195: =Calculations!Y211 -> 1.232328116 | Z195: =Calculations!Z211 -> 1.245267561 | AA195: =Calculations!AA211 -> 1.25834287 | AB195: =Calculations!AB211 -> 1.27155547 | AC195: =Calculations!AC211 -> 1.284906803 | AD195: =Calculations!AD211 -> 1.298398324 | AE195: =Calculations!AE211 -> 1.312031507 | AF195: =Calculations!AF211 -> 1.325807837 | AG195: =Calculations!AG211 -> 1.33972882 | AH195: =Calculations!AH211 -> 1.353795972
B196: =B150& " -tariff in forecast period" -> Commodity 2 -tariff in forecast period | D196: =D195 -> R$/Ton-km | F196: =Calculations!F213 -> 1.0267 | G196: =Calculations!G213 -> 1.05411289 | H196: =Calculations!H213 -> 1.082257704 | I196: =Calculations!I213 -> 1.111153985 | J196: =Calculations!J213 -> 1.140821796 | K196: =Calculations!K213 -> 1.171281738 | L196: =Calculations!L213 -> 1.202554961 | M196: =Calculations!M213 -> 1.234663178 | N196: =Calculations!N213 -> 1.267628685 | O196: =Calculations!O213 -> 1.301474371 | P196: =Calculations!P213 -> 1.336223737 | Q196: =Calculations!Q213 -> 1.37190091 | R196: =Calculations!R213 -> 1.408530665 | S196: =Calculations!S213 -> 1.446138433 | T196: =Calculations!T213 -> 1.48475033 | U196: =Calculations!U213 -> 1.524393163 | V196: =Calculations!V213 -> 1.565094461 | W196: =Calculations!W213 -> 1.606882483 | X196: =Calculations!X213 -> 1.649786245 | Y196: =Calculations!Y213 -> 1.693835538 | Z196: =Calculations!Z213 -> 1.739060947 | AA196: =Calculations!AA213 -> 1.785493874 | AB196: =Calculations!AB213 -> 1.83316656 | AC196: =Calculations!AC213 -> 1.882112108 | AD196: =Calculations!AD213 -> 1.932364501 | AE196: =Calculations!AE213 -> 1.983958633 | AF196: =Calculations!AF213 -> 2.036930329 | AG196: =Calculations!AG213 -> 2.091316368 | AH196: =Calculations!AH213 -> 2.147154515
B197: =B155& " -tariff in forecast period" -> Commodity 3 -tariff in forecast period | D197: R$/Ton-km | F197: =Calculations!F215 -> 1.03 | G197: =Calculations!G215 -> 1.0609 | H197: =Calculations!H215 -> 1.092727 | I197: =Calculations!I215 -> 1.12550881 | J197: =Calculations!J215 -> 1.159274074 | K197: =Calculations!K215 -> 1.194052297 | L197: =Calculations!L215 -> 1.229873865 | M197: =Calculations!M215 -> 1.266770081 | N197: =Calculations!N215 -> 1.304773184 | O197: =Calculations!O215 -> 1.343916379 | P197: =Calculations!P215 -> 1.384233871 | Q197: =Calculations!Q215 -> 1.425760887 | R197: =Calculations!R215 -> 1.468533713 | S197: =Calculations!S215 -> 1.512589725 | T197: =Calculations!T215 -> 1.557967417 | U197: =Calculations!U215 -> 1.604706439 | V197: =Calculations!V215 -> 1.652847632 | W197: =Calculations!W215 -> 1.702433061 | X197: =Calculations!X215 -> 1.753506053 | Y197: =Calculations!Y215 -> 1.806111235 | Z197: =Calculations!Z215 -> 1.860294572 | AA197: =Calculations!AA215 -> 1.916103409 | AB197: =Calculations!AB215 -> 1.973586511 | AC197: =Calculations!AC215 -> 2.032794106 | AD197: =Calculations!AD215 -> 2.09377793 | AE197: =Calculations!AE215 -> 2.156591268 | AF197: =Calculations!AF215 -> 2.221289006 | AG197: =Calculations!AG215 -> 2.287927676 | AH197: =Calculations!AH215 -> 2.356565506
B198: =B160& " -tariff in forecast period" -> Commodity 4 -tariff in forecast period | D198: R$/Ton-km | F198: =Calculations!F217 -> 1.03 | G198: =Calculations!G217 -> 1.0609 | H198: =Calculations!H217 -> 1.092727 | I198: =Calculations!I217 -> 1.12550881 | J198: =Calculations!J217 -> 1.159274074 | K198: =Calculations!K217 -> 1.194052297 | L198: =Calculations!L217 -> 1.229873865 | M198: =Calculations!M217 -> 1.266770081 | N198: =Calculations!N217 -> 1.304773184 | O198: =Calculations!O217 -> 1.343916379 | P198: =Calculations!P217 -> 1.384233871 | Q198: =Calculations!Q217 -> 1.425760887 | R198: =Calculations!R217 -> 1.468533713 | S198: =Calculations!S217 -> 1.512589725 | T198: =Calculations!T217 -> 1.557967417 | U198: =Calculations!U217 -> 1.604706439 | V198: =Calculations!V217 -> 1.652847632 | W198: =Calculations!W217 -> 1.702433061 | X198: =Calculations!X217 -> 1.753506053 | Y198: =Calculations!Y217 -> 1.806111235 | Z198: =Calculations!Z217 -> 1.860294572 | AA198: =Calculations!AA217 -> 1.916103409 | AB198: =Calculations!AB217 -> 1.973586511 | AC198: =Calculations!AC217 -> 2.032794106 | AD198: =Calculations!AD217 -> 2.09377793 | AE198: =Calculations!AE217 -> 2.156591268 | AF198: =Calculations!AF217 -> 2.221289006 | AG198: =Calculations!AG217 -> 2.287927676 | AH198: =Calculations!AH217 -> 2.356565506
B199: =B165& " -tariff in forecast period" -> Commodity 5 -tariff in forecast period | D199: R$/Ton-km | F199: =Calculations!F219 -> 1.0297 | G199: =Calculations!G219 -> 1.06028209 | H199: =Calculations!H219 -> 1.091772468 | I199: =Calculations!I219 -> 1.12419811 | J199: =Calculations!J219 -> 1.157586794 | K199: =Calculations!K219 -> 1.191967122 | L199: =Calculations!L219 -> 1.227368546 | M199: =Calculations!M219 -> 1.263821391 | N199: =Calculations!N219 -> 1.301356887 | O199: =Calculations!O219 -> 1.340007186 | P199: =Calculations!P219 -> 1.3798054 | Q199: =Calculations!Q219 -> 1.42078562 | R199: =Calculations!R219 -> 1.462982953 | S199: =Calculations!S219 -> 1.506433547 | T199: =Calculations!T219 -> 1.551174623 | U199: =Calculations!U219 -> 1.597244509 | V199: =Calculations!V219 -> 1.644682671 | W199: =Calculations!W219 -> 1.693529747 | X199: =Calculations!X219 -> 1.74382758 | Y199: =Calculations!Y219 -> 1.795619259 | Z199: =Calculations!Z219 -> 1.848949151 | AA199: =Calculations!AA219 -> 1.903862941 | AB199: =Calculations!AB219 -> 1.96040767 | AC199: =Calculations!AC219 -> 2.018631778 | AD199: =Calculations!AD219 -> 2.078585142 | AE199: =Calculations!AE219 -> 2.140319121 | AF199: =Calculations!AF219 -> 2.203886598 | AG199: =Calculations!AG219 -> 2.26934203 | AH199: =Calculations!AH219 -> 2.336741489
B200: =B170& " -tariff in forecast period" -> Commodity 6 -tariff in forecast period | D200: R$/Ton-km | F200: =Calculations!F221 -> 1.03 | G200: =Calculations!G221 -> 1.0609 | H200: =Calculations!H221 -> 1.092727 | I200: =Calculations!I221 -> 1.12550881 | J200: =Calculations!J221 -> 1.159274074 | K200: =Calculations!K221 -> 1.194052297 | L200: =Calculations!L221 -> 1.229873865 | M200: =Calculations!M221 -> 1.266770081 | N200: =Calculations!N221 -> 1.304773184 | O200: =Calculations!O221 -> 1.343916379 | P200: =Calculations!P221 -> 1.384233871 | Q200: =Calculations!Q221 -> 1.425760887 | R200: =Calculations!R221 -> 1.468533713 | S200: =Calculations!S221 -> 1.512589725 | T200: =Calculations!T221 -> 1.557967417 | U200: =Calculations!U221 -> 1.604706439 | V200: =Calculations!V221 -> 1.652847632 | W200: =Calculations!W221 -> 1.702433061 | X200: =Calculations!X221 -> 1.753506053 | Y200: =Calculations!Y221 -> 1.806111235 | Z200: =Calculations!Z221 -> 1.860294572 | AA200: =Calculations!AA221 -> 1.916103409 | AB200: =Calculations!AB221 -> 1.973586511 | AC200: =Calculations!AC221 -> 2.032794106 | AD200: =Calculations!AD221 -> 2.09377793 | AE200: =Calculations!AE221 -> 2.156591268 | AF200: =Calculations!AF221 -> 2.221289006 | AG200: =Calculations!AG221 -> 2.287927676 | AH200: =Calculations!AH221 -> 2.356565506
B201: =B175& " -tariff in forecast period" -> Commodity 7 -tariff in forecast period | D201: R$/Ton-km | F201: =Calculations!F223 -> 1.03 | G201: =Calculations!G223 -> 1.0609 | H201: =Calculations!H223 -> 1.092727 | I201: =Calculations!I223 -> 1.12550881 | J201: =Calculations!J223 -> 1.159274074 | K201: =Calculations!K223 -> 1.194052297 | L201: =Calculations!L223 -> 1.229873865 | M201: =Calculations!M223 -> 1.266770081 | N201: =Calculations!N223 -> 1.304773184 | O201: =Calculations!O223 -> 1.343916379 | P201: =Calculations!P223 -> 1.384233871 | Q201: =Calculations!Q223 -> 1.425760887 | R201: =Calculations!R223 -> 1.468533713 | S201: =Calculations!S223 -> 1.512589725 | T201: =Calculations!T223 -> 1.557967417 | U201: =Calculations!U223 -> 1.604706439 | V201: =Calculations!V223 -> 1.652847632 | W201: =Calculations!W223 -> 1.702433061 | X201: =Calculations!X223 -> 1.753506053 | Y201: =Calculations!Y223 -> 1.806111235 | Z201: =Calculations!Z223 -> 1.860294572 | AA201: =Calculations!AA223 -> 1.916103409 | AB201: =Calculations!AB223 -> 1.973586511 | AC201: =Calculations!AC223 -> 2.032794106 | AD201: =Calculations!AD223 -> 2.09377793 | AE201: =Calculations!AE223 -> 2.156591268 | AF201: =Calculations!AF223 -> 2.221289006 | AG201: =Calculations!AG223 -> 2.287927676 | AH201: =Calculations!AH223 -> 2.356565506
B202: =B180& " -tariff in forecast period" -> Commodity 8 -tariff in forecast period | D202: R$/Ton-km | F202: =Calculations!F225 -> 1.03 | G202: =Calculations!G225 -> 1.0609 | H202: =Calculations!H225 -> 1.092727 | I202: =Calculations!I225 -> 1.12550881 | J202: =Calculations!J225 -> 1.159274074 | K202: =Calculations!K225 -> 1.194052297 | L202: =Calculations!L225 -> 1.229873865 | M202: =Calculations!M225 -> 1.266770081 | N202: =Calculations!N225 -> 1.304773184 | O202: =Calculations!O225 -> 1.343916379 | P202: =Calculations!P225 -> 1.384233871 | Q202: =Calculations!Q225 -> 1.425760887 | R202: =Calculations!R225 -> 1.468533713 | S202: =Calculations!S225 -> 1.512589725 | T202: =Calculations!T225 -> 1.557967417 | U202: =Calculations!U225 -> 1.604706439 | V202: =Calculations!V225 -> 1.652847632 | W202: =Calculations!W225 -> 1.702433061 | X202: =Calculations!X225 -> 1.753506053 | Y202: =Calculations!Y225 -> 1.806111235 | Z202: =Calculations!Z225 -> 1.860294572 | AA202: =Calculations!AA225 -> 1.916103409 | AB202: =Calculations!AB225 -> 1.973586511 | AC202: =Calculations!AC225 -> 2.032794106 | AD202: =Calculations!AD225 -> 2.09377793 | AE202: =Calculations!AE225 -> 2.156591268 | AF202: =Calculations!AF225 -> 2.221289006 | AG202: =Calculations!AG225 -> 2.287927676 | AH202: =Calculations!AH225 -> 2.356565506
B203: =B185& " -tariff in forecast period" -> Commodity 9 -tariff in forecast period | D203: R$/Ton-km | F203: =Calculations!F227 -> 1.0288 | G203: =Calculations!G227 -> 1.05842944 | H203: =Calculations!H227 -> 1.088912208 | I203: =Calculations!I227 -> 1.120272879 | J203: =Calculations!J227 -> 1.152536738 | K203: =Calculations!K227 -> 1.185729796 | L203: =Calculations!L227 -> 1.219878815 | M203: =Calculations!M227 -> 1.255011324 | N203: =Calculations!N227 -> 1.291155651 | O203: =Calculations!O227 -> 1.328340933 | P203: =Calculations!P227 -> 1.366597152 | Q203: =Calculations!Q227 -> 1.40595515 | R203: =Calculations!R227 -> 1.446446659 | S203: =Calculations!S227 -> 1.488104322 | T203: =Calculations!T227 -> 1.530961727 | U203: =Calculations!U227 -> 1.575053424 | V203: =Calculations!V227 -> 1.620414963 | W203: =Calculations!W227 -> 1.667082914 | X203: =Calculations!X227 -> 1.715094902 | Y203: =Calculations!Y227 -> 1.764489635 | Z203: =Calculations!Z227 -> 1.815306937 | AA203: =Calculations!AA227 -> 1.867587776 | AB203: =Calculations!AB227 -> 1.921374304 | AC203: =Calculations!AC227 -> 1.976709884 | AD203: =Calculations!AD227 -> 2.033639129 | AE203: =Calculations!AE227 -> 2.092207936 | AF203: =Calculations!AF227 -> 2.152463525 | AG203: =Calculations!AG227 -> 2.214454474 | AH203: =Calculations!AH227 -> 2.278230763
B204: =B190& " -tariff in forecast period" -> Commodity 10 -tariff in forecast period | D204: R$/Ton-km | F204: =Calculations!F229 -> 1.0297 | G204: =Calculations!G229 -> 1.06028209 | H204: =Calculations!H229 -> 1.091772468 | I204: =Calculations!I229 -> 1.12419811 | J204: =Calculations!J229 -> 1.157586794 | K204: =Calculations!K229 -> 1.191967122 | L204: =Calculations!L229 -> 1.227368546 | M204: =Calculations!M229 -> 1.263821391 | N204: =Calculations!N229 -> 1.301356887 | O204: =Calculations!O229 -> 1.340007186 | P204: =Calculations!P229 -> 1.3798054 | Q204: =Calculations!Q229 -> 1.42078562 | R204: =Calculations!R229 -> 1.462982953 | S204: =Calculations!S229 -> 1.506433547 | T204: =Calculations!T229 -> 1.551174623 | U204: =Calculations!U229 -> 1.597244509 | V204: =Calculations!V229 -> 1.644682671 | W204: =Calculations!W229 -> 1.693529747 | X204: =Calculations!X229 -> 1.74382758 | Y204: =Calculations!Y229 -> 1.795619259 | Z204: =Calculations!Z229 -> 1.848949151 | AA204: =Calculations!AA229 -> 1.903862941 | AB204: =Calculations!AB229 -> 1.96040767 | AC204: =Calculations!AC229 -> 2.018631778 | AD204: =Calculations!AD229 -> 2.078585142 | AE204: =Calculations!AE229 -> 2.140319121 | AF204: =Calculations!AF229 -> 2.203886598 | AG204: =Calculations!AG229 -> 2.26934203 | AH204: =Calculations!AH229 -> 2.336741489
A205: <<<< Show/hide results
B207: ="Other operating revenue for " &'Assumptions - General'!$E$24 -> Other operating revenue for Ruritania Freight Rail Company
B209: Other revenue
B210: Annual amount | D210: ='Assumptions - General'!$E$27 &" millions" -> R$ millions | E210: 500 | F210: 500 | G210: 500 | H210: 500 | I210: 500 | J210: 500 | K210: 500 | L210: 500 | M210: 500 | N210: 500 | O210: 500 | P210: 500 | Q210: 500 | R210: 500 | S210: 500 | T210: 500 | U210: 500 | V210: 500 | W210: 500 | X210: 500 | Y210: 500 | Z210: 500 | AA210: 500 | AB210: 500 | AC210: 500 | AD210: 500 | AE210: 500 | AF210: 500 | AG210: 500 | AH210: 500
B212: ="Non-operating revenue of " &'Assumptions - General'!$E$24 -> Non-operating revenue of Ruritania Freight Rail Company
B214: Grow non-operating revenue by inflation in forecast period? | D214: yes/no | E214: =IF(F214="Yes",1,2) -> 1 | F214: Yes
B216: Name of non-operating revenue 1 | D216: Text | E216: Tax credit
B217: Total revenue in first year | D217: ='Assumptions - General'!$E$27 &" millions" -> R$ millions | E217: 100
B218: Quantity (physical revenue driver) | D218: Index | E218: 100 | F218: =E218*(1+F219) -> 100 | G218: 100 | H218: 100 | I218: 100 | J218: 100 | K218: 100 | L218: 100 | M218: 100 | N218: 100 | O218: 100 | P218: 100 | Q218: 100 | R218: 100 | S218: 100 | T218: 100 | U218: 100 | V218: 100 | W218: 100 | X218: 100 | Y218: 100 | Z218: 100 | AA218: 100 | AB218: 100 | AC218: 100 | AD218: 100 | AE218: 100 | AF218: 100 | AG218: 100 | AH218: 100
B219: Enter change in quantity | D219: % | F219: 0 | G219: 0 | H219: 0 | I219: 0 | J219: 0 | K219: 0 | L219: 0 | M219: 0 | N219: 0 | O219: 0 | P219: 0 | Q219: 0 | R219: 0 | S219: 0 | T219: 0 | U219: 0 | V219: 0 | W219: 0 | X219: 0 | Y219: 0 | Z219: 0 | AA219: 0 | AB219: 0 | AC219: 0 | AD219: 0 | AE219: 0 | AF219: 0 | AG219: 0 | AH219: 0
B220: Unit revenue
B221: Variability with inflation | D221: % | E221: =IF(E214=2,0,F221/100) -> 1 | F221: 100
B222: Annual unit revenue | D222: ='Assumptions - General'!$E$27 &" per unit" -> R$ per unit | E222: =E217*1000000/E218 -> 1000000 | F222: =E222*(1+F223)*IF($E$214=1,($E221*'Assumptions - General'!F$37+1),1) -> 1030000 | G222: =F222*(1+G223)*IF($E$214=1,($E221*'Assumptions - General'!G$37+1),1) -> 1060900 | H222: =G222*(1+H223)*IF($E$214=1,($E221*'Assumptions - General'!H$37+1),1) -> 1092727 | I222: =H222*(1+I223)*IF($E$214=1,($E221*'Assumptions - General'!I$37+1),1) -> 1125508.81 | J222: =I222*(1+J223)*IF($E$214=1,($E221*'Assumptions - General'!J$37+1),1) -> 1159274.074 | K222: =J222*(1+K223)*IF($E$214=1,($E221*'Assumptions - General'!K$37+1),1) -> 1194052.297 | L222: =K222*(1+L223)*IF($E$214=1,($E221*'Assumptions - General'!L$37+1),1) -> 1229873.865 | M222: =L222*(1+M223)*IF($E$214=1,($E221*'Assumptions - General'!M$37+1),1) -> 1266770.081 | N222: =M222*(1+N223)*IF($E$214=1,($E221*'Assumptions - General'!N$37+1),1) -> 1304773.184 | O222: =N222*(1+O223)*IF($E$214=1,($E221*'Assumptions - General'!O$37+1),1) -> 1343916.379 | P222: =O222*(1+P223)*IF($E$214=1,($E221*'Assumptions - General'!P$37+1),1) -> 1384233.871 | Q222: =P222*(1+Q223)*IF($E$214=1,($E221*'Assumptions - General'!Q$37+1),1) -> 1425760.887 | R222: =Q222*(1+R223)*IF($E$214=1,($E221*'Assumptions - General'!R$37+1),1) -> 1468533.713 | S222: =R222*(1+S223)*IF($E$214=1,($E221*'Assumptions - General'!S$37+1),1) -> 1512589.725 | T222: =S222*(1+T223)*IF($E$214=1,($E221*'Assumptions - General'!T$37+1),1) -> 1557967.417 | U222: =T222*(1+U223)*IF($E$214=1,($E221*'Assumptions - General'!U$37+1),1) -> 1604706.439 | V222: =U222*(1+V223)*IF($E$214=1,($E221*'Assumptions - General'!V$37+1),1) -> 1652847.632 | W222: =V222*(1+W223)*IF($E$214=1,($E221*'Assumptions - General'!W$37+1),1) -> 1702433.061 | X222: =W222*(1+X223)*IF($E$214=1,($E221*'Assumptions - General'!X$37+1),1) -> 1753506.053 | Y222: =X222*(1+Y223)*IF($E$214=1,($E221*'Assumptions - General'!Y$37+1),1) -> 1806111.235 | Z222: =Y222*(1+Z223)*IF($E$214=1,($E221*'Assumptions - General'!Z$37+1),1) -> 1860294.572 | AA222: =Z222*(1+AA223)*IF($E$214=1,($E221*'Assumptions - General'!AA$37+1),1) -> 1916103.409 | AB222: =AA222*(1+AB223)*IF($E$214=1,($E221*'Assumptions - General'!AB$37+1),1) -> 1973586.511 | AC222: =AB222*(1+AC223)*IF($E$214=1,($E221*'Assumptions - General'!AC$37+1),1) -> 2032794.106 | AD222: =AC222*(1+AD223)*IF($E$214=1,($E221*'Assumptions - General'!AD$37+1),1) -> 2093777.93 | AE222: =AD222*(1+AE223)*IF($E$214=1,($E221*'Assumptions - General'!AE$37+1),1) -> 2156591.268 | AF222: =AE222*(1+AF223)*IF($E$214=1,($E221*'Assumptions - General'!AF$37+1),1) -> 2221289.006 | AG222: =AF222*(1+AG223)*IF($E$214=1,($E221*'Assumptions - General'!AG$37+1),1) -> 2287927.676 | AH222: =AG222*(1+AH223)*IF($E$214=1,($E221*'Assumptions - General'!AH$37+1),1) -> 2356565.506
B223: Additional annual change | D223: % | F223: 0 | G223: 0 | H223: 0 | I223: 0 | J223: 0 | K223: 0 | L223: 0 | M223: 0 | N223: 0 | O223: 0 | P223: 0 | Q223: 0 | R223: 0 | S223: 0 | T223: 0 | U223: 0 | V223: 0 | W223: 0 | X223: 0 | Y223: 0 | Z223: 0 | AA223: 0 | AB223: 0 | AC223: 0 | AD223: 0 | AE223: 0 | AF223: 0 | AG223: 0 | AH223: 0
B225: Name of non-operating revenue 2 | D225: Text | E225: Investment income
B226: Total revenue in first year | D226: ='Assumptions - General'!$E$27 &" millions" -> R$ millions | E226: 70
B227: Quantity (physical revenue driver) | D227: Index | E227: 100 | F227: =E227*(1+F228) -> 100 | G227: 100 | H227: 100 | I227: 100 | J227: 100 | K227: 100 | L227: 100 | M227: 100 | N227: 100 | O227: 100 | P227: 100 | Q227: 100 | R227: 100 | S227: 100 | T227: 100 | U227: 100 | V227: 100 | W227: 100 | X227: 100 | Y227: 100 | Z227: 100 | AA227: 100 | AB227: 100 | AC227: 100 | AD227: 100 | AE227: 100 | AF227: 100 | AG227: 100 | AH227: 100
B228: Enter change in quantity | D228: % | F228: 0 | G228: 0 | H228: 0 | I228: 0 | J228: 0 | K228: 0 | L228: 0 | M228: 0 | N228: 0 | O228: 0 | P228: 0 | Q228: 0 | R228: 0 | S228: 0 | T228: 0 | U228: 0 | V228: 0 | W228: 0 | X228: 0 | Y228: 0 | Z228: 0 | AA228: 0 | AB228: 0 | AC228: 0 | AD228: 0 | AE228: 0 | AF228: 0 | AG228: 0 | AH228: 0
B229: Unit revenue
B230: Variability with inflation | D230: % | E230: =IF(E214=2,0,F230/100) -> 1 | F230: 100
B231: Annual unit revenue | D231: ='Assumptions - General'!$E$27 &" per unit" -> R$ per unit | E231: =E226*1000000/E227 -> 700000 | F231: =E231*(1+F232)*IF($E$214=1,($E230*'Assumptions - General'!F$37+1),1) -> 721000 | G231: =F231*(1+G232)*IF($E$214=1,($E230*'Assumptions - General'!G$37+1),1) -> 742630 | H231: =G231*(1+H232)*IF($E$214=1,($E230*'Assumptions - General'!H$37+1),1) -> 764908.9 | I231: =H231*(1+I232)*IF($E$214=1,($E230*'Assumptions - General'!I$37+1),1) -> 787856.167 | J231: =I231*(1+J232)*IF($E$214=1,($E230*'Assumptions - General'!J$37+1),1) -> 811491.852 | K231: =J231*(1+K232)*IF($E$214=1,($E230*'Assumptions - General'!K$37+1),1) -> 835836.6076 | L231: =K231*(1+L232)*IF($E$214=1,($E230*'Assumptions - General'!L$37+1),1) -> 860911.7058 | M231: =L231*(1+M232)*IF($E$214=1,($E230*'Assumptions - General'!M$37+1),1) -> 886739.057 | N231: =M231*(1+N232)*IF($E$214=1,($E230*'Assumptions - General'!N$37+1),1) -> 913341.2287 | O231: =N231*(1+O232)*IF($E$214=1,($E230*'Assumptions - General'!O$37+1),1) -> 940741.4655 | P231: =O231*(1+P232)*IF($E$214=1,($E230*'Assumptions - General'!P$37+1),1) -> 968963.7095 | Q231: =P231*(1+Q232)*IF($E$214=1,($E230*'Assumptions - General'!Q$37+1),1) -> 998032.6208 | R231: =Q231*(1+R232)*IF($E$214=1,($E230*'Assumptions - General'!R$37+1),1) -> 1027973.599 | S231: =R231*(1+S232)*IF($E$214=1,($E230*'Assumptions - General'!S$37+1),1) -> 1058812.807 | T231: =S231*(1+T232)*IF($E$214=1,($E230*'Assumptions - General'!T$37+1),1) -> 1090577.192 | U231: =T231*(1+U232)*IF($E$214=1,($E230*'Assumptions - General'!U$37+1),1) -> 1123294.507 | V231: =U231*(1+V232)*IF($E$214=1,($E230*'Assumptions - General'!V$37+1),1) -> 1156993.343 | W231: =V231*(1+W232)*IF($E$214=1,($E230*'Assumptions - General'!W$37+1),1) -> 1191703.143 | X231: =W231*(1+X232)*IF($E$214=1,($E230*'Assumptions - General'!X$37+1),1) -> 1227454.237 | Y231: =X231*(1+Y232)*IF($E$214=1,($E230*'Assumptions - General'!Y$37+1),1) -> 1264277.864 | Z231: =Y231*(1+Z232)*IF($E$214=1,($E230*'Assumptions - General'!Z$37+1),1) -> 1302206.2 | AA231: =Z231*(1+AA232)*IF($E$214=1,($E230*'Assumptions - General'!AA$37+1),1) -> 1341272.386 | AB231: =AA231*(1+AB232)*IF($E$214=1,($E230*'Assumptions - General'!AB$37+1),1) -> 1381510.558 | AC231: =AB231*(1+AC232)*IF($E$214=1,($E230*'Assumptions - General'!AC$37+1),1) -> 1422955.875 | AD231: =AC231*(1+AD232)*IF($E$214=1,($E230*'Assumptions - General'!AD$37+1),1) -> 1465644.551 | AE231: =AD231*(1+AE232)*IF($E$214=1,($E230*'Assumptions - General'!AE$37+1),1) -> 1509613.887 | AF231: =AE231*(1+AF232)*IF($E$214=1,($E230*'Assumptions - General'!AF$37+1),1) -> 1554902.304 | AG231: =AF231*(1+AG232)*IF($E$214=1,($E230*'Assumptions - General'!AG$37+1),1) -> 1601549.373 | AH231: =AG231*(1+AH232)*IF($E$214=1,($E230*'Assumptions - General'!AH$37+1),1) -> 1649595.854
B232: Additional annual change | D232: % | F232: 0 | G232: 0 | H232: 0 | I232: 0 | J232: 0 | K232: 0 | L232: 0 | M232: 0 | N232: 0 | O232: 0 | P232: 0 | Q232: 0 | R232: 0 | S232: 0 | T232: 0 | U232: 0 | V232: 0 | W232: 0 | X232: 0 | Y232: 0 | Z232: 0 | AA232: 0 | AB232: 0 | AC232: 0 | AD232: 0 | AE232: 0 | AF232: 0 | AG232: 0 | AH232: 0
B234: Name of non-operating revenue 3 | D234: Text | E234: Other
B235: Total revenue in first year | D235: ='Assumptions - General'!$E$27 &" millions" -> R$ millions | E235: 50
B236: Quantity (physical revenue driver) | D236: Index | E236: 100 | F236: =E236*(1+F237) -> 100 | G236: 100 | H236: 100 | I236: 100 | J236: 100 | K236: 100 | L236: 100 | M236: 100 | N236: 100 | O236: 100 | P236: 100 | Q236: 100 | R236: 100 | S236: 100 | T236: 100 | U236: 100 | V236: 100 | W236: 100 | X236: 100 | Y236: 100 | Z236: 100 | AA236: 100 | AB236: 100 | AC236: 100 | AD236: 100 | AE236: 100 | AF236: 100 | AG236: 100 | AH236: 100
B237: Enter change in quantity | D237: % | F237: 0 | G237: 0 | H237: 0 | I237: 0 | J237: 0 | K237: 0 | L237: 0 | M237: 0 | N237: 0 | O237: 0 | P237: 0 | Q237: 0 | R237: 0 | S237: 0 | T237: 0 | U237: 0 | V237: 0 | W237: 0 | X237: 0 | Y237: 0 | Z237: 0 | AA237: 0 | AB237: 0 | AC237: 0 | AD237: 0 | AE237: 0 | AF237: 0 | AG237: 0 | AH237: 0
B238: Unit revenue
B239: Variability with inflation | D239: % | E239: =IF(E214=2,0,F239/100) -> 1 | F239: 100
B240: Annual unit revenue | D240: ='Assumptions - General'!$E$27 &" per unit" -> R$ per unit | E240: =E235*1000000/E236 -> 500000 | F240: =E240*(1+F241)*IF($E$214=1,($E239*'Assumptions - General'!F$37+1),1) -> 515000 | G240: =F240*(1+G241)*IF($E$214=1,($E239*'Assumptions - General'!G$37+1),1) -> 530450 | H240: =G240*(1+H241)*IF($E$214=1,($E239*'Assumptions - General'!H$37+1),1) -> 546363.5 | I240: =H240*(1+I241)*IF($E$214=1,($E239*'Assumptions - General'!I$37+1),1) -> 562754.405 | J240: =I240*(1+J241)*IF($E$214=1,($E239*'Assumptions - General'!J$37+1),1) -> 579637.0371 | K240: =J240*(1+K241)*IF($E$214=1,($E239*'Assumptions - General'!K$37+1),1) -> 597026.1483 | L240: =K240*(1+L241)*IF($E$214=1,($E239*'Assumptions - General'!L$37+1),1) -> 614936.9327 | M240: =L240*(1+M241)*IF($E$214=1,($E239*'Assumptions - General'!M$37+1),1) -> 633385.0407 | N240: =M240*(1+N241)*IF($E$214=1,($E239*'Assumptions - General'!N$37+1),1) -> 652386.5919 | O240: =N240*(1+O241)*IF($E$214=1,($E239*'Assumptions - General'!O$37+1),1) -> 671958.1897 | P240: =O240*(1+P241)*IF($E$214=1,($E239*'Assumptions - General'!P$37+1),1) -> 692116.9354 | Q240: =P240*(1+Q241)*IF($E$214=1,($E239*'Assumptions - General'!Q$37+1),1) -> 712880.4434 | R240: =Q240*(1+R241)*IF($E$214=1,($E239*'Assumptions - General'!R$37+1),1) -> 734266.8567 | S240: =R240*(1+S241)*IF($E$214=1,($E239*'Assumptions - General'!S$37+1),1) -> 756294.8624 | T240: =S240*(1+T241)*IF($E$214=1,($E239*'Assumptions - General'!T$37+1),1) -> 778983.7083 | U240: =T240*(1+U241)*IF($E$214=1,($E239*'Assumptions - General'!U$37+1),1) -> 802353.2195 | V240: =U240*(1+V241)*IF($E$214=1,($E239*'Assumptions - General'!V$37+1),1) -> 826423.8161 | W240: =V240*(1+W241)*IF($E$214=1,($E239*'Assumptions - General'!W$37+1),1) -> 851216.5306 | X240: =W240*(1+X241)*IF($E$214=1,($E239*'Assumptions - General'!X$37+1),1) -> 876753.0265 | Y240: =X240*(1+Y241)*IF($E$214=1,($E239*'Assumptions - General'!Y$37+1),1) -> 903055.6173 | Z240: =Y240*(1+Z241)*IF($E$214=1,($E239*'Assumptions - General'!Z$37+1),1) -> 930147.2859 | AA240: =Z240*(1+AA241)*IF($E$214=1,($E239*'Assumptions - General'!AA$37+1),1) -> 958051.7044 | AB240: =AA240*(1+AB241)*IF($E$214=1,($E239*'Assumptions - General'!AB$37+1),1) -> 986793.2556 | AC240: =AB240*(1+AC241)*IF($E$214=1,($E239*'Assumptions - General'!AC$37+1),1) -> 1016397.053 | AD240: =AC240*(1+AD241)*IF($E$214=1,($E239*'Assumptions - General'!AD$37+1),1) -> 1046888.965 | AE240: =AD240*(1+AE241)*IF($E$214=1,($E239*'Assumptions - General'!AE$37+1),1) -> 1078295.634 | AF240: =AE240*(1+AF241)*IF($E$214=1,($E239*'Assumptions - General'!AF$37+1),1) -> 1110644.503 | AG240: =AF240*(1+AG241)*IF($E$214=1,($E239*'Assumptions - General'!AG$37+1),1) -> 1143963.838 | AH240: =AG240*(1+AH241)*IF($E$214=1,($E239*'Assumptions - General'!AH$37+1),1) -> 1178282.753
B241: Additional annual change | D241: % | F241: 0 | G241: 0 | H241: 0 | I241: 0 | J241: 0 | K241: 0 | L241: 0 | M241: 0 | N241: 0 | O241: 0 | P241: 0 | Q241: 0 | R241: 0 | S241: 0 | T241: 0 | U241: 0 | V241: 0 | W241: 0 | X241: 0 | Y241: 0 | Z241: 0 | AA241: 0 | AB241: 0 | AC241: 0 | AD241: 0 | AE241: 0 | AF241: 0 | AG241: 0 | AH241: 0
B243: =E216& " - total annual cost in forecast period" -> Tax credit - total annual cost in forecast period | D243: ='Assumptions - General'!$E$27 &" millions" -> R$ millions | E243: =Calculations!E246 -> 100 | F243: =Calculations!F246 -> 103 | G243: =Calculations!G246 -> 106.09 | H243: =Calculations!H246 -> 109.2727 | I243: =Calculations!I246 -> 112.550881 | J243: =Calculations!J246 -> 115.9274074 | K243: =Calculations!K246 -> 119.4052297 | L243: =Calculations!L246 -> 122.9873865 | M243: =Calculations!M246 -> 126.6770081 | N243: =Calculations!N246 -> 130.4773184 | O243: =Calculations!O246 -> 134.3916379 | P243: =Calculations!P246 -> 138.4233871 | Q243: =Calculations!Q246 -> 142.5760887 | R243: =Calculations!R246 -> 146.8533713 | S243: =Calculations!S246 -> 151.2589725 | T243: =Calculations!T246 -> 155.7967417 | U243: =Calculations!U246 -> 160.4706439 | V243: =Calculations!V246 -> 165.2847632 | W243: =Calculations!W246 -> 170.2433061 | X243: =Calculations!X246 -> 175.3506053 | Y243: =Calculations!Y246 -> 180.6111235 | Z243: =Calculations!Z246 -> 186.0294572 | AA243: =Calculations!AA246 -> 191.6103409 | AB243: =Calculations!AB246 -> 197.3586511 | AC243: =Calculations!AC246 -> 203.2794106 | AD243: =Calculations!AD246 -> 209.377793 | AE243: =Calculations!AE246 -> 215.6591268 | AF243: =Calculations!AF246 -> 222.1289006 | AG243: =Calculations!AG246 -> 228.7927676 | AH243: =Calculations!AH246 -> 235.6565506
B244: =E225& " - total annual cost in forecast period" -> Investment income - total annual cost in forecast period | D244: ='Assumptions - General'!$E$27 &" millions" -> R$ millions | E244: =Calculations!E247 -> 70 | F244: =Calculations!F247 -> 72.1 | G244: =Calculations!G247 -> 74.263 | H244: =Calculations!H247 -> 76.49089 | I244: =Calculations!I247 -> 78.7856167 | J244: =Calculations!J247 -> 81.1491852 | K244: =Calculations!K247 -> 83.58366076 | L244: =Calculations!L247 -> 86.09117058 | M244: =Calculations!M247 -> 88.6739057 | N244: =Calculations!N247 -> 91.33412287 | O244: =Calculations!O247 -> 94.07414655 | P244: =Calculations!P247 -> 96.89637095 | Q244: =Calculations!Q247 -> 99.80326208 | R244: =Calculations!R247 -> 102.7973599 | S244: =Calculations!S247 -> 105.8812807 | T244: =Calculations!T247 -> 109.0577192 | U244: =Calculations!U247 -> 112.3294507 | V244: =Calculations!V247 -> 115.6993343 | W244: =Calculations!W247 -> 119.1703143 | X244: =Calculations!X247 -> 122.7454237 | Y244: =Calculations!Y247 -> 126.4277864 | Z244: =Calculations!Z247 -> 130.22062 | AA244: =Calculations!AA247 -> 134.1272386 | AB244: =Calculations!AB247 -> 138.1510558 | AC244: =Calculations!AC247 -> 142.2955875 | AD244: =Calculations!AD247 -> 146.5644551 | AE244: =Calculations!AE247 -> 150.9613887 | AF244: =Calculations!AF247 -> 155.4902304 | AG244: =Calculations!AG247 -> 160.1549373 | AH244: =Calculations!AH247 -> 164.9595854
B245: =E234& " - total annual cost in forecast period" -> Other - total annual cost in forecast period | D245: ='Assumptions - General'!$E$27 &" millions" -> R$ millions | E245: =Calculations!E249 -> 50 | F245: =Calculations!F249 -> 51.5 | G245: =Calculations!G249 -> 53.045 | H245: =Calculations!H249 -> 54.63635 | I245: =Calculations!I249 -> 56.2754405 | J245: =Calculations!J249 -> 57.96370371 | K245: =Calculations!K249 -> 59.70261483 | L245: =Calculations!L249 -> 61.49369327 | M245: =Calculations!M249 -> 63.33850407 | N245: =Calculations!N249 -> 65.23865919 | O245: =Calculations!O249 -> 67.19581897 | P245: =Calculations!P249 -> 69.21169354 | Q245: =Calculations!Q249 -> 71.28804434 | R245: =Calculations!R249 -> 73.42668567 | S245: =Calculations!S249 -> 75.62948624 | T245: =Calculations!T249 -> 77.89837083 | U245: =Calculations!U249 -> 80.23532195 | V245: =Calculations!V249 -> 82.64238161 | W245: =Calculations!W249 -> 85.12165306 | X245: =Calculations!X249 -> 87.67530265 | Y245: =Calculations!Y249 -> 90.30556173 | Z245: =Calculations!Z249 -> 93.01472859 | AA245: =Calculations!AA249 -> 95.80517044 | AB245: =Calculations!AB249 -> 98.67932556 | AC245: =Calculations!AC249 -> 101.6397053 | AD245: =Calculations!AD249 -> 104.6888965 | AE245: =Calculations!AE249 -> 107.8295634 | AF245: =Calculations!AF249 -> 111.0644503 | AG245: =Calculations!AG249 -> 114.3963838 | AH245: =Calculations!AH249 -> 117.8282753
A246: <<<< Show/hide results
B248: ="Public subsidy assumptions for "&'Assumptions - General'!E24 -> Public subsidy assumptions for Ruritania Freight Rail Company
B250: Operational subsidy | E250: =IF(E251=1,IF(AND(E254=1,SUM(E260:AH260)>0),"WARNING: MANUAL INPUT OF SUBSIDY WITH MODEL CALCULATION",IF(AND(E254=2,SUM(E260:AH260)=0),"WARNING: SUBSIDY MISSING WITH MANUAL ENTRY"," "))," ") ->  | F250: Yes
B251: Is a public subsidy available? | D251: yes/no | E251: =IF(F250="Yes",1,2) -> 1 | F251: Yes
... 268 more rows

Sheet Assumptions - Passenger
B1: INPUTS
B2: ='Assumptions - General'!E25 -> Ruritania Passenger Rail Company
B3: ="All units in " &'Assumptions - General'!E27& " millions unless otherwise stated" -> All units in R$ millions unless otherwise stated
B4: Year | E4: 1 | F4: 2 | G4: 3 | H4: 4 | I4: 5 | J4: 6 | K4: 7 | L4: 8 | M4: 9 | N4: 10 | O4: 11 | P4: 12 | Q4: 13 | R4: 14 | S4: 15 | T4: 16 | U4: 17 | V4: 18 | W4: 19 | X4: 20 | Y4: 21 | Z4: 22 | AA4: 23 | AB4: 24 | AC4: 25 | AD4: 26 | AE4: 27 | AF4: 28 | AG4: 29 | AH4: 30
B5: Period from | E5: ='Assumptions - General'!$E$28 -> 2010-01-01 | F5: =E6+1 -> 2011-01-01 | G5: 2012-01-01 | H5: 2013-01-01 | I5: 2014-01-01 | J5: 2015-01-01 | K5: 2016-01-01 | L5: 2017-01-01 | M5: 2018-01-01 | N5: 2019-01-01 | O5: 2020-01-01 | P5: 2021-01-01 | Q5: 2022-01-01 | R5: 2023-01-01 | S5: 2024-01-01 | T5: 2025-01-01 | U5: 2026-01-01 | V5: 2027-01-01 | W5: 2028-01-01 | X5: 2029-01-01 | Y5: 2030-01-01 | Z5: 2031-01-01 | AA5: 2032-01-01 | AB5: 2033-01-01 | AC5: 2034-01-01 | AD5: 2035-01-01 | AE5: 2036-01-01 | AF5: 2037-01-01 | AG5: 2038-01-01 | AH5: 2039-01-01
B6: Period to | E6: =DATE(YEAR(E5)+1, MONTH(E5), DAY(E5)-1) -> 2010-12-31 | F6: 2011-12-31 | G6: 2012-12-31 | H6: 2013-12-31 | I6: 2014-12-31 | J6: 2015-12-31 | K6: 2016-12-31 | L6: 2017-12-31 | M6: 2018-12-31 | N6: 2019-12-31 | O6: 2020-12-31 | P6: 2021-12-31 | Q6: 2022-12-31 | R6: 2023-12-31 | S6: 2024-12-31 | T6: 2025-12-31 | U6: 2026-12-31 | V6: 2027-12-31 | W6: 2028-12-31 | X6: 2029-12-31 | Y6: 2030-12-31 | Z6: 2031-12-31 | AA6: 2032-12-31 | AB6: 2033-12-31 | AC6: 2034-12-31 | AD6: 2035-12-31 | AE6: 2036-12-31 | AF6: 2037-12-31 | AG6: 2038-12-31 | AH6: 2039-12-31
C8: Color indicates assumptions to be entered | F8: 1
C9: Color indicates historical data to be entered
B11: ="Network and operational assumptions for "&'Assumptions - General'!E25 -> Network and operational assumptions for Ruritania Passenger Rail Company | E11: =IF(OR(AND('Scenarios - Consolidated'!$F$3=1,'Scenarios - Consolidated'!$H$20=1),AND('Scenarios - Passenger'!$F$3=1,'Scenarios - Passenger'!$H$20=1)),"NOTE: SCENARIO ANALYSIS STAFF ASSUMPTIONS IN USE"," ") -> 
B13: Length of network in use | D13: Track-km | E13: 15000 | F13: 15000 | G13: 15000 | H13: 15000 | I13: 15000 | J13: 15000 | K13: 15000 | L13: 15000 | M13: 15000 | N13: 15000 | O13: 15000 | P13: 15000 | Q13: 15000 | R13: 15000 | S13: 15000 | T13: 15000 | U13: 15000 | V13: 15000 | W13: 15000 | X13: 15000 | Y13: 15000 | Z13: 15000 | AA13: 15000 | AB13: 15000 | AC13: 15000 | AD13: 15000 | AE13: 15000 | AF13: 15000 | AG13: 15000 | AH13: 15000
B14: ="Staff of "&'Assumptions - General'!E25 -> Staff of Ruritania Passenger Rail Company | D14: Staff count | E14: 15000 | F14: 15000 | G14: 15000 | H14: 15000 | I14: 15000 | J14: 15000 | K14: 15000 | L14: 15000 | M14: 15000 | N14: 15000 | O14: 15000 | P14: 15000 | Q14: 15000 | R14: 15000 | S14: 15000 | T14: 15000 | U14: 15000 | V14: 15000 | W14: 15000 | X14: 15000 | Y14: 15000 | Z14: 15000 | AA14: 15000 | AB14: 15000 | AC14: 15000 | AD14: 15000 | AE14: 15000 | AF14: 15000 | AG14: 15000 | AH14: 15000
B15: Passenger traffic volume | D15: Gross ton-km | E15: 30000
B16: Electric traction share of passenger traffic | D16: % | E16: 0.5 | F16: =E16+F17 -> 0.5 | G16: 0.5 | H16: 0.5 | I16: 0.5 | J16: 0.5 | K16: 0.5 | L16: 0.5 | M16: 0.5 | N16: 0.5 | O16: 0.5 | P16: 0.5 | Q16: 0.5 | R16: 0.5 | S16: 0.5 | T16: 0.5 | U16: 0.5 | V16: 0.5 | W16: 0.5 | X16: 0.5 | Y16: 0.5 | Z16: 0.5 | AA16: 0.5 | AB16: 0.5 | AC16: 0.5 | AD16: 0.5 | AE16: 0.5 | AF16: 0.5 | AG16: 0.5 | AH16: 0.5
B17: Enter change in electric traction share of total passenger traffic | D17: Percentage points | F17: 0 | G17: 0 | H17: 0 | I17: 0 | J17: 0 | K17: 0 | L17: 0 | M17: 0 | N17: 0 | O17: 0 | P17: 0 | Q17: 0 | R17: 0 | S17: 0 | T17: 0 | U17: 0 | V17: 0 | W17: 0 | X17: 0 | Y17: 0 | Z17: 0 | AA17: 0 | AB17: 0 | AC17: 0 | AD17: 0 | AE17: 0 | AF17: 0 | AG17: 0 | AH17: 0
B18: Diesel traction share of passenger traffic | D18: % | E18: =100%-E16 -> 0.5 | F18: 0.5 | G18: 0.5 | H18: 0.5 | I18: 0.5 | J18: 0.5 | K18: 0.5 | L18: 0.5 | M18: 0.5 | N18: 0.5 | O18: 0.5 | P18: 0.5 | Q18: 0.5 | R18: 0.5 | S18: 0.5 | T18: 0.5 | U18: 0.5 | V18: 0.5 | W18: 0.5 | X18: 0.5 | Y18: 0.5 | Z18: 0.5 | AA18: 0.5 | AB18: 0.5 | AC18: 0.5 | AD18: 0.5 | AE18: 0.5 | AF18: 0.5 | AG18: 0.5 | AH18: 0.5
B19: Operational benchmark | D19: Text | E19: EU railways
B20: Traffic units (millions) per staff | D20: Ratio | E20: 1
B21: Traffic units (millions) per track-km | D21: Ratio | E21: 1
B22: Staff per track-km | D22: Ratio | E22: 1
B24: ="Fixed asset assumptions for "&'Assumptions - General'!E25 -> Fixed asset assumptions for Ruritania Passenger Rail Company | E24: =IF(OR(AND('Scenarios - Consolidated'!$F$3=1,'Scenarios - Consolidated'!$I$20=1),AND('Scenarios - Passenger'!$F$3=1,'Scenarios - Passenger'!$I$20=1)),"NOTE: SCENARIO ANALYSIS CAPEX ASSUMPTIONS IN USE"," ") -> 
B26: Name of fixed asset class 1 | D26: Text | E26: Land | F26: =IF(E26<>"Land", "Note: first asset class should be land"," ") -> 
B27: Name of fixed asset class 2 | D27: Text | E27: Buildings and structures
B28: Name of fixed asset class 3 | D28: Text | E28: Track and infrastructure
B29: Name of fixed asset class 4 | D29: Text | E29: Locomotives and railway cars
B30: Name of fixed asset class 5 | D30: Text | E30: Machines, equipment and spare parts
B31: Name of fixed asset class 6 | D31: Text | E31: Others
B33: ="Net asset value at the end of first year of " &E26 -> Net asset value at the end of first year of Land | D33: ='Assumptions - General'!$E$27 &" millions" -> R$ millions | E33: 100
B34: Net asset value at the end of first year of Buildings and structures | D34: ='Assumptions - General'!$E$27 &" millions" -> R$ millions | E34: 150
B35: Net asset value at the end of first year of Track and infrastructure | D35: ='Assumptions - General'!$E$27 &" millions" -> R$ millions | E35: 200
B36: Net asset value at the end of first year of Locomotives and railway cars | D36: ='Assumptions - General'!$E$27 &" millions" -> R$ millions | E36: 300
B37: Net asset value at the end of first year of Machines, equipment and spare parts | D37: ='Assumptions - General'!$E$27 &" millions" -> R$ millions | E37: 300
B38: Net asset value at the end of first year of Others | D38: ='Assumptions - General'!$E$27 &" millions" -> R$ millions | E38: 50
B40: ="Annual capital expenditure on " &E26 -> Annual capital expenditure on Land | D40: ='Assumptions - General'!$E$27 &" millions" -> R$ millions | F40: 10 | G40: 10 | H40: 10 | I40: 10 | J40: 10 | K40: 10 | L40: 10 | M40: 10 | N40: 10 | O40: 10 | P40: 10 | Q40: 10 | R40: 10 | S40: 10 | T40: 10 | U40: 10 | V40: 10 | W40: 10 | X40: 10 | Y40: 10 | Z40: 10 | AA40: 10 | AB40: 10 | AC40: 10 | AD40: 10 | AE40: 10 | AF40: 10 | AG40: 10 | AH40: 10
B41: Annual capital expenditure on Buildings and structures | D41: ='Assumptions - General'!$E$27 &" millions" -> R$ millions | F41: 20 | G41: 20 | H41: 20 | I41: 20 | J41: 20 | K41: 20 | L41: 20 | M41: 20 | N41: 20 | O41: 20 | P41: 20 | Q41: 20 | R41: 20 | S41: 20 | T41: 20 | U41: 20 | V41: 20 | W41: 20 | X41: 20 | Y41: 20 | Z41: 20 | AA41: 20 | AB41: 20 | AC41: 20 | AD41: 20 | AE41: 20 | AF41: 20 | AG41: 20 | AH41: 20
B42: Annual capital expenditure on Track and infrastructure | D42: ='Assumptions - General'!$E$27 &" millions" -> R$ millions | F42: 100 | G42: 100 | H42: 100 | I42: 100 | J42: 100 | K42: 100 | L42: 100 | M42: 100 | N42: 100 | O42: 100 | P42: 100 | Q42: 100 | R42: 100 | S42: 100 | T42: 100 | U42: 100 | V42: 100 | W42: 100 | X42: 100 | Y42: 100 | Z42: 100 | AA42: 100 | AB42: 100 | AC42: 100 | AD42: 100 | AE42: 100 | AF42: 100 | AG42: 100 | AH42: 100
B43: Annual capital expenditure on Locomotives and railway cars | D43: ='Assumptions - General'!$E$27 &" millions" -> R$ millions | F43: 100 | G43: 100 | H43: 100 | I43: 100 | J43: 100 | K43: 100 | L43: 100 | M43: 100 | N43: 100 | O43: 100 | P43: 100 | Q43: 100 | R43: 100 | S43: 100 | T43: 100 | U43: 100 | V43: 100 | W43: 100 | X43: 100 | Y43: 100 | Z43: 100 | AA43: 100 | AB43: 100 | AC43: 100 | AD43: 100 | AE43: 100 | AF43: 100 | AG43: 100 | AH43: 100
B44: Annual capital expenditure on Machines, equipment and spare parts | D44: ='Assumptions - General'!$E$27 &" millions" -> R$ millions | F44: 25 | G44: 25 | H44: 25 | I44: 25 | J44: 25 | K44: 25 | L44: 25 | M44: 25 | N44: 25 | O44: 25 | P44: 25 | Q44: 25 | R44: 25 | S44: 25 | T44: 25 | U44: 25 | V44: 25 | W44: 25 | X44: 25 | Y44: 25 | Z44: 25 | AA44: 25 | AB44: 25 | AC44: 25 | AD44: 25 | AE44: 25 | AF44: 25 | AG44: 25 | AH44: 25
B45: Annual capital expenditure on Others | D45: ='Assumptions - General'!$E$27 &" millions" -> R$ millions | F45: 25 | G45: 25 | H45: 25 | I45: 25 | J45: 25 | K45: 25 | L45: 25 | M45: 25 | N45: 25 | O45: 25 | P45: 25 | Q45: 25 | R45: 25 | S45: 25 | T45: 25 | U45: 25 | V45: 25 | W45: 25 | X45: 25 | Y45: 25 | Z45: 25 | AA45: 25 | AB45: 25 | AC45: 25 | AD45: 25 | AE45: 25 | AF45: 25 | AG45: 25 | AH45: 25
B46: Total | F46: =SUM(F40:F45) -> 280 | G46: =SUM(G40:G45) -> 280 | H46: 280 | I46: 280 | J46: 280 | K46: 280 | L46: 280 | M46: 280 | N46: 280 | O46: 280 | P46: 280 | Q46: 280 | R46: 280 | S46: 280 | T46: 280 | U46: 280 | V46: 280 | W46: 280 | X46: 280 | Y46: 280 | Z46: 280 | AA46: 280 | AB46: 280 | AC46: 280 | AD46: 280 | AE46: 280 | AF46: 280 | AG46: 280 | AH46: 280
B48: ="Annual sale of " &E$26 -> Annual sale of Land | D48: ='Assumptions - General'!$E$27 &" millions" -> R$ millions | E48: =IF(SUM(F48:AH48)>E33,"WARNING: ASSETS SALES>INITIAL VALUE"," ") ->  | F48: 5 | G48: 5 | H48: 5 | I48: 5 | J48: 5 | K48: 5 | L48: 5 | M48: 5 | N48: 5 | O48: 5 | P48: =O48 -> 5 | Q48: 5 | R48: 5 | S48: 5 | T48: 5 | U48: 5 | V48: 5 | W48: 5 | X48: 5 | Y48: 5 | Z48: 0 | AA48: 0 | AB48: 0 | AC48: 0 | AD48: 0 | AE48: 0 | AF48: 0 | AG48: 0 | AH48: 0
B49: ="Annual sale of " &E$27 -> Annual sale of Buildings and structures | D49: ='Assumptions - General'!$E$27 &" millions" -> R$ millions | F49: 5 | G49: 5 | H49: 5 | I49: 5 | J49: 5 | K49: 5 | L49: 5 | M49: 5 | N49: 5 | O49: 5 | P49: =O49 -> 5 | Q49: 5 | R49: 5 | S49: 5 | T49: 5 | U49: 5 | V49: 5 | W49: 5 | X49: 5 | Y49: 5 | Z49: 5 | AA49: 5 | AB49: 5 | AC49: 5 | AD49: 5 | AE49: 5 | AF49: 5 | AG49: 5 | AH49: 5
B50: ="Annual sale of " &E$28 -> Annual sale of Track and infrastructure | D50: ='Assumptions - General'!$E$27 &" millions" -> R$ millions | F50: 5 | G50: 5 | H50: 5 | I50: 5 | J50: 5 | K50: 5 | L50: 5 | M50: 5 | N50: 5 | O50: 5 | P50: =O50 -> 5 | Q50: 5 | R50: 5 | S50: 5 | T50: 5 | U50: 5 | V50: 5 | W50: 5 | X50: 5 | Y50: 5 | Z50: 5 | AA50: 5 | AB50: 5 | AC50: 5 | AD50: 5 | AE50: 5 | AF50: 5 | AG50: 5 | AH50: 5
B51: ="Annual sale of " &E$29 -> Annual sale of Locomotives and railway cars | D51: ='Assumptions - General'!$E$27 &" millions" -> R$ millions | F51: 5 | G51: 5 | H51: 5 | I51: 5 | J51: 5 | K51: 5 | L51: 5 | M51: 5 | N51: 5 | O51: 5 | P51: =O51 -> 5 | Q51: 5 | R51: 5 | S51: 5 | T51: 5 | U51: 5 | V51: 5 | W51: 5 | X51: 5 | Y51: 5 | Z51: 5 | AA51: 5 | AB51: 5 | AC51: 5 | AD51: 5 | AE51: 5 | AF51: 5 | AG51: 5 | AH51: 5
B52: ="Annual sale of " &E$30 -> Annual sale of Machines, equipment and spare parts | D52: ='Assumptions - General'!$E$27 &" millions" -> R$ millions | F52: 5 | G52: 5 | H52: 5 | I52: 5 | J52: 5 | K52: 5 | L52: 5 | M52: 5 | N52: 5 | O52: 5 | P52: =O52 -> 5 | Q52: 5 | R52: 5 | S52: 5 | T52: 5 | U52: 5 | V52: 5 | W52: 5 | X52: 5 | Y52: 5 | Z52: 5 | AA52: 5 | AB52: 5 | AC52: 5 | AD52: 5 | AE52: 5 | AF52: 5 | AG52: 5 | AH52: 5
B53: ="Annual sale of " &E$31 -> Annual sale of Others | D53: ='Assumptions - General'!$E$27 &" millions" -> R$ millions | F53: 5 | G53: 5 | H53: 5 | I53: 5 | J53: 5 | K53: 5 | L53: 5 | M53: 5 | N53: 0 | O53: 0 | P53: 0 | Q53: 0 | R53: 0 | S53: 0 | T53: 0 | U53: 0 | V53: 0 | W53: 0 | X53: 0 | Y53: 0 | Z53: 0 | AA53: 0 | AB53: 0 | AC53: 0 | AD53: 0 | AE53: 0 | AF53: 0 | AG53: 0 | AH53: 0
B54: Total | D54: ='Assumptions - General'!$E$27 &" millions" -> R$ millions | F54: =SUM(F48:F53) -> 30 | G54: 30 | H54: 30 | I54: 30 | J54: 30 | K54: 30 | L54: 30 | M54: 30 | N54: 25 | O54: 25 | P54: 25 | Q54: 25 | R54: 25 | S54: 25 | T54: 25 | U54: 25 | V54: 25 | W54: 25 | X54: 25 | Y54: 25 | Z54: 20 | AA54: 20 | AB54: 20 | AC54: 20 | AD54: 20 | AE54: 20 | AF54: 20 | AG54: 20 | AH54: 20
B56: Depreciation expense in first year (total) | D56: ='Assumptions - General'!$E$27 &" millions" -> R$ millions | E56: 45
B58: ="Depreciation of " &E26 -> Depreciation of Land | E58: =IF(AND(E60=1,SUM(E63:AH63)>0),"WARNING: MANUAL INPUT OF DEPRECIATION WITH MODEL CALCULATION",IF(AND(E60=2,SUM(E63:AH63)=0),"WARNING: DEPRECIATION MISSING WITH MANUAL ENTRY"," ")) -> 
B59: If existing land depreciates, enter it manually | D59: ='Assumptions - General'!$E$27 &" millions" -> R$ millions | F59: 0 | G59: 0 | H59: 0 | I59: 0 | J59: 0 | K59: 0 | L59: 0 | M59: 0 | N59: 0 | O59: 0 | P59: 0 | Q59: 0 | R59: 0 | S59: 0 | T59: 0 | U59: 0 | V59: 0 | W59: 0 | X59: 0 | Y59: 0 | Z59: 0 | AA59: 0 | AB59: 0 | AC59: 0 | AD59: 0 | AE59: 0 | AF59: 0 | AG59: 0 | AH59: 0
B60: Let model calculate new land depreciation or enter it manually? | D60: Select | E60: =IF(F60="Model",1,2) -> 1 | F60: Model
B62: =IF(E60=1,"If calculated, define the average life of new assets"," ") -> If calculated, define the average life of new assets | D62: =IF(E60=1,"Years"," ") -> Years | E62: 100
B63: =IF(E60=2,"If entered manually, define annual depreciation expense"," ") ->  | D63: =IF(E60=2,'Assumptions - General'!$E$27 &" millions"," ") -> 
B64: ="Depreciation of " &E27 -> Depreciation of Buildings and structures | E64: =IF(AND(E65=1,SUM(E70:AH70)>0),"WARNING: MANUAL INPUT OF DEPRECIATION WITH MODEL CALCULATION",IF(AND(E65=2,SUM(E70:AH70)=0),"WARNING: DEPRECIATION MISSING WITH MANUAL ENTRY"," ")) -> 
B65: Let model calculate depreciation or enter it manually? | D65: Select | E65: =IF(F65="Model",1,2) -> 1 | F65: Model
B67: =IF(E65=1,"If calculated, define the average remaining life of existing assets"," ") -> If calculated, define the average remaining life of existing assets | D67: =IF(E65=1,"Years"," ") -> Years | E67: 38
B69: =IF(E65=1,"If calculated, define the average life of new assets"," ") -> If calculated, define the average life of new assets | D69: =IF(E65=1,"Years"," ") -> Years | E69: 38
B70: =IF(E65=2,"If entered manually, define annual depreciation expense"," ") ->  | D70: =IF(E65=2,'Assumptions - General'!$E$27 &" millions"," ") -> 
B72: ="Depreciation of " &E28 -> Depreciation of Track and infrastructure | E72: =IF(AND(E73=1,SUM(E78:AH78)>0),"WARNING: MANUAL INPUT OF DEPRECIATION WITH MODEL CALCULATION",IF(AND(E73=2,SUM(E78:AH78)=0),"WARNING: DEPRECIATION MISSING WITH MANUAL ENTRY"," ")) -> 
B73: Let model calculate depreciation or enter it manually? | D73: Select | E73: =IF(F73="Model",1,2) -> 1 | F73: Model
B75: =IF(E73=1,"If calculated, define the average remaining life of existing assets"," ") -> If calculated, define the average remaining life of existing assets | D75: =IF(E73=1,"Years"," ") -> Years | E75: 38
B77: =IF(E73=1,"If calculated, define the average life of new assets"," ") -> If calculated, define the average life of new assets | D77: =IF(E73=1,"Years"," ") -> Years | E77: 38
B78: =IF(E73=2,"If entered manually, define annual depreciation expense"," ") ->  | D78: =IF(E73=2,'Assumptions - General'!$E$27 &" millions"," ") -> 
B80: ="Depreciation of " &E29 -> Depreciation of Locomotives and railway cars | E80: =IF(AND(E81=1,SUM(E86:AH86)>0),"WARNING: MANUAL INPUT OF DEPRECIATION WITH MODEL CALCULATION",IF(AND(E81=2,SUM(E86:AH86)=0),"WARNING: DEPRECIATION MISSING WITH MANUAL ENTRY"," ")) -> 
B81: Let model calculate depreciation or enter it manually? | D81: Select | E81: =IF(F81="Model",1,2) -> 1 | F81: Model
B83: =IF(E81=1,"If calculated, define the average remaining life of existing assets"," ") -> If calculated, define the average remaining life of existing assets | D83: =IF(E81=1,"Years"," ") -> Years | E83: 23
B85: =IF(E81=1,"If calculated, define the average life of new assets"," ") -> If calculated, define the average life of new assets | D85: =IF(E81=1,"Years"," ") -> Years | E85: 53
B86: =IF(E81=2,"If entered manually, define annual depreciation expense"," ") ->  | D86: =IF(E81=2,'Assumptions - General'!$E$27 &" millions"," ") -> 
B88: ="Depreciation of " &E30 -> Depreciation of Machines, equipment and spare parts | E88: =IF(AND(E89=1,SUM(E94:AH94)>0),"WARNING: MANUAL INPUT OF DEPRECIATION WITH MODEL CALCULATION",IF(AND(E89=2,SUM(E94:AH94)=0),"WARNING: DEPRECIATION MISSING WITH MANUAL ENTRY"," ")) -> 
B89: Let model calculate depreciation or enter it manually? | D89: Select | E89: =IF(F89="Model",1,2) -> 1 | F89: Model
B91: =IF(E89=1,"If calculated, define the average remaining life of existing assets"," ") -> If calculated, define the average remaining life of existing assets | D91: =IF(E89=1,"Years"," ") -> Years | E91: 23
B93: =IF(E89=1,"If calculated, define the average life of new assets"," ") -> If calculated, define the average life of new assets | D93: =IF(E89=1,"Years"," ") -> Years | E93: 46
B94: =IF(E89=2,"If entered manually, define annual depreciation expense"," ") ->  | D94: =IF(E89=2,'Assumptions - General'!$E$27 &" millions"," ") -> 
B96: ="Depreciation of " &E31 -> Depreciation of Others | E96: =IF(AND(E97=1,SUM(E102:AH102)>0),"WARNING: MANUAL INPUT OF DEPRECIATION WITH MODEL CALCULATION",IF(AND(E97=2,SUM(E102:AH102)=0),"WARNING: DEPRECIATION MISSING WITH MANUAL ENTRY"," ")) -> 
B97: Let model calculate depreciation or enter it manually? | D97: Select | E97: =IF(F97="Model",1,2) -> 1 | F97: Model
B99: =IF(E97=1,"If calculated, define the average remaining life of existing assets"," ") -> If calculated, define the average remaining life of existing assets | D99: =IF(E97=1,"Years"," ") -> Years | E99: 23
B101: =IF(E97=1,"If calculated, define the average life of new assets"," ") -> If calculated, define the average life of new assets | D101: =IF(E97=1,"Years"," ") -> Years | E101: 23
A102: Model | B102: =IF(E97=2,"If entered manually, define annual depreciation expense"," ") ->  | D102: =IF(E97=2,'Assumptions - General'!$E$27 &" millions"," ") -> 
A103: Manual entry
B104: ="Other long-term assets for " &'Assumptions - General'!$E$25 -> Other long-term assets for Ruritania Passenger Rail Company
B106: Other long-term assets
B107: Annual amount | D107: ='Assumptions - General'!$E$27 &" millions" -> R$ millions | E107: 10 | F107: =E107 -> 10 | G107: =F107 -> 10 | H107: 10 | I107: 10 | J107: 10 | K107: 10 | L107: 10 | M107: 10 | N107: 10 | O107: 10 | P107: 10 | Q107: 10 | R107: 10 | S107: 10 | T107: 10 | U107: 10 | V107: 10 | W107: 10 | X107: 10 | Y107: 10 | Z107: 10 | AA107: 10 | AB107: 10 | AC107: 10 | AD107: 10 | AE107: 10 | AF107: 10 | AG107: 10 | AH107: 10
B109: Traffic assumptions - Passenger | E109: =IF(OR(AND('Scenarios - Consolidated'!$F$3=1,OR('Scenarios - Consolidated'!$F$20=1,'Scenarios - Consolidated'!$G$20=1)),AND('Scenarios - Infra'!$F$3=1,OR('Scenarios - Infra'!$F$20=1,'Scenarios - Infra'!$G$20=1)),AND('Scenarios - Passenger'!$F$3=1,OR('Scenarios - Passenger'!$F$20=1,'Scenarios - Passenger'!$G$20=1))),"NOTE: SCENARIO ANALYSIS TRAFFIC ASSUMPTIONS IN USE"," ") -> 
F110: Passenger-km
B111: Traffic data in passenger-km or trips? | D111: Passenger-km/Number of passenger trips | E111: =IF(F110="Passenger-km",1,2) -> 1 | F111: Passenger-km | G111: Yes
B112: Enter average length of passenger trip | D112: km | E112: 100 | F112: Number of trips | G112: No
B114: Name of traffic flow 1 | D114: Text | E114: Domestic passenger
B115: Name of traffic flow 2 | D115: Text | E115: International passenger
B116: Name of traffic flow 3 | D116: Text | E116: Sub-urban passenger
B118: Year | E118: 1 | F118: 2 | G118: 3 | H118: 4 | I118: 5 | J118: 6 | K118: 7 | L118: 8 | M118: 9 | N118: 10 | O118: 11 | P118: 12 | Q118: 13 | R118: 14 | S118: 15 | T118: 16 | U118: 17 | V118: 18 | W118: 19 | X118: 20 | Y118: 21 | Z118: 22 | AA118: 23 | AB118: 24 | AC118: 25 | AD118: 26 | AE118: 27 | AF118: 28 | AG118: 29 | AH118: 30
B119: Period from | E119: ='Assumptions - General'!$E$28 -> 2010-01-01 | F119: =E120+1 -> 2011-01-01 | G119: 2012-01-01 | H119: 2013-01-01 | I119: 2014-01-01 | J119: 2015-01-01 | K119: 2016-01-01 | L119: 2017-01-01 | M119: 2018-01-01 | N119: 2019-01-01 | O119: 2020-01-01 | P119: 2021-01-01 | Q119: 2022-01-01 | R119: 2023-01-01 | S119: 2024-01-01 | T119: 2025-01-01 | U119: 2026-01-01 | V119: 2027-01-01 | W119: 2028-01-01 | X119: 2029-01-01 | Y119: 2030-01-01 | Z119: 2031-01-01 | AA119: 2032-01-01 | AB119: 2033-01-01 | AC119: 2034-01-01 | AD119: 2035-01-01 | AE119: 2036-01-01 | AF119: 2037-01-01 | AG119: 2038-01-01 | AH119: 2039-01-01
B120: Period to | E120: =DATE(YEAR(E119)+1, MONTH(E119), DAY(E119)-1) -> 2010-12-31 | F120: 2011-12-31 | G120: 2012-12-31 | H120: 2013-12-31 | I120: 2014-12-31 | J120: 2015-12-31 | K120: 2016-12-31 | L120: 2017-12-31 | M120: 2018-12-31 | N120: 2019-12-31 | O120: 2020-12-31 | P120: 2021-12-31 | Q120: 2022-12-31 | R120: 2023-12-31 | S120: 2024-12-31 | T120: 2025-12-31 | U120: 2026-12-31 | V120: 2027-12-31 | W120: 2028-12-31 | X120: 2029-12-31 | Y120: 2030-12-31 | Z120: 2031-12-31 | AA120: 2032-12-31 | AB120: 2033-12-31 | AC120: 2034-12-31 | AD120: 2035-12-31 | AE120: 2036-12-31 | AF120: 2037-12-31 | AG120: 2038-12-31 | AH120: 2039-12-31
B122: Implied gross ton-km/passenger-km ratio | D122: Ratio | E122: =IF(E15<>0,IF($E$111=1,E15/(E125+E127+E129),E15/($E$112*(E125+E127+E129))),0) -> 1.25 | F122: =E122*(1+F123) -> 1.25 | G122: 1.25 | H122: 1.25 | I122: 1.25 | J122: 1.25 | K122: 1.25 | L122: 1.25 | M122: 1.25 | N122: 1.25 | O122: 1.25 | P122: 1.25 | Q122: 1.25 | R122: 1.25 | S122: 1.25 | T122: 1.25 | U122: 1.25 | V122: 1.25 | W122: 1.25 | X122: 1.25 | Y122: 1.25 | Z122: 1.25 | AA122: 1.25 | AB122: 1.25 | AC122: 1.25 | AD122: 1.25 | AE122: 1.25 | AF122: 1.25 | AG122: 1.25 | AH122: 1.25
B123: Enter change in GTK/PKM ratio | D123: % | F123: 0 | G123: 0 | H123: 0 | I123: 0 | J123: 0 | K123: 0 | L123: 0 | M123: 0 | N123: 0 | O123: 0 | P123: 0 | Q123: 0 | R123: 0 | S123: 0 | T123: 0 | U123: 0 | V123: 0 | W123: 0 | X123: 0 | Y123: 0 | Z123: 0 | AA123: 0 | AB123: 0 | AC123: 0 | AD123: 0 | AE123: 0 | AF123: 0 | AG123: 0 | AH123: 0
B125: =E114&" annual traffic volume" -> Domestic passenger annual traffic volume | D125: =IF($E$111=1,"Passenger-km (million)", "Number of trips (million)") -> Passenger-km (million) | E125: 8000 | F125: 8500 | G125: 8500 | H125: 9000 | I125: 10000 | J125: 10500 | K125: 11000 | L125: 11500 | M125: 12000 | N125: 12500 | O125: 13000 | P125: 13500 | Q125: 14000 | R125: 14500 | S125: 15000 | T125: 15500 | U125: 16000 | V125: 16500 | W125: 17000 | X125: 17500 | Y125: 18000 | Z125: 18500 | AA125: 19000 | AB125: 19500 | AC125: 20000 | AD125: 20500 | AE125: 21000 | AF125: 21500 | AG125: 22000 | AH125: 22500
B126: =E114&" annual traffic volume" -> Domestic passenger annual traffic volume | D126: Train-km (million) | E126: 500 | F126: 500 | G126: 500 | H126: 500 | I126: 500 | J126: 500 | K126: 500 | L126: 500 | M126: 500 | N126: 500 | O126: 500 | P126: 500 | Q126: 500 | R126: 500 | S126: 500 | T126: 500 | U126: 500 | V126: 500 | W126: 500 | X126: 500 | Y126: 500 | Z126: 500 | AA126: 500 | AB126: 500 | AC126: 500 | AD126: 500 | AE126: 500 | AF126: 500 | AG126: 500 | AH126: 500
B127: =E115&" annual traffic volume" -> International passenger annual traffic volume | D127: =IF($E$111=1,"Passenger-km (million)", "Number of trips (million)") -> Passenger-km (million) | E127: 8000 | F127: 8500 | G127: 8500 | H127: 9000 | I127: 10000 | J127: 10500 | K127: 11000 | L127: 11500 | M127: 12000 | N127: 12500 | O127: 13000 | P127: 13500 | Q127: 14000 | R127: 14500 | S127: 15000 | T127: 15500 | U127: 16000 | V127: 16500 | W127: 17000 | X127: 17500 | Y127: 18000 | Z127: 18500 | AA127: 19000 | AB127: 19500 | AC127: 20000 | AD127: 20500 | AE127: 21000 | AF127: 21500 | AG127: 22000 | AH127: 22500
B128: =E115&" annual traffic volume" -> International passenger annual traffic volume | D128: Train-km (million) | E128: 500 | F128: 500 | G128: 500 | H128: 500 | I128: 500 | J128: 500 | K128: 500 | L128: 500 | M128: 500 | N128: 500 | O128: 500 | P128: 500 | Q128: 500 | R128: 500 | S128: 500 | T128: 500 | U128: 500 | V128: 500 | W128: 500 | X128: 500 | Y128: 500 | Z128: 500 | AA128: 500 | AB128: 500 | AC128: 500 | AD128: 500 | AE128: 500 | AF128: 500 | AG128: 500 | AH128: 500
B129: =E116&" annual traffic volume" -> Sub-urban passenger annual traffic volume | D129: =IF($E$111=1,"Passenger-km (million)", "Number of trips (million)") -> Passenger-km (million) | E129: 8000 | F129: 8500 | G129: 8500 | H129: 9000 | I129: 10000 | J129: 10500 | K129: 11000 | L129: 11500 | M129: 12000 | N129: 12500 | O129: 13000 | P129: 13500 | Q129: 14000 | R129: 14500 | S129: 15000 | T129: 15500 | U129: 16000 | V129: 16500 | W129: 17000 | X129: 17500 | Y129: 18000 | Z129: 18500 | AA129: 19000 | AB129: 19500 | AC129: 20000 | AD129: 20500 | AE129: 21000 | AF129: 21500 | AG129: 22000 | AH129: 22500
B130: =E116&" annual traffic volume" -> Sub-urban passenger annual traffic volume | D130: Train-km (million) | E130: 500 | F130: 500 | G130: 500 | H130: 500 | I130: 500 | J130: 500 | K130: 500 | L130: 500 | M130: 500 | N130: 500 | O130: 500 | P130: 500 | Q130: 500 | R130: 500 | S130: 500 | T130: 500 | U130: 500 | V130: 500 | W130: 500 | X130: 500 | Y130: 500 | Z130: 500 | AA130: 500 | AB130: 500 | AC130: 500 | AD130: 500 | AE130: 500 | AF130: 500 | AG130: 500 | AH130: 500
B132: Fare assumptions - Passenger | E132: =IF(OR(AND('Scenarios - Consolidated'!$F$3=1,OR('Scenarios - Consolidated'!$D$20=1,'Scenarios - Consolidated'!$E$20=1)),AND('Scenarios - Passenger'!$F$3=1,OR('Scenarios - Passenger'!$D$20=1,'Scenarios - Passenger'!$E$20=1))),"NOTE: SCENARIO ANALYSIS TARIFF ASSUMPTIONS IN USE"," ") -> 
F133: Yes
B134: Grow fares by inflation in forecast period? | D134: yes/no | E134: =IF(F133=F134,1,2) -> 1 | F134: Yes
F135: No
B136: =E114 -> Domestic passenger
B137: Average fare in first year | D137: ='Assumptions - General'!$E$27 & "/Passenger-km" -> R$/Passenger-km | E137: 1
B138: Proportion of inflation indexation after year 1 | D138: % | E138: =F138/100 -> 1 | F138: 100
B139: Additional change in fare | D139: %
B141: =E115 -> International passenger
B142: Average fare in first year | D142: =D137 -> R$/Passenger-km | E142: 1
B143: Proportion of inflation indexation after year 1 | D143: % | E143: =F143/100 -> 1 | F143: 100
B144: Additional change in fare | D144: %
B146: =E116 -> Sub-urban passenger
B147: Average fare in first year | D147: =D142 -> R$/Passenger-km | E147: 1
B148: Proportion of inflation indexation after year 1 | D148: % | E148: =F148/100 -> 1 | F148: 100
B149: Additional change in fare | D149: %
B151: =B136& " - fare in forecast period" -> Domestic passenger - fare in forecast period | D151: =D137 -> R$/Passenger-km | F151: =Calculations!F651 -> 1.03 | G151: =Calculations!G651 -> 1.0609 | H151: =Calculations!H651 -> 1.092727 | I151: =Calculations!I651 -> 1.12550881 | J151: =Calculations!J651 -> 1.159274074 | K151: =Calculations!K651 -> 1.194052297 | L151: =Calculations!L651 -> 1.229873865 | M151: =Calculations!M651 -> 1.266770081 | N151: =Calculations!N651 -> 1.304773184 | O151: =Calculations!O651 -> 1.343916379 | P151: =Calculations!P651 -> 1.384233871 | Q151: =Calculations!Q651 -> 1.425760887 | R151: =Calculations!R651 -> 1.468533713 | S151: =Calculations!S651 -> 1.512589725 | T151: =Calculations!T651 -> 1.557967417 | U151: =Calculations!U651 -> 1.604706439 | V151: =Calculations!V651 -> 1.652847632 | W151: =Calculations!W651 -> 1.702433061 | X151: =Calculations!X651 -> 1.753506053 | Y151: =Calculations!Y651 -> 1.806111235 | Z151: =Calculations!Z651 -> 1.860294572 | AA151: =Calculations!AA651 -> 1.916103409 | AB151: =Calculations!AB651 -> 1.973586511 | AC151: =Calculations!AC651 -> 2.032794106 | AD151: =Calculations!AD651 -> 2.09377793 | AE151: =Calculations!AE651 -> 2.156591268 | AF151: =Calculations!AF651 -> 2.221289006 | AG151: =Calculations!AG651 -> 2.287927676 | AH151: =Calculations!AH651 -> 2.356565506
B152: =B141& " - fare in forecast period" -> International passenger - fare in forecast period | D152: =D142 -> R$/Passenger-km | F152: =Calculations!F653 -> 1.03 | G152: =Calculations!G653 -> 1.0609 | H152: =Calculations!H653 -> 1.092727 | I152: =Calculations!I653 -> 1.12550881 | J152: =Calculations!J653 -> 1.159274074 | K152: =Calculations!K653 -> 1.194052297 | L152: =Calculations!L653 -> 1.229873865 | M152: =Calculations!M653 -> 1.266770081 | N152: =Calculations!N653 -> 1.304773184 | O152: =Calculations!O653 -> 1.343916379 | P152: =Calculations!P653 -> 1.384233871 | Q152: =Calculations!Q653 -> 1.425760887 | R152: =Calculations!R653 -> 1.468533713 | S152: =Calculations!S653 -> 1.512589725 | T152: =Calculations!T653 -> 1.557967417 | U152: =Calculations!U653 -> 1.604706439 | V152: =Calculations!V653 -> 1.652847632 | W152: =Calculations!W653 -> 1.702433061 | X152: =Calculations!X653 -> 1.753506053 | Y152: =Calculations!Y653 -> 1.806111235 | Z152: =Calculations!Z653 -> 1.860294572 | AA152: =Calculations!AA653 -> 1.916103409 | AB152: =Calculations!AB653 -> 1.973586511 | AC152: =Calculations!AC653 -> 2.032794106 | AD152: =Calculations!AD653 -> 2.09377793 | AE152: =Calculations!AE653 -> 2.156591268 | AF152: =Calculations!AF653 -> 2.221289006 | AG152: =Calculations!AG653 -> 2.287927676 | AH152: =Calculations!AH653 -> 2.356565506
B153: =B146& " - fare in forecast period" -> Sub-urban passenger - fare in forecast period | D153: =D147 -> R$/Passenger-km | F153: =Calculations!F655 -> 1.03 | G153: =Calculations!G655 -> 1.0609 | H153: =Calculations!H655 -> 1.092727 | I153: =Calculations!I655 -> 1.12550881 | J153: =Calculations!J655 -> 1.159274074 | K153: =Calculations!K655 -> 1.194052297 | L153: =Calculations!L655 -> 1.229873865 | M153: =Calculations!M655 -> 1.266770081 | N153: =Calculations!N655 -> 1.304773184 | O153: =Calculations!O655 -> 1.343916379 | P153: =Calculations!P655 -> 1.384233871 | Q153: =Calculations!Q655 -> 1.425760887 | R153: =Calculations!R655 -> 1.468533713 | S153: =Calculations!S655 -> 1.512589725 | T153: =Calculations!T655 -> 1.557967417 | U153: =Calculations!U655 -> 1.604706439 | V153: =Calculations!V655 -> 1.652847632 | W153: =Calculations!W655 -> 1.702433061 | X153: =Calculations!X655 -> 1.753506053 | Y153: =Calculations!Y655 -> 1.806111235 | Z153: =Calculations!Z655 -> 1.860294572 | AA153: =Calculations!AA655 -> 1.916103409 | AB153: =Calculations!AB655 -> 1.973586511 | AC153: =Calculations!AC655 -> 2.032794106 | AD153: =Calculations!AD655 -> 2.09377793 | AE153: =Calculations!AE655 -> 2.156591268 | AF153: =Calculations!AF655 -> 2.221289006 | AG153: =Calculations!AG655 -> 2.287927676 | AH153: =Calculations!AH655 -> 2.356565506
A154: <<<< Show/hide results
B156: ="Other operating revenue for " &'Assumptions - General'!$E$25 -> Other operating revenue for Ruritania Passenger Rail Company
B158: Other revenue
B159: Annual amount | D159: ='Assumptions - General'!$E$27 &" millions" -> R$ millions | E159: 500 | F159: 500 | G159: 500 | H159: 500 | I159: 500 | J159: 500 | K159: 500 | L159: 500 | M159: 500 | N159: 500 | O159: 500 | P159: 500 | Q159: 500 | R159: 500 | S159: 500 | T159: 500 | U159: 500 | V159: 500 | W159: 500 | X159: 500 | Y159: 500 | Z159: 500 | AA159: 500 | AB159: 500 | AC159: 500 | AD159: 500 | AE159: 500 | AF159: 500 | AG159: 500 | AH159: 500
B161: ="Non-operating revenue of " &'Assumptions - General'!$E$25 -> Non-operating revenue of Ruritania Passenger Rail Company | F161: Yes
F162: Yes
B163: Grow non-operating revenue by inflation in forecast period? | D163: yes/no | E163: =IF(F161=F162,1,2) -> 1 | F163: No
B165: Name of non-operating revenue 1 | D165: Text | E165: Tax credit
B166: Total revenue in first year | D166: ='Assumptions - General'!$E$27 &" millions" -> R$ millions | E166: 100
B167: Quantity (physical revenue driver) | D167: Index | E167: 100 | F167: =E167*(1+F168) -> 100 | G167: 100 | H167: 100 | I167: 100 | J167: 100 | K167: 100 | L167: 100 | M167: 100 | N167: 100 | O167: 100 | P167: 100 | Q167: 100 | R167: 100 | S167: 100 | T167: 100 | U167: 100 | V167: 100 | W167: 100 | X167: 100 | Y167: 100 | Z167: 100 | AA167: 100 | AB167: 100 | AC167: 100 | AD167: 100 | AE167: 100 | AF167: 100 | AG167: 100 | AH167: 100
B168: Enter change in quantity | D168: % | F168: 0 | G168: 0 | H168: 0 | I168: 0 | J168: 0 | K168: 0 | L168: 0 | M168: 0 | N168: 0 | O168: 0 | P168: 0 | Q168: 0 | R168: 0 | S168: 0 | T168: 0 | U168: 0 | V168: 0 | W168: 0 | X168: 0 | Y168: 0 | Z168: 0 | AA168: 0 | AB168: 0 | AC168: 0 | AD168: 0 | AE168: 0 | AF168: 0 | AG168: 0 | AH168: 0
B169: Unit revenue
B170: Variability with inflation | D170: % | E170: =IF(E163=2,0,F170/100) -> 0 | F170: 0
B171: Annual unit revenue | D171: ='Assumptions - General'!$E$27 &" per unit" -> R$ per unit | E171: =E166*1000000/E167 -> 1000000 | F171: =E171*(1+F172)*IF($E$163=1,($E170*'Assumptions - General'!F$37+1),1) -> 1000000 | G171: =F171*(1+G172)*IF($E$163=1,($E170*'Assumptions - General'!G$37+1),1) -> 1000000 | H171: =G171*(1+H172)*IF($E$163=1,($E170*'Assumptions - General'!H$37+1),1) -> 1000000 | I171: =H171*(1+I172)*IF($E$163=1,($E170*'Assumptions - General'!I$37+1),1) -> 1000000 | J171: =I171*(1+J172)*IF($E$163=1,($E170*'Assumptions - General'!J$37+1),1) -> 1000000 | K171: =J171*(1+K172)*IF($E$163=1,($E170*'Assumptions - General'!K$37+1),1) -> 1000000 | L171: =K171*(1+L172)*IF($E$163=1,($E170*'Assumptions - General'!L$37+1),1) -> 1000000 | M171: =L171*(1+M172)*IF($E$163=1,($E170*'Assumptions - General'!M$37+1),1) -> 1000000 | N171: =M171*(1+N172)*IF($E$163=1,($E170*'Assumptions - General'!N$37+1),1) -> 1000000 | O171: =N171*(1+O172)*IF($E$163=1,($E170*'Assumptions - General'!O$37+1),1) -> 1000000 | P171: =O171*(1+P172)*IF($E$163=1,($E170*'Assumptions - General'!P$37+1),1) -> 1000000 | Q171: =P171*(1+Q172)*IF($E$163=1,($E170*'Assumptions - General'!Q$37+1),1) -> 1000000 | R171: =Q171*(1+R172)*IF($E$163=1,($E170*'Assumptions - General'!R$37+1),1) -> 1000000 | S171: =R171*(1+S172)*IF($E$163=1,($E170*'Assumptions - General'!S$37+1),1) -> 1000000 | T171: =S171*(1+T172)*IF($E$163=1,($E170*'Assumptions - General'!T$37+1),1) -> 1000000 | U171: =T171*(1+U172)*IF($E$163=1,($E170*'Assumptions - General'!U$37+1),1) -> 1000000 | V171: =U171*(1+V172)*IF($E$163=1,($E170*'Assumptions - General'!V$37+1),1) -> 1000000 | W171: =V171*(1+W172)*IF($E$163=1,($E170*'Assumptions - General'!W$37+1),1) -> 1000000 | X171: =W171*(1+X172)*IF($E$163=1,($E170*'Assumptions - General'!X$37+1),1) -> 1000000 | Y171: =X171*(1+Y172)*IF($E$163=1,($E170*'Assumptions - General'!Y$37+1),1) -> 1000000 | Z171: =Y171*(1+Z172)*IF($E$163=1,($E170*'Assumptions - General'!Z$37+1),1) -> 1000000 | AA171: =Z171*(1+AA172)*IF($E$163=1,($E170*'Assumptions - General'!AA$37+1),1) -> 1000000 | AB171: =AA171*(1+AB172)*IF($E$163=1,($E170*'Assumptions - General'!AB$37+1),1) -> 1000000 | AC171: =AB171*(1+AC172)*IF($E$163=1,($E170*'Assumptions - General'!AC$37+1),1) -> 1000000 | AD171: =AC171*(1+AD172)*IF($E$163=1,($E170*'Assumptions - General'!AD$37+1),1) -> 1000000 | AE171: =AD171*(1+AE172)*IF($E$163=1,($E170*'Assumptions - General'!AE$37+1),1) -> 1000000 | AF171: =AE171*(1+AF172)*IF($E$163=1,($E170*'Assumptions - General'!AF$37+1),1) -> 1000000 | AG171: =AF171*(1+AG172)*IF($E$163=1,($E170*'Assumptions - General'!AG$37+1),1) -> 1000000 | AH171: =AG171*(1+AH172)*IF($E$163=1,($E170*'Assumptions - General'!AH$37+1),1) -> 1000000
B172: Additional annual change | D172: % | F172: 0 | G172: 0 | H172: 0 | I172: 0 | J172: 0 | K172: 0 | L172: 0 | M172: 0 | N172: 0 | O172: 0 | P172: 0 | Q172: 0 | R172: 0 | S172: 0 | T172: 0 | U172: 0 | V172: 0 | W172: 0 | X172: 0 | Y172: 0 | Z172: 0 | AA172: 0 | AB172: 0 | AC172: 0 | AD172: 0 | AE172: 0 | AF172: 0 | AG172: 0 | AH172: 0
B174: Name of non-operating revenue 2 | D174: Text | E174: Investment income
B175: Total revenue in first year | D175: ='Assumptions - General'!$E$27 &" millions" -> R$ millions | E175: 50
B176: Quantity (physical revenue driver) | D176: Index | E176: 100 | F176: =E176*(1+F177) -> 100 | G176: 100 | H176: 100 | I176: 100 | J176: 100 | K176: 100 | L176: 100 | M176: 100 | N176: 100 | O176: 100 | P176: 100 | Q176: 100 | R176: 100 | S176: 100 | T176: 100 | U176: 100 | V176: 100 | W176: 100 | X176: 100 | Y176: 100 | Z176: 100 | AA176: 100 | AB176: 100 | AC176: 100 | AD176: 100 | AE176: 100 | AF176: 100 | AG176: 100 | AH176: 100
B177: Enter change in quantity | D177: % | F177: 0 | G177: 0 | H177: 0 | I177: 0 | J177: 0 | K177: 0 | L177: 0 | M177: 0 | N177: 0 | O177: 0 | P177: 0 | Q177: 0 | R177: 0 | S177: 0 | T177: 0 | U177: 0 | V177: 0 | W177: 0 | X177: 0 | Y177: 0 | Z177: 0 | AA177: 0 | AB177: 0 | AC177: 0 | AD177: 0 | AE177: 0 | AF177: 0 | AG177: 0 | AH177: 0
B178: Unit revenue
B179: Variability with inflation | D179: % | E179: =IF(E163=2,0,F179/100) -> 1 | F179: 100
B180: Annual unit revenue | D180: ='Assumptions - General'!$E$27 &" per unit" -> R$ per unit | E180: =E175*1000000/E176 -> 500000 | F180: =E180*(1+F181)*IF($E$163=1,($E179*'Assumptions - General'!F$37+1),1) -> 515000 | G180: =F180*(1+G181)*IF($E$163=1,($E179*'Assumptions - General'!G$37+1),1) -> 530450 | H180: =G180*(1+H181)*IF($E$163=1,($E179*'Assumptions - General'!H$37+1),1) -> 546363.5 | I180: =H180*(1+I181)*IF($E$163=1,($E179*'Assumptions - General'!I$37+1),1) -> 562754.405 | J180: =I180*(1+J181)*IF($E$163=1,($E179*'Assumptions - General'!J$37+1),1) -> 579637.0371 | K180: =J180*(1+K181)*IF($E$163=1,($E179*'Assumptions - General'!K$37+1),1) -> 597026.1483 | L180: =K180*(1+L181)*IF($E$163=1,($E179*'Assumptions - General'!L$37+1),1) -> 614936.9327 | M180: =L180*(1+M181)*IF($E$163=1,($E179*'Assumptions - General'!M$37+1),1) -> 633385.0407 | N180: =M180*(1+N181)*IF($E$163=1,($E179*'Assumptions - General'!N$37+1),1) -> 652386.5919 | O180: =N180*(1+O181)*IF($E$163=1,($E179*'Assumptions - General'!O$37+1),1) -> 671958.1897 | P180: =O180*(1+P181)*IF($E$163=1,($E179*'Assumptions - General'!P$37+1),1) -> 692116.9354 | Q180: =P180*(1+Q181)*IF($E$163=1,($E179*'Assumptions - General'!Q$37+1),1) -> 712880.4434 | R180: =Q180*(1+R181)*IF($E$163=1,($E179*'Assumptions - General'!R$37+1),1) -> 734266.8567 | S180: =R180*(1+S181)*IF($E$163=1,($E179*'Assumptions - General'!S$37+1),1) -> 756294.8624 | T180: =S180*(1+T181)*IF($E$163=1,($E179*'Assumptions - General'!T$37+1),1) -> 778983.7083 | U180: =T180*(1+U181)*IF($E$163=1,($E179*'Assumptions - General'!U$37+1),1) -> 802353.2195 | V180: =U180*(1+V181)*IF($E$163=1,($E179*'Assumptions - General'!V$37+1),1) -> 826423.8161 | W180: =V180*(1+W181)*IF($E$163=1,($E179*'Assumptions - General'!W$37+1),1) -> 851216.5306 | X180: =W180*(1+X181)*IF($E$163=1,($E179*'Assumptions - General'!X$37+1),1) -> 876753.0265 | Y180: =X180*(1+Y181)*IF($E$163=1,($E179*'Assumptions - General'!Y$37+1),1) -> 903055.6173 | Z180: =Y180*(1+Z181)*IF($E$163=1,($E179*'Assumptions - General'!Z$37+1),1) -> 930147.2859 | AA180: =Z180*(1+AA181)*IF($E$163=1,($E179*'Assumptions - General'!AA$37+1),1) -> 958051.7044 | AB180: =AA180*(1+AB181)*IF($E$163=1,($E179*'Assumptions - General'!AB$37+1),1) -> 986793.2556 | AC180: =AB180*(1+AC181)*IF($E$163=1,($E179*'Assumptions - General'!AC$37+1),1) -> 1016397.053 | AD180: =AC180*(1+AD181)*IF($E$163=1,($E179*'Assumptions - General'!AD$37+1),1) -> 1046888.965 | AE180: =AD180*(1+AE181)*IF($E$163=1,($E179*'Assumptions - General'!AE$37+1),1) -> 1078295.634 | AF180: =AE180*(1+AF181)*IF($E$163=1,($E179*'Assumptions - General'!AF$37+1),1) -> 1110644.503 | AG180: =AF180*(1+AG181)*IF($E$163=1,($E179*'Assumptions - General'!AG$37+1),1) -> 1143963.838 | AH180: =AG180*(1+AH181)*IF($E$163=1,($E179*'Assumptions - General'!AH$37+1),1) -> 1178282.753
B181: Additional annual change | D181: % | F181: 0 | G181: 0 | H181: 0 | I181: 0 | J181: 0 | K181: 0 | L181: 0 | M181: 0 | N181: 0 | O181: 0 | P181: 0 | Q181: 0 | R181: 0 | S181: 0 | T181: 0 | U181: 0 | V181: 0 | W181: 0 | X181: 0 | Y181: 0 | Z181: 0 | AA181: 0 | AB181: 0 | AC181: 0 | AD181: 0 | AE181: 0 | AF181: 0 | AG181: 0 | AH181: 0
B183: Name of non-operating revenue 3 | D183: Text | E183: Other
B184: Total revenue in first year | D184: ='Assumptions - General'!$E$27 &" millions" -> R$ millions | E184: 50
B185: Quantity (physical revenue driver) | D185: Index | E185: 100 | F185: =E185*(1+F186) -> 100 | G185: 100 | H185: 100 | I185: 100 | J185: 100 | K185: 100 | L185: 100 | M185: 100 | N185: 100 | O185: 100 | P185: 100 | Q185: 100 | R185: 100 | S185: 100 | T185: 100 | U185: 100 | V185: 100 | W185: 100 | X185: 100 | Y185: 100 | Z185: 100 | AA185: 100 | AB185: 100 | AC185: 100 | AD185: 100 | AE185: 100 | AF185: 100 | AG185: 100 | AH185: 100
B186: Enter change in quantity | D186: % | F186: 0 | G186: 0 | H186: 0 | I186: 0 | J186: 0 | K186: 0 | L186: 0 | M186: 0 | N186: 0 | O186: 0 | P186: 0 | Q186: 0 | R186: 0 | S186: 0 | T186: 0 | U186: 0 | V186: 0 | W186: 0 | X186: 0 | Y186: 0 | Z186: 0 | AA186: 0 | AB186: 0 | AC186: 0 | AD186: 0 | AE186: 0 | AF186: 0 | AG186: 0 | AH186: 0
B187: Unit revenue
B188: Variability with inflation | D188: % | E188: =IF(E163=2,0,F188/100) -> 1 | F188: 100
B189: Annual unit revenue | D189: ='Assumptions - General'!$E$27 &" per unit" -> R$ per unit | E189: =E184*1000000/E185 -> 500000 | F189: =E189*(1+F190)*IF($E$163=1,($E188*'Assumptions - General'!F$37+1),1) -> 515000 | G189: =F189*(1+G190)*IF($E$163=1,($E188*'Assumptions - General'!G$37+1),1) -> 530450 | H189: =G189*(1+H190)*IF($E$163=1,($E188*'Assumptions - General'!H$37+1),1) -> 546363.5 | I189: =H189*(1+I190)*IF($E$163=1,($E188*'Assumptions - General'!I$37+1),1) -> 562754.405 | J189: =I189*(1+J190)*IF($E$163=1,($E188*'Assumptions - General'!J$37+1),1) -> 579637.0371 | K189: =J189*(1+K190)*IF($E$163=1,($E188*'Assumptions - General'!K$37+1),1) -> 597026.1483 | L189: =K189*(1+L190)*IF($E$163=1,($E188*'Assumptions - General'!L$37+1),1) -> 614936.9327 | M189: =L189*(1+M190)*IF($E$163=1,($E188*'Assumptions - General'!M$37+1),1) -> 633385.0407 | N189: =M189*(1+N190)*IF($E$163=1,($E188*'Assumptions - General'!N$37+1),1) -> 652386.5919 | O189: =N189*(1+O190)*IF($E$163=1,($E188*'Assumptions - General'!O$37+1),1) -> 671958.1897 | P189: =O189*(1+P190)*IF($E$163=1,($E188*'Assumptions - General'!P$37+1),1) -> 692116.9354 | Q189: =P189*(1+Q190)*IF($E$163=1,($E188*'Assumptions - General'!Q$37+1),1) -> 712880.4434 | R189: =Q189*(1+R190)*IF($E$163=1,($E188*'Assumptions - General'!R$37+1),1) -> 734266.8567 | S189: =R189*(1+S190)*IF($E$163=1,($E188*'Assumptions - General'!S$37+1),1) -> 756294.8624 | T189: =S189*(1+T190)*IF($E$163=1,($E188*'Assumptions - General'!T$37+1),1) -> 778983.7083 | U189: =T189*(1+U190)*IF($E$163=1,($E188*'Assumptions - General'!U$37+1),1) -> 802353.2195 | V189: =U189*(1+V190)*IF($E$163=1,($E188*'Assumptions - General'!V$37+1),1) -> 826423.8161 | W189: =V189*(1+W190)*IF($E$163=1,($E188*'Assumptions - General'!W$37+1),1) -> 851216.5306 | X189: =W189*(1+X190)*IF($E$163=1,($E188*'Assumptions - General'!X$37+1),1) -> 876753.0265 | Y189: =X189*(1+Y190)*IF($E$163=1,($E188*'Assumptions - General'!Y$37+1),1) -> 903055.6173 | Z189: =Y189*(1+Z190)*IF($E$163=1,($E188*'Assumptions - General'!Z$37+1),1) -> 930147.2859 | AA189: =Z189*(1+AA190)*IF($E$163=1,($E188*'Assumptions - General'!AA$37+1),1) -> 958051.7044 | AB189: =AA189*(1+AB190)*IF($E$163=1,($E188*'Assumptions - General'!AB$37+1),1) -> 986793.2556 | AC189: =AB189*(1+AC190)*IF($E$163=1,($E188*'Assumptions - General'!AC$37+1),1) -> 1016397.053 | AD189: =AC189*(1+AD190)*IF($E$163=1,($E188*'Assumptions - General'!AD$37+1),1) -> 1046888.965 | AE189: =AD189*(1+AE190)*IF($E$163=1,($E188*'Assumptions - General'!AE$37+1),1) -> 1078295.634 | AF189: =AE189*(1+AF190)*IF($E$163=1,($E188*'Assumptions - General'!AF$37+1),1) -> 1110644.503 | AG189: =AF189*(1+AG190)*IF($E$163=1,($E188*'Assumptions - General'!AG$37+1),1) -> 1143963.838 | AH189: =AG189*(1+AH190)*IF($E$163=1,($E188*'Assumptions - General'!AH$37+1),1) -> 1178282.753
B190: Additional annual change | D190: % | F190: 0 | G190: 0 | H190: 0 | I190: 0 | J190: 0 | K190: 0 | L190: 0 | M190: 0 | N190: 0 | O190: 0 | P190: 0 | Q190: 0 | R190: 0 | S190: 0 | T190: 0 | U190: 0 | V190: 0 | W190: 0 | X190: 0 | Y190: 0 | Z190: 0 | AA190: 0 | AB190: 0 | AC190: 0 | AD190: 0 | AE190: 0 | AF190: 0 | AG190: 0 | AH190: 0
B192: =E165& " - total annual cost in forecast period" -> Tax credit - total annual cost in forecast period | D192: ='Assumptions - General'!$E$27 &" millions" -> R$ millions | E192: =Calculations!E664 -> 100 | F192: =Calculations!F664 -> 100 | G192: =Calculations!G664 -> 100 | H192: =Calculations!H664 -> 100 | I192: =Calculations!I664 -> 100 | J192: =Calculations!J664 -> 100 | K192: =Calculations!K664 -> 100 | L192: =Calculations!L664 -> 100 | M192: =Calculations!M664 -> 100 | N192: =Calculations!N664 -> 100 | O192: =Calculations!O664 -> 100 | P192: =Calculations!P664 -> 100 | Q192: =Calculations!Q664 -> 100 | R192: =Calculations!R664 -> 100 | S192: =Calculations!S664 -> 100 | T192: =Calculations!T664 -> 100 | U192: =Calculations!U664 -> 100 | V192: =Calculations!V664 -> 100 | W192: =Calculations!W664 -> 100 | X192: =Calculations!X664 -> 100 | Y192: =Calculations!Y664 -> 100 | Z192: =Calculations!Z664 -> 100 | AA192: =Calculations!AA664 -> 100 | AB192: =Calculations!AB664 -> 100 | AC192: =Calculations!AC664 -> 100 | AD192: =Calculations!AD664 -> 100 | AE192: =Calculations!AE664 -> 100 | AF192: =Calculations!AF664 -> 100 | AG192: =Calculations!AG664 -> 100 | AH192: =Calculations!AH664 -> 100
B193: =E174& " - total annual cost in forecast period" -> Investment income - total annual cost in forecast period | D193: ='Assumptions - General'!$E$27 &" millions" -> R$ millions | E193: =Calculations!E665 -> 50 | F193: =Calculations!F665 -> 51.5 | G193: =Calculations!G665 -> 53.045 | H193: =Calculations!H665 -> 54.63635 | I193: =Calculations!I665 -> 56.2754405 | J193: =Calculations!J665 -> 57.96370371 | K193: =Calculations!K665 -> 59.70261483 | L193: =Calculations!L665 -> 61.49369327 | M193: =Calculations!M665 -> 63.33850407 | N193: =Calculations!N665 -> 65.23865919 | O193: =Calculations!O665 -> 67.19581897 | P193: =Calculations!P665 -> 69.21169354 | Q193: =Calculations!Q665 -> 71.28804434 | R193: =Calculations!R665 -> 73.42668567 | S193: =Calculations!S665 -> 75.62948624 | T193: =Calculations!T665 -> 77.89837083 | U193: =Calculations!U665 -> 80.23532195 | V193: =Calculations!V665 -> 82.64238161 | W193: =Calculations!W665 -> 85.12165306 | X193: =Calculations!X665 -> 87.67530265 | Y193: =Calculations!Y665 -> 90.30556173 | Z193: =Calculations!Z665 -> 93.01472859 | AA193: =Calculations!AA665 -> 95.80517044 | AB193: =Calculations!AB665 -> 98.67932556 | AC193: =Calculations!AC665 -> 101.6397053 | AD193: =Calculations!AD665 -> 104.6888965 | AE193: =Calculations!AE665 -> 107.8295634 | AF193: =Calculations!AF665 -> 111.0644503 | AG193: =Calculations!AG665 -> 114.3963838 | AH193: =Calculations!AH665 -> 117.8282753
B194: =E183& " - total annual cost in forecast period" -> Other - total annual cost in forecast period | D194: ='Assumptions - General'!$E$27 &" millions" -> R$ millions | E194: =Calculations!E667 -> 50 | F194: =Calculations!F667 -> 51.5 | G194: =Calculations!G667 -> 53.045 | H194: =Calculations!H667 -> 54.63635 | I194: =Calculations!I667 -> 56.2754405 | J194: =Calculations!J667 -> 57.96370371 | K194: =Calculations!K667 -> 59.70261483 | L194: =Calculations!L667 -> 61.49369327 | M194: =Calculations!M667 -> 63.33850407 | N194: =Calculations!N667 -> 65.23865919 | O194: =Calculations!O667 -> 67.19581897 | P194: =Calculations!P667 -> 69.21169354 | Q194: =Calculations!Q667 -> 71.28804434 | R194: =Calculations!R667 -> 73.42668567 | S194: =Calculations!S667 -> 75.62948624 | T194: =Calculations!T667 -> 77.89837083 | U194: =Calculations!U667 -> 80.23532195 | V194: =Calculations!V667 -> 82.64238161 | W194: =Calculations!W667 -> 85.12165306 | X194: =Calculations!X667 -> 87.67530265 | Y194: =Calculations!Y667 -> 90.30556173 | Z194: =Calculations!Z667 -> 93.01472859 | AA194: =Calculations!AA667 -> 95.80517044 | AB194: =Calculations!AB667 -> 98.67932556 | AC194: =Calculations!AC667 -> 101.6397053 | AD194: =Calculations!AD667 -> 104.6888965 | AE194: =Calculations!AE667 -> 107.8295634 | AF194: =Calculations!AF667 -> 111.0644503 | AG194: =Calculations!AG667 -> 114.3963838 | AH194: =Calculations!AH667 -> 117.8282753
A195: <<<< Show/hide results
B197: ="Public subsidy assumptions for "&'Assumptions - General'!E25 -> Public subsidy assumptions for Ruritania Passenger Rail Company
B199: Operational subsidy | E199: =IF(E200=1,IF(AND(E203=1,SUM(E209:AH209)>0),"WARNING: MANUAL INPUT OF SUBSIDY WITH MODEL CALCULATION",IF(AND(E203=2,SUM(E209:AH209)=0),"WARNING: SUBSIDY MISSING WITH MANUAL ENTRY"," "))," ") ->  | F199: Yes
B200: Is a public subsidy available? | D200: yes/no | E200: =IF(F199=F200,1,2) -> 1 | F200: Yes
F201: No
B202: =IF(E200=1,"Subsidy in first year"," ") -> Subsidy in first year | D202: =IF(E200=1,'Assumptions - General'!$E$27 &" millions"," ") -> R$ millions | E202: 10 | F202: Model | G202: Inflation-indexed
B203: =IF(E200=1,IF(E200=1,"Let model calculate change in subsidy or enter it manually?"," ")," ") -> Let model calculate change in subsidy or enter it manually? | D203: =IF(E200=1,"Select"," ") -> Select | E203: =IF(F202=F203,1,2) -> 1 | F203: Model | G203: Inflation-indexed
F204: Manual entry | G204: Traffic-dependent
B205: =IF(E200=1,IF(E203=1,"If calculated, is it inflation-indexed or traffic-dependent or both?"," ")," ") -> If calculated, is it inflation-indexed or traffic-dependent or both? | D205: =IF(E200=1,IF(E203=1,"Select"," ")," ") -> Select | E205: =IF(G202=G203,1,IF(G202=G204,2,3)) -> 1 | G205: Both
B207: =IF(E200=1,IF(E203=1,"If yes, proportion of inflation indexation after year 1"," ")," ") -> If yes, proportion of inflation indexation after year 1 | D207: =IF(E200=1,IF(E203=1,"%"," ")," ") -> % | E207: =F207/100 -> 1 | F207: 100
B208: =IF(E200=1,IF(E203=1,"Enter additional annual change"," ")," ") -> Enter additional annual change | D208: =IF(E200=1,IF(E203=1,"%"," ")," ") -> %
B209: =IF(E200=1,IF(E203=1," ","If entered manually, define annual subsidy")," ") ->  | D209: =IF(E200=1,IF(E203=1," ",'Assumptions - General'!$E$27 &" millions")," ") -> 
B210: Capital subsidy | C210: =IF(E211=1,IF(SUM(E226:AH226)>0,"WARNING: CAPITAL SUBSIDY>CAPEX"," ")," ") ->  | E210: =IF(E211=1,IF(AND(E215=1,SUM(E221:AH221)>0),"WARNING: MANUAL INPUT OF SUBSDIY WITH MODEL CALCULATION",IF(AND(E215=2,SUM(E221:AH221)=0),"WARNING: SUBSIDY MISSING WITH MANUAL ENTRY"," "))," ") ->  | F210: Yes
B211: Is a public subsidy available? | D211: yes/no | E211: =IF(F210=F211,1,2) -> 1 | F211: Yes
F212: No
B213: =IF(E211=1,"Subsidy in first year"," ") -> Subsidy in first year | D213: ='Assumptions - General'!$E$27 &" millions" -> R$ millions | E213: 15
B214: =IF(E211=1,"Amortization of grant in first year", " ") -> Amortization of grant in first year | D214: ='Assumptions - General'!$E$27 &" millions" -> R$ millions | E214: 2 | F214: Model
B215: =IF(E211=1,IF(E211=1,"Let model calculate change in subsidy or enter it manually?"," ")," ") -> Let model calculate change in subsidy or enter it manually? | D215: =IF(E211=1,"Select"," ") -> Select | E215: =IF(F214=F215,1,2) -> 1 | F215: Model
F216: Manual entry
B217: =IF(E211=1,IF(E215=1,"If calculated, grow subsidy by inflation rate after year 1?"," ")," ") -> If calculated, grow subsidy by inflation rate after year 1? | D217: =IF(E211=1,IF(E215=1,"yes/no"," ")," ") -> yes/no | E217: =IF(F217="Yes",1,2) -> 1 | F217: Yes
B219: =IF(E211=1,IF(E215=1,"If yes, proportion of inflation indexation after year 1"," ")," ") -> If yes, proportion of inflation indexation after year 1 | D219: =IF(E211=1,IF(E215=1,"%"," ")," ") -> % | E219: =F219/100 -> 1 | F219: 100
B220: =IF(E211=1,IF(E215=1,"Enter additional annual change"," ")," ") -> Enter additional annual change | D220: =IF(E211=1,IF(E215=1,"%"," ")," ") -> %
B221: =IF(E211=1,IF(E215=1," ","If entered manually, define annual subsidy")," ") ->  | D221: =IF(E211=1,IF(E215=1," ",'Assumptions - General'!$E$27 &" millions")," ") -> 
B223: Passenger - operational subsidy in forecast period | D223: ='Assumptions - General'!$E$27 &" millions" -> R$ millions | E223: =Calculations!E672 -> 10 | F223: =Calculations!F672 -> 10.3 | G223: =Calculations!G672 -> 10.609 | H223: =Calculations!H672 -> 10.92727 | I223: =Calculations!I672 -> 11.2550881 | J223: =Calculations!J672 -> 11.59274074 | K223: =Calculations!K672 -> 11.94052297 | L223: =Calculations!L672 -> 12.29873865 | M223: =Calculations!M672 -> 12.66770081 | N223: =Calculations!N672 -> 13.04773184 | O223: =Calculations!O672 -> 13.43916379 | P223: =Calculations!P672 -> 13.84233871 | Q223: =Calculations!Q672 -> 14.25760887 | R223: =Calculations!R672 -> 14.68533713 | S223: =Calculations!S672 -> 15.12589725 | T223: =Calculations!T672 -> 15.57967417 | U223: =Calculations!U672 -> 16.04706439 | V223: =Calculations!V672 -> 16.52847632 | W223: =Calculations!W672 -> 17.02433061 | X223: =Calculations!X672 -> 17.53506053 | Y223: =Calculations!Y672 -> 18.06111235 | Z223: =Calculations!Z672 -> 18.60294572 | AA223: =Calculations!AA672 -> 19.16103409 | AB223: =Calculations!AB672 -> 19.73586511 | AC223: =Calculations!AC672 -> 20.32794106 | AD223: =Calculations!AD672 -> 20.9377793 | AE223: =Calculations!AE672 -> 21.56591268 | AF223: =Calculations!AF672 -> 22.21289006 | AG223: =Calculations!AG672 -> 22.87927676 | AH223: =Calculations!AH672 -> 23.56565506
B224: Passenger - capital subsidy in forecast period | D224: ='Assumptions - General'!$E$27 &" millions" -> R$ millions | E224: =Calculations!E673 -> 15 | F224: =Calculations!F673 -> 15.45 | G224: =Calculations!G673 -> 15.9135 | H224: =Calculations!H673 -> 16.390905 | I224: =Calculations!I673 -> 16.88263215 | J224: =Calculations!J673 -> 17.38911111 | K224: =Calculations!K673 -> 17.91078445 | L224: =Calculations!L673 -> 18.44810798 | M224: =Calculations!M673 -> 19.00155122 | N224: =Calculations!N673 -> 19.57159776 | O224: =Calculations!O673 -> 20.15874569 | P224: =Calculations!P673 -> 20.76350806 | Q224: =Calculations!Q673 -> 21.3864133 | R224: =Calculations!R673 -> 22.0280057 | S224: =Calculations!S673 -> 22.68884587 | T224: =Calculations!T673 -> 23.36951125 | U224: =Calculations!U673 -> 24.07059659 | V224: =Calculations!V673 -> 24.79271448 | W224: =Calculations!W673 -> 25.53649592 | X224: =Calculations!X673 -> 26.3025908 | Y224: =Calculations!Y673 -> 27.09166852 | Z224: =Calculations!Z673 -> 27.90441858 | AA224: =Calculations!AA673 -> 28.74155113 | AB224: =Calculations!AB673 -> 29.60379767 | AC224: =Calculations!AC673 -> 30.4919116 | AD224: =Calculations!AD673 -> 31.40666894 | AE224: =Calculations!AE673 -> 32.34886901 | AF224: =Calculations!AF673 -> 33.31933508 | AG224: =Calculations!AG673 -> 34.31891514 | AH224: =Calculations!AH673 -> 35.34848259
B225: Passenger - amortization of capital subsidy in forecast period | D225: ='Assumptions - General'!$E$27 &" millions" -> R$ millions | E225: =Calculations!E674 -> 2 | F225: =Calculations!F674 -> 1.624713959 | G225: =Calculations!G674 -> 2.705883858 | H225: =Calculations!H674 -> 3.061810946 | I225: =Calculations!I674 -> 3.42963629 | J225: =Calculations!J674 -> 3.809716836 | K225: =Calculations!K674 -> 4.202420241 | L225: =Calculations!L674 -> 4.608125191 | M225: =Calculations!M674 -> 5.027221731 | N225: =Calculations!N674 -> 5.469773446 | O225: =Calculations!O674 -> 5.907208629 | P225: =Calculations!P674 -> 6.378600835 | Q225: =Calculations!Q674 -> 6.865065395 | R225: =Calculations!R674 -> 7.36705448 | S225: =Calculations!S674 -> 7.885033824 | T225: =Calculations!T674 -> 8.419483136 | U225: =Calculations!U674 -> 8.970896514 | V225: =Calculations!V674 -> 9.539782882 | W225: =Calculations!W674 -> 10.12666643 | X225: =Calculations!X674 -> 10.59682137 | Y225: =Calculations!Y674 -> 10.50957897 | Z225: =Calculations!Z674 -> 11.15264312 | AA225: =Calculations!AA674 -> 11.81520291 | AB225: =Calculations!AB674 -> 12.49783 | AC225: =Calculations!AC674 -> 13.09740324 | AD225: =Calculations!AD674 -> 13.81678057 | AE225: =Calculations!AE674 -> 14.55771789 | AF225: =Calculations!AF674 -> 15.32085098 | AG225: =Calculations!AG674 -> 16.10683591 | AH225: =Calculations!AH674 -> 16.91634944
A226: <<<< Show/hide results | F226: =IF(F224>F46,1,0) -> 0 | G226: 0 | H226: 0 | I226: 0 | J226: 0 | K226: 0 | L226: 0 | M226: 0 | N226: 0 | O226: 0 | P226: 0 | Q226: 0 | R226: 0 | S226: 0 | T226: 0 | U226: 0 | V226: 0 | W226: 0 | X226: 0 | Y226: 0 | Z226: 0 | AA226: 0 | AB226: 0 | AC226: 0 | AD226: 0 | AE226: 0 | AF226: 0 | AG226: 0 | AH226: 0
B228: Track access charge assumptions for passenger | E228: =IF(AND('Scenarios - Infra'!F16=1,OR('Scenarios - Infra'!D33=1,'Scenarios - Infra'!E33=1)),"NOTE: SCENARIO ANALYSIS TRACK ACCESS CHARGE ASSUMPTIONS IN USE"," ") -> 
B230: Passenger | F230: Yes
B231: Average track access charge in first year | D231: ='Assumptions - General'!$E$27 &"/GTK" -> R$/GTK | E231: 0.25 | F231: Yes
B232: Average track access charge in first year | D232: ='Assumptions - General'!$E$27 &"/Train-km" -> R$/Train-km | E232: 0.25 | F232: No
B233: Grow track access charge by inflation rate after year 1? | D233: yes/no | E233: =IF(F230=F231,1,2) -> 1
B235: If yes, proportion of inflation indexation after year 1 | D235: % | E235: =F235/100 -> 1 | F235: 100
B236: Additional annual change | D236: %
B238: Passenger - average track access charge in forecast period | D238: =D231 -> R$/GTK | F238: =Calculations!F1123 -> 0.2575 | G238: =Calculations!G1123 -> 0.265225 | H238: =Calculations!H1123 -> 0.27318175 | I238: =Calculations!I1123 -> 0.2813772025 | J238: =Calculations!J1123 -> 0.2898185186 | K238: =Calculations!K1123 -> 0.2985130741 | L238: =Calculations!L1123 -> 0.3074684664 | M238: =Calculations!M1123 -> 0.3166925203 | N238: =Calculations!N1123 -> 0.326193296 | O238: =Calculations!O1123 -> 0.3359790948 | P238: =Calculations!P1123 -> 0.3460584677 | Q238: =Calculations!Q1123 -> 0.3564402217 | R238: =Calculations!R1123 -> 0.3671334284 | S238: =Calculations!S1123 -> 0.3781474312 | T238: =Calculations!T1123 -> 0.3894918542 | U238: =Calculations!U1123 -> 0.4011766098 | V238: =Calculations!V1123 -> 0.4132119081 | W238: =Calculations!W1123 -> 0.4256082653 | X238: =Calculations!X1123 -> 0.4383765133 | Y238: =Calculations!Y1123 -> 0.4515278087 | Z238: =Calculations!Z1123 -> 0.4650736429 | AA238: =Calculations!AA1123 -> 0.4790258522 | AB238: =Calculations!AB1123 -> 0.4933966278 | AC238: =Calculations!AC1123 -> 0.5081985266 | AD238: =Calculations!AD1123 -> 0.5234444824 | AE238: =Calculations!AE1123 -> 0.5391478169 | AF238: =Calculations!AF1123 -> 0.5553222514 | AG238: =Calculations!AG1123 -> 0.5719819189 | AH238: =Calculations!AH1123 -> 0.5891413765
B239: Passenger - average track access charge in forecast period | D239: =D232 -> R$/Train-km | F239: =Calculations!F1124 -> 0.2575 | G239: =Calculations!G1124 -> 0.265225 | H239: =Calculations!H1124 -> 0.27318175 | I239: =Calculations!I1124 -> 0.2813772025 | J239: =Calculations!J1124 -> 0.2898185186 | K239: =Calculations!K1124 -> 0.2985130741 | L239: =Calculations!L1124 -> 0.3074684664 | M239: =Calculations!M1124 -> 0.3166925203 | N239: =Calculations!N1124 -> 0.326193296 | O239: =Calculations!O1124 -> 0.3359790948 | P239: =Calculations!P1124 -> 0.3460584677 | Q239: =Calculations!Q1124 -> 0.3564402217 | R239: =Calculations!R1124 -> 0.3671334284 | S239: =Calculations!S1124 -> 0.3781474312 | T239: =Calculations!T1124 -> 0.3894918542 | U239: =Calculations!U1124 -> 0.4011766098 | V239: =Calculations!V1124 -> 0.4132119081 | W239: =Calculations!W1124 -> 0.4256082653 | X239: =Calculations!X1124 -> 0.4383765133 | Y239: =Calculations!Y1124 -> 0.4515278087 | Z239: =Calculations!Z1124 -> 0.4650736429 | AA239: =Calculations!AA1124 -> 0.4790258522 | AB239: =Calculations!AB1124 -> 0.4933966278 | AC239: =Calculations!AC1124 -> 0.5081985266 | AD239: =Calculations!AD1124 -> 0.5234444824 | AE239: =Calculations!AE1124 -> 0.5391478169 | AF239: =Calculations!AF1124 -> 0.5553222514 | AG239: =Calculations!AG1124 -> 0.5719819189 | AH239: =Calculations!AH1124 -> 0.5891413765
A240: <<<< Show/hide results
B242: ="Operating costs of " &'Assumptions - General'!$E$25 -> Operating costs of Ruritania Passenger Rail Company
F243: Yes
B244: Grow operating costs by inflation in forecast period? | D244: yes/no | E244: =IF(F243=F244,1,2) -> 1 | F244: Yes
F245: No
B246: Scenario analysis enabled (yes=1, no=2)? | D246: =IF('Scenarios - Consolidated'!$F$3=1,1,'Scenarios - Passenger'!F3) -> 2
B247: Staff multiplier from scenario analysis | D247: =IF(AND('Scenarios - Consolidated'!$F$3=1,'Scenarios - Consolidated'!$H$20=1),'Scenarios - Consolidated'!$H$25,'Scenarios - Passenger'!H25) -> 1
B248: <<<< Show/hide scenario analysis
B250: Staff
B251: Total cost in first year | D251: ='Assumptions - General'!$E$27 &" millions" -> R$ millions | E251: 1000
B252: Staff count (physical cost driver)
B253: Variability with staff cost | D253: % | E253: =F253/100 -> 1 | F253: 100
... 225 more rows

Sheet Assumptions - Infrastructure
B1: INPUTS
B2: ='Assumptions - General'!E26 -> Ruritania Railway Infrastructure Company
B3: ="All units in " &'Assumptions - General'!E27& " millions unless otherwise stated" -> All units in R$ millions unless otherwise stated
B4: Year | E4: 1 | F4: 2 | G4: 3 | H4: 4 | I4: 5 | J4: 6 | K4: 7 | L4: 8 | M4: 9 | N4: 10 | O4: 11 | P4: 12 | Q4: 13 | R4: 14 | S4: 15 | T4: 16 | U4: 17 | V4: 18 | W4: 19 | X4: 20 | Y4: 21 | Z4: 22 | AA4: 23 | AB4: 24 | AC4: 25 | AD4: 26 | AE4: 27 | AF4: 28 | AG4: 29 | AH4: 30
B5: Period from | E5: ='Assumptions - General'!$E$28 -> 2010-01-01 | F5: =E6+1 -> 2011-01-01 | G5: 2012-01-01 | H5: 2013-01-01 | I5: 2014-01-01 | J5: 2015-01-01 | K5: 2016-01-01 | L5: 2017-01-01 | M5: 2018-01-01 | N5: 2019-01-01 | O5: 2020-01-01 | P5: 2021-01-01 | Q5: 2022-01-01 | R5: 2023-01-01 | S5: 2024-01-01 | T5: 2025-01-01 | U5: 2026-01-01 | V5: 2027-01-01 | W5: 2028-01-01 | X5: 2029-01-01 | Y5: 2030-01-01 | Z5: 2031-01-01 | AA5: 2032-01-01 | AB5: 2033-01-01 | AC5: 2034-01-01 | AD5: 2035-01-01 | AE5: 2036-01-01 | AF5: 2037-01-01 | AG5: 2038-01-01 | AH5: 2039-01-01
B6: Period to | E6: =DATE(YEAR(E5)+1, MONTH(E5), DAY(E5)-1) -> 2010-12-31 | F6: 2011-12-31 | G6: 2012-12-31 | H6: 2013-12-31 | I6: 2014-12-31 | J6: 2015-12-31 | K6: 2016-12-31 | L6: 2017-12-31 | M6: 2018-12-31 | N6: 2019-12-31 | O6: 2020-12-31 | P6: 2021-12-31 | Q6: 2022-12-31 | R6: 2023-12-31 | S6: 2024-12-31 | T6: 2025-12-31 | U6: 2026-12-31 | V6: 2027-12-31 | W6: 2028-12-31 | X6: 2029-12-31 | Y6: 2030-12-31 | Z6: 2031-12-31 | AA6: 2032-12-31 | AB6: 2033-12-31 | AC6: 2034-12-31 | AD6: 2035-12-31 | AE6: 2036-12-31 | AF6: 2037-12-31 | AG6: 2038-12-31 | AH6: 2039-12-31
C8: Color indicates assumptions to be entered | E8: =IF('Scenarios - Infra'!F3=1,"NOTE: SCENARIO ANALYSIS ASSUMPTIONS IN USE"," ") ->  | F8: 1
C9: Color indicates historical data to be entered
B11: ="Network and operational assumptions for "&'Assumptions - General'!E26 -> Network and operational assumptions for Ruritania Railway Infrastructure Company | E11: =IF(OR(AND('Scenarios - Consolidated'!$F$3=1,'Scenarios - Consolidated'!$H$20=1),AND('Scenarios - Infra'!$F$3=1,'Scenarios - Infra'!$H$20=1)),"NOTE: SCENARIO ANALYSIS STAFF ASSUMPTIONS IN USE"," ") -> 
B13: Length of network in use | D13: Track-km | E13: 15000 | F13: 15000 | G13: 15000 | H13: 15000 | I13: 15000 | J13: 15000 | K13: 15000 | L13: 15000 | M13: 15000 | N13: 15000 | O13: 15000 | P13: 15000 | Q13: 15000 | R13: 15000 | S13: 15000 | T13: 15000 | U13: 15000 | V13: 15000 | W13: 15000 | X13: 15000 | Y13: 15000 | Z13: 15000 | AA13: 15000 | AB13: 15000 | AC13: 15000 | AD13: 15000 | AE13: 15000 | AF13: 15000 | AG13: 15000 | AH13: 15000
B14: ="Staff of "&'Assumptions - General'!E26 -> Staff of Ruritania Railway Infrastructure Company | D14: Staff count | E14: 15000 | F14: 16000 | G14: 17000 | H14: 18000 | I14: 20000 | J14: 20000 | K14: 20000 | L14: 20000 | M14: 20000 | N14: 20000 | O14: 20000 | P14: 20000 | Q14: 20000 | R14: 20000 | S14: 20000 | T14: 20000 | U14: 20000 | V14: 20000 | W14: 20000 | X14: 20000 | Y14: 20000 | Z14: 20000 | AA14: 20000 | AB14: 20000 | AC14: 20000 | AD14: 20000 | AE14: 20000 | AF14: 20000 | AG14: 20000 | AH14: 20000
B15: External freight traffic volume | D15: Gross ton-km | E15: 50000
B16: Electric traction share of freight traffic | D16: % | E16: 0.5 | F16: =E16+F17 -> 0.5 | G16: 0.5 | H16: 0.5 | I16: 0.5 | J16: 0.5 | K16: 0.5 | L16: 0.5 | M16: 0.5 | N16: 0.5 | O16: 0.5 | P16: 0.5 | Q16: 0.5 | R16: 0.5 | S16: 0.5 | T16: 0.5 | U16: 0.5 | V16: 0.5 | W16: 0.5 | X16: 0.5 | Y16: 0.5 | Z16: 0.5 | AA16: 0.5 | AB16: 0.5 | AC16: 0.5 | AD16: 0.5 | AE16: 0.5 | AF16: 0.5 | AG16: 0.5 | AH16: 0.5
B17: Enter change in electric traction share of total freight traffic | D17: Percentage points | F17: 0 | G17: 0 | H17: 0 | I17: 0 | J17: 0 | K17: 0 | L17: 0 | M17: 0 | N17: 0 | O17: 0 | P17: 0 | Q17: 0 | R17: 0 | S17: 0 | T17: 0 | U17: 0 | V17: 0 | W17: 0 | X17: 0 | Y17: 0 | Z17: 0 | AA17: 0 | AB17: 0 | AC17: 0 | AD17: 0 | AE17: 0 | AF17: 0 | AG17: 0 | AH17: 0
B18: Diesel traction share of freight traffic | D18: % | E18: =100%-E16 -> 0.5 | F18: 0.5 | G18: 0.5 | H18: 0.5 | I18: 0.5 | J18: 0.5 | K18: 0.5 | L18: 0.5 | M18: 0.5 | N18: 0.5 | O18: 0.5 | P18: 0.5 | Q18: 0.5 | R18: 0.5 | S18: 0.5 | T18: 0.5 | U18: 0.5 | V18: 0.5 | W18: 0.5 | X18: 0.5 | Y18: 0.5 | Z18: 0.5 | AA18: 0.5 | AB18: 0.5 | AC18: 0.5 | AD18: 0.5 | AE18: 0.5 | AF18: 0.5 | AG18: 0.5 | AH18: 0.5
B19: External passenger traffic volume | D19: Gross ton-km | E19: 30000
B20: Electric traction share of passenger traffic | D20: % | E20: 0.5 | F20: =E20+F21 -> 0.5 | G20: 0.5 | H20: 0.5 | I20: 0.5 | J20: 0.5 | K20: 0.5 | L20: 0.5 | M20: 0.5 | N20: 0.5 | O20: 0.5 | P20: 0.5 | Q20: 0.5 | R20: 0.5 | S20: 0.5 | T20: 0.5 | U20: 0.5 | V20: 0.5 | W20: 0.5 | X20: 0.5 | Y20: 0.5 | Z20: 0.5 | AA20: 0.5 | AB20: 0.5 | AC20: 0.5 | AD20: 0.5 | AE20: 0.5 | AF20: 0.5 | AG20: 0.5 | AH20: 0.5
B21: Enter change in electric traction share of total passenger traffic | D21: Percentage points | F21: 0 | G21: 0 | H21: 0 | I21: 0 | J21: 0 | K21: 0 | L21: 0 | M21: 0 | N21: 0 | O21: 0 | P21: 0 | Q21: 0 | R21: 0 | S21: 0 | T21: 0 | U21: 0 | V21: 0 | W21: 0 | X21: 0 | Y21: 0 | Z21: 0 | AA21: 0 | AB21: 0 | AC21: 0 | AD21: 0 | AE21: 0 | AF21: 0 | AG21: 0 | AH21: 0
B22: Diesel traction share of passenger traffic | D22: % | E22: =100%-E20 -> 0.5 | F22: 0.5 | G22: 0.5 | H22: 0.5 | I22: 0.5 | J22: 0.5 | K22: 0.5 | L22: 0.5 | M22: 0.5 | N22: 0.5 | O22: 0.5 | P22: 0.5 | Q22: 0.5 | R22: 0.5 | S22: 0.5 | T22: 0.5 | U22: 0.5 | V22: 0.5 | W22: 0.5 | X22: 0.5 | Y22: 0.5 | Z22: 0.5 | AA22: 0.5 | AB22: 0.5 | AC22: 0.5 | AD22: 0.5 | AE22: 0.5 | AF22: 0.5 | AG22: 0.5 | AH22: 0.5
B23: Operational benchmark | D23: Text | E23: EU railways
B24: Traffic units (millions) per staff | D24: Ratio | E24: 1
B25: Traffic units (millions) per track-km | D25: Ratio | E25: 1
B26: Staff per track-km | D26: Ratio | E26: 1
B28: ="Fixed asset assumptions for "&'Assumptions - General'!E26 -> Fixed asset assumptions for Ruritania Railway Infrastructure Company | E28: =IF(OR(AND('Scenarios - Consolidated'!$F$3=1,'Scenarios - Consolidated'!$I$20=1),AND('Scenarios - Infra'!$F$3=1,'Scenarios - Infra'!$I$20=1)),"NOTE: SCENARIO ANALYSIS CAPEX ASSUMPTIONS IN USE"," ") -> 
B30: Name of fixed asset class 1 | D30: Text | E30: Land | F30: =IF(E30<>"Land", "Note: first asset class should be land"," ") -> 
B31: Name of fixed asset class 2 | D31: Text | E31: Buildings and structures
B32: Name of fixed asset class 3 | D32: Text | E32: Track and infrastructure
B33: Name of fixed asset class 4 | D33: Text | E33: Locomotives and railway cars
B34: Name of fixed asset class 5 | D34: Text | E34: Machines, equipment and spare parts
B35: Name of fixed asset class 6 | D35: Text | E35: Others
B37: ="Net asset value at the end of first year of " &E30 -> Net asset value at the end of first year of Land | D37: ='Assumptions - General'!$E$27 &" millions" -> R$ millions | E37: 100
B38: Net asset value at the end of first year of Buildings and structures | D38: ='Assumptions - General'!$E$27 &" millions" -> R$ millions | E38: 150
B39: Net asset value at the end of first year of Track and infrastructure | D39: ='Assumptions - General'!$E$27 &" millions" -> R$ millions | E39: 200
B40: Net asset value at the end of first year of Locomotives and railway cars | D40: ='Assumptions - General'!$E$27 &" millions" -> R$ millions | E40: 300
B41: Net asset value at the end of first year of Machines, equipment and spare parts | D41: ='Assumptions - General'!$E$27 &" millions" -> R$ millions | E41: 300
B42: Net asset value at the end of first year of Others | D42: ='Assumptions - General'!$E$27 &" millions" -> R$ millions | E42: 50
B44: ="Annual capital expenditure on " &E30 -> Annual capital expenditure on Land | D44: ='Assumptions - General'!$E$27 &" millions" -> R$ millions | F44: 20 | G44: 20 | H44: 20 | I44: 20 | J44: 20 | K44: 20 | L44: 20 | M44: 20 | N44: 20 | O44: 20 | P44: 20 | Q44: 20 | R44: 20 | S44: 20 | T44: 20 | U44: 20 | V44: 20 | W44: 20 | X44: 20 | Y44: 20 | Z44: 20 | AA44: 20 | AB44: 20 | AC44: 20 | AD44: 20 | AE44: 20 | AF44: 20 | AG44: 20 | AH44: 20
B45: Annual capital expenditure on Buildings and structures | D45: ='Assumptions - General'!$E$27 &" millions" -> R$ millions | F45: 20 | G45: 20 | H45: 20 | I45: 20 | J45: 20 | K45: 20 | L45: 20 | M45: 20 | N45: 20 | O45: 20 | P45: 20 | Q45: 20 | R45: 20 | S45: 20 | T45: 20 | U45: 20 | V45: 20 | W45: 20 | X45: 20 | Y45: 20 | Z45: 20 | AA45: 20 | AB45: 20 | AC45: 20 | AD45: 20 | AE45: 20 | AF45: 20 | AG45: 20 | AH45: 20
B46: Annual capital expenditure on Track and infrastructure | D46: ='Assumptions - General'!$E$27 &" millions" -> R$ millions | F46: 20 | G46: 100 | H46: 100 | I46: 100 | J46: 100 | K46: 100 | L46: 100 | M46: 100 | N46: 100 | O46: 100 | P46: 100 | Q46: 100 | R46: 100 | S46: 100 | T46: 100 | U46: 100 | V46: 100 | W46: 100 | X46: 100 | Y46: 100 | Z46: 100 | AA46: 100 | AB46: 100 | AC46: 100 | AD46: 100 | AE46: 100 | AF46: 100 | AG46: 100 | AH46: 100
B47: Annual capital expenditure on Locomotives and railway cars | D47: ='Assumptions - General'!$E$27 &" millions" -> R$ millions | F47: 25 | G47: 100 | H47: 100 | I47: 100 | J47: 100 | K47: 100 | L47: 100 | M47: 100 | N47: 100 | O47: 100 | P47: 100 | Q47: 100 | R47: 100 | S47: 100 | T47: 100 | U47: 100 | V47: 100 | W47: 100 | X47: 100 | Y47: 100 | Z47: 100 | AA47: 100 | AB47: 100 | AC47: 100 | AD47: 100 | AE47: 100 | AF47: 100 | AG47: 100 | AH47: 100
B48: Annual capital expenditure on Machines, equipment and spare parts | D48: ='Assumptions - General'!$E$27 &" millions" -> R$ millions | F48: 25 | G48: 25 | H48: 25 | I48: 25 | J48: 25 | K48: 25 | L48: 25 | M48: 25 | N48: 25 | O48: 25 | P48: 25 | Q48: 25 | R48: 25 | S48: 25 | T48: 25 | U48: 25 | V48: 25 | W48: 25 | X48: 25 | Y48: 25 | Z48: 25 | AA48: 25 | AB48: 25 | AC48: 25 | AD48: 25 | AE48: 25 | AF48: 25 | AG48: 25 | AH48: 25
B49: Annual capital expenditure on Others | D49: ='Assumptions - General'!$E$27 &" millions" -> R$ millions | F49: 25 | G49: 25 | H49: 25 | I49: 25 | J49: 25 | K49: 25 | L49: 25 | M49: 25 | N49: 25 | O49: 25 | P49: 25 | Q49: 25 | R49: 25 | S49: 25 | T49: 25 | U49: 25 | V49: 25 | W49: 25 | X49: 25 | Y49: 25 | Z49: 25 | AA49: 25 | AB49: 25 | AC49: 25 | AD49: 25 | AE49: 25 | AF49: 25 | AG49: 25 | AH49: 25
B50: Total | D50: ='Assumptions - General'!$E$27 &" millions" -> R$ millions | F50: =SUM(F44:F49) -> 135 | G50: =SUM(G44:G49) -> 290 | H50: 290 | I50: 290 | J50: 290 | K50: 290 | L50: 290 | M50: 290 | N50: 290 | O50: 290 | P50: 290 | Q50: 290 | R50: 290 | S50: 290 | T50: 290 | U50: 290 | V50: 290 | W50: 290 | X50: 290 | Y50: 290 | Z50: 290 | AA50: 290 | AB50: 290 | AC50: 290 | AD50: 290 | AE50: 290 | AF50: 290 | AG50: 290 | AH50: 290
B52: ="Annual sale of " &E30 -> Annual sale of Land | D52: ='Assumptions - General'!$E$27 &" millions" -> R$ millions | E52: =IF(SUM(F52:AH52)>E37,"WARNING: ASSETS SALES>INITIAL VALUE"," ") ->  | F52: 5 | G52: 5 | H52: 5 | I52: 0 | J52: 0 | K52: 0 | L52: 0 | M52: 0 | N52: 0 | O52: 0 | P52: 0 | Q52: 0 | R52: 0 | S52: 0 | T52: 0 | U52: 0 | V52: 0 | W52: 0 | X52: 0 | Y52: 0 | Z52: 0 | AA52: 0 | AB52: 0 | AC52: 0 | AD52: 0 | AE52: 0 | AF52: 0 | AG52: 0 | AH52: 0
B53: Annual sale of Buildings and structures | D53: ='Assumptions - General'!$E$27 &" millions" -> R$ millions | F53: 5 | G53: 5 | H53: 5 | I53: 5 | J53: 5 | K53: 5 | L53: 5 | M53: 5 | N53: 5 | O53: 5 | P53: 5 | Q53: 5 | R53: 5 | S53: 5 | T53: 5 | U53: 5 | V53: 5 | W53: 5 | X53: 5 | Y53: 5 | Z53: 5 | AA53: 5 | AB53: 5 | AC53: 5 | AD53: 5 | AE53: 5 | AF53: 5 | AG53: 5 | AH53: 5
B54: Annual sale of Track and infrastructure | D54: ='Assumptions - General'!$E$27 &" millions" -> R$ millions | F54: 5 | G54: 5 | H54: 5 | I54: 5 | J54: 5 | K54: 5 | L54: 5 | M54: 5 | N54: 5 | O54: 5 | P54: 5 | Q54: 5 | R54: 5 | S54: 5 | T54: 5 | U54: 5 | V54: 5 | W54: 5 | X54: 5 | Y54: 5 | Z54: 5 | AA54: 5 | AB54: 5 | AC54: 5 | AD54: 5 | AE54: 5 | AF54: 5 | AG54: 5 | AH54: 5
B55: Annual sale of Locomotives and railway cars | D55: ='Assumptions - General'!$E$27 &" millions" -> R$ millions | F55: 5 | G55: 5 | H55: 5 | I55: 5 | J55: 5 | K55: 5 | L55: 5 | M55: 5 | N55: 5 | O55: 5 | P55: 5 | Q55: 5 | R55: 5 | S55: 5 | T55: 5 | U55: 5 | V55: 5 | W55: 5 | X55: 5 | Y55: 5 | Z55: 5 | AA55: 5 | AB55: 5 | AC55: 5 | AD55: 5 | AE55: 5 | AF55: 5 | AG55: 5 | AH55: 5
B56: Annual sale of Machines, equipment and spare parts | D56: ='Assumptions - General'!$E$27 &" millions" -> R$ millions | F56: 5 | G56: 5 | H56: 5 | I56: 5 | J56: 5 | K56: 5 | L56: 5 | M56: 5 | N56: 5 | O56: 5 | P56: 5 | Q56: 5 | R56: 5 | S56: 5 | T56: 5 | U56: 5 | V56: 5 | W56: 5 | X56: 5 | Y56: 5 | Z56: 5 | AA56: 5 | AB56: 5 | AC56: 5 | AD56: 5 | AE56: 5 | AF56: 5 | AG56: 5 | AH56: 5
B57: Annual sale of Others | D57: ='Assumptions - General'!$E$27 &" millions" -> R$ millions | F57: 5 | G57: 5 | H57: 5 | I57: 5 | J57: 5 | K57: 5 | L57: 5 | M57: 5 | N57: 5 | O57: 5 | P57: 0 | Q57: 0 | R57: 0 | S57: 0 | T57: 0 | U57: 0 | V57: 0 | W57: 0 | X57: 0 | Y57: 0 | Z57: 0 | AA57: 0 | AB57: 0 | AC57: 0 | AD57: 0 | AE57: 0 | AF57: 0 | AG57: 0 | AH57: 0
B58: Total | D58: ='Assumptions - General'!$E$27 &" millions" -> R$ millions | F58: =SUM(F52:F57) -> 30 | G58: 30 | H58: 30 | I58: 25 | J58: 25 | K58: 25 | L58: 25 | M58: 25 | N58: 25 | O58: 25 | P58: 20 | Q58: 20 | R58: 20 | S58: 20 | T58: 20 | U58: 20 | V58: 20 | W58: 20 | X58: 20 | Y58: 20 | Z58: 20 | AA58: 20 | AB58: 20 | AC58: 20 | AD58: 20 | AE58: 20 | AF58: 20 | AG58: 20 | AH58: 20
B60: Depreciation expense in first year (total) | D60: ='Assumptions - General'!$E$27 &" millions" -> R$ millions | E60: 50
B62: ="Depreciation of " &'Assumptions - Freight'!E$26 -> Depreciation of Land | E62: =IF(AND(E64=1,SUM(E67:AH67)>0),"WARNING: MANUAL INPUT OF DEPRECIATION WITH MODEL CALCULATION",IF(AND(E64=2,SUM(E67:AH67)=0),"WARNING: DEPRECIATION MISSING WITH MANUAL ENTRY"," ")) -> 
B63: If existing land depreciates, enter it manually | D63: ='Assumptions - General'!$E$27 &" millions" -> R$ millions | F63: 0 | G63: 0 | H63: 0 | I63: 0 | J63: 0 | K63: 0 | L63: 0 | M63: 0 | N63: 0 | O63: 0 | P63: 0 | Q63: 0 | R63: 0 | S63: 0 | T63: 0 | U63: 0 | V63: 0 | W63: 0 | X63: 0 | Y63: 0 | Z63: 0 | AA63: 0 | AB63: 0 | AC63: 0 | AD63: 0 | AE63: 0 | AF63: 0 | AG63: 0 | AH63: 0
A64: Model | B64: Let model calculate new land depreciation or enter it manually? | D64: Select | E64: =IF(F64="Model",1,2) -> 1 | F64: Model
A65: Manual entry
B66: =IF(E64=1,"If calculated, define the average life of new assets"," ") -> If calculated, define the average life of new assets | D66: =IF(E64=1,"Years"," ") -> Years | E66: 100
B67: =IF(E64=2,"If entered manually, define annual depreciation expense"," ") ->  | D67: =IF(E64=2,'Assumptions - General'!$E$27 &" millions"," ") -> 
B68: ="Depreciation of " &'Assumptions - Freight'!E$27 -> Depreciation of Buildings and structures | E68: =IF(AND(E69=1,SUM(E74:AH74)>0),"WARNING: MANUAL INPUT OF DEPRECIATION WITH MODEL CALCULATION",IF(AND(E69=2,SUM(E74:AH74)=0),"WARNING: DEPRECIATION MISSING WITH MANUAL ENTRY"," ")) -> 
B69: Let model calculate depreciation or enter it manually? | D69: Select | E69: =IF(F69="Model",1,2) -> 1 | F69: Model
B71: =IF(E69=1,"If calculated, define the average remaining life of existing assets"," ") -> If calculated, define the average remaining life of existing assets | D71: =IF(E69=1,"Years"," ") -> Years | E71: 15
B73: =IF(E69=1,"If calculated, define the average life of new assets"," ") -> If calculated, define the average life of new assets | D73: =IF(E69=1,"Years"," ") -> Years | E73: 46
B74: =IF(E69=2,"If entered manually, define annual depreciation expense"," ") ->  | D74: =IF(E69=2,'Assumptions - General'!$E$27 &" millions"," ") -> 
B76: ="Depreciation of " &'Assumptions - Freight'!E$28 -> Depreciation of Track and infrastructure | E76: =IF(AND(E77=1,SUM(E82:AH82)>0),"WARNING: MANUAL INPUT OF DEPRECIATION WITH MODEL CALCULATION",IF(AND(E77=2,SUM(E82:AH82)=0),"WARNING: DEPRECIATION MISSING WITH MANUAL ENTRY"," ")) -> 
B77: Let model calculate depreciation or enter it manually? | D77: Select | E77: =IF(F77="Model",1,2) -> 1 | F77: Model
B79: =IF(E77=1,"If calculated, define the average remaining life of existing assets"," ") -> If calculated, define the average remaining life of existing assets | D79: =IF(E77=1,"Years"," ") -> Years | E79: 15
B81: =IF(E77=1,"If calculated, define the average life of new assets"," ") -> If calculated, define the average life of new assets | D81: =IF(E77=1,"Years"," ") -> Years | E81: 15
B82: =IF(E77=2,"If entered manually, define annual depreciation expense"," ") ->  | D82: =IF(E77=2,'Assumptions - General'!$E$27 &" millions"," ") -> 
B84: ="Depreciation of " &'Assumptions - Freight'!E$29 -> Depreciation of Locomotives and railway cars | E84: =IF(AND(E85=1,SUM(E90:AH90)>0),"WARNING: MANUAL INPUT OF DEPRECIATION WITH MODEL CALCULATION",IF(AND(E85=2,SUM(E90:AH90)=0),"WARNING: DEPRECIATION MISSING WITH MANUAL ENTRY"," ")) -> 
B85: Let model calculate depreciation or enter it manually? | D85: Select | E85: =IF(F85="Model",1,2) -> 1 | F85: Model
B87: =IF(E85=1,"If calculated, define the average remaining life of existing assets"," ") -> If calculated, define the average remaining life of existing assets | D87: =IF(E85=1,"Years"," ") -> Years | E87: 38
B89: =IF(E85=1,"If calculated, define the average life of new assets"," ") -> If calculated, define the average life of new assets | D89: =IF(E85=1,"Years"," ") -> Years | E89: 23
B90: =IF(E85=2,"If entered manually, define annual depreciation expense"," ") ->  | D90: =IF(E85=2,'Assumptions - General'!$E$27 &" millions"," ") -> 
B92: ="Depreciation of " &'Assumptions - Freight'!E$30 -> Depreciation of Machines, equipment and spare parts | E92: =IF(AND(E93=1,SUM(E98:AH98)>0),"WARNING: MANUAL INPUT OF DEPRECIATION WITH MODEL CALCULATION",IF(AND(E93=2,SUM(E98:AH98)=0),"WARNING: DEPRECIATION MISSING WITH MANUAL ENTRY"," ")) -> 
B93: Let model calculate depreciation or enter it manually? | D93: Select | E93: =IF(F93="Model",1,2) -> 1 | F93: Model
B95: =IF(E93=1,"If calculated, define the average remaining life of existing assets"," ") -> If calculated, define the average remaining life of existing assets | D95: =IF(E93=1,"Years"," ") -> Years | E95: 16
B97: =IF(E93=1,"If calculated, define the average life of new assets"," ") -> If calculated, define the average life of new assets | D97: =IF(E93=1,"Years"," ") -> Years | E97: 33
B98: =IF(E93=2,"If entered manually, define annual depreciation expense"," ") ->  | D98: =IF(E93=2,'Assumptions - General'!$E$27 &" millions"," ") -> 
B100: ="Depreciation of " &'Assumptions - Freight'!E$31 -> Depreciation of Others | E100: =IF(AND(E101=1,SUM(E106:AH106)>0),"WARNING: MANUAL INPUT OF DEPRECIATION WITH MODEL CALCULATION",IF(AND(E101=2,SUM(E106:AH106)=0),"WARNING: DEPRECIATION MISSING WITH MANUAL ENTRY"," ")) -> 
B101: Let model calculate depreciation or enter it manually? | D101: Select | E101: =IF(F101="Model",1,2) -> 1 | F101: Model
B103: =IF(E101=1,"If calculated, define the average remaining life of existing assets"," ") -> If calculated, define the average remaining life of existing assets | D103: =IF(E101=1,"Years"," ") -> Years | E103: 31
B105: =IF(E101=1,"If calculated, define the average life of new assets"," ") -> If calculated, define the average life of new assets | D105: =IF(E101=1,"Years"," ") -> Years | E105: 46
B106: =IF(E101=2,"If entered manually, define annual depreciation expense"," ") ->  | D106: =IF(E101=2,'Assumptions - General'!$E$27 &" millions"," ") -> 
B108: ="Other long-term assets for " &'Assumptions - General'!$E$26 -> Other long-term assets for Ruritania Railway Infrastructure Company
B110: Other long-term assets
B111: Annual amount | D111: ='Assumptions - General'!$E$27 &" millions" -> R$ millions | E111: 10 | F111: 10 | G111: 10 | H111: 10 | I111: 10 | J111: 10 | K111: 10 | L111: 10 | M111: 10 | N111: 10 | O111: 10 | P111: 10 | Q111: 10 | R111: 10 | S111: 10 | T111: 10 | U111: 10 | V111: 10 | W111: 10 | X111: 10 | Y111: 10 | Z111: 10 | AA111: 10 | AB111: 10 | AC111: 10 | AD111: 10 | AE111: 10 | AF111: 10 | AG111: 10 | AH111: 10
B113: ="Additional traffic assumptions for "&'Assumptions - General'!E26 -> Additional traffic assumptions for Ruritania Railway Infrastructure Company | E113: =IF(OR(AND('Scenarios - Consolidated'!$F$3=1,OR('Scenarios - Consolidated'!$F$20=1,'Scenarios - Consolidated'!$G$20=1)),AND('Scenarios - Infra'!$F$3=1,OR('Scenarios - Infra'!$F$20=1,'Scenarios - Infra'!$G$20=1)),AND('Scenarios - Freight'!$F$3=1,OR('Scenarios - Freight'!$F$20=1,'Scenarios - Freight'!$G$20=1))),"NOTE: SCENARIO ANALYSIS TRAFFIC ASSUMPTIONS IN USE"," ") -> 
B115: External freight | F115: Net ton-km
B116: Traffic data in net ton-kilometers or tons? | D116: Net ton-km/tons | E116: =IF(F115=F116,1,2) -> 1 | F116: Net ton-km | G116: Yes
F117: Tons
B118: Enter average length of cargo haul | D118: km | E118: 100 | G118: No
B119: Enter weight of train load (net) | D119: Tons | E119: 100
B121: Name of freight client 1 | D121: Text | E121: Freight company 1
B122: Name of freight client 2 | D122: Text | E122: Freight company 2
B123: Name of freight client 3 | D123: Text | E123: Freight company 3
B124: Name of freight client 4 | D124: Text | E124: Freight company 4
B125: Name of freight client 5 | D125: Text | E125: Freight company 5
B126: Name of freight client 6 | D126: Text | E126: Other companies
B128: Implied gross ton-km/net ton-km ratio | D128: Ratio | E128: =IF(E15<>0,IF($E$116=1,$E$15/SUM(E131:E136),$E$15/(SUM(E131:E136)*E118)),0) -> 2.083333333 | F128: =E128*(1+F129) -> 2.083333333 | G128: 2.083333333 | H128: 2.083333333 | I128: 2.083333333 | J128: 2.083333333 | K128: 2.083333333 | L128: 2.083333333 | M128: 2.083333333 | N128: 2.083333333 | O128: 2.083333333 | P128: 2.083333333 | Q128: 2.083333333 | R128: 2.083333333 | S128: 2.083333333 | T128: 2.083333333 | U128: 2.083333333 | V128: 2.083333333 | W128: 2.083333333 | X128: 2.083333333 | Y128: 2.083333333 | Z128: 2.083333333 | AA128: 2.083333333 | AB128: 2.083333333 | AC128: 2.083333333 | AD128: 2.083333333 | AE128: 2.083333333 | AF128: 2.083333333 | AG128: 2.083333333 | AH128: 2.083333333
B129: Enter change in GTK/NTK ratio | D129: % | F129: 0 | G129: 0 | H129: 0 | I129: 0 | J129: 0 | K129: 0 | L129: 0 | M129: 0 | N129: 0 | O129: 0 | P129: 0 | Q129: 0 | R129: 0 | S129: 0 | T129: 0 | U129: 0 | V129: 0 | W129: 0 | X129: 0 | Y129: 0 | Z129: 0 | AA129: 0 | AB129: 0 | AC129: 0 | AD129: 0 | AE129: 0 | AF129: 0 | AG129: 0 | AH129: 0
B131: =E121&" annual traffic volume" -> Freight company 1 annual traffic volume | D131: =IF($E$116=1,"Net ton-km (million)", "Tons (million)") -> Net ton-km (million) | E131: 4000 | F131: 4000 | G131: 4000 | H131: 4000 | I131: 4000 | J131: 4000 | K131: 4500 | L131: 4500 | M131: 4500 | N131: 4500 | O131: 4500 | P131: 4500 | Q131: 4500 | R131: 4500 | S131: 4500 | T131: 4500 | U131: 4500 | V131: 4500 | W131: 4500 | X131: 4500 | Y131: 4500 | Z131: 4500 | AA131: 4500 | AB131: 4500 | AC131: 4500 | AD131: 4500 | AE131: 4500 | AF131: 4500 | AG131: 4500 | AH131: 4500
B132: Freight company 2 annual traffic volume | D132: =D131 -> Net ton-km (million) | E132: 4000 | F132: 4000 | G132: 4000 | H132: 4000 | I132: 4000 | J132: 4000 | K132: 4500 | L132: 4500 | M132: 4500 | N132: 4500 | O132: 4500 | P132: 4500 | Q132: 4500 | R132: 4500 | S132: 4500 | T132: 4500 | U132: 4500 | V132: 4500 | W132: 4500 | X132: 4500 | Y132: 4500 | Z132: 4500 | AA132: 4500 | AB132: 4500 | AC132: 4500 | AD132: 4500 | AE132: 4500 | AF132: 4500 | AG132: 4500 | AH132: 4500
B133: Freight company 3 annual traffic volume | D133: =D132 -> Net ton-km (million) | E133: 4000 | F133: 4000 | G133: 4000 | H133: 4000 | I133: 4000 | J133: 4000 | K133: 4500 | L133: 4500 | M133: 4500 | N133: 4500 | O133: 4500 | P133: 4500 | Q133: 4500 | R133: 4500 | S133: 4500 | T133: 4500 | U133: 4500 | V133: 4500 | W133: 4500 | X133: 4500 | Y133: 4500 | Z133: 4500 | AA133: 4500 | AB133: 4500 | AC133: 4500 | AD133: 4500 | AE133: 4500 | AF133: 4500 | AG133: 4500 | AH133: 4500
B134: Freight company 4 annual traffic volume | D134: =D133 -> Net ton-km (million) | E134: 4000 | F134: 4000 | G134: 4000 | H134: 4000 | I134: 4000 | J134: 4000 | K134: 4500 | L134: 4500 | M134: 4500 | N134: 4500 | O134: 4500 | P134: 4500 | Q134: 4500 | R134: 4500 | S134: 4500 | T134: 4500 | U134: 4500 | V134: 4500 | W134: 4500 | X134: 4500 | Y134: 4500 | Z134: 4500 | AA134: 4500 | AB134: 4500 | AC134: 4500 | AD134: 4500 | AE134: 4500 | AF134: 4500 | AG134: 4500 | AH134: 4500
B135: Freight company 5 annual traffic volume | D135: =D134 -> Net ton-km (million) | E135: 4000 | F135: 4000 | G135: 4000 | H135: 4000 | I135: 4000 | J135: 4000 | K135: 4500 | L135: 4500 | M135: 4500 | N135: 4500 | O135: 4500 | P135: 4500 | Q135: 4500 | R135: 4500 | S135: 4500 | T135: 4500 | U135: 4500 | V135: 4500 | W135: 4500 | X135: 4500 | Y135: 4500 | Z135: 4500 | AA135: 4500 | AB135: 4500 | AC135: 4500 | AD135: 4500 | AE135: 4500 | AF135: 4500 | AG135: 4500 | AH135: 4500
B136: Other companies annual traffic volume | D136: =D135 -> Net ton-km (million) | E136: 4000 | F136: 4000 | G136: 4000 | H136: 4000 | I136: 4000 | J136: 4000 | K136: 4500 | L136: 4500 | M136: 4500 | N136: 4500 | O136: 4500 | P136: 4500 | Q136: 4500 | R136: 4500 | S136: 4500 | T136: 4500 | U136: 4500 | V136: 4500 | W136: 4500 | X136: 4500 | Y136: 4500 | Z136: 4500 | AA136: 4500 | AB136: 4500 | AC136: 4500 | AD136: 4500 | AE136: 4500 | AF136: 4500 | AG136: 4500 | AH136: 4500
B138: External passenger | F138: Passenger-km
B139: Traffic data in passenger-km or trips? | D139: Passenger-km/Number of passenger trips | E139: =IF(F138=F139,1,2) -> 1 | F139: Passenger-km | G139: Yes
B140: Enter average length of passenger trip | D140: km | E140: 100 | F140: Number of trips | G140: No
B142: Name of passenger client 1 | D142: Text | E142: Passenger company 1
B143: Name of passenger client 2 | D143: Text | E143: Passenger company 2
B144: Name of passenger client 3 | D144: Text | E144: Other companies
B146: Gross ton-km/passenger-km ratio | D146: Ratio | E146: =IF($E$139=1,$E$19/(E149+E151+E153),$E$19/((E149+E151+E153)*E140)) -> 1.25 | F146: =E146*(1+F147) -> 1.25 | G146: 1.25 | H146: 1.25 | I146: 1.25 | J146: 1.25 | K146: 1.25 | L146: 1.25 | M146: 1.25 | N146: 1.25 | O146: 1.25 | P146: 1.25 | Q146: 1.25 | R146: 1.25 | S146: 1.25 | T146: 1.25 | U146: 1.25 | V146: 1.25 | W146: 1.25 | X146: 1.25 | Y146: 1.25 | Z146: 1.25 | AA146: 1.25 | AB146: 1.25 | AC146: 1.25 | AD146: 1.25 | AE146: 1.25 | AF146: 1.25 | AG146: 1.25 | AH146: 1.25
B147: Enter change in GTK/passenger-km ratio | D147: % | F147: 0 | G147: 0 | H147: 0 | I147: 0 | J147: 0 | K147: 0 | L147: 0 | M147: 0 | N147: 0 | O147: 0 | P147: 0 | Q147: 0 | R147: 0 | S147: 0 | T147: 0 | U147: 0 | V147: 0 | W147: 0 | X147: 0 | Y147: 0 | Z147: 0 | AA147: 0 | AB147: 0 | AC147: 0 | AD147: 0 | AE147: 0 | AF147: 0 | AG147: 0 | AH147: 0
B149: =E142&" annual traffic volume" -> Passenger company 1 annual traffic volume | D149: =IF(E139=1,"Passenger-km (million)", "Number of trips (million)") -> Passenger-km (million) | E149: 8000 | F149: 8500 | G149: 8500 | H149: 9000 | I149: 10000 | J149: 10500 | K149: 11000 | L149: 11500 | M149: 12000 | N149: 12500 | O149: 13000 | P149: 13500 | Q149: 14000 | R149: 14500 | S149: 15000 | T149: 15500 | U149: 16000 | V149: 16500 | W149: 17000 | X149: 17500 | Y149: 18000 | Z149: 18500 | AA149: 19000 | AB149: 19500 | AC149: 20000 | AD149: 20500 | AE149: 21000 | AF149: 21500 | AG149: 22000 | AH149: 22500
B150: =E142&" annual traffic volume" -> Passenger company 1 annual traffic volume | D150: Train-km (million) | E150: 500 | F150: 500 | G150: 500 | H150: 500 | I150: 500 | J150: 500 | K150: 500 | L150: 500 | M150: 500 | N150: 500 | O150: 500 | P150: 500 | Q150: 500 | R150: 500 | S150: 500 | T150: 500 | U150: 500 | V150: 500 | W150: 500 | X150: 500 | Y150: 500 | Z150: 500 | AA150: 500 | AB150: 500 | AC150: 500 | AD150: 500 | AE150: 500 | AF150: 500 | AG150: 500 | AH150: 500
B151: =E143&" annual traffic volume" -> Passenger company 2 annual traffic volume | D151: =IF(E139=1,"Passenger-km (million)", "Number of trips (million)") -> Passenger-km (million) | E151: 8000 | F151: 8500 | G151: 8500 | H151: 9000 | I151: 10000 | J151: 10500 | K151: 11000 | L151: 11500 | M151: 12000 | N151: 12500 | O151: 13000 | P151: 13500 | Q151: 14000 | R151: 14500 | S151: 15000 | T151: 15500 | U151: 16000 | V151: 16500 | W151: 17000 | X151: 17500 | Y151: 18000 | Z151: 18500 | AA151: 19000 | AB151: 19500 | AC151: 20000 | AD151: 20500 | AE151: 21000 | AF151: 21500 | AG151: 22000 | AH151: 22500
B152: =E143&" annual traffic volume" -> Passenger company 2 annual traffic volume | D152: Train-km (million) | E152: 500 | F152: 500 | G152: 500 | H152: 500 | I152: 500 | J152: 500 | K152: 500 | L152: 500 | M152: 500 | N152: 500 | O152: 500 | P152: 500 | Q152: 500 | R152: 500 | S152: 500 | T152: 500 | U152: 500 | V152: 500 | W152: 500 | X152: 500 | Y152: 500 | Z152: 500 | AA152: 500 | AB152: 500 | AC152: 500 | AD152: 500 | AE152: 500 | AF152: 500 | AG152: 500 | AH152: 500
B153: =E144&" annual traffic volume" -> Other companies annual traffic volume | D153: =IF(E139=1,"Passenger-km (million)", "Number of trips (million)") -> Passenger-km (million) | E153: 8000 | F153: 8500 | G153: 8500 | H153: 9000 | I153: 10000 | J153: 10500 | K153: 11000 | L153: 11500 | M153: 12000 | N153: 12500 | O153: 13000 | P153: 13500 | Q153: 14000 | R153: 14500 | S153: 15000 | T153: 15500 | U153: 16000 | V153: 16500 | W153: 17000 | X153: 17500 | Y153: 18000 | Z153: 18500 | AA153: 19000 | AB153: 19500 | AC153: 20000 | AD153: 20500 | AE153: 21000 | AF153: 21500 | AG153: 22000 | AH153: 22500
B154: =E144&" annual traffic volume" -> Other companies annual traffic volume | D154: Train-km (million) | E154: 500 | F154: 500 | G154: 500 | H154: 500 | I154: 500 | J154: 500 | K154: 500 | L154: 500 | M154: 500 | N154: 500 | O154: 500 | P154: 500 | Q154: 500 | R154: 500 | S154: 500 | T154: 500 | U154: 500 | V154: 500 | W154: 500 | X154: 500 | Y154: 500 | Z154: 500 | AA154: 500 | AB154: 500 | AC154: 500 | AD154: 500 | AE154: 500 | AF154: 500 | AG154: 500 | AH154: 500
B156: ="Other operating revenue for " &'Assumptions - General'!$E$26 -> Other operating revenue for Ruritania Railway Infrastructure Company
B158: Other revenue
B159: Annual amount | D159: ='Assumptions - General'!$E$27 &" millions" -> R$ millions | E159: 500 | F159: 500 | G159: 500 | H159: 500 | I159: 500 | J159: 500 | K159: 500 | L159: 500 | M159: 500 | N159: 500 | O159: 500 | P159: 500 | Q159: 500 | R159: 500 | S159: 500 | T159: 500 | U159: 500 | V159: 500 | W159: 500 | X159: 500 | Y159: 500 | Z159: 500 | AA159: 500 | AB159: 500 | AC159: 500 | AD159: 500 | AE159: 500 | AF159: 500 | AG159: 500 | AH159: 500
B161: ="Non-operating revenue for " &'Assumptions - General'!$E$26 -> Non-operating revenue for Ruritania Railway Infrastructure Company
F162: Yes
B163: Grow non-operating revenue by inflation in forecast period? | D163: yes/no | E163: =IF(F164=F162,1,2) -> 1 | F163: No
F164: Yes
B165: Name of non-operating revenue 1 | D165: Text | E165: Tax credit
B166: Total revenue in first year | D166: ='Assumptions - General'!$E$27 &" millions" -> R$ millions | E166: 100
B167: Quantity (physical revenue driver) | D167: Index | E167: 100 | F167: =E167*(1+F168) -> 100 | G167: 100 | H167: 100 | I167: 100 | J167: 100 | K167: 100 | L167: 100 | M167: 100 | N167: 100 | O167: 100 | P167: 100 | Q167: 100 | R167: 100 | S167: 100 | T167: 100 | U167: 100 | V167: 100 | W167: 100 | X167: 100 | Y167: 100 | Z167: 100 | AA167: 100 | AB167: 100 | AC167: 100 | AD167: 100 | AE167: 100 | AF167: 100 | AG167: 100 | AH167: 100
B168: Enter change in quantity | D168: % | F168: 0 | G168: 0 | H168: 0 | I168: 0 | J168: 0 | K168: 0 | L168: 0 | M168: 0 | N168: 0 | O168: 0 | P168: 0 | Q168: 0 | R168: 0 | S168: 0 | T168: 0 | U168: 0 | V168: 0 | W168: 0 | X168: 0 | Y168: 0 | Z168: 0 | AA168: 0 | AB168: 0 | AC168: 0 | AD168: 0 | AE168: 0 | AF168: 0 | AG168: 0 | AH168: 0
B169: Unit revenue
B170: Variability with inflation | D170: % | E170: =IF(E163=2,0,F170/100) -> 1 | F170: 100
B171: Annual unit revenue | D171: ='Assumptions - General'!$E$27 &" per unit" -> R$ per unit | E171: =E166*1000000/E167 -> 1000000 | F171: =E171*(1+F172)*IF($E$163=1,($E170*'Assumptions - General'!F$37+1),1) -> 1030000 | G171: =F171*(1+G172)*IF($E$163=1,($E170*'Assumptions - General'!G$37+1),1) -> 1060900 | H171: =G171*(1+H172)*IF($E$163=1,($E170*'Assumptions - General'!H$37+1),1) -> 1092727 | I171: =H171*(1+I172)*IF($E$163=1,($E170*'Assumptions - General'!I$37+1),1) -> 1125508.81 | J171: =I171*(1+J172)*IF($E$163=1,($E170*'Assumptions - General'!J$37+1),1) -> 1159274.074 | K171: =J171*(1+K172)*IF($E$163=1,($E170*'Assumptions - General'!K$37+1),1) -> 1194052.297 | L171: =K171*(1+L172)*IF($E$163=1,($E170*'Assumptions - General'!L$37+1),1) -> 1229873.865 | M171: =L171*(1+M172)*IF($E$163=1,($E170*'Assumptions - General'!M$37+1),1) -> 1266770.081 | N171: =M171*(1+N172)*IF($E$163=1,($E170*'Assumptions - General'!N$37+1),1) -> 1304773.184 | O171: =N171*(1+O172)*IF($E$163=1,($E170*'Assumptions - General'!O$37+1),1) -> 1343916.379 | P171: =O171*(1+P172)*IF($E$163=1,($E170*'Assumptions - General'!P$37+1),1) -> 1384233.871 | Q171: =P171*(1+Q172)*IF($E$163=1,($E170*'Assumptions - General'!Q$37+1),1) -> 1425760.887 | R171: =Q171*(1+R172)*IF($E$163=1,($E170*'Assumptions - General'!R$37+1),1) -> 1468533.713 | S171: =R171*(1+S172)*IF($E$163=1,($E170*'Assumptions - General'!S$37+1),1) -> 1512589.725 | T171: =S171*(1+T172)*IF($E$163=1,($E170*'Assumptions - General'!T$37+1),1) -> 1557967.417 | U171: =T171*(1+U172)*IF($E$163=1,($E170*'Assumptions - General'!U$37+1),1) -> 1604706.439 | V171: =U171*(1+V172)*IF($E$163=1,($E170*'Assumptions - General'!V$37+1),1) -> 1652847.632 | W171: =V171*(1+W172)*IF($E$163=1,($E170*'Assumptions - General'!W$37+1),1) -> 1702433.061 | X171: =W171*(1+X172)*IF($E$163=1,($E170*'Assumptions - General'!X$37+1),1) -> 1753506.053 | Y171: =X171*(1+Y172)*IF($E$163=1,($E170*'Assumptions - General'!Y$37+1),1) -> 1806111.235 | Z171: =Y171*(1+Z172)*IF($E$163=1,($E170*'Assumptions - General'!Z$37+1),1) -> 1860294.572 | AA171: =Z171*(1+AA172)*IF($E$163=1,($E170*'Assumptions - General'!AA$37+1),1) -> 1916103.409 | AB171: =AA171*(1+AB172)*IF($E$163=1,($E170*'Assumptions - General'!AB$37+1),1) -> 1973586.511 | AC171: =AB171*(1+AC172)*IF($E$163=1,($E170*'Assumptions - General'!AC$37+1),1) -> 2032794.106 | AD171: =AC171*(1+AD172)*IF($E$163=1,($E170*'Assumptions - General'!AD$37+1),1) -> 2093777.93 | AE171: =AD171*(1+AE172)*IF($E$163=1,($E170*'Assumptions - General'!AE$37+1),1) -> 2156591.268 | AF171: =AE171*(1+AF172)*IF($E$163=1,($E170*'Assumptions - General'!AF$37+1),1) -> 2221289.006 | AG171: =AF171*(1+AG172)*IF($E$163=1,($E170*'Assumptions - General'!AG$37+1),1) -> 2287927.676 | AH171: =AG171*(1+AH172)*IF($E$163=1,($E170*'Assumptions - General'!AH$37+1),1) -> 2356565.506
B172: Additional annual change | D172: % | F172: 0 | G172: 0 | H172: 0 | I172: 0 | J172: 0 | K172: 0 | L172: 0 | M172: 0 | N172: 0 | O172: 0 | P172: 0 | Q172: 0 | R172: 0 | S172: 0 | T172: 0 | U172: 0 | V172: 0 | W172: 0 | X172: 0 | Y172: 0 | Z172: 0 | AA172: 0 | AB172: 0 | AC172: 0 | AD172: 0 | AE172: 0 | AF172: 0 | AG172: 0 | AH172: 0
B174: Name of non-operating revenue 2 | D174: Text | E174: Investment income
B175: Total revenue in first year | D175: ='Assumptions - General'!$E$27 &" millions" -> R$ millions | E175: 50
B176: Quantity (physical revenue driver) | D176: Index | E176: 100 | F176: =E176*(1+F177) -> 100 | G176: 100 | H176: 100 | I176: 100 | J176: 100 | K176: 100 | L176: 100 | M176: 100 | N176: 100 | O176: 100 | P176: 100 | Q176: 100 | R176: 100 | S176: 100 | T176: 100 | U176: 100 | V176: 100 | W176: 100 | X176: 100 | Y176: 100 | Z176: 100 | AA176: 100 | AB176: 100 | AC176: 100 | AD176: 100 | AE176: 100 | AF176: 100 | AG176: 100 | AH176: 100
B177: Enter change in quantity | D177: % | F177: 0 | G177: 0 | H177: 0 | I177: 0 | J177: 0 | K177: 0 | L177: 0 | M177: 0 | N177: 0 | O177: 0 | P177: 0 | Q177: 0 | R177: 0 | S177: 0 | T177: 0 | U177: 0 | V177: 0 | W177: 0 | X177: 0 | Y177: 0 | Z177: 0 | AA177: 0 | AB177: 0 | AC177: 0 | AD177: 0 | AE177: 0 | AF177: 0 | AG177: 0 | AH177: 0
B178: Unit revenue
B179: Variability with inflation | D179: % | E179: =IF(E163=2,0,F179/100) -> 1 | F179: 100
B180: Annual unit revenue | D180: ='Assumptions - General'!$E$27 &" per unit" -> R$ per unit | E180: =E175*1000000/E176 -> 500000 | F180: =E180*(1+F181)*IF($E$163=1,($E179*'Assumptions - General'!F$37+1),1) -> 515000 | G180: =F180*(1+G181)*IF($E$163=1,($E179*'Assumptions - General'!G$37+1),1) -> 530450 | H180: =G180*(1+H181)*IF($E$163=1,($E179*'Assumptions - General'!H$37+1),1) -> 546363.5 | I180: =H180*(1+I181)*IF($E$163=1,($E179*'Assumptions - General'!I$37+1),1) -> 562754.405 | J180: =I180*(1+J181)*IF($E$163=1,($E179*'Assumptions - General'!J$37+1),1) -> 579637.0371 | K180: =J180*(1+K181)*IF($E$163=1,($E179*'Assumptions - General'!K$37+1),1) -> 597026.1483 | L180: =K180*(1+L181)*IF($E$163=1,($E179*'Assumptions - General'!L$37+1),1) -> 614936.9327 | M180: =L180*(1+M181)*IF($E$163=1,($E179*'Assumptions - General'!M$37+1),1) -> 633385.0407 | N180: =M180*(1+N181)*IF($E$163=1,($E179*'Assumptions - General'!N$37+1),1) -> 652386.5919 | O180: =N180*(1+O181)*IF($E$163=1,($E179*'Assumptions - General'!O$37+1),1) -> 671958.1897 | P180: =O180*(1+P181)*IF($E$163=1,($E179*'Assumptions - General'!P$37+1),1) -> 692116.9354 | Q180: =P180*(1+Q181)*IF($E$163=1,($E179*'Assumptions - General'!Q$37+1),1) -> 712880.4434 | R180: =Q180*(1+R181)*IF($E$163=1,($E179*'Assumptions - General'!R$37+1),1) -> 734266.8567 | S180: =R180*(1+S181)*IF($E$163=1,($E179*'Assumptions - General'!S$37+1),1) -> 756294.8624 | T180: =S180*(1+T181)*IF($E$163=1,($E179*'Assumptions - General'!T$37+1),1) -> 778983.7083 | U180: =T180*(1+U181)*IF($E$163=1,($E179*'Assumptions - General'!U$37+1),1) -> 802353.2195 | V180: =U180*(1+V181)*IF($E$163=1,($E179*'Assumptions - General'!V$37+1),1) -> 826423.8161 | W180: =V180*(1+W181)*IF($E$163=1,($E179*'Assumptions - General'!W$37+1),1) -> 851216.5306 | X180: =W180*(1+X181)*IF($E$163=1,($E179*'Assumptions - General'!X$37+1),1) -> 876753.0265 | Y180: =X180*(1+Y181)*IF($E$163=1,($E179*'Assumptions - General'!Y$37+1),1) -> 903055.6173 | Z180: =Y180*(1+Z181)*IF($E$163=1,($E179*'Assumptions - General'!Z$37+1),1) -> 930147.2859 | AA180: =Z180*(1+AA181)*IF($E$163=1,($E179*'Assumptions - General'!AA$37+1),1) -> 958051.7044 | AB180: =AA180*(1+AB181)*IF($E$163=1,($E179*'Assumptions - General'!AB$37+1),1) -> 986793.2556 | AC180: =AB180*(1+AC181)*IF($E$163=1,($E179*'Assumptions - General'!AC$37+1),1) -> 1016397.053 | AD180: =AC180*(1+AD181)*IF($E$163=1,($E179*'Assumptions - General'!AD$37+1),1) -> 1046888.965 | AE180: =AD180*(1+AE181)*IF($E$163=1,($E179*'Assumptions - General'!AE$37+1),1) -> 1078295.634 | AF180: =AE180*(1+AF181)*IF($E$163=1,($E179*'Assumptions - General'!AF$37+1),1) -> 1110644.503 | AG180: =AF180*(1+AG181)*IF($E$163=1,($E179*'Assumptions - General'!AG$37+1),1) -> 1143963.838 | AH180: =AG180*(1+AH181)*IF($E$163=1,($E179*'Assumptions - General'!AH$37+1),1) -> 1178282.753
B181: Additional annual change | D181: % | F181: 0 | G181: 0 | H181: 0 | I181: 0 | J181: 0 | K181: 0 | L181: 0 | M181: 0 | N181: 0 | O181: 0 | P181: 0 | Q181: 0 | R181: 0 | S181: 0 | T181: 0 | U181: 0 | V181: 0 | W181: 0 | X181: 0 | Y181: 0 | Z181: 0 | AA181: 0 | AB181: 0 | AC181: 0 | AD181: 0 | AE181: 0 | AF181: 0 | AG181: 0 | AH181: 0
B183: Name of non-operating revenue 3 | D183: Text | E183: Other
B184: Total revenue in first year | D184: ='Assumptions - General'!$E$27 &" millions" -> R$ millions | E184: 50
B185: Quantity (physical revenue driver) | D185: Index | E185: 100 | F185: =E185*(1+F186) -> 100 | G185: 100 | H185: 100 | I185: 100 | J185: 100 | K185: 100 | L185: 100 | M185: 100 | N185: 100 | O185: 100 | P185: 100 | Q185: 100 | R185: 100 | S185: 100 | T185: 100 | U185: 100 | V185: 100 | W185: 100 | X185: 100 | Y185: 100 | Z185: 100 | AA185: 100 | AB185: 100 | AC185: 100 | AD185: 100 | AE185: 100 | AF185: 100 | AG185: 100 | AH185: 100
B186: Enter change in quantity | D186: % | F186: 0 | G186: 0 | H186: 0 | I186: 0 | J186: 0 | K186: 0 | L186: 0 | M186: 0 | N186: 0 | O186: 0 | P186: 0 | Q186: 0 | R186: 0 | S186: 0 | T186: 0 | U186: 0 | V186: 0 | W186: 0 | X186: 0 | Y186: 0 | Z186: 0 | AA186: 0 | AB186: 0 | AC186: 0 | AD186: 0 | AE186: 0 | AF186: 0 | AG186: 0 | AH186: 0
B187: Unit revenue
B188: Variability with inflation | D188: % | E188: =IF(E163=2,0,F188/100) -> 1 | F188: 100
B189: Annual unit revenue | D189: ='Assumptions - General'!$E$27 &" per unit" -> R$ per unit | E189: =E184*1000000/E185 -> 500000 | F189: =E189*(1+F190)*IF($E$163=1,($E188*'Assumptions - General'!F$37+1),1) -> 515000 | G189: =F189*(1+G190)*IF($E$163=1,($E188*'Assumptions - General'!G$37+1),1) -> 530450 | H189: =G189*(1+H190)*IF($E$163=1,($E188*'Assumptions - General'!H$37+1),1) -> 546363.5 | I189: =H189*(1+I190)*IF($E$163=1,($E188*'Assumptions - General'!I$37+1),1) -> 562754.405 | J189: =I189*(1+J190)*IF($E$163=1,($E188*'Assumptions - General'!J$37+1),1) -> 579637.0371 | K189: =J189*(1+K190)*IF($E$163=1,($E188*'Assumptions - General'!K$37+1),1) -> 597026.1483 | L189: =K189*(1+L190)*IF($E$163=1,($E188*'Assumptions - General'!L$37+1),1) -> 614936.9327 | M189: =L189*(1+M190)*IF($E$163=1,($E188*'Assumptions - General'!M$37+1),1) -> 633385.0407 | N189: =M189*(1+N190)*IF($E$163=1,($E188*'Assumptions - General'!N$37+1),1) -> 652386.5919 | O189: =N189*(1+O190)*IF($E$163=1,($E188*'Assumptions - General'!O$37+1),1) -> 671958.1897 | P189: =O189*(1+P190)*IF($E$163=1,($E188*'Assumptions - General'!P$37+1),1) -> 692116.9354 | Q189: =P189*(1+Q190)*IF($E$163=1,($E188*'Assumptions - General'!Q$37+1),1) -> 712880.4434 | R189: =Q189*(1+R190)*IF($E$163=1,($E188*'Assumptions - General'!R$37+1),1) -> 734266.8567 | S189: =R189*(1+S190)*IF($E$163=1,($E188*'Assumptions - General'!S$37+1),1) -> 756294.8624 | T189: =S189*(1+T190)*IF($E$163=1,($E188*'Assumptions - General'!T$37+1),1) -> 778983.7083 | U189: =T189*(1+U190)*IF($E$163=1,($E188*'Assumptions - General'!U$37+1),1) -> 802353.2195 | V189: =U189*(1+V190)*IF($E$163=1,($E188*'Assumptions - General'!V$37+1),1) -> 826423.8161 | W189: =V189*(1+W190)*IF($E$163=1,($E188*'Assumptions - General'!W$37+1),1) -> 851216.5306 | X189: =W189*(1+X190)*IF($E$163=1,($E188*'Assumptions - General'!X$37+1),1) -> 876753.0265 | Y189: =X189*(1+Y190)*IF($E$163=1,($E188*'Assumptions - General'!Y$37+1),1) -> 903055.6173 | Z189: =Y189*(1+Z190)*IF($E$163=1,($E188*'Assumptions - General'!Z$37+1),1) -> 930147.2859 | AA189: =Z189*(1+AA190)*IF($E$163=1,($E188*'Assumptions - General'!AA$37+1),1) -> 958051.7044 | AB189: =AA189*(1+AB190)*IF($E$163=1,($E188*'Assumptions - General'!AB$37+1),1) -> 986793.2556 | AC189: =AB189*(1+AC190)*IF($E$163=1,($E188*'Assumptions - General'!AC$37+1),1) -> 1016397.053 | AD189: =AC189*(1+AD190)*IF($E$163=1,($E188*'Assumptions - General'!AD$37+1),1) -> 1046888.965 | AE189: =AD189*(1+AE190)*IF($E$163=1,($E188*'Assumptions - General'!AE$37+1),1) -> 1078295.634 | AF189: =AE189*(1+AF190)*IF($E$163=1,($E188*'Assumptions - General'!AF$37+1),1) -> 1110644.503 | AG189: =AF189*(1+AG190)*IF($E$163=1,($E188*'Assumptions - General'!AG$37+1),1) -> 1143963.838 | AH189: =AG189*(1+AH190)*IF($E$163=1,($E188*'Assumptions - General'!AH$37+1),1) -> 1178282.753
B190: Additional annual change | D190: % | F190: 0 | G190: 0 | H190: 0 | I190: 0 | J190: 0 | K190: 0 | L190: 0 | M190: 0 | N190: 0 | O190: 0 | P190: 0 | Q190: 0 | R190: 0 | S190: 0 | T190: 0 | U190: 0 | V190: 0 | W190: 0 | X190: 0 | Y190: 0 | Z190: 0 | AA190: 0 | AB190: 0 | AC190: 0 | AD190: 0 | AE190: 0 | AF190: 0 | AG190: 0 | AH190: 0
B192: =E165& " - total annual cost in forecast period" -> Tax credit - total annual cost in forecast period | D192: ='Assumptions - General'!$E$27 &" millions" -> R$ millions | E192: =Calculations!E1133 -> 100 | F192: =Calculations!F1133 -> 103 | G192: =Calculations!G1133 -> 106.09 | H192: =Calculations!H1133 -> 109.2727 | I192: =Calculations!I1133 -> 112.550881 | J192: =Calculations!J1133 -> 115.9274074 | K192: =Calculations!K1133 -> 119.4052297 | L192: =Calculations!L1133 -> 122.9873865 | M192: =Calculations!M1133 -> 126.6770081 | N192: =Calculations!N1133 -> 130.4773184 | O192: =Calculations!O1133 -> 134.3916379 | P192: =Calculations!P1133 -> 138.4233871 | Q192: =Calculations!Q1133 -> 142.5760887 | R192: =Calculations!R1133 -> 146.8533713 | S192: =Calculations!S1133 -> 151.2589725 | T192: =Calculations!T1133 -> 155.7967417 | U192: =Calculations!U1133 -> 160.4706439 | V192: =Calculations!V1133 -> 165.2847632 | W192: =Calculations!W1133 -> 170.2433061 | X192: =Calculations!X1133 -> 175.3506053 | Y192: =Calculations!Y1133 -> 180.6111235 | Z192: =Calculations!Z1133 -> 186.0294572 | AA192: =Calculations!AA1133 -> 191.6103409 | AB192: =Calculations!AB1133 -> 197.3586511 | AC192: =Calculations!AC1133 -> 203.2794106 | AD192: =Calculations!AD1133 -> 209.377793 | AE192: =Calculations!AE1133 -> 215.6591268 | AF192: =Calculations!AF1133 -> 222.1289006 | AG192: =Calculations!AG1133 -> 228.7927676 | AH192: =Calculations!AH1133 -> 235.6565506
B193: =E174& " - total annual cost in forecast period" -> Investment income - total annual cost in forecast period | D193: ='Assumptions - General'!$E$27 &" millions" -> R$ millions | E193: =Calculations!E1134 -> 50 | F193: =Calculations!F1134 -> 51.5 | G193: =Calculations!G1134 -> 53.045 | H193: =Calculations!H1134 -> 54.63635 | I193: =Calculations!I1134 -> 56.2754405 | J193: =Calculations!J1134 -> 57.96370371 | K193: =Calculations!K1134 -> 59.70261483 | L193: =Calculations!L1134 -> 61.49369327 | M193: =Calculations!M1134 -> 63.33850407 | N193: =Calculations!N1134 -> 65.23865919 | O193: =Calculations!O1134 -> 67.19581897 | P193: =Calculations!P1134 -> 69.21169354 | Q193: =Calculations!Q1134 -> 71.28804434 | R193: =Calculations!R1134 -> 73.42668567 | S193: =Calculations!S1134 -> 75.62948624 | T193: =Calculations!T1134 -> 77.89837083 | U193: =Calculations!U1134 -> 80.23532195 | V193: =Calculations!V1134 -> 82.64238161 | W193: =Calculations!W1134 -> 85.12165306 | X193: =Calculations!X1134 -> 87.67530265 | Y193: =Calculations!Y1134 -> 90.30556173 | Z193: =Calculations!Z1134 -> 93.01472859 | AA193: =Calculations!AA1134 -> 95.80517044 | AB193: =Calculations!AB1134 -> 98.67932556 | AC193: =Calculations!AC1134 -> 101.6397053 | AD193: =Calculations!AD1134 -> 104.6888965 | AE193: =Calculations!AE1134 -> 107.8295634 | AF193: =Calculations!AF1134 -> 111.0644503 | AG193: =Calculations!AG1134 -> 114.3963838 | AH193: =Calculations!AH1134 -> 117.8282753
B194: =E183& " - total annual cost in forecast period" -> Other - total annual cost in forecast period | D194: ='Assumptions - General'!$E$27 &" millions" -> R$ millions | E194: =Calculations!E1136 -> 50 | F194: =Calculations!F1136 -> 51.5 | G194: =Calculations!G1136 -> 53.045 | H194: =Calculations!H1136 -> 54.63635 | I194: =Calculations!I1136 -> 56.2754405 | J194: =Calculations!J1136 -> 57.96370371 | K194: =Calculations!K1136 -> 59.70261483 | L194: =Calculations!L1136 -> 61.49369327 | M194: =Calculations!M1136 -> 63.33850407 | N194: =Calculations!N1136 -> 65.23865919 | O194: =Calculations!O1136 -> 67.19581897 | P194: =Calculations!P1136 -> 69.21169354 | Q194: =Calculations!Q1136 -> 71.28804434 | R194: =Calculations!R1136 -> 73.42668567 | S194: =Calculations!S1136 -> 75.62948624 | T194: =Calculations!T1136 -> 77.89837083 | U194: =Calculations!U1136 -> 80.23532195 | V194: =Calculations!V1136 -> 82.64238161 | W194: =Calculations!W1136 -> 85.12165306 | X194: =Calculations!X1136 -> 87.67530265 | Y194: =Calculations!Y1136 -> 90.30556173 | Z194: =Calculations!Z1136 -> 93.01472859 | AA194: =Calculations!AA1136 -> 95.80517044 | AB194: =Calculations!AB1136 -> 98.67932556 | AC194: =Calculations!AC1136 -> 101.6397053 | AD194: =Calculations!AD1136 -> 104.6888965 | AE194: =Calculations!AE1136 -> 107.8295634 | AF194: =Calculations!AF1136 -> 111.0644503 | AG194: =Calculations!AG1136 -> 114.3963838 | AH194: =Calculations!AH1136 -> 117.8282753
A195: <<<< Show/hide results
B197: ="Public subsidy assumptions for "&'Assumptions - General'!E26 -> Public subsidy assumptions for Ruritania Railway Infrastructure Company
B199: Operational subsidy | E199: =IF(E200=1,IF(AND(E203=1,SUM(E209:AH209)>0),"WARNING: MANUAL INPUT OF SUBSIDY WITH MODEL CALCULATION",IF(AND(E203=2,SUM(E209:AH209)=0),"WARNING: SUBSIDY MISSING WITH MANUAL ENTRY"," "))," ") ->  | F199: Yes
B200: Is a public subsidy available? | D200: yes/no | E200: =IF(F199=F200,1,2) -> 1 | F200: Yes
F201: No
B202: =IF(E200=1,"Subsidy in first year"," ") -> Subsidy in first year | D202: =IF(E200=1,'Assumptions - General'!$E$27 &" millions"," ") -> R$ millions | E202: 50 | F202: Model
B203: =IF(E200=1,IF(E200=1,"Let model calculate change in subsidy or enter it manually?"," ")," ") -> Let model calculate change in subsidy or enter it manually? | D203: =IF(E200=1,"Select"," ") -> Select | E203: =IF(F202=F203,1,2) -> 1 | F203: Model
F204: Manual entry
B205: =IF(E200=1,IF(E203=1,"If calculated, grow subsidy by inflation rate after year 1?"," ")," ") -> If calculated, grow subsidy by inflation rate after year 1? | D205: =IF(E200=1,IF(E203=1,"yes/no"," ")," ") -> yes/no | E205: =IF(F205=F200,1,2) -> 1 | F205: Yes
B207: =IF(E200=1,IF(E203=1,"If yes, proportion of inflation indexation after year 1"," ")," ") -> If yes, proportion of inflation indexation after year 1 | D207: =IF(E200=1,IF(E203=1,"%"," ")," ") -> % | E207: =F207/100 -> 1 | F207: 100
B208: =IF(E200=1,IF(E203=1,"Enter additional annual change"," ")," ") -> Enter additional annual change | D208: =IF(E200=1,IF(E203=1,"%"," ")," ") -> %
B209: =IF(E200=1,IF(E203=1," ","If entered manually, define annual subsidy")," ") ->  | D209: =IF(E200=1,IF(E203=1," ",'Assumptions - General'!$E$27 &" millions")," ") -> 
B210: Capital subsidy | E210: =IF(E211=1,IF(AND(E215=1,SUM(E221:AH221)>0),"WARNING: MANUAL INPUT OF SUBSIDY WITH MODEL CALCULATION",IF(AND(E215=2,SUM(E221:AH221)=0),"WARNING: SUBSIDY MISSING WITH MANUAL ENTRY"," "))," ") ->  | F210: Yes
B211: Is a public subsidy available? | D211: yes/no | E211: =IF(F210=F211,1,2) -> 1 | F211: Yes
F212: No
B213: =IF(E211=1,"Subsidy in first year"," ") -> Subsidy in first year | D213: =IF(E211=1,'Assumptions - General'!$E$27 &" millions"," ") -> R$ millions | E213: 15
B214: =IF(E211=1,"Amortization of grant in first year", " ") -> Amortization of grant in first year | D214: =D213 -> R$ millions | E214: 2 | F214: Model
B215: =IF(E211=1,IF(E211=1,"Let model calculate change in subsidy or enter it manually?"," ")," ") -> Let model calculate change in subsidy or enter it manually? | D215: =IF(E211=1,"Select"," ") -> Select | E215: =IF(F214=F215,1,2) -> 1 | F215: Model
F216: Manual entry
B217: =IF(E211=1,IF(E215=1,"If calculated, grow subsidy by inflation rate after year 1?"," ")," ") -> If calculated, grow subsidy by inflation rate after year 1? | D217: =IF(E211=1,IF(E215=1,"yes/no"," ")," ") -> yes/no | E217: =IF(F217=F211,1,2) -> 1 | F217: Yes
B219: =IF(E211=1,IF(E215=1,"If yes, proportion of inflation indexation after year 1"," ")," ") -> If yes, proportion of inflation indexation after year 1 | D219: =IF(E211=1,IF(E215=1,"%"," ")," ") -> % | E219: =F219/100 -> 1 | F219: 100
B220: =IF(E211=1,IF(E215=1,"Enter additional annual change"," ")," ") -> Enter additional annual change | D220: =IF(E211=1,IF(E215=1,"%"," ")," ") -> %
B221: =IF(E211=1,IF(E215=1," ","If entered manually, define annual subsidy")," ") ->  | D221: =IF(E211=1,IF(E215=1," ",'Assumptions - General'!$E$27 &" millions")," ") -> 
B223: Infrastructure - operational subsidy in forecast period | D223: ='Assumptions - General'!$E$27 &" millions" -> R$ millions | E223: =Calculations!E1141 -> 50 | F223: =Calculations!F1141 -> 51.5 | G223: =Calculations!G1141 -> 53.045 | H223: =Calculations!H1141 -> 54.63635 | I223: =Calculations!I1141 -> 56.2754405 | J223: =Calculations!J1141 -> 57.96370372 | K223: =Calculations!K1141 -> 59.70261483 | L223: =Calculations!L1141 -> 61.49369327 | M223: =Calculations!M1141 -> 63.33850407 | N223: =Calculations!N1141 -> 65.23865919 | O223: =Calculations!O1141 -> 67.19581897 | P223: =Calculations!P1141 -> 69.21169354 | Q223: =Calculations!Q1141 -> 71.28804434 | R223: =Calculations!R1141 -> 73.42668567 | S223: =Calculations!S1141 -> 75.62948624 | T223: =Calculations!T1141 -> 77.89837083 | U223: =Calculations!U1141 -> 80.23532195 | V223: =Calculations!V1141 -> 82.64238161 | W223: =Calculations!W1141 -> 85.12165306 | X223: =Calculations!X1141 -> 87.67530265 | Y223: =Calculations!Y1141 -> 90.30556173 | Z223: =Calculations!Z1141 -> 93.01472859 | AA223: =Calculations!AA1141 -> 95.80517044 | AB223: =Calculations!AB1141 -> 98.67932556 | AC223: =Calculations!AC1141 -> 101.6397053 | AD223: =Calculations!AD1141 -> 104.6888965 | AE223: =Calculations!AE1141 -> 107.8295634 | AF223: =Calculations!AF1141 -> 111.0644503 | AG223: =Calculations!AG1141 -> 114.3963838 | AH223: =Calculations!AH1141 -> 117.8282753
B224: Infrastructure - capital subsidy in forecast period | D224: ='Assumptions - General'!$E$27 &" millions" -> R$ millions | E224: =Calculations!E1142 -> 15 | F224: =Calculations!F1142 -> 15.45 | G224: =Calculations!G1142 -> 15.9135 | H224: =Calculations!H1142 -> 16.390905 | I224: =Calculations!I1142 -> 16.88263215 | J224: =Calculations!J1142 -> 17.38911111 | K224: =Calculations!K1142 -> 17.91078445 | L224: =Calculations!L1142 -> 18.44810798 | M224: =Calculations!M1142 -> 19.00155122 | N224: =Calculations!N1142 -> 19.57159776 | O224: =Calculations!O1142 -> 20.15874569 | P224: =Calculations!P1142 -> 20.76350806 | Q224: =Calculations!Q1142 -> 21.3864133 | R224: =Calculations!R1142 -> 22.0280057 | S224: =Calculations!S1142 -> 22.68884587 | T224: =Calculations!T1142 -> 23.36951125 | U224: =Calculations!U1142 -> 24.07059659 | V224: =Calculations!V1142 -> 24.79271448 | W224: =Calculations!W1142 -> 25.53649592 | X224: =Calculations!X1142 -> 26.3025908 | Y224: =Calculations!Y1142 -> 27.09166852 | Z224: =Calculations!Z1142 -> 27.90441858 | AA224: =Calculations!AA1142 -> 28.74155113 | AB224: =Calculations!AB1142 -> 29.60379767 | AC224: =Calculations!AC1142 -> 30.4919116 | AD224: =Calculations!AD1142 -> 31.40666894 | AE224: =Calculations!AE1142 -> 32.34886901 | AF224: =Calculations!AF1142 -> 33.31933508 | AG224: =Calculations!AG1142 -> 34.31891514 | AH224: =Calculations!AH1142 -> 35.34848259
B225: Infrastructure - amortization of capital subsidy in forecast period | D225: ='Assumptions - General'!$E$27 &" millions" -> R$ millions | E225: =Calculations!E1143 -> 2 | F225: =Calculations!F1143 -> 2.012757499 | G225: =Calculations!G1143 -> 3.849847511 | H225: =Calculations!H1143 -> 4.566584211 | I225: =Calculations!I1143 -> 5.28388094 | J225: =Calculations!J1143 -> 6.016753361 | K225: =Calculations!K1143 -> 6.769729175 | L225: =Calculations!L1143 -> 7.544974675 | M225: =Calculations!M1143 -> 8.343890521 | N225: =Calculations!N1143 -> 9.157932588 | O225: =Calculations!O1143 -> 10.00620695 | P225: =Calculations!P1143 -> 10.88871765 | Q225: =Calculations!Q1143 -> 11.63875181 | R225: =Calculations!R1143 -> 12.18283212 | S225: =Calculations!S1143 -> 13.10563434 | T225: =Calculations!T1143 -> 13.5253678 | U225: =Calculations!U1143 -> 14.54971723 | V225: =Calculations!V1143 -> 15.60520367 | W225: =Calculations!W1143 -> 16.69271108 | X225: =Calculations!X1143 -> 17.81316024 | Y225: =Calculations!Y1143 -> 18.96750732 | Z225: =Calculations!Z1143 -> 20.156743 | AA225: =Calculations!AA1143 -> 21.38189223 | AB225: =Calculations!AB1143 -> 22.64401426 | AC225: =Calculations!AC1143 -> 23.94420289 | AD225: =Calculations!AD1143 -> 25.283587 | AE225: =Calculations!AE1143 -> 26.66333113 | AF225: =Calculations!AF1143 -> 28.08463621 | AG225: =Calculations!AG1143 -> 29.36765288 | AH225: =Calculations!AH1143 -> 25.79047336
A226: <<<< Show/hide results
B228: ="Operating costs of " &'Assumptions - General'!$E$26 -> Operating costs of Ruritania Railway Infrastructure Company
F229: Yes
B230: Grow operating costs by inflation in forecast period? | D230: yes/no | E230: =IF(F229=F230,1,2) -> 1 | F230: Yes
F231: No
B232: Scenario analysis enabled (yes=1, no=2)? | D232: =IF('Scenarios - Consolidated'!$F$3=1,1,'Scenarios - Infra'!F3) -> 2
B233: Staff multiplier from scenario analysis | D233: =IF(AND('Scenarios - Consolidated'!$F$3=1,'Scenarios - Consolidated'!$H$20=1),'Scenarios - Consolidated'!$H$25,'Scenarios - Infra'!H25) -> 1
B234: <<<< Show/hide scenario analysis
B236: Staff
B237: Total cost in first year | D237: ='Assumptions - General'!$E$27 &" millions" -> R$ millions | E237: 1000
B238: Staff count (physical cost driver)
B239: Variability with staff cost | D239: % | E239: =F239/100 -> 1 | F239: 100
B240: Annual staff count in cost calculation | D240: Staff count | E240: =IF(D232=1,E14*D233,E14) -> 15000 | F240: =IF($E$240<>0,IF(OR(Calculations!F$19=1,Calculations!F$20=1),E240*(1+(F14/E14-1)*$E$239),0),0) -> 16000 | G240: =IF($E$240<>0,IF(OR(Calculations!G$19=1,Calculations!G$20=1),F240*(1+(G14/F14-1)*$E$239),0),0) -> 17000 | H240: =IF($E$240<>0,IF(OR(Calculations!H$19=1,Calculations!H$20=1),G240*(1+(H14/G14-1)*$E$239),0),0) -> 18000 | I240: =IF($E$240<>0,IF(OR(Calculations!I$19=1,Calculations!I$20=1),H240*(1+(I14/H14-1)*$E$239),0),0) -> 20000 | J240: =IF($E$240<>0,IF(OR(Calculations!J$19=1,Calculations!J$20=1),I240*(1+(J14/I14-1)*$E$239),0),0) -> 20000 | K240: =IF($E$240<>0,IF(OR(Calculations!K$19=1,Calculations!K$20=1),J240*(1+(K14/J14-1)*$E$239),0),0) -> 20000 | L240: =IF($E$240<>0,IF(OR(Calculations!L$19=1,Calculations!L$20=1),K240*(1+(L14/K14-1)*$E$239),0),0) -> 20000 | M240: =IF($E$240<>0,IF(OR(Calculations!M$19=1,Calculations!M$20=1),L240*(1+(M14/L14-1)*$E$239),0),0) -> 20000 | N240: =IF($E$240<>0,IF(OR(Calculations!N$19=1,Calculations!N$20=1),M240*(1+(N14/M14-1)*$E$239),0),0) -> 20000 | O240: =IF($E$240<>0,IF(OR(Calculations!O$19=1,Calculations!O$20=1),N240*(1+(O14/N14-1)*$E$239),0),0) -> 20000 | P240: =IF($E$240<>0,IF(OR(Calculations!P$19=1,Calculations!P$20=1),O240*(1+(P14/O14-1)*$E$239),0),0) -> 20000 | Q240: =IF($E$240<>0,IF(OR(Calculations!Q$19=1,Calculations!Q$20=1),P240*(1+(Q14/P14-1)*$E$239),0),0) -> 20000 | R240: =IF($E$240<>0,IF(OR(Calculations!R$19=1,Calculations!R$20=1),Q240*(1+(R14/Q14-1)*$E$239),0),0) -> 20000 | S240: =IF($E$240<>0,IF(OR(Calculations!S$19=1,Calculations!S$20=1),R240*(1+(S14/R14-1)*$E$239),0),0) -> 20000 | T240: =IF($E$240<>0,IF(OR(Calculations!T$19=1,Calculations!T$20=1),S240*(1+(T14/S14-1)*$E$239),0),0) -> 20000 | U240: =IF($E$240<>0,IF(OR(Calculations!U$19=1,Calculations!U$20=1),T240*(1+(U14/T14-1)*$E$239),0),0) -> 20000 | V240: =IF($E$240<>0,IF(OR(Calculations!V$19=1,Calculations!V$20=1),U240*(1+(V14/U14-1)*$E$239),0),0) -> 20000 | W240: =IF($E$240<>0,IF(OR(Calculations!W$19=1,Calculations!W$20=1),V240*(1+(W14/V14-1)*$E$239),0),0) -> 20000 | X240: =IF($E$240<>0,IF(OR(Calculations!X$19=1,Calculations!X$20=1),W240*(1+(X14/W14-1)*$E$239),0),0) -> 20000 | Y240: =IF($E$240<>0,IF(OR(Calculations!Y$19=1,Calculations!Y$20=1),X240*(1+(Y14/X14-1)*$E$239),0),0) -> 20000 | Z240: =IF($E$240<>0,IF(OR(Calculations!Z$19=1,Calculations!Z$20=1),Y240*(1+(Z14/Y14-1)*$E$239),0),0) -> 20000 | AA240: =IF($E$240<>0,IF(OR(Calculations!AA$19=1,Calculations!AA$20=1),Z240*(1+(AA14/Z14-1)*$E$239),0),0) -> 20000 | AB240: =IF($E$240<>0,IF(OR(Calculations!AB$19=1,Calculations!AB$20=1),AA240*(1+(AB14/AA14-1)*$E$239),0),0) -> 20000 | AC240: =IF($E$240<>0,IF(OR(Calculations!AC$19=1,Calculations!AC$20=1),AB240*(1+(AC14/AB14-1)*$E$239),0),0) -> 20000 | AD240: =IF($E$240<>0,IF(OR(Calculations!AD$19=1,Calculations!AD$20=1),AC240*(1+(AD14/AC14-1)*$E$239),0),0) -> 20000 | AE240: =IF($E$240<>0,IF(OR(Calculations!AE$19=1,Calculations!AE$20=1),AD240*(1+(AE14/AD14-1)*$E$239),0),0) -> 20000 | AF240: =IF($E$240<>0,IF(OR(Calculations!AF$19=1,Calculations!AF$20=1),AE240*(1+(AF14/AE14-1)*$E$239),0),0) -> 20000 | AG240: =IF($E$240<>0,IF(OR(Calculations!AG$19=1,Calculations!AG$20=1),AF240*(1+(AG14/AF14-1)*$E$239),0),0) -> 20000 | AH240: =IF($E$240<>0,IF(OR(Calculations!AH$19=1,Calculations!AH$20=1),AG240*(1+(AH14/AG14-1)*$E$239),0),0) -> 20000
B241: Cost of staff member
B242: Variability with inflation | D242: % | E242: =IF(E230=2,0,F242/100) -> 1 | F242: 100
B243: Staff member cost | D243: ='Assumptions - General'!$E$27&" per staff member" -> R$ per staff member | E243: =IF(E237>0,(E237/E14)*1000000,0) -> 66666.66667 | F243: =E243*(1+F244)*IF($E$230=1,($E242*'Assumptions - General'!F37+1),1) -> 68666.66667 | G243: =F243*(1+G244)*IF($E$230=1,($E242*'Assumptions - General'!G37+1),1) -> 70726.66667 | H243: =G243*(1+H244)*IF($E$230=1,($E242*'Assumptions - General'!H37+1),1) -> 72848.46667 | I243: =H243*(1+I244)*IF($E$230=1,($E242*'Assumptions - General'!I37+1),1) -> 75033.92067 | J243: =I243*(1+J244)*IF($E$230=1,($E242*'Assumptions - General'!J37+1),1) -> 77284.93829 | K243: =J243*(1+K244)*IF($E$230=1,($E242*'Assumptions - General'!K37+1),1) -> 79603.48644 | L243: =K243*(1+L244)*IF($E$230=1,($E242*'Assumptions - General'!L37+1),1) -> 81991.59103 | M243: =L243*(1+M244)*IF($E$230=1,($E242*'Assumptions - General'!M37+1),1) -> 84451.33876 | N243: =M243*(1+N244)*IF($E$230=1,($E242*'Assumptions - General'!N37+1),1) -> 86984.87892 | O243: =N243*(1+O244)*IF($E$230=1,($E242*'Assumptions - General'!O37+1),1) -> 89594.42529 | P243: =O243*(1+P244)*IF($E$230=1,($E242*'Assumptions - General'!P37+1),1) -> 92282.25805 | Q243: =P243*(1+Q244)*IF($E$230=1,($E242*'Assumptions - General'!Q37+1),1) -> 95050.72579 | R243: =Q243*(1+R244)*IF($E$230=1,($E242*'Assumptions - General'!R37+1),1) -> 97902.24756 | S243: =R243*(1+S244)*IF($E$230=1,($E242*'Assumptions - General'!S37+1),1) -> 100839.315 | T243: =S243*(1+T244)*IF($E$230=1,($E242*'Assumptions - General'!T37+1),1) -> 103864.4944 | U243: =T243*(1+U244)*IF($E$230=1,($E242*'Assumptions - General'!U37+1),1) -> 106980.4293 | V243: =U243*(1+V244)*IF($E$230=1,($E242*'Assumptions - General'!V37+1),1) -> 110189.8422 | W243: =V243*(1+W244)*IF($E$230=1,($E242*'Assumptions - General'!W37+1),1) -> 113495.5374 | X243: =W243*(1+X244)*IF($E$230=1,($E242*'Assumptions - General'!X37+1),1) -> 116900.4035 | Y243: =X243*(1+Y244)*IF($E$230=1,($E242*'Assumptions - General'!Y37+1),1) -> 120407.4156 | Z243: =Y243*(1+Z244)*IF($E$230=1,($E242*'Assumptions - General'!Z37+1),1) -> 124019.6381 | AA243: =Z243*(1+AA244)*IF($E$230=1,($E242*'Assumptions - General'!AA37+1),1) -> 127740.2273 | AB243: =AA243*(1+AB244)*IF($E$230=1,($E242*'Assumptions - General'!AB37+1),1) -> 131572.4341 | AC243: =AB243*(1+AC244)*IF($E$230=1,($E242*'Assumptions - General'!AC37+1),1) -> 135519.6071 | AD243: =AC243*(1+AD244)*IF($E$230=1,($E242*'Assumptions - General'!AD37+1),1) -> 139585.1953 | AE243: =AD243*(1+AE244)*IF($E$230=1,($E242*'Assumptions - General'!AE37+1),1) -> 143772.7512 | AF243: =AE243*(1+AF244)*IF($E$230=1,($E242*'Assumptions - General'!AF37+1),1) -> 148085.9337 | AG243: =AF243*(1+AG244)*IF($E$230=1,($E242*'Assumptions - General'!AG37+1),1) -> 152528.5117 | AH243: =AG243*(1+AH244)*IF($E$230=1,($E242*'Assumptions - General'!AH37+1),1) -> 157104.3671
B244: Additional annual change | D244: % | F244: 0 | G244: 0 | H244: 0 | I244: 0 | J244: 0 | K244: 0 | L244: 0 | M244: 0 | N244: 0 | O244: 0 | P244: 0 | Q244: 0 | R244: 0 | S244: 0 | T244: 0 | U244: 0 | V244: 0 | W244: 0 | X244: 0 | Y244: 0 | Z244: 0 | AA244: 0 | AB244: 0 | AC244: 0 | AD244: 0 | AE244: 0 | AF244: 0 | AG244: 0 | AH244: 0
B246: Materials
B247: Total cost in first year | D247: ='Assumptions - General'!$E$27 &" millions" -> R$ millions | E247: 500
B248: GTK (physical cost driver)
B249: Variability with materials cost | D249: % | E249: =F249/100 -> 1 | F249: 100
... 216 more rows

Sheet Assumptions - Consolidated (hidden)
B1: INPUTS
B2: ='Assumptions - General'!E23 -> Ruritania Railways
B3: ="All units in " &'Assumptions - General'!E27& " millions unless otherwise stated" -> All units in R$ millions unless otherwise stated
B4: Year | E4: 1 | F4: 2 | G4: 3 | H4: 4 | I4: 5 | J4: 6 | K4: 7 | L4: 8 | M4: 9 | N4: 10 | O4: 11 | P4: 12 | Q4: 13 | R4: 14 | S4: 15 | T4: 16 | U4: 17 | V4: 18 | W4: 19 | X4: 20 | Y4: 21 | Z4: 22 | AA4: 23 | AB4: 24 | AC4: 25 | AD4: 26 | AE4: 27 | AF4: 28 | AG4: 29 | AH4: 30
B5: Period from | E5: ='Assumptions - General'!$E$28 -> 2010-01-01 | F5: =E6+1 -> 2011-01-01 | G5: 2012-01-01 | H5: 2013-01-01 | I5: 2014-01-01 | J5: 2015-01-01 | K5: 2016-01-01 | L5: 2017-01-01 | M5: 2018-01-01 | N5: 2019-01-01 | O5: 2020-01-01 | P5: 2021-01-01 | Q5: 2022-01-01 | R5: 2023-01-01 | S5: 2024-01-01 | T5: 2025-01-01 | U5: 2026-01-01 | V5: 2027-01-01 | W5: 2028-01-01 | X5: 2029-01-01 | Y5: 2030-01-01 | Z5: 2031-01-01 | AA5: 2032-01-01 | AB5: 2033-01-01 | AC5: 2034-01-01 | AD5: 2035-01-01 | AE5: 2036-01-01 | AF5: 2037-01-01 | AG5: 2038-01-01 | AH5: 2039-01-01
B6: Period to | E6: =DATE(YEAR(E5)+1, MONTH(E5), DAY(E5)-1) -> 2010-12-31 | F6: 2011-12-31 | G6: 2012-12-31 | H6: 2013-12-31 | I6: 2014-12-31 | J6: 2015-12-31 | K6: 2016-12-31 | L6: 2017-12-31 | M6: 2018-12-31 | N6: 2019-12-31 | O6: 2020-12-31 | P6: 2021-12-31 | Q6: 2022-12-31 | R6: 2023-12-31 | S6: 2024-12-31 | T6: 2025-12-31 | U6: 2026-12-31 | V6: 2027-12-31 | W6: 2028-12-31 | X6: 2029-12-31 | Y6: 2030-12-31 | Z6: 2031-12-31 | AA6: 2032-12-31 | AB6: 2033-12-31 | AC6: 2034-12-31 | AD6: 2035-12-31 | AE6: 2036-12-31 | AF6: 2037-12-31 | AG6: 2038-12-31 | AH6: 2039-12-31
C8: Color indicates assumptions to be entered | E8: =IF('Scenarios - Consolidated'!F3=1,"NOTE: SCENARIO ANALYSIS ASSUMPTIONS IN USE"," ") ->  | F8: 1
C9: Color indicates historical data to be entered
B11: ="Network and operational assumptions for "&'Assumptions - General'!E23 -> Network and operational assumptions for Ruritania Railways | E11: =IF(AND('Scenarios - Consolidated'!$F$3=1,'Scenarios - Consolidated'!$H$20=1),"NOTE: SCENARIO ANALYSIS STAFF ASSUMPTIONS IN USE"," ") -> 
B13: Length of network in use | D13: Track-km | E13: ='Assumptions - Freight'!E13 -> 15000 | F13: ='Assumptions - Freight'!F13 -> 15000 | G13: ='Assumptions - Freight'!G13 -> 15000 | H13: ='Assumptions - Freight'!H13 -> 15000 | I13: ='Assumptions - Freight'!I13 -> 15000 | J13: ='Assumptions - Freight'!J13 -> 15000 | K13: ='Assumptions - Freight'!K13 -> 15000 | L13: ='Assumptions - Freight'!L13 -> 15000 | M13: ='Assumptions - Freight'!M13 -> 15000 | N13: ='Assumptions - Freight'!N13 -> 15000 | O13: ='Assumptions - Freight'!O13 -> 15000 | P13: ='Assumptions - Freight'!P13 -> 15000 | Q13: ='Assumptions - Freight'!Q13 -> 15000 | R13: ='Assumptions - Freight'!R13 -> 15000 | S13: ='Assumptions - Freight'!S13 -> 15000 | T13: ='Assumptions - Freight'!T13 -> 15000 | U13: ='Assumptions - Freight'!U13 -> 15000 | V13: ='Assumptions - Freight'!V13 -> 15000 | W13: ='Assumptions - Freight'!W13 -> 15000 | X13: ='Assumptions - Freight'!X13 -> 15000 | Y13: ='Assumptions - Freight'!Y13 -> 15000 | Z13: ='Assumptions - Freight'!Z13 -> 15000 | AA13: ='Assumptions - Freight'!AA13 -> 15000 | AB13: ='Assumptions - Freight'!AB13 -> 15000 | AC13: ='Assumptions - Freight'!AC13 -> 15000 | AD13: ='Assumptions - Freight'!AD13 -> 15000 | AE13: ='Assumptions - Freight'!AE13 -> 15000 | AF13: ='Assumptions - Freight'!AF13 -> 15000 | AG13: ='Assumptions - Freight'!AG13 -> 15000 | AH13: ='Assumptions - Freight'!AH13 -> 15000
B14: ="Additional staff of "&'Assumptions - General'!E24 -> Additional staff of Ruritania Freight Rail Company | D14: Staff count in HQ | E14: 500 | F14: 500 | G14: 500 | H14: 500 | I14: 500 | J14: 500 | K14: 500 | L14: 500 | M14: 500 | N14: 500 | O14: 500 | P14: 500 | Q14: 500 | R14: 500 | S14: 500 | T14: 500 | U14: 500 | V14: 500 | W14: 500 | X14: 500 | Y14: 500 | Z14: 500 | AA14: 500 | AB14: 500 | AC14: 500 | AD14: 500 | AE14: 500 | AF14: 500 | AG14: 500 | AH14: 500
B15: ="Additional staff of "&'Assumptions - General'!E25 -> Additional staff of Ruritania Passenger Rail Company | D15: Staff count in HQ | E15: 500 | F15: 500 | G15: 500 | H15: 500 | I15: 500 | J15: 500 | K15: 500 | L15: 500 | M15: 500 | N15: 500 | O15: 500 | P15: 500 | Q15: 500 | R15: 500 | S15: 500 | T15: 500 | U15: 500 | V15: 500 | W15: 500 | X15: 500 | Y15: 500 | Z15: 500 | AA15: 500 | AB15: 500 | AC15: 500 | AD15: 500 | AE15: 500 | AF15: 500 | AG15: 500 | AH15: 500
B16: ="Additional staff of "&'Assumptions - General'!E26 -> Additional staff of Ruritania Railway Infrastructure Company | D16: Staff count in HQ | E16: 500 | F16: 500 | G16: 500 | H16: 500 | I16: 500 | J16: 500 | K16: 500 | L16: 500 | M16: 500 | N16: 500 | O16: 500 | P16: 500 | Q16: 500 | R16: 500 | S16: 500 | T16: 500 | U16: 500 | V16: 500 | W16: 500 | X16: 500 | Y16: 500 | Z16: 500 | AA16: 500 | AB16: 500 | AC16: 500 | AD16: 500 | AE16: 500 | AF16: 500 | AG16: 500 | AH16: 500
B17: ="Total other staff of "&'Assumptions - General'!E23 -> Total other staff of Ruritania Railways | D17: Staff count | E17: ='Assumptions - Freight'!E305+'Assumptions - Passenger'!E254+'Assumptions - Infrastructure'!E240 -> 45000 | F17: ='Assumptions - Freight'!F305+'Assumptions - Passenger'!F254+'Assumptions - Infrastructure'!F240 -> 46000 | G17: ='Assumptions - Freight'!G305+'Assumptions - Passenger'!G254+'Assumptions - Infrastructure'!G240 -> 47000 | H17: ='Assumptions - Freight'!H305+'Assumptions - Passenger'!H254+'Assumptions - Infrastructure'!H240 -> 51000 | I17: ='Assumptions - Freight'!I305+'Assumptions - Passenger'!I254+'Assumptions - Infrastructure'!I240 -> 55000 | J17: ='Assumptions - Freight'!J305+'Assumptions - Passenger'!J254+'Assumptions - Infrastructure'!J240 -> 55000 | K17: ='Assumptions - Freight'!K305+'Assumptions - Passenger'!K254+'Assumptions - Infrastructure'!K240 -> 55000 | L17: ='Assumptions - Freight'!L305+'Assumptions - Passenger'!L254+'Assumptions - Infrastructure'!L240 -> 55000 | M17: ='Assumptions - Freight'!M305+'Assumptions - Passenger'!M254+'Assumptions - Infrastructure'!M240 -> 55000 | N17: ='Assumptions - Freight'!N305+'Assumptions - Passenger'!N254+'Assumptions - Infrastructure'!N240 -> 55000 | O17: ='Assumptions - Freight'!O305+'Assumptions - Passenger'!O254+'Assumptions - Infrastructure'!O240 -> 55000 | P17: ='Assumptions - Freight'!P305+'Assumptions - Passenger'!P254+'Assumptions - Infrastructure'!P240 -> 55000 | Q17: ='Assumptions - Freight'!Q305+'Assumptions - Passenger'!Q254+'Assumptions - Infrastructure'!Q240 -> 55000 | R17: ='Assumptions - Freight'!R305+'Assumptions - Passenger'!R254+'Assumptions - Infrastructure'!R240 -> 55000 | S17: ='Assumptions - Freight'!S305+'Assumptions - Passenger'!S254+'Assumptions - Infrastructure'!S240 -> 55000 | T17: ='Assumptions - Freight'!T305+'Assumptions - Passenger'!T254+'Assumptions - Infrastructure'!T240 -> 55000 | U17: ='Assumptions - Freight'!U305+'Assumptions - Passenger'!U254+'Assumptions - Infrastructure'!U240 -> 55000 | V17: ='Assumptions - Freight'!V305+'Assumptions - Passenger'!V254+'Assumptions - Infrastructure'!V240 -> 55000 | W17: ='Assumptions - Freight'!W305+'Assumptions - Passenger'!W254+'Assumptions - Infrastructure'!W240 -> 55000 | X17: ='Assumptions - Freight'!X305+'Assumptions - Passenger'!X254+'Assumptions - Infrastructure'!X240 -> 55000 | Y17: ='Assumptions - Freight'!Y305+'Assumptions - Passenger'!Y254+'Assumptions - Infrastructure'!Y240 -> 55000 | Z17: ='Assumptions - Freight'!Z305+'Assumptions - Passenger'!Z254+'Assumptions - Infrastructure'!Z240 -> 55000 | AA17: ='Assumptions - Freight'!AA305+'Assumptions - Passenger'!AA254+'Assumptions - Infrastructure'!AA240 -> 55000 | AB17: ='Assumptions - Freight'!AB305+'Assumptions - Passenger'!AB254+'Assumptions - Infrastructure'!AB240 -> 55000 | AC17: ='Assumptions - Freight'!AC305+'Assumptions - Passenger'!AC254+'Assumptions - Infrastructure'!AC240 -> 55000 | AD17: ='Assumptions - Freight'!AD305+'Assumptions - Passenger'!AD254+'Assumptions - Infrastructure'!AD240 -> 55000 | AE17: ='Assumptions - Freight'!AE305+'Assumptions - Passenger'!AE254+'Assumptions - Infrastructure'!AE240 -> 55000 | AF17: ='Assumptions - Freight'!AF305+'Assumptions - Passenger'!AF254+'Assumptions - Infrastructure'!AF240 -> 55000 | AG17: ='Assumptions - Freight'!AG305+'Assumptions - Passenger'!AG254+'Assumptions - Infrastructure'!AG240 -> 55000 | AH17: ='Assumptions - Freight'!AH305+'Assumptions - Passenger'!AH254+'Assumptions - Infrastructure'!AH240 -> 55000
B18: Operational benchmark | D18: Text | E18: EU railways
B19: Traffic units (millions) per staff | D19: Ratio | E19: 1
B20: Traffic units (millions) per track-km | D20: Ratio | E20: 1
B21: Staff per track-km | D21: Ratio | E21: 1
B23: ="Additional operating costs of " &'Assumptions - General'!$E$23 -> Additional operating costs of Ruritania Railways
B25: Grow operating costs by inflation in forecast period? | D25: yes/no | E25: 1 | F25: Yes
F26: No
B27: Scenario analysis enabled (yes=1, no=2)? | D27: ='Scenarios - Consolidated'!$F$3 -> 2
B28: Staff multiplier from scenario analysis | D28: =IF(AND('Scenarios - Consolidated'!$F$3=1,'Scenarios - Consolidated'!$H$20=1),'Scenarios - Consolidated'!$H$25,1) -> 1
B29: <<<< Show/hide scenario analysis
B31: Additional staff
B32: Total cost in first year | D32: ='Assumptions - General'!$E$27 &" millions" -> R$ millions | E32: 100
B33: Staff count (physical cost driver)
B34: Variability with staff cost | D34: % | E34: =F34/100 -> 1 | F34: 100
B35: Annual staff count | D35: Staff count | E35: =IF(D27=1,(E14+E15+E16)*D28,E14+E15+E16) -> 1500 | F35: =IF(Calculations!F$21=1,E35*(1+((F14+F15+F16)/(E14+E15+E16)-1)*$E$34)," ") -> 1500 | G35: =IF(Calculations!G$21=1,F35*(1+((G14+G15+G16)/(F14+F15+F16)-1)*$E$34)," ") -> 1500 | H35: =IF(Calculations!H$21=1,G35*(1+((H14+H15+H16)/(G14+G15+G16)-1)*$E$34)," ") -> 1500 | I35: =IF(Calculations!I$21=1,H35*(1+((I14+I15+I16)/(H14+H15+H16)-1)*$E$34)," ") -> 1500 | J35: =IF(Calculations!J$21=1,I35*(1+((J14+J15+J16)/(I14+I15+I16)-1)*$E$34)," ") -> 1500 | K35: =IF(Calculations!K$21=1,J35*(1+((K14+K15+K16)/(J14+J15+J16)-1)*$E$34)," ") -> 1500 | L35: =IF(Calculations!L$21=1,K35*(1+((L14+L15+L16)/(K14+K15+K16)-1)*$E$34)," ") -> 1500 | M35: =IF(Calculations!M$21=1,L35*(1+((M14+M15+M16)/(L14+L15+L16)-1)*$E$34)," ") -> 1500 | N35: =IF(Calculations!N$21=1,M35*(1+((N14+N15+N16)/(M14+M15+M16)-1)*$E$34)," ") -> 1500 | O35: =IF(Calculations!O$21=1,N35*(1+((O14+O15+O16)/(N14+N15+N16)-1)*$E$34)," ") -> 1500 | P35: =IF(Calculations!P$21=1,O35*(1+((P14+P15+P16)/(O14+O15+O16)-1)*$E$34)," ") -> 1500 | Q35: =IF(Calculations!Q$21=1,P35*(1+((Q14+Q15+Q16)/(P14+P15+P16)-1)*$E$34)," ") -> 1500 | R35: =IF(Calculations!R$21=1,Q35*(1+((R14+R15+R16)/(Q14+Q15+Q16)-1)*$E$34)," ") -> 1500 | S35: =IF(Calculations!S$21=1,R35*(1+((S14+S15+S16)/(R14+R15+R16)-1)*$E$34)," ") -> 1500 | T35: =IF(Calculations!T$21=1,S35*(1+((T14+T15+T16)/(S14+S15+S16)-1)*$E$34)," ") -> 1500 | U35: =IF(Calculations!U$21=1,T35*(1+((U14+U15+U16)/(T14+T15+T16)-1)*$E$34)," ") -> 1500 | V35: =IF(Calculations!V$21=1,U35*(1+((V14+V15+V16)/(U14+U15+U16)-1)*$E$34)," ") -> 1500 | W35: =IF(Calculations!W$21=1,V35*(1+((W14+W15+W16)/(V14+V15+V16)-1)*$E$34)," ") -> 1500 | X35: =IF(Calculations!X$21=1,W35*(1+((X14+X15+X16)/(W14+W15+W16)-1)*$E$34)," ") -> 1500 | Y35: =IF(Calculations!Y$21=1,X35*(1+((Y14+Y15+Y16)/(X14+X15+X16)-1)*$E$34)," ") -> 1500 | Z35: =IF(Calculations!Z$21=1,Y35*(1+((Z14+Z15+Z16)/(Y14+Y15+Y16)-1)*$E$34)," ") -> 1500 | AA35: =IF(Calculations!AA$21=1,Z35*(1+((AA14+AA15+AA16)/(Z14+Z15+Z16)-1)*$E$34)," ") -> 1500 | AB35: =IF(Calculations!AB$21=1,AA35*(1+((AB14+AB15+AB16)/(AA14+AA15+AA16)-1)*$E$34)," ") -> 1500 | AC35: =IF(Calculations!AC$21=1,AB35*(1+((AC14+AC15+AC16)/(AB14+AB15+AB16)-1)*$E$34)," ") -> 1500 | AD35: =IF(Calculations!AD$21=1,AC35*(1+((AD14+AD15+AD16)/(AC14+AC15+AC16)-1)*$E$34)," ") -> 1500 | AE35: =IF(Calculations!AE$21=1,AD35*(1+((AE14+AE15+AE16)/(AD14+AD15+AD16)-1)*$E$34)," ") -> 1500 | AF35: =IF(Calculations!AF$21=1,AE35*(1+((AF14+AF15+AF16)/(AE14+AE15+AE16)-1)*$E$34)," ") -> 1500 | AG35: =IF(Calculations!AG$21=1,AF35*(1+((AG14+AG15+AG16)/(AF14+AF15+AF16)-1)*$E$34)," ") -> 1500 | AH35: =IF(Calculations!AH$21=1,AG35*(1+((AH14+AH15+AH16)/(AG14+AG15+AG16)-1)*$E$34)," ") -> 1500
B36: Cost of staff member
B37: Variability with inflation | D37: % | E37: =IF(E25=2,0,F37/100) -> 1 | F37: 100
B38: Staff member cost | D38: ='Assumptions - General'!$E$27&" per staff member" -> R$ per staff member | E38: =IF(E32>0,(E32/(E14+E15+E16))*1000000,0) -> 66666.66667 | F38: =E38*(1+F39)*IF($E$25=1,($E37*'Assumptions - General'!F37+1),1) -> 68666.66667 | G38: =F38*(1+G39)*IF($E$25=1,($E37*'Assumptions - General'!G37+1),1) -> 70726.66667 | H38: =G38*(1+H39)*IF($E$25=1,($E37*'Assumptions - General'!H37+1),1) -> 72848.46667 | I38: =H38*(1+I39)*IF($E$25=1,($E37*'Assumptions - General'!I37+1),1) -> 75033.92067 | J38: =I38*(1+J39)*IF($E$25=1,($E37*'Assumptions - General'!J37+1),1) -> 77284.93829 | K38: =J38*(1+K39)*IF($E$25=1,($E37*'Assumptions - General'!K37+1),1) -> 79603.48644 | L38: =K38*(1+L39)*IF($E$25=1,($E37*'Assumptions - General'!L37+1),1) -> 81991.59103 | M38: =L38*(1+M39)*IF($E$25=1,($E37*'Assumptions - General'!M37+1),1) -> 84451.33876 | N38: =M38*(1+N39)*IF($E$25=1,($E37*'Assumptions - General'!N37+1),1) -> 86984.87892 | O38: =N38*(1+O39)*IF($E$25=1,($E37*'Assumptions - General'!O37+1),1) -> 89594.42529 | P38: =O38*(1+P39)*IF($E$25=1,($E37*'Assumptions - General'!P37+1),1) -> 92282.25805 | Q38: =P38*(1+Q39)*IF($E$25=1,($E37*'Assumptions - General'!Q37+1),1) -> 95050.72579 | R38: =Q38*(1+R39)*IF($E$25=1,($E37*'Assumptions - General'!R37+1),1) -> 97902.24756 | S38: =R38*(1+S39)*IF($E$25=1,($E37*'Assumptions - General'!S37+1),1) -> 100839.315 | T38: =S38*(1+T39)*IF($E$25=1,($E37*'Assumptions - General'!T37+1),1) -> 103864.4944 | U38: =T38*(1+U39)*IF($E$25=1,($E37*'Assumptions - General'!U37+1),1) -> 106980.4293 | V38: =U38*(1+V39)*IF($E$25=1,($E37*'Assumptions - General'!V37+1),1) -> 110189.8422 | W38: =V38*(1+W39)*IF($E$25=1,($E37*'Assumptions - General'!W37+1),1) -> 113495.5374 | X38: =W38*(1+X39)*IF($E$25=1,($E37*'Assumptions - General'!X37+1),1) -> 116900.4035 | Y38: =X38*(1+Y39)*IF($E$25=1,($E37*'Assumptions - General'!Y37+1),1) -> 120407.4156 | Z38: =Y38*(1+Z39)*IF($E$25=1,($E37*'Assumptions - General'!Z37+1),1) -> 124019.6381 | AA38: =Z38*(1+AA39)*IF($E$25=1,($E37*'Assumptions - General'!AA37+1),1) -> 127740.2273 | AB38: =AA38*(1+AB39)*IF($E$25=1,($E37*'Assumptions - General'!AB37+1),1) -> 131572.4341 | AC38: =AB38*(1+AC39)*IF($E$25=1,($E37*'Assumptions - General'!AC37+1),1) -> 135519.6071 | AD38: =AC38*(1+AD39)*IF($E$25=1,($E37*'Assumptions - General'!AD37+1),1) -> 139585.1953 | AE38: =AD38*(1+AE39)*IF($E$25=1,($E37*'Assumptions - General'!AE37+1),1) -> 143772.7512 | AF38: =AE38*(1+AF39)*IF($E$25=1,($E37*'Assumptions - General'!AF37+1),1) -> 148085.9337 | AG38: =AF38*(1+AG39)*IF($E$25=1,($E37*'Assumptions - General'!AG37+1),1) -> 152528.5117 | AH38: =AG38*(1+AH39)*IF($E$25=1,($E37*'Assumptions - General'!AH37+1),1) -> 157104.3671
B39: Additional annual change | D39: % | F39: 0 | G39: 0 | H39: 0 | I39: 0 | J39: 0 | K39: 0 | L39: 0 | M39: 0 | N39: 0 | O39: 0 | P39: 0 | Q39: 0 | R39: 0 | S39: 0 | T39: 0 | U39: 0 | V39: 0 | W39: 0 | X39: 0 | Y39: 0 | Z39: 0 | AA39: 0 | AB39: 0 | AC39: 0 | AD39: 0 | AE39: 0 | AF39: 0 | AG39: 0 | AH39: 0
B41: Other operating expenses
B42: Total cost in first year | D42: ='Assumptions - General'!$E$27 &" millions" -> R$ millions | E42: 200
B43: Quantity of other operating expenses (physical cost driver) | D43: Index | E43: 100 | F43: =E43*(1+F44*$E$45) -> 100 | G43: =F43*(1+G44*$E$45) -> 100 | H43: 100 | I43: 100 | J43: 100 | K43: 100 | L43: 100 | M43: 100 | N43: 100 | O43: 100 | P43: 100 | Q43: 100 | R43: 100 | S43: 100 | T43: 100 | U43: 100 | V43: 100 | W43: 100 | X43: 100 | Y43: 100 | Z43: 100 | AA43: 100 | AB43: 100 | AC43: 100 | AD43: 100 | AE43: 100 | AF43: 100 | AG43: 100 | AH43: 100
B44: Enter change in quantity | D44: % | F44: 0 | G44: 0 | H44: 0 | I44: 0 | J44: 0 | K44: 0 | L44: 0 | M44: 0 | N44: 0 | O44: 0 | P44: 0 | Q44: 0 | R44: 0 | S44: 0 | T44: 0 | U44: 0 | V44: 0 | W44: 0 | X44: 0 | Y44: 0 | Z44: 0 | AA44: 0 | AB44: 0 | AC44: 0 | AD44: 0 | AE44: 0 | AF44: 0 | AG44: 0 | AH44: 0
B45: Variability with other operating expenses amount | D45: % | E45: =F45/100 -> 1 | F45: 100
B46: Unit cost of other operating expenses
B47: Variability with inflation | D47: % | E47: =IF(E25=2,0,F47/100) -> 1 | F47: 100
B48: Annual unit cost of other operating expenses | D48: ='Assumptions - General'!$E$27 &" per unit" -> R$ per unit | E48: =IF(E42>0,E42*1000000/E43,0) -> 2000000 | F48: =E48*(1+F49)*IF($E$25=1,($E47*'Assumptions - General'!F$37+1),1) -> 2060000 | G48: =F48*(1+G49)*IF($E$25=1,($E47*'Assumptions - General'!G$37+1),1) -> 2121800 | H48: =G48*(1+H49)*IF($E$25=1,($E47*'Assumptions - General'!H$37+1),1) -> 2185454 | I48: =H48*(1+I49)*IF($E$25=1,($E47*'Assumptions - General'!I$37+1),1) -> 2251017.62 | J48: =I48*(1+J49)*IF($E$25=1,($E47*'Assumptions - General'!J$37+1),1) -> 2318548.149 | K48: =J48*(1+K49)*IF($E$25=1,($E47*'Assumptions - General'!K$37+1),1) -> 2388104.593 | L48: =K48*(1+L49)*IF($E$25=1,($E47*'Assumptions - General'!L$37+1),1) -> 2459747.731 | M48: =L48*(1+M49)*IF($E$25=1,($E47*'Assumptions - General'!M$37+1),1) -> 2533540.163 | N48: =M48*(1+N49)*IF($E$25=1,($E47*'Assumptions - General'!N$37+1),1) -> 2609546.368 | O48: =N48*(1+O49)*IF($E$25=1,($E47*'Assumptions - General'!O$37+1),1) -> 2687832.759 | P48: =O48*(1+P49)*IF($E$25=1,($E47*'Assumptions - General'!P$37+1),1) -> 2768467.741 | Q48: =P48*(1+Q49)*IF($E$25=1,($E47*'Assumptions - General'!Q$37+1),1) -> 2851521.774 | R48: =Q48*(1+R49)*IF($E$25=1,($E47*'Assumptions - General'!R$37+1),1) -> 2937067.427 | S48: =R48*(1+S49)*IF($E$25=1,($E47*'Assumptions - General'!S$37+1),1) -> 3025179.45 | T48: =S48*(1+T49)*IF($E$25=1,($E47*'Assumptions - General'!T$37+1),1) -> 3115934.833 | U48: =T48*(1+U49)*IF($E$25=1,($E47*'Assumptions - General'!U$37+1),1) -> 3209412.878 | V48: =U48*(1+V49)*IF($E$25=1,($E47*'Assumptions - General'!V$37+1),1) -> 3305695.265 | W48: =V48*(1+W49)*IF($E$25=1,($E47*'Assumptions - General'!W$37+1),1) -> 3404866.122 | X48: =W48*(1+X49)*IF($E$25=1,($E47*'Assumptions - General'!X$37+1),1) -> 3507012.106 | Y48: =X48*(1+Y49)*IF($E$25=1,($E47*'Assumptions - General'!Y$37+1),1) -> 3612222.469 | Z48: =Y48*(1+Z49)*IF($E$25=1,($E47*'Assumptions - General'!Z$37+1),1) -> 3720589.143 | AA48: =Z48*(1+AA49)*IF($E$25=1,($E47*'Assumptions - General'!AA$37+1),1) -> 3832206.818 | AB48: =AA48*(1+AB49)*IF($E$25=1,($E47*'Assumptions - General'!AB$37+1),1) -> 3947173.022 | AC48: =AB48*(1+AC49)*IF($E$25=1,($E47*'Assumptions - General'!AC$37+1),1) -> 4065588.213 | AD48: =AC48*(1+AD49)*IF($E$25=1,($E47*'Assumptions - General'!AD$37+1),1) -> 4187555.859 | AE48: =AD48*(1+AE49)*IF($E$25=1,($E47*'Assumptions - General'!AE$37+1),1) -> 4313182.535 | AF48: =AE48*(1+AF49)*IF($E$25=1,($E47*'Assumptions - General'!AF$37+1),1) -> 4442578.011 | AG48: =AF48*(1+AG49)*IF($E$25=1,($E47*'Assumptions - General'!AG$37+1),1) -> 4575855.351 | AH48: =AG48*(1+AH49)*IF($E$25=1,($E47*'Assumptions - General'!AH$37+1),1) -> 4713131.012
B49: Additional annual change | D49: % | F49: 0 | G49: 0 | H49: 0 | I49: 0 | J49: 0 | K49: 0 | L49: 0 | M49: 0 | N49: 0 | O49: 0 | P49: 0 | Q49: 0 | R49: 0 | S49: 0 | T49: 0 | U49: 0 | V49: 0 | W49: 0 | X49: 0 | Y49: 0 | Z49: 0 | AA49: 0 | AB49: 0 | AC49: 0 | AD49: 0 | AE49: 0 | AF49: 0 | AG49: 0 | AH49: 0
B51: =B31& " - total annual cost in forecast period" -> Additional staff - total annual cost in forecast period | D51: ='Assumptions - General'!$E$27 &" millions" -> R$ millions | E51: =Calculations!E1401 -> 0 | F51: =Calculations!F1401 -> 0 | G51: =Calculations!G1401 -> 0 | H51: =Calculations!H1401 -> 0 | I51: =Calculations!I1401 -> 0 | J51: =Calculations!J1401 -> 0 | K51: =Calculations!K1401 -> 0 | L51: =Calculations!L1401 -> 0 | M51: =Calculations!M1401 -> 0 | N51: =Calculations!N1401 -> 0 | O51: =Calculations!O1401 -> 0 | P51: =Calculations!P1401 -> 0 | Q51: =Calculations!Q1401 -> 0 | R51: =Calculations!R1401 -> 0 | S51: =Calculations!S1401 -> 0 | T51: =Calculations!T1401 -> 0 | U51: =Calculations!U1401 -> 0 | V51: =Calculations!V1401 -> 0 | W51: =Calculations!W1401 -> 0 | X51: =Calculations!X1401 -> 0 | Y51: =Calculations!Y1401 -> 0 | Z51: =Calculations!Z1401 -> 0 | AA51: =Calculations!AA1401 -> 0 | AB51: =Calculations!AB1401 -> 0 | AC51: =Calculations!AC1401 -> 0 | AD51: =Calculations!AD1401 -> 0 | AE51: =Calculations!AE1401 -> 0 | AF51: =Calculations!AF1401 -> 0 | AG51: =Calculations!AG1401 -> 0 | AH51: =Calculations!AH1401 -> 0
B52: =B41& " - total annual cost in forecast period" -> Other operating expenses - total annual cost in forecast period | D52: ='Assumptions - General'!$E$27 &" millions" -> R$ millions | E52: =Calculations!E1403 -> 0 | F52: =Calculations!F1403 -> 0 | G52: =Calculations!G1403 -> 0 | H52: =Calculations!H1403 -> 0 | I52: =Calculations!I1403 -> 0 | J52: =Calculations!J1403 -> 0 | K52: =Calculations!K1403 -> 0 | L52: =Calculations!L1403 -> 0 | M52: =Calculations!M1403 -> 0 | N52: =Calculations!N1403 -> 0 | O52: =Calculations!O1403 -> 0 | P52: =Calculations!P1403 -> 0 | Q52: =Calculations!Q1403 -> 0 | R52: =Calculations!R1403 -> 0 | S52: =Calculations!S1403 -> 0 | T52: =Calculations!T1403 -> 0 | U52: =Calculations!U1403 -> 0 | V52: =Calculations!V1403 -> 0 | W52: =Calculations!W1403 -> 0 | X52: =Calculations!X1403 -> 0 | Y52: =Calculations!Y1403 -> 0 | Z52: =Calculations!Z1403 -> 0 | AA52: =Calculations!AA1403 -> 0 | AB52: =Calculations!AB1403 -> 0 | AC52: =Calculations!AC1403 -> 0 | AD52: =Calculations!AD1403 -> 0 | AE52: =Calculations!AE1403 -> 0 | AF52: =Calculations!AF1403 -> 0 | AG52: =Calculations!AG1403 -> 0 | AH52: =Calculations!AH1403 -> 0
A53: <<<< Show/hide results
B55: ="Additional non-operating costs of " &'Assumptions - General'!$E$23 -> Additional non-operating costs of Ruritania Railways
B57: Grow non-operating costs by inflation in forecast period? | D57: yes/no | E57: 1 | F57: Yes
F58: No
B59: Name of non-operating expense 1 | D59: Text | E59: Provisions and legal claims
B60: Total cost in first year | D60: ='Assumptions - General'!$E$27 &" millions" -> R$ millions | E60: 200
B61: Quantity (physical cost driver) | D61: Index | E61: 100 | F61: =E61*(1+F62) -> 100 | G61: 100 | H61: 100 | I61: 100 | J61: 100 | K61: 100 | L61: 100 | M61: 100 | N61: 100 | O61: 100 | P61: 100 | Q61: 100 | R61: 100 | S61: 100 | T61: 100 | U61: 100 | V61: 100 | W61: 100 | X61: 100 | Y61: 100 | Z61: 100 | AA61: 100 | AB61: 100 | AC61: 100 | AD61: 100 | AE61: 100 | AF61: 100 | AG61: 100 | AH61: 100
B62: Enter change in quantity | D62: % | F62: 0 | G62: 0 | H62: 0 | I62: 0 | J62: 0 | K62: 0 | L62: 0 | M62: 0 | N62: 0 | O62: 0 | P62: 0 | Q62: 0 | R62: 0 | S62: 0 | T62: 0 | U62: 0 | V62: 0 | W62: 0 | X62: 0 | Y62: 0 | Z62: 0 | AA62: 0 | AB62: 0 | AC62: 0 | AD62: 0 | AE62: 0 | AF62: 0 | AG62: 0 | AH62: 0
B63: Unit cost
B64: Variability with inflation | D64: % | E64: =IF(E57=2,0,F64/100) -> 1 | F64: 100
B65: Annual unit cost | D65: ='Assumptions - General'!$E$27 &" per unit" -> R$ per unit | E65: =IF(AND(E60>0,E61>0),E60*1000000/E61,0) -> 2000000 | F65: =E65*(1+F66)*IF($E$57=1,($E64*'Assumptions - General'!F$37+1),1) -> 2060000 | G65: =F65*(1+G66)*IF($E$57=1,($E64*'Assumptions - General'!G$37+1),1) -> 2121800 | H65: =G65*(1+H66)*IF($E$57=1,($E64*'Assumptions - General'!H$37+1),1) -> 2185454 | I65: =H65*(1+I66)*IF($E$57=1,($E64*'Assumptions - General'!I$37+1),1) -> 2251017.62 | J65: =I65*(1+J66)*IF($E$57=1,($E64*'Assumptions - General'!J$37+1),1) -> 2318548.149 | K65: =J65*(1+K66)*IF($E$57=1,($E64*'Assumptions - General'!K$37+1),1) -> 2388104.593 | L65: =K65*(1+L66)*IF($E$57=1,($E64*'Assumptions - General'!L$37+1),1) -> 2459747.731 | M65: =L65*(1+M66)*IF($E$57=1,($E64*'Assumptions - General'!M$37+1),1) -> 2533540.163 | N65: =M65*(1+N66)*IF($E$57=1,($E64*'Assumptions - General'!N$37+1),1) -> 2609546.368 | O65: =N65*(1+O66)*IF($E$57=1,($E64*'Assumptions - General'!O$37+1),1) -> 2687832.759 | P65: =O65*(1+P66)*IF($E$57=1,($E64*'Assumptions - General'!P$37+1),1) -> 2768467.741 | Q65: =P65*(1+Q66)*IF($E$57=1,($E64*'Assumptions - General'!Q$37+1),1) -> 2851521.774 | R65: =Q65*(1+R66)*IF($E$57=1,($E64*'Assumptions - General'!R$37+1),1) -> 2937067.427 | S65: =R65*(1+S66)*IF($E$57=1,($E64*'Assumptions - General'!S$37+1),1) -> 3025179.45 | T65: =S65*(1+T66)*IF($E$57=1,($E64*'Assumptions - General'!T$37+1),1) -> 3115934.833 | U65: =T65*(1+U66)*IF($E$57=1,($E64*'Assumptions - General'!U$37+1),1) -> 3209412.878 | V65: =U65*(1+V66)*IF($E$57=1,($E64*'Assumptions - General'!V$37+1),1) -> 3305695.265 | W65: =V65*(1+W66)*IF($E$57=1,($E64*'Assumptions - General'!W$37+1),1) -> 3404866.122 | X65: =W65*(1+X66)*IF($E$57=1,($E64*'Assumptions - General'!X$37+1),1) -> 3507012.106 | Y65: =X65*(1+Y66)*IF($E$57=1,($E64*'Assumptions - General'!Y$37+1),1) -> 3612222.469 | Z65: =Y65*(1+Z66)*IF($E$57=1,($E64*'Assumptions - General'!Z$37+1),1) -> 3720589.143 | AA65: =Z65*(1+AA66)*IF($E$57=1,($E64*'Assumptions - General'!AA$37+1),1) -> 3832206.818 | AB65: =AA65*(1+AB66)*IF($E$57=1,($E64*'Assumptions - General'!AB$37+1),1) -> 3947173.022 | AC65: =AB65*(1+AC66)*IF($E$57=1,($E64*'Assumptions - General'!AC$37+1),1) -> 4065588.213 | AD65: =AC65*(1+AD66)*IF($E$57=1,($E64*'Assumptions - General'!AD$37+1),1) -> 4187555.859 | AE65: =AD65*(1+AE66)*IF($E$57=1,($E64*'Assumptions - General'!AE$37+1),1) -> 4313182.535 | AF65: =AE65*(1+AF66)*IF($E$57=1,($E64*'Assumptions - General'!AF$37+1),1) -> 4442578.011 | AG65: =AF65*(1+AG66)*IF($E$57=1,($E64*'Assumptions - General'!AG$37+1),1) -> 4575855.351 | AH65: =AG65*(1+AH66)*IF($E$57=1,($E64*'Assumptions - General'!AH$37+1),1) -> 4713131.012
B66: Additional annual change | D66: % | F66: 0 | G66: 0 | H66: 0 | I66: 0 | J66: 0 | K66: 0 | L66: 0 | M66: 0 | N66: 0 | O66: 0 | P66: 0 | Q66: 0 | R66: 0 | S66: 0 | T66: 0 | U66: 0 | V66: 0 | W66: 0 | X66: 0 | Y66: 0 | Z66: 0 | AA66: 0 | AB66: 0 | AC66: 0 | AD66: 0 | AE66: 0 | AF66: 0 | AG66: 0 | AH66: 0
B68: Name of non-operating expense 2 | D68: Text | E68: Investment losses
B69: Total cost in first year | D69: ='Assumptions - General'!$E$27 &" millions" -> R$ millions | E69: 50
B70: Quantity (physical cost driver) | D70: Index | E70: 100 | F70: =E70*(1+F71) -> 100 | G70: 100 | H70: 100 | I70: 100 | J70: 100 | K70: 100 | L70: 100 | M70: 100 | N70: 100 | O70: 100 | P70: 100 | Q70: 100 | R70: 100 | S70: 100 | T70: 100 | U70: 100 | V70: 100 | W70: 100 | X70: 100 | Y70: 100 | Z70: 100 | AA70: 100 | AB70: 100 | AC70: 100 | AD70: 100 | AE70: 100 | AF70: 100 | AG70: 100 | AH70: 100
B71: Enter change in quantity | D71: % | F71: 0 | G71: 0 | H71: 0 | I71: 0 | J71: 0 | K71: 0 | L71: 0 | M71: 0 | N71: 0 | O71: 0 | P71: 0 | Q71: 0 | R71: 0 | S71: 0 | T71: 0 | U71: 0 | V71: 0 | W71: 0 | X71: 0 | Y71: 0 | Z71: 0 | AA71: 0 | AB71: 0 | AC71: 0 | AD71: 0 | AE71: 0 | AF71: 0 | AG71: 0 | AH71: 0
B72: Unit cost
B73: Variability with inflation | D73: % | E73: =IF(E57=2,0,F73/100) -> 1 | F73: 100
B74: Annual unit cost | D74: ='Assumptions - General'!$E$27 &" per unit" -> R$ per unit | E74: =IF(AND(E69>0,E70>0),E69*1000000/E70,0) -> 500000 | F74: =E74*(1+F75)*IF($E$57=1,($E73*'Assumptions - General'!F$37+1),1) -> 515000 | G74: =F74*(1+G75)*IF($E$57=1,($E73*'Assumptions - General'!G$37+1),1) -> 530450 | H74: =G74*(1+H75)*IF($E$57=1,($E73*'Assumptions - General'!H$37+1),1) -> 546363.5 | I74: =H74*(1+I75)*IF($E$57=1,($E73*'Assumptions - General'!I$37+1),1) -> 562754.405 | J74: =I74*(1+J75)*IF($E$57=1,($E73*'Assumptions - General'!J$37+1),1) -> 579637.0371 | K74: =J74*(1+K75)*IF($E$57=1,($E73*'Assumptions - General'!K$37+1),1) -> 597026.1483 | L74: =K74*(1+L75)*IF($E$57=1,($E73*'Assumptions - General'!L$37+1),1) -> 614936.9327 | M74: =L74*(1+M75)*IF($E$57=1,($E73*'Assumptions - General'!M$37+1),1) -> 633385.0407 | N74: =M74*(1+N75)*IF($E$57=1,($E73*'Assumptions - General'!N$37+1),1) -> 652386.5919 | O74: =N74*(1+O75)*IF($E$57=1,($E73*'Assumptions - General'!O$37+1),1) -> 671958.1897 | P74: =O74*(1+P75)*IF($E$57=1,($E73*'Assumptions - General'!P$37+1),1) -> 692116.9354 | Q74: =P74*(1+Q75)*IF($E$57=1,($E73*'Assumptions - General'!Q$37+1),1) -> 712880.4434 | R74: =Q74*(1+R75)*IF($E$57=1,($E73*'Assumptions - General'!R$37+1),1) -> 734266.8567 | S74: =R74*(1+S75)*IF($E$57=1,($E73*'Assumptions - General'!S$37+1),1) -> 756294.8624 | T74: =S74*(1+T75)*IF($E$57=1,($E73*'Assumptions - General'!T$37+1),1) -> 778983.7083 | U74: =T74*(1+U75)*IF($E$57=1,($E73*'Assumptions - General'!U$37+1),1) -> 802353.2195 | V74: =U74*(1+V75)*IF($E$57=1,($E73*'Assumptions - General'!V$37+1),1) -> 826423.8161 | W74: =V74*(1+W75)*IF($E$57=1,($E73*'Assumptions - General'!W$37+1),1) -> 851216.5306 | X74: =W74*(1+X75)*IF($E$57=1,($E73*'Assumptions - General'!X$37+1),1) -> 876753.0265 | Y74: =X74*(1+Y75)*IF($E$57=1,($E73*'Assumptions - General'!Y$37+1),1) -> 903055.6173 | Z74: =Y74*(1+Z75)*IF($E$57=1,($E73*'Assumptions - General'!Z$37+1),1) -> 930147.2859 | AA74: =Z74*(1+AA75)*IF($E$57=1,($E73*'Assumptions - General'!AA$37+1),1) -> 958051.7044 | AB74: =AA74*(1+AB75)*IF($E$57=1,($E73*'Assumptions - General'!AB$37+1),1) -> 986793.2556 | AC74: =AB74*(1+AC75)*IF($E$57=1,($E73*'Assumptions - General'!AC$37+1),1) -> 1016397.053 | AD74: =AC74*(1+AD75)*IF($E$57=1,($E73*'Assumptions - General'!AD$37+1),1) -> 1046888.965 | AE74: =AD74*(1+AE75)*IF($E$57=1,($E73*'Assumptions - General'!AE$37+1),1) -> 1078295.634 | AF74: =AE74*(1+AF75)*IF($E$57=1,($E73*'Assumptions - General'!AF$37+1),1) -> 1110644.503 | AG74: =AF74*(1+AG75)*IF($E$57=1,($E73*'Assumptions - General'!AG$37+1),1) -> 1143963.838 | AH74: =AG74*(1+AH75)*IF($E$57=1,($E73*'Assumptions - General'!AH$37+1),1) -> 1178282.753
B75: Additional annual change | D75: % | F75: 0 | G75: 0 | H75: 0 | I75: 0 | J75: 0 | K75: 0 | L75: 0 | M75: 0 | N75: 0 | O75: 0 | P75: 0 | Q75: 0 | R75: 0 | S75: 0 | T75: 0 | U75: 0 | V75: 0 | W75: 0 | X75: 0 | Y75: 0 | Z75: 0 | AA75: 0 | AB75: 0 | AC75: 0 | AD75: 0 | AE75: 0 | AF75: 0 | AG75: 0 | AH75: 0
B77: Name of non-operating expense 3 | D77: Text | E77: Other
B78: Total cost in first year | D78: ='Assumptions - General'!$E$27 &" millions" -> R$ millions | E78: 50
B79: Quantity (physical cost driver) | D79: Index | E79: 100 | F79: =E79*(1+F80) -> 100 | G79: 100 | H79: 100 | I79: 100 | J79: 100 | K79: 100 | L79: 100 | M79: 100 | N79: 100 | O79: 100 | P79: 100 | Q79: 100 | R79: 100 | S79: 100 | T79: 100 | U79: 100 | V79: 100 | W79: 100 | X79: 100 | Y79: 100 | Z79: 100 | AA79: 100 | AB79: 100 | AC79: 100 | AD79: 100 | AE79: 100 | AF79: 100 | AG79: 100 | AH79: 100
B80: Enter change in quantity | D80: % | F80: 0 | G80: 0 | H80: 0 | I80: 0 | J80: 0 | K80: 0 | L80: 0 | M80: 0 | N80: 0 | O80: 0 | P80: 0 | Q80: 0 | R80: 0 | S80: 0 | T80: 0 | U80: 0 | V80: 0 | W80: 0 | X80: 0 | Y80: 0 | Z80: 0 | AA80: 0 | AB80: 0 | AC80: 0 | AD80: 0 | AE80: 0 | AF80: 0 | AG80: 0 | AH80: 0
B81: Unit cost
B82: Variability with inflation | D82: % | E82: =IF(E57=2,0,F82/100) -> 1 | F82: 100
B83: Annual unit cost | D83: ='Assumptions - General'!$E$27 &" per unit" -> R$ per unit | E83: =IF(AND(E78>0,E79>0),E78*1000000/E79,0) -> 500000 | F83: =E83*(1+F84)*IF('Assumptions - Freight'!$E$368=1,($E82*'Assumptions - General'!F$37+1),1) -> 515000 | G83: =F83*(1+G84)*IF('Assumptions - Freight'!$E$368=1,($E82*'Assumptions - General'!G$37+1),1) -> 530450 | H83: =G83*(1+H84)*IF('Assumptions - Freight'!$E$368=1,($E82*'Assumptions - General'!H$37+1),1) -> 546363.5 | I83: =H83*(1+I84)*IF('Assumptions - Freight'!$E$368=1,($E82*'Assumptions - General'!I$37+1),1) -> 562754.405 | J83: =I83*(1+J84)*IF('Assumptions - Freight'!$E$368=1,($E82*'Assumptions - General'!J$37+1),1) -> 579637.0371 | K83: =J83*(1+K84)*IF('Assumptions - Freight'!$E$368=1,($E82*'Assumptions - General'!K$37+1),1) -> 597026.1483 | L83: =K83*(1+L84)*IF('Assumptions - Freight'!$E$368=1,($E82*'Assumptions - General'!L$37+1),1) -> 614936.9327 | M83: =L83*(1+M84)*IF('Assumptions - Freight'!$E$368=1,($E82*'Assumptions - General'!M$37+1),1) -> 633385.0407 | N83: =M83*(1+N84)*IF('Assumptions - Freight'!$E$368=1,($E82*'Assumptions - General'!N$37+1),1) -> 652386.5919 | O83: =N83*(1+O84)*IF('Assumptions - Freight'!$E$368=1,($E82*'Assumptions - General'!O$37+1),1) -> 671958.1897 | P83: =O83*(1+P84)*IF('Assumptions - Freight'!$E$368=1,($E82*'Assumptions - General'!P$37+1),1) -> 692116.9354 | Q83: =P83*(1+Q84)*IF('Assumptions - Freight'!$E$368=1,($E82*'Assumptions - General'!Q$37+1),1) -> 712880.4434 | R83: =Q83*(1+R84)*IF('Assumptions - Freight'!$E$368=1,($E82*'Assumptions - General'!R$37+1),1) -> 734266.8567 | S83: =R83*(1+S84)*IF('Assumptions - Freight'!$E$368=1,($E82*'Assumptions - General'!S$37+1),1) -> 756294.8624 | T83: =S83*(1+T84)*IF('Assumptions - Freight'!$E$368=1,($E82*'Assumptions - General'!T$37+1),1) -> 778983.7083 | U83: =T83*(1+U84)*IF('Assumptions - Freight'!$E$368=1,($E82*'Assumptions - General'!U$37+1),1) -> 802353.2195 | V83: =U83*(1+V84)*IF('Assumptions - Freight'!$E$368=1,($E82*'Assumptions - General'!V$37+1),1) -> 826423.8161 | W83: =V83*(1+W84)*IF('Assumptions - Freight'!$E$368=1,($E82*'Assumptions - General'!W$37+1),1) -> 851216.5306 | X83: =W83*(1+X84)*IF('Assumptions - Freight'!$E$368=1,($E82*'Assumptions - General'!X$37+1),1) -> 876753.0265 | Y83: =X83*(1+Y84)*IF('Assumptions - Freight'!$E$368=1,($E82*'Assumptions - General'!Y$37+1),1) -> 903055.6173 | Z83: =Y83*(1+Z84)*IF('Assumptions - Freight'!$E$368=1,($E82*'Assumptions - General'!Z$37+1),1) -> 930147.2859 | AA83: =Z83*(1+AA84)*IF('Assumptions - Freight'!$E$368=1,($E82*'Assumptions - General'!AA$37+1),1) -> 958051.7044 | AB83: =AA83*(1+AB84)*IF('Assumptions - Freight'!$E$368=1,($E82*'Assumptions - General'!AB$37+1),1) -> 986793.2556 | AC83: =AB83*(1+AC84)*IF('Assumptions - Freight'!$E$368=1,($E82*'Assumptions - General'!AC$37+1),1) -> 1016397.053 | AD83: =AC83*(1+AD84)*IF('Assumptions - Freight'!$E$368=1,($E82*'Assumptions - General'!AD$37+1),1) -> 1046888.965 | AE83: =AD83*(1+AE84)*IF('Assumptions - Freight'!$E$368=1,($E82*'Assumptions - General'!AE$37+1),1) -> 1078295.634 | AF83: =AE83*(1+AF84)*IF('Assumptions - Freight'!$E$368=1,($E82*'Assumptions - General'!AF$37+1),1) -> 1110644.503 | AG83: =AF83*(1+AG84)*IF('Assumptions - Freight'!$E$368=1,($E82*'Assumptions - General'!AG$37+1),1) -> 1143963.838 | AH83: =AG83*(1+AH84)*IF('Assumptions - Freight'!$E$368=1,($E82*'Assumptions - General'!AH$37+1),1) -> 1178282.753
B84: Additional annual change | D84: % | F84: 0 | G84: 0 | H84: 0 | I84: 0 | J84: 0 | K84: 0 | L84: 0 | M84: 0 | N84: 0 | O84: 0 | P84: 0 | Q84: 0 | R84: 0 | S84: 0 | T84: 0 | U84: 0 | V84: 0 | W84: 0 | X84: 0 | Y84: 0 | Z84: 0 | AA84: 0 | AB84: 0 | AC84: 0 | AD84: 0 | AE84: 0 | AF84: 0 | AG84: 0 | AH84: 0
B86: =E59& " - total annual cost in forecast period" -> Provisions and legal claims - total annual cost in forecast period | D86: ='Assumptions - General'!$E$27 &" millions" -> R$ millions | E86: =Calculations!E1423 ->  | F86: =Calculations!F1423 ->  | G86: =Calculations!G1423 ->  | H86: =Calculations!H1423 ->  | I86: =Calculations!I1423 ->  | J86: =Calculations!J1423 ->  | K86: =Calculations!K1423 ->  | L86: =Calculations!L1423 ->  | M86: =Calculations!M1423 ->  | N86: =Calculations!N1423 ->  | O86: =Calculations!O1423 ->  | P86: =Calculations!P1423 ->  | Q86: =Calculations!Q1423 ->  | R86: =Calculations!R1423 ->  | S86: =Calculations!S1423 ->  | T86: =Calculations!T1423 ->  | U86: =Calculations!U1423 ->  | V86: =Calculations!V1423 ->  | W86: =Calculations!W1423 ->  | X86: =Calculations!X1423 ->  | Y86: =Calculations!Y1423 ->  | Z86: =Calculations!Z1423 ->  | AA86: =Calculations!AA1423 ->  | AB86: =Calculations!AB1423 ->  | AC86: =Calculations!AC1423 ->  | AD86: =Calculations!AD1423 ->  | AE86: =Calculations!AE1423 ->  | AF86: =Calculations!AF1423 ->  | AG86: =Calculations!AG1423 ->  | AH86: =Calculations!AH1423 -> 
B87: =E68& " - total annual cost in forecast period" -> Investment losses - total annual cost in forecast period | D87: ='Assumptions - General'!$E$27 &" millions" -> R$ millions | E87: =Calculations!E1424 ->  | F87: =Calculations!F1424 ->  | G87: =Calculations!G1424 ->  | H87: =Calculations!H1424 ->  | I87: =Calculations!I1424 ->  | J87: =Calculations!J1424 ->  | K87: =Calculations!K1424 ->  | L87: =Calculations!L1424 ->  | M87: =Calculations!M1424 ->  | N87: =Calculations!N1424 ->  | O87: =Calculations!O1424 ->  | P87: =Calculations!P1424 ->  | Q87: =Calculations!Q1424 ->  | R87: =Calculations!R1424 ->  | S87: =Calculations!S1424 ->  | T87: =Calculations!T1424 ->  | U87: =Calculations!U1424 ->  | V87: =Calculations!V1424 ->  | W87: =Calculations!W1424 ->  | X87: =Calculations!X1424 ->  | Y87: =Calculations!Y1424 ->  | Z87: =Calculations!Z1424 ->  | AA87: =Calculations!AA1424 ->  | AB87: =Calculations!AB1424 ->  | AC87: =Calculations!AC1424 ->  | AD87: =Calculations!AD1424 ->  | AE87: =Calculations!AE1424 ->  | AF87: =Calculations!AF1424 ->  | AG87: =Calculations!AG1424 ->  | AH87: =Calculations!AH1424 -> 
B88: =E77& " - total annual cost in forecast period" -> Other - total annual cost in forecast period | D88: ='Assumptions - General'!$E$27 &" millions" -> R$ millions | E88: =Calculations!E1425 ->  | F88: =Calculations!F1425 ->  | G88: =Calculations!G1425 ->  | H88: =Calculations!H1425 ->  | I88: =Calculations!I1425 ->  | J88: =Calculations!J1425 ->  | K88: =Calculations!K1425 ->  | L88: =Calculations!L1425 ->  | M88: =Calculations!M1425 ->  | N88: =Calculations!N1425 ->  | O88: =Calculations!O1425 ->  | P88: =Calculations!P1425 ->  | Q88: =Calculations!Q1425 ->  | R88: =Calculations!R1425 ->  | S88: =Calculations!S1425 ->  | T88: =Calculations!T1425 ->  | U88: =Calculations!U1425 ->  | V88: =Calculations!V1425 ->  | W88: =Calculations!W1425 ->  | X88: =Calculations!X1425 ->  | Y88: =Calculations!Y1425 ->  | Z88: =Calculations!Z1425 ->  | AA88: =Calculations!AA1425 ->  | AB88: =Calculations!AB1425 ->  | AC88: =Calculations!AC1425 ->  | AD88: =Calculations!AD1425 ->  | AE88: =Calculations!AE1425 ->  | AF88: =Calculations!AF1425 ->  | AG88: =Calculations!AG1425 ->  | AH88: =Calculations!AH1425 -> 
A89: <<<< Show/hide results
B91: ="Taxes and dividends for "&'Assumptions - General'!E23 -> Taxes and dividends for Ruritania Railways
B93: Required debt service coverage ratio before dividends paid | D93: ratio | E93: =F93/100 -> 1.3 | F93: 130
B94: Annual dividend after DSCR | D94: % | E94: =F94/100 -> 0.7 | F94: 70
B96: ="Working capital assumptions for " &'Assumptions - General'!$E$23 -> Working capital assumptions for Ruritania Railways
B98: Accounts payable in first year | D98: ='Assumptions - General'!$E$27 &" millions" -> R$ millions | E98: 30
B99: Days in accounts payable | D99: Days | E99: =IF(AND(E98<>0,(Calculations!E1401+Calculations!E1403)>0),IF(Calculations!E21=1,(E98*365)/(Calculations!E1401+Calculations!E1403),0),0) -> 0 | F99: =IF($E$98<>0,IF(Calculations!F21=1,E99+F100," "),0) -> 0 | G99: =IF($E$98<>0,IF(Calculations!G21=1,F99+G100," "),0) -> 0 | H99: =IF($E$98<>0,IF(Calculations!H21=1,G99+H100," "),0) -> 0 | I99: =IF($E$98<>0,IF(Calculations!I21=1,H99+I100," "),0) -> 0 | J99: =IF($E$98<>0,IF(Calculations!J21=1,I99+J100," "),0) -> 0 | K99: =IF($E$98<>0,IF(Calculations!K21=1,J99+K100," "),0) -> 0 | L99: =IF($E$98<>0,IF(Calculations!L21=1,K99+L100," "),0) -> 0 | M99: =IF($E$98<>0,IF(Calculations!M21=1,L99+M100," "),0) -> 0 | N99: =IF($E$98<>0,IF(Calculations!N21=1,M99+N100," "),0) -> 0 | O99: =IF($E$98<>0,IF(Calculations!O21=1,N99+O100," "),0) -> 0 | P99: =IF($E$98<>0,IF(Calculations!P21=1,O99+P100," "),0) -> 0 | Q99: =IF($E$98<>0,IF(Calculations!Q21=1,P99+Q100," "),0) -> 0 | R99: =IF($E$98<>0,IF(Calculations!R21=1,Q99+R100," "),0) -> 0 | S99: =IF($E$98<>0,IF(Calculations!S21=1,R99+S100," "),0) -> 0 | T99: =IF($E$98<>0,IF(Calculations!T21=1,S99+T100," "),0) -> 0 | U99: =IF($E$98<>0,IF(Calculations!U21=1,T99+U100," "),0) -> 0 | V99: =IF($E$98<>0,IF(Calculations!V21=1,U99+V100," "),0) -> 0 | W99: =IF($E$98<>0,IF(Calculations!W21=1,V99+W100," "),0) -> 0 | X99: =IF($E$98<>0,IF(Calculations!X21=1,W99+X100," "),0) -> 0 | Y99: =IF($E$98<>0,IF(Calculations!Y21=1,X99+Y100," "),0) -> 0 | Z99: =IF($E$98<>0,IF(Calculations!Z21=1,Y99+Z100," "),0) -> 0 | AA99: =IF($E$98<>0,IF(Calculations!AA21=1,Z99+AA100," "),0) -> 0 | AB99: =IF($E$98<>0,IF(Calculations!AB21=1,AA99+AB100," "),0) -> 0 | AC99: =IF($E$98<>0,IF(Calculations!AC21=1,AB99+AC100," "),0) -> 0 | AD99: =IF($E$98<>0,IF(Calculations!AD21=1,AC99+AD100," "),0) -> 0 | AE99: =IF($E$98<>0,IF(Calculations!AE21=1,AD99+AE100," "),0) -> 0 | AF99: =IF($E$98<>0,IF(Calculations!AF21=1,AE99+AF100," "),0) -> 0 | AG99: =IF($E$98<>0,IF(Calculations!AG21=1,AF99+AG100," "),0) -> 0 | AH99: =IF($E$98<>0,IF(Calculations!AH21=1,AG99+AH100," "),0) -> 0
B100: Enter change in other payables | D100: Days | F100: 0 | G100: 0 | H100: 0 | I100: 0 | J100: 0 | K100: 0 | L100: 0 | M100: 0 | N100: 0 | O100: 0 | P100: 0 | Q100: 0 | R100: 0 | S100: 0 | T100: 0 | U100: 0 | V100: 0 | W100: 0 | X100: 0 | Y100: 0 | Z100: 0 | AA100: 0 | AB100: 0 | AC100: 0 | AD100: 0 | AE100: 0 | AF100: 0 | AG100: 0 | AH100: 0
B102: Other payables in first year | D102: ='Assumptions - General'!$E$27 &" millions" -> R$ millions | E102: 30
B103: Days in other payables | D103: Days | E103: =IF(AND(E102<>0,Calculations!E1431<>0),IF(Calculations!E21=1,(E102*365)/Calculations!E1431,0),0) -> 0 | F103: =IF($E$102<>0,IF(Calculations!F21=1,E103+F104," "),0) -> 0 | G103: =IF($E$102<>0,IF(Calculations!G21=1,F103+G104," "),0) -> 0 | H103: =IF($E$102<>0,IF(Calculations!H21=1,G103+H104," "),0) -> 0 | I103: =IF($E$102<>0,IF(Calculations!I21=1,H103+I104," "),0) -> 0 | J103: =IF($E$102<>0,IF(Calculations!J21=1,I103+J104," "),0) -> 0 | K103: =IF($E$102<>0,IF(Calculations!K21=1,J103+K104," "),0) -> 0 | L103: =IF($E$102<>0,IF(Calculations!L21=1,K103+L104," "),0) -> 0 | M103: =IF($E$102<>0,IF(Calculations!M21=1,L103+M104," "),0) -> 0 | N103: =IF($E$102<>0,IF(Calculations!N21=1,M103+N104," "),0) -> 0 | O103: =IF($E$102<>0,IF(Calculations!O21=1,N103+O104," "),0) -> 0 | P103: =IF($E$102<>0,IF(Calculations!P21=1,O103+P104," "),0) -> 0 | Q103: =IF($E$102<>0,IF(Calculations!Q21=1,P103+Q104," "),0) -> 0 | R103: =IF($E$102<>0,IF(Calculations!R21=1,Q103+R104," "),0) -> 0 | S103: =IF($E$102<>0,IF(Calculations!S21=1,R103+S104," "),0) -> 0 | T103: =IF($E$102<>0,IF(Calculations!T21=1,S103+T104," "),0) -> 0 | U103: =IF($E$102<>0,IF(Calculations!U21=1,T103+U104," "),0) -> 0 | V103: =IF($E$102<>0,IF(Calculations!V21=1,U103+V104," "),0) -> 0 | W103: =IF($E$102<>0,IF(Calculations!W21=1,V103+W104," "),0) -> 0 | X103: =IF($E$102<>0,IF(Calculations!X21=1,W103+X104," "),0) -> 0 | Y103: =IF($E$102<>0,IF(Calculations!Y21=1,X103+Y104," "),0) -> 0 | Z103: =IF($E$102<>0,IF(Calculations!Z21=1,Y103+Z104," "),0) -> 0 | AA103: =IF($E$102<>0,IF(Calculations!AA21=1,Z103+AA104," "),0) -> 0 | AB103: =IF($E$102<>0,IF(Calculations!AB21=1,AA103+AB104," "),0) -> 0 | AC103: =IF($E$102<>0,IF(Calculations!AC21=1,AB103+AC104," "),0) -> 0 | AD103: =IF($E$102<>0,IF(Calculations!AD21=1,AC103+AD104," "),0) -> 0 | AE103: =IF($E$102<>0,IF(Calculations!AE21=1,AD103+AE104," "),0) -> 0 | AF103: =IF($E$102<>0,IF(Calculations!AF21=1,AE103+AF104," "),0) -> 0 | AG103: =IF($E$102<>0,IF(Calculations!AG21=1,AF103+AG104," "),0) -> 0 | AH103: =IF($E$102<>0,IF(Calculations!AH21=1,AG103+AH104," "),0) -> 0
B104: Enter change in other payables | D104: Days | F104: 0 | G104: 0 | H104: 0 | I104: 0 | J104: 0 | K104: 0 | L104: 0 | M104: 0 | N104: 0 | O104: 0 | P104: 0 | Q104: 0 | R104: 0 | S104: 0 | T104: 0 | U104: 0 | V104: 0 | W104: 0 | X104: 0 | Y104: 0 | Z104: 0 | AA104: 0 | AB104: 0 | AC104: 0 | AD104: 0 | AE104: 0 | AF104: 0 | AG104: 0 | AH104: 0
E105: =IF(E106<>E98+E102,"WARNING: CASH NOT EQUAL TO LIABILITIES", " ") -> 
B106: Ending cash balance in first year | D106: ='Assumptions - General'!$E$27 &" millions" -> R$ millions | E106: 60 | F106: Yes
B107: Earn interest on cash balances? | D107: yes/no | E107: 1 | F107: No
B109: If yes, enter interest on cash balances (margin on LIBOR) | D109: % | E109: 0.01
B111: Accounts payable in forecast period | D111: ='Assumptions - General'!$E$27 &" millions" -> R$ millions | E111: =Calculations!E1458 -> 0 | F111: =Calculations!F1458 -> 0 | G111: =Calculations!G1458 -> 0 | H111: =Calculations!H1458 -> 0 | I111: =Calculations!I1458 -> 0 | J111: =Calculations!J1458 -> 0 | K111: =Calculations!K1458 -> 0 | L111: =Calculations!L1458 -> 0 | M111: =Calculations!M1458 -> 0 | N111: =Calculations!N1458 -> 0 | O111: =Calculations!O1458 -> 0 | P111: =Calculations!P1458 -> 0 | Q111: =Calculations!Q1458 -> 0 | R111: =Calculations!R1458 -> 0 | S111: =Calculations!S1458 -> 0 | T111: =Calculations!T1458 -> 0 | U111: =Calculations!U1458 -> 0 | V111: =Calculations!V1458 -> 0 | W111: =Calculations!W1458 -> 0 | X111: =Calculations!X1458 -> 0 | Y111: =Calculations!Y1458 -> 0 | Z111: =Calculations!Z1458 -> 0 | AA111: =Calculations!AA1458 -> 0 | AB111: =Calculations!AB1458 -> 0 | AC111: =Calculations!AC1458 -> 0 | AD111: =Calculations!AD1458 -> 0 | AE111: =Calculations!AE1458 -> 0 | AF111: =Calculations!AF1458 -> 0 | AG111: =Calculations!AG1458 -> 0 | AH111: =Calculations!AH1458 -> 0
B112: Other payables in forecast period | D112: ='Assumptions - General'!$E$27 &" millions" -> R$ millions | E112: =Calculations!E1459 -> 0 | F112: =Calculations!F1459 -> 0 | G112: =Calculations!G1459 -> 0 | H112: =Calculations!H1459 -> 0 | I112: =Calculations!I1459 -> 0 | J112: =Calculations!J1459 -> 0 | K112: =Calculations!K1459 -> 0 | L112: =Calculations!L1459 -> 0 | M112: =Calculations!M1459 -> 0 | N112: =Calculations!N1459 -> 0 | O112: =Calculations!O1459 -> 0 | P112: =Calculations!P1459 -> 0 | Q112: =Calculations!Q1459 -> 0 | R112: =Calculations!R1459 -> 0 | S112: =Calculations!S1459 -> 0 | T112: =Calculations!T1459 -> 0 | U112: =Calculations!U1459 -> 0 | V112: =Calculations!V1459 -> 0 | W112: =Calculations!W1459 -> 0 | X112: =Calculations!X1459 -> 0 | Y112: =Calculations!Y1459 -> 0 | Z112: =Calculations!Z1459 -> 0 | AA112: =Calculations!AA1459 -> 0 | AB112: =Calculations!AB1459 -> 0 | AC112: =Calculations!AC1459 -> 0 | AD112: =Calculations!AD1459 -> 0 | AE112: =Calculations!AE1459 -> 0 | AF112: =Calculations!AF1459 -> 0 | AG112: =Calculations!AG1459 -> 0 | AH112: =Calculations!AH1459 -> 0
B113: End-of-year cash balance in forecast period | D113: ='Assumptions - General'!$E$27 &" millions" -> R$ millions | E113: =Calculations!E1482 -> 300 | F113: =Calculations!F1482 -> 15379.08578 | G113: =Calculations!G1482 -> 31031.22549 | H113: =Calculations!H1482 -> 47504.52207 | I113: =Calculations!I1482 -> 65307.9534 | J113: =Calculations!J1482 -> 84425.69423 | K113: =Calculations!K1482 -> 105796.335 | L113: =Calculations!L1482 -> 128673.9057 | M113: =Calculations!M1482 -> 152924.2732 | N113: =Calculations!N1482 -> 178600.2395 | O113: =Calculations!O1482 -> 205569.203 | P113: =Calculations!P1482 -> 234047.9321 | Q113: =Calculations!Q1482 -> 264090.9412 | R113: =Calculations!R1482 -> 295761.8316 | S113: =Calculations!S1482 -> 329128.3365 | T113: =Calculations!T1482 -> 364257.446 | U113: =Calculations!U1482 -> 401013.2942 | V113: =Calculations!V1482 -> 439897.7142 | W113: =Calculations!W1482 -> 480765.3511 | X113: =Calculations!X1482 -> 523695.6547 | Y113: =Calculations!Y1482 -> 568766.9148 | Z113: =Calculations!Z1482 -> 616062.7148 | AA113: =Calculations!AA1482 -> 665671.7243 | AB113: =Calculations!AB1482 -> 717682.6079 | AC113: =Calculations!AC1482 -> 772186.3679 | AD113: =Calculations!AD1482 -> 829277.6743 | AE113: =Calculations!AE1482 -> 889029.0448 | AF113: =Calculations!AF1482 -> 951590.1309 | AG113: =Calculations!AG1482 -> 1017038.535 | AH113: =Calculations!AH1482 -> 1085473.511
A114: <<<< Show/hide results

Sheet Calculations
B1: CALCULATIONS
B3: ="All units in " &'Assumptions - General'!E27& " millions unless otherwise stated" -> All units in R$ millions unless otherwise stated
B4: Year | E4: 1 | F4: 2 | G4: 3 | H4: 4 | I4: 5 | J4: 6 | K4: 7 | L4: 8 | M4: 9 | N4: 10 | O4: 11 | P4: 12 | Q4: 13 | R4: 14 | S4: 15 | T4: 16 | U4: 17 | V4: 18 | W4: 19 | X4: 20 | Y4: 21 | Z4: 22 | AA4: 23 | AB4: 24 | AC4: 25 | AD4: 26 | AE4: 27 | AF4: 28 | AG4: 29 | AH4: 30
B5: Period from | E5: ='Assumptions - General'!$E$28 -> 2010-01-01 | F5: =E6+1 -> 2011-01-01 | G5: =F6+1 -> 2012-01-01 | H5: =G6+1 -> 2013-01-01 | I5: 2014-01-01 | J5: 2015-01-01 | K5: 2016-01-01 | L5: 2017-01-01 | M5: 2018-01-01 | N5: 2019-01-01 | O5: 2020-01-01 | P5: 2021-01-01 | Q5: 2022-01-01 | R5: 2023-01-01 | S5: 2024-01-01 | T5: 2025-01-01 | U5: 2026-01-01 | V5: 2027-01-01 | W5: 2028-01-01 | X5: 2029-01-01 | Y5: 2030-01-01 | Z5: 2031-01-01 | AA5: 2032-01-01 | AB5: 2033-01-01 | AC5: 2034-01-01 | AD5: 2035-01-01 | AE5: 2036-01-01 | AF5: 2037-01-01 | AG5: 2038-01-01 | AH5: 2039-01-01
B6: Period to | E6: =DATE(YEAR(E5)+1, MONTH(E5), DAY(E5)-1) -> 2010-12-31 | F6: =DATE(YEAR(F5)+1, MONTH(F5), DAY(F5)-1) -> 2011-12-31 | G6: 2012-12-31 | H6: 2013-12-31 | I6: 2014-12-31 | J6: 2015-12-31 | K6: 2016-12-31 | L6: 2017-12-31 | M6: 2018-12-31 | N6: 2019-12-31 | O6: 2020-12-31 | P6: 2021-12-31 | Q6: 2022-12-31 | R6: 2023-12-31 | S6: 2024-12-31 | T6: 2025-12-31 | U6: 2026-12-31 | V6: 2027-12-31 | W6: 2028-12-31 | X6: 2029-12-31 | Y6: 2030-12-31 | Z6: 2031-12-31 | AA6: 2032-12-31 | AB6: 2033-12-31 | AC6: 2034-12-31 | AD6: 2035-12-31 | AE6: 2036-12-31 | AF6: 2037-12-31 | AG6: 2038-12-31 | AH6: 2039-12-31
C8: Color indicates historical data with formula different from forecast
F9: 1
B10: Names, dates and timings
B12: Model period starts here | D12: ='Assumptions - General'!E28 -> 2010-01-01 | E12: =AND($D$12>=E5,$D$12<=E6) -> TRUE | F12: FALSE | G12: FALSE | H12: FALSE | I12: FALSE | J12: FALSE | K12: FALSE | L12: FALSE | M12: FALSE | N12: FALSE | O12: FALSE | P12: FALSE | Q12: FALSE | R12: FALSE | S12: FALSE | T12: FALSE | U12: FALSE | V12: FALSE | W12: FALSE | X12: FALSE | Y12: FALSE | Z12: FALSE | AA12: FALSE | AB12: FALSE | AC12: FALSE | AD12: FALSE | AE12: FALSE | AF12: FALSE | AG12: FALSE | AH12: FALSE
B13: Model period started | D13: FALSE | E13: =OR(D13,E12) -> TRUE | F13: TRUE | G13: TRUE | H13: TRUE | I13: TRUE | J13: TRUE | K13: TRUE | L13: TRUE | M13: TRUE | N13: TRUE | O13: TRUE | P13: TRUE | Q13: TRUE | R13: TRUE | S13: TRUE | T13: TRUE | U13: TRUE | V13: TRUE | W13: TRUE | X13: TRUE | Y13: TRUE | Z13: TRUE | AA13: TRUE | AB13: TRUE | AC13: TRUE | AD13: TRUE | AE13: TRUE | AF13: TRUE | AG13: TRUE | AH13: TRUE
B14: Model period ends here | D14: ='Assumptions - General'!E29 -> 2039-12-31 | E14: =AND($D$14>=E5,$D$14<=E6) -> FALSE | F14: FALSE | G14: FALSE | H14: FALSE | I14: FALSE | J14: FALSE | K14: FALSE | L14: FALSE | M14: FALSE | N14: FALSE | O14: FALSE | P14: FALSE | Q14: FALSE | R14: FALSE | S14: FALSE | T14: FALSE | U14: FALSE | V14: FALSE | W14: FALSE | X14: FALSE | Y14: FALSE | Z14: FALSE | AA14: FALSE | AB14: FALSE | AC14: FALSE | AD14: FALSE | AE14: FALSE | AF14: FALSE | AG14: FALSE | AH14: TRUE
B15: Model period ended | D15: FALSE | E15: =OR(D15) -> FALSE | F15: =OR(E15,E14) -> FALSE | G15: FALSE | H15: FALSE | I15: FALSE | J15: FALSE | K15: FALSE | L15: FALSE | M15: FALSE | N15: FALSE | O15: FALSE | P15: FALSE | Q15: FALSE | R15: FALSE | S15: FALSE | T15: FALSE | U15: FALSE | V15: FALSE | W15: FALSE | X15: FALSE | Y15: =OR(X15,X14) -> FALSE | Z15: =OR(Y15,Y14) -> FALSE | AA15: =OR(Z15,Z14) -> FALSE | AB15: =OR(AA15,AA14) -> FALSE | AC15: FALSE | AD15: =OR(AC15,AC14) -> FALSE | AE15: FALSE | AF15: FALSE | AG15: FALSE | AH15: FALSE
B16: Active model period freight | E16: =IF(AND(E$13=TRUE,E$15=FALSE),1,0)*'Assumptions - General'!$J$21 -> 1 | F16: =IF(AND(F$13=TRUE,F$15=FALSE),1,0)*'Assumptions - General'!$J$21 -> 1 | G16: =IF(AND(G$13=TRUE,G$15=FALSE),1,0)*'Assumptions - General'!$J$21 -> 1 | H16: =IF(AND(H$13=TRUE,H$15=FALSE),1,0)*'Assumptions - General'!$J$21 -> 1 | I16: =IF(AND(I$13=TRUE,I$15=FALSE),1,0)*'Assumptions - General'!$J$21 -> 1 | J16: =IF(AND(J$13=TRUE,J$15=FALSE),1,0)*'Assumptions - General'!$J$21 -> 1 | K16: =IF(AND(K$13=TRUE,K$15=FALSE),1,0)*'Assumptions - General'!$J$21 -> 1 | L16: =IF(AND(L$13=TRUE,L$15=FALSE),1,0)*'Assumptions - General'!$J$21 -> 1 | M16: =IF(AND(M$13=TRUE,M$15=FALSE),1,0)*'Assumptions - General'!$J$21 -> 1 | N16: =IF(AND(N$13=TRUE,N$15=FALSE),1,0)*'Assumptions - General'!$J$21 -> 1 | O16: =IF(AND(O$13=TRUE,O$15=FALSE),1,0)*'Assumptions - General'!$J$21 -> 1 | P16: =IF(AND(P$13=TRUE,P$15=FALSE),1,0)*'Assumptions - General'!$J$21 -> 1 | Q16: =IF(AND(Q$13=TRUE,Q$15=FALSE),1,0)*'Assumptions - General'!$J$21 -> 1 | R16: =IF(AND(R$13=TRUE,R$15=FALSE),1,0)*'Assumptions - General'!$J$21 -> 1 | S16: =IF(AND(S$13=TRUE,S$15=FALSE),1,0)*'Assumptions - General'!$J$21 -> 1 | T16: =IF(AND(T$13=TRUE,T$15=FALSE),1,0)*'Assumptions - General'!$J$21 -> 1 | U16: =IF(AND(U$13=TRUE,U$15=FALSE),1,0)*'Assumptions - General'!$J$21 -> 1 | V16: =IF(AND(V$13=TRUE,V$15=FALSE),1,0)*'Assumptions - General'!$J$21 -> 1 | W16: =IF(AND(W$13=TRUE,W$15=FALSE),1,0)*'Assumptions - General'!$J$21 -> 1 | X16: =IF(AND(X$13=TRUE,X$15=FALSE),1,0)*'Assumptions - General'!$J$21 -> 1 | Y16: =IF(AND(Y$13=TRUE,Y$15=FALSE),1,0)*'Assumptions - General'!$J$21 -> 1 | Z16: =IF(AND(Z$13=TRUE,Z$15=FALSE),1,0)*'Assumptions - General'!$J$21 -> 1 | AA16: =IF(AND(AA$13=TRUE,AA$15=FALSE),1,0)*'Assumptions - General'!$J$21 -> 1 | AB16: =IF(AND(AB$13=TRUE,AB$15=FALSE),1,0)*'Assumptions - General'!$J$21 -> 1 | AC16: =IF(AND(AC$13=TRUE,AC$15=FALSE),1,0)*'Assumptions - General'!$J$21 -> 1 | AD16: =IF(AND(AD$13=TRUE,AD$15=FALSE),1,0)*'Assumptions - General'!$J$21 -> 1 | AE16: =IF(AND(AE$13=TRUE,AE$15=FALSE),1,0)*'Assumptions - General'!$J$21 -> 1 | AF16: =IF(AND(AF$13=TRUE,AF$15=FALSE),1,0)*'Assumptions - General'!$J$21 -> 1 | AG16: =IF(AND(AG$13=TRUE,AG$15=FALSE),1,0)*'Assumptions - General'!$J$21 -> 1 | AH16: =IF(AND(AH$13=TRUE,AH$15=FALSE),1,0)*'Assumptions - General'!$J$21 -> 1
B17: Active model period passenger | E17: =IF(AND(E$13=TRUE,E$15=FALSE),1,0)*'Assumptions - General'!$J$22 -> 1 | F17: =IF(AND(F$13=TRUE,F$15=FALSE),1,0)*'Assumptions - General'!$J$22 -> 1 | G17: =IF(AND(G$13=TRUE,G$15=FALSE),1,0)*'Assumptions - General'!$J$22 -> 1 | H17: =IF(AND(H$13=TRUE,H$15=FALSE),1,0)*'Assumptions - General'!$J$22 -> 1 | I17: =IF(AND(I$13=TRUE,I$15=FALSE),1,0)*'Assumptions - General'!$J$22 -> 1 | J17: =IF(AND(J$13=TRUE,J$15=FALSE),1,0)*'Assumptions - General'!$J$22 -> 1 | K17: =IF(AND(K$13=TRUE,K$15=FALSE),1,0)*'Assumptions - General'!$J$22 -> 1 | L17: =IF(AND(L$13=TRUE,L$15=FALSE),1,0)*'Assumptions - General'!$J$22 -> 1 | M17: =IF(AND(M$13=TRUE,M$15=FALSE),1,0)*'Assumptions - General'!$J$22 -> 1 | N17: =IF(AND(N$13=TRUE,N$15=FALSE),1,0)*'Assumptions - General'!$J$22 -> 1 | O17: =IF(AND(O$13=TRUE,O$15=FALSE),1,0)*'Assumptions - General'!$J$22 -> 1 | P17: =IF(AND(P$13=TRUE,P$15=FALSE),1,0)*'Assumptions - General'!$J$22 -> 1 | Q17: =IF(AND(Q$13=TRUE,Q$15=FALSE),1,0)*'Assumptions - General'!$J$22 -> 1 | R17: =IF(AND(R$13=TRUE,R$15=FALSE),1,0)*'Assumptions - General'!$J$22 -> 1 | S17: =IF(AND(S$13=TRUE,S$15=FALSE),1,0)*'Assumptions - General'!$J$22 -> 1 | T17: =IF(AND(T$13=TRUE,T$15=FALSE),1,0)*'Assumptions - General'!$J$22 -> 1 | U17: =IF(AND(U$13=TRUE,U$15=FALSE),1,0)*'Assumptions - General'!$J$22 -> 1 | V17: =IF(AND(V$13=TRUE,V$15=FALSE),1,0)*'Assumptions - General'!$J$22 -> 1 | W17: =IF(AND(W$13=TRUE,W$15=FALSE),1,0)*'Assumptions - General'!$J$22 -> 1 | X17: =IF(AND(X$13=TRUE,X$15=FALSE),1,0)*'Assumptions - General'!$J$22 -> 1 | Y17: =IF(AND(Y$13=TRUE,Y$15=FALSE),1,0)*'Assumptions - General'!$J$22 -> 1 | Z17: =IF(AND(Z$13=TRUE,Z$15=FALSE),1,0)*'Assumptions - General'!$J$22 -> 1 | AA17: =IF(AND(AA$13=TRUE,AA$15=FALSE),1,0)*'Assumptions - General'!$J$22 -> 1 | AB17: =IF(AND(AB$13=TRUE,AB$15=FALSE),1,0)*'Assumptions - General'!$J$22 -> 1 | AC17: =IF(AND(AC$13=TRUE,AC$15=FALSE),1,0)*'Assumptions - General'!$J$22 -> 1 | AD17: =IF(AND(AD$13=TRUE,AD$15=FALSE),1,0)*'Assumptions - General'!$J$22 -> 1 | AE17: =IF(AND(AE$13=TRUE,AE$15=FALSE),1,0)*'Assumptions - General'!$J$22 -> 1 | AF17: =IF(AND(AF$13=TRUE,AF$15=FALSE),1,0)*'Assumptions - General'!$J$22 -> 1 | AG17: =IF(AND(AG$13=TRUE,AG$15=FALSE),1,0)*'Assumptions - General'!$J$22 -> 1 | AH17: =IF(AND(AH$13=TRUE,AH$15=FALSE),1,0)*'Assumptions - General'!$J$22 -> 1
B18: Active model period passenger integrated | E18: =IF(AND(E$13=TRUE,E$15=FALSE),1,0)*'Assumptions - General'!$J$26 -> 0 | F18: =IF(AND(F$13=TRUE,F$15=FALSE),1,0)*'Assumptions - General'!$J$26 -> 0 | G18: =IF(AND(G$13=TRUE,G$15=FALSE),1,0)*'Assumptions - General'!$J$26 -> 0 | H18: =IF(AND(H$13=TRUE,H$15=FALSE),1,0)*'Assumptions - General'!$J$26 -> 0 | I18: =IF(AND(I$13=TRUE,I$15=FALSE),1,0)*'Assumptions - General'!$J$26 -> 0 | J18: =IF(AND(J$13=TRUE,J$15=FALSE),1,0)*'Assumptions - General'!$J$26 -> 0 | K18: =IF(AND(K$13=TRUE,K$15=FALSE),1,0)*'Assumptions - General'!$J$26 -> 0 | L18: =IF(AND(L$13=TRUE,L$15=FALSE),1,0)*'Assumptions - General'!$J$26 -> 0 | M18: =IF(AND(M$13=TRUE,M$15=FALSE),1,0)*'Assumptions - General'!$J$26 -> 0 | N18: =IF(AND(N$13=TRUE,N$15=FALSE),1,0)*'Assumptions - General'!$J$26 -> 0 | O18: =IF(AND(O$13=TRUE,O$15=FALSE),1,0)*'Assumptions - General'!$J$26 -> 0 | P18: =IF(AND(P$13=TRUE,P$15=FALSE),1,0)*'Assumptions - General'!$J$26 -> 0 | Q18: =IF(AND(Q$13=TRUE,Q$15=FALSE),1,0)*'Assumptions - General'!$J$26 -> 0 | R18: =IF(AND(R$13=TRUE,R$15=FALSE),1,0)*'Assumptions - General'!$J$26 -> 0 | S18: =IF(AND(S$13=TRUE,S$15=FALSE),1,0)*'Assumptions - General'!$J$26 -> 0 | T18: =IF(AND(T$13=TRUE,T$15=FALSE),1,0)*'Assumptions - General'!$J$26 -> 0 | U18: =IF(AND(U$13=TRUE,U$15=FALSE),1,0)*'Assumptions - General'!$J$26 -> 0 | V18: =IF(AND(V$13=TRUE,V$15=FALSE),1,0)*'Assumptions - General'!$J$26 -> 0 | W18: =IF(AND(W$13=TRUE,W$15=FALSE),1,0)*'Assumptions - General'!$J$26 -> 0 | X18: =IF(AND(X$13=TRUE,X$15=FALSE),1,0)*'Assumptions - General'!$J$26 -> 0 | Y18: =IF(AND(Y$13=TRUE,Y$15=FALSE),1,0)*'Assumptions - General'!$J$26 -> 0 | Z18: =IF(AND(Z$13=TRUE,Z$15=FALSE),1,0)*'Assumptions - General'!$J$26 -> 0 | AA18: =IF(AND(AA$13=TRUE,AA$15=FALSE),1,0)*'Assumptions - General'!$J$26 -> 0 | AB18: =IF(AND(AB$13=TRUE,AB$15=FALSE),1,0)*'Assumptions - General'!$J$26 -> 0 | AC18: =IF(AND(AC$13=TRUE,AC$15=FALSE),1,0)*'Assumptions - General'!$J$26 -> 0 | AD18: =IF(AND(AD$13=TRUE,AD$15=FALSE),1,0)*'Assumptions - General'!$J$26 -> 0 | AE18: =IF(AND(AE$13=TRUE,AE$15=FALSE),1,0)*'Assumptions - General'!$J$26 -> 0 | AF18: =IF(AND(AF$13=TRUE,AF$15=FALSE),1,0)*'Assumptions - General'!$J$26 -> 0 | AG18: =IF(AND(AG$13=TRUE,AG$15=FALSE),1,0)*'Assumptions - General'!$J$26 -> 0 | AH18: =IF(AND(AH$13=TRUE,AH$15=FALSE),1,0)*'Assumptions - General'!$J$26 -> 0
B19: Active model period infrastructure | E19: =IF(AND(E$13=TRUE,E$15=FALSE),1,0)*'Assumptions - General'!$J$23 -> 1 | F19: =IF(AND(F$13=TRUE,F$15=FALSE),1,0)*'Assumptions - General'!$J$23 -> 1 | G19: =IF(AND(G$13=TRUE,G$15=FALSE),1,0)*'Assumptions - General'!$J$23 -> 1 | H19: =IF(AND(H$13=TRUE,H$15=FALSE),1,0)*'Assumptions - General'!$J$23 -> 1 | I19: =IF(AND(I$13=TRUE,I$15=FALSE),1,0)*'Assumptions - General'!$J$23 -> 1 | J19: =IF(AND(J$13=TRUE,J$15=FALSE),1,0)*'Assumptions - General'!$J$23 -> 1 | K19: =IF(AND(K$13=TRUE,K$15=FALSE),1,0)*'Assumptions - General'!$J$23 -> 1 | L19: =IF(AND(L$13=TRUE,L$15=FALSE),1,0)*'Assumptions - General'!$J$23 -> 1 | M19: =IF(AND(M$13=TRUE,M$15=FALSE),1,0)*'Assumptions - General'!$J$23 -> 1 | N19: =IF(AND(N$13=TRUE,N$15=FALSE),1,0)*'Assumptions - General'!$J$23 -> 1 | O19: =IF(AND(O$13=TRUE,O$15=FALSE),1,0)*'Assumptions - General'!$J$23 -> 1 | P19: =IF(AND(P$13=TRUE,P$15=FALSE),1,0)*'Assumptions - General'!$J$23 -> 1 | Q19: =IF(AND(Q$13=TRUE,Q$15=FALSE),1,0)*'Assumptions - General'!$J$23 -> 1 | R19: =IF(AND(R$13=TRUE,R$15=FALSE),1,0)*'Assumptions - General'!$J$23 -> 1 | S19: =IF(AND(S$13=TRUE,S$15=FALSE),1,0)*'Assumptions - General'!$J$23 -> 1 | T19: =IF(AND(T$13=TRUE,T$15=FALSE),1,0)*'Assumptions - General'!$J$23 -> 1 | U19: =IF(AND(U$13=TRUE,U$15=FALSE),1,0)*'Assumptions - General'!$J$23 -> 1 | V19: =IF(AND(V$13=TRUE,V$15=FALSE),1,0)*'Assumptions - General'!$J$23 -> 1 | W19: =IF(AND(W$13=TRUE,W$15=FALSE),1,0)*'Assumptions - General'!$J$23 -> 1 | X19: =IF(AND(X$13=TRUE,X$15=FALSE),1,0)*'Assumptions - General'!$J$23 -> 1 | Y19: =IF(AND(Y$13=TRUE,Y$15=FALSE),1,0)*'Assumptions - General'!$J$23 -> 1 | Z19: =IF(AND(Z$13=TRUE,Z$15=FALSE),1,0)*'Assumptions - General'!$J$23 -> 1 | AA19: =IF(AND(AA$13=TRUE,AA$15=FALSE),1,0)*'Assumptions - General'!$J$23 -> 1 | AB19: =IF(AND(AB$13=TRUE,AB$15=FALSE),1,0)*'Assumptions - General'!$J$23 -> 1 | AC19: =IF(AND(AC$13=TRUE,AC$15=FALSE),1,0)*'Assumptions - General'!$J$23 -> 1 | AD19: =IF(AND(AD$13=TRUE,AD$15=FALSE),1,0)*'Assumptions - General'!$J$23 -> 1 | AE19: =IF(AND(AE$13=TRUE,AE$15=FALSE),1,0)*'Assumptions - General'!$J$23 -> 1 | AF19: =IF(AND(AF$13=TRUE,AF$15=FALSE),1,0)*'Assumptions - General'!$J$23 -> 1 | AG19: =IF(AND(AG$13=TRUE,AG$15=FALSE),1,0)*'Assumptions - General'!$J$23 -> 1 | AH19: =IF(AND(AH$13=TRUE,AH$15=FALSE),1,0)*'Assumptions - General'!$J$23 -> 1
B20: Active model period infrastructure integrated | E20: =IF(AND(E$13=TRUE,E$15=FALSE),1,0)*'Assumptions - General'!$J$27 -> 0 | F20: =IF(AND(F$13=TRUE,F$15=FALSE),1,0)*'Assumptions - General'!$J$27 -> 0 | G20: =IF(AND(G$13=TRUE,G$15=FALSE),1,0)*'Assumptions - General'!$J$27 -> 0 | H20: =IF(AND(H$13=TRUE,H$15=FALSE),1,0)*'Assumptions - General'!$J$27 -> 0 | I20: =IF(AND(I$13=TRUE,I$15=FALSE),1,0)*'Assumptions - General'!$J$27 -> 0 | J20: =IF(AND(J$13=TRUE,J$15=FALSE),1,0)*'Assumptions - General'!$J$27 -> 0 | K20: =IF(AND(K$13=TRUE,K$15=FALSE),1,0)*'Assumptions - General'!$J$27 -> 0 | L20: =IF(AND(L$13=TRUE,L$15=FALSE),1,0)*'Assumptions - General'!$J$27 -> 0 | M20: =IF(AND(M$13=TRUE,M$15=FALSE),1,0)*'Assumptions - General'!$J$27 -> 0 | N20: =IF(AND(N$13=TRUE,N$15=FALSE),1,0)*'Assumptions - General'!$J$27 -> 0 | O20: =IF(AND(O$13=TRUE,O$15=FALSE),1,0)*'Assumptions - General'!$J$27 -> 0 | P20: =IF(AND(P$13=TRUE,P$15=FALSE),1,0)*'Assumptions - General'!$J$27 -> 0 | Q20: =IF(AND(Q$13=TRUE,Q$15=FALSE),1,0)*'Assumptions - General'!$J$27 -> 0 | R20: =IF(AND(R$13=TRUE,R$15=FALSE),1,0)*'Assumptions - General'!$J$27 -> 0 | S20: =IF(AND(S$13=TRUE,S$15=FALSE),1,0)*'Assumptions - General'!$J$27 -> 0 | T20: =IF(AND(T$13=TRUE,T$15=FALSE),1,0)*'Assumptions - General'!$J$27 -> 0 | U20: =IF(AND(U$13=TRUE,U$15=FALSE),1,0)*'Assumptions - General'!$J$27 -> 0 | V20: =IF(AND(V$13=TRUE,V$15=FALSE),1,0)*'Assumptions - General'!$J$27 -> 0 | W20: =IF(AND(W$13=TRUE,W$15=FALSE),1,0)*'Assumptions - General'!$J$27 -> 0 | X20: =IF(AND(X$13=TRUE,X$15=FALSE),1,0)*'Assumptions - General'!$J$27 -> 0 | Y20: =IF(AND(Y$13=TRUE,Y$15=FALSE),1,0)*'Assumptions - General'!$J$27 -> 0 | Z20: =IF(AND(Z$13=TRUE,Z$15=FALSE),1,0)*'Assumptions - General'!$J$27 -> 0 | AA20: =IF(AND(AA$13=TRUE,AA$15=FALSE),1,0)*'Assumptions - General'!$J$27 -> 0 | AB20: =IF(AND(AB$13=TRUE,AB$15=FALSE),1,0)*'Assumptions - General'!$J$27 -> 0 | AC20: =IF(AND(AC$13=TRUE,AC$15=FALSE),1,0)*'Assumptions - General'!$J$27 -> 0 | AD20: =IF(AND(AD$13=TRUE,AD$15=FALSE),1,0)*'Assumptions - General'!$J$27 -> 0 | AE20: =IF(AND(AE$13=TRUE,AE$15=FALSE),1,0)*'Assumptions - General'!$J$27 -> 0 | AF20: =IF(AND(AF$13=TRUE,AF$15=FALSE),1,0)*'Assumptions - General'!$J$27 -> 0 | AG20: =IF(AND(AG$13=TRUE,AG$15=FALSE),1,0)*'Assumptions - General'!$J$27 -> 0 | AH20: =IF(AND(AH$13=TRUE,AH$15=FALSE),1,0)*'Assumptions - General'!$J$27 -> 0
B21: Active model period for consolidated | E21: =IF(AND(E$13=TRUE,E$15=FALSE),1,0)*'Assumptions - General'!$J$24 -> 1 | F21: =IF(AND(F$13=TRUE,F$15=FALSE),1,0)*'Assumptions - General'!$J$24 -> 1 | G21: =IF(AND(G$13=TRUE,G$15=FALSE),1,0)*'Assumptions - General'!$J$24 -> 1 | H21: =IF(AND(H$13=TRUE,H$15=FALSE),1,0)*'Assumptions - General'!$J$24 -> 1 | I21: =IF(AND(I$13=TRUE,I$15=FALSE),1,0)*'Assumptions - General'!$J$24 -> 1 | J21: =IF(AND(J$13=TRUE,J$15=FALSE),1,0)*'Assumptions - General'!$J$24 -> 1 | K21: =IF(AND(K$13=TRUE,K$15=FALSE),1,0)*'Assumptions - General'!$J$24 -> 1 | L21: =IF(AND(L$13=TRUE,L$15=FALSE),1,0)*'Assumptions - General'!$J$24 -> 1 | M21: =IF(AND(M$13=TRUE,M$15=FALSE),1,0)*'Assumptions - General'!$J$24 -> 1 | N21: =IF(AND(N$13=TRUE,N$15=FALSE),1,0)*'Assumptions - General'!$J$24 -> 1 | O21: =IF(AND(O$13=TRUE,O$15=FALSE),1,0)*'Assumptions - General'!$J$24 -> 1 | P21: =IF(AND(P$13=TRUE,P$15=FALSE),1,0)*'Assumptions - General'!$J$24 -> 1 | Q21: =IF(AND(Q$13=TRUE,Q$15=FALSE),1,0)*'Assumptions - General'!$J$24 -> 1 | R21: =IF(AND(R$13=TRUE,R$15=FALSE),1,0)*'Assumptions - General'!$J$24 -> 1 | S21: =IF(AND(S$13=TRUE,S$15=FALSE),1,0)*'Assumptions - General'!$J$24 -> 1 | T21: =IF(AND(T$13=TRUE,T$15=FALSE),1,0)*'Assumptions - General'!$J$24 -> 1 | U21: =IF(AND(U$13=TRUE,U$15=FALSE),1,0)*'Assumptions - General'!$J$24 -> 1 | V21: =IF(AND(V$13=TRUE,V$15=FALSE),1,0)*'Assumptions - General'!$J$24 -> 1 | W21: =IF(AND(W$13=TRUE,W$15=FALSE),1,0)*'Assumptions - General'!$J$24 -> 1 | X21: =IF(AND(X$13=TRUE,X$15=FALSE),1,0)*'Assumptions - General'!$J$24 -> 1 | Y21: =IF(AND(Y$13=TRUE,Y$15=FALSE),1,0)*'Assumptions - General'!$J$24 -> 1 | Z21: =IF(AND(Z$13=TRUE,Z$15=FALSE),1,0)*'Assumptions - General'!$J$24 -> 1 | AA21: =IF(AND(AA$13=TRUE,AA$15=FALSE),1,0)*'Assumptions - General'!$J$24 -> 1 | AB21: =IF(AND(AB$13=TRUE,AB$15=FALSE),1,0)*'Assumptions - General'!$J$24 -> 1 | AC21: =IF(AND(AC$13=TRUE,AC$15=FALSE),1,0)*'Assumptions - General'!$J$24 -> 1 | AD21: =IF(AND(AD$13=TRUE,AD$15=FALSE),1,0)*'Assumptions - General'!$J$24 -> 1 | AE21: =IF(AND(AE$13=TRUE,AE$15=FALSE),1,0)*'Assumptions - General'!$J$24 -> 1 | AF21: =IF(AND(AF$13=TRUE,AF$15=FALSE),1,0)*'Assumptions - General'!$J$24 -> 1 | AG21: =IF(AND(AG$13=TRUE,AG$15=FALSE),1,0)*'Assumptions - General'!$J$24 -> 1 | AH21: =IF(AND(AH$13=TRUE,AH$15=FALSE),1,0)*'Assumptions - General'!$J$24 -> 1
B23: ="Fixed assets for " &'Assumptions - General'!$E$24 -> Fixed assets for Ruritania Freight Rail Company
B25: Scenario analysis enabled (yes=1, no=2)? | D25: =IF('Scenarios - Consolidated'!$F$3=1,1,'Scenarios - Freight'!$F$3) -> 2
B26: CAPEX multiplier from scenario analysis | D26: =IF(AND('Scenarios - Consolidated'!$F$3=1,'Scenarios - Consolidated'!$I$20=1),'Scenarios - Consolidated'!$I$25,'Scenarios - Freight'!$I$25) -> 1
B27: <<<< Show/hide scenario analysis
A29: ='Assumptions - Freight'!E60 -> 1 | B29: ='Assumptions - Freight'!E26 -> Land
B30: Starting value of existing assets | D30: ='Assumptions - General'!$E$27 &" millions" -> R$ millions | F30: =IF(F$16=1,E34," ") -> 100 | G30: =IF(G$16=1,F34," ") -> 100 | H30: =IF(H$16=1,G34," ") -> 100 | I30: =IF(I$16=1,H34," ") -> 100 | J30: 100 | K30: 100 | L30: 100 | M30: 100 | N30: 100 | O30: 100 | P30: 100 | Q30: 100 | R30: 100 | S30: 100 | T30: 100 | U30: 100 | V30: 100 | W30: 100 | X30: 100 | Y30: 100 | Z30: 100 | AA30: 100 | AB30: 100 | AC30: 100 | AD30: 100 | AE30: 100 | AF30: 100 | AG30: 100 | AH30: 100
B31: Less sale of assets | D31: ='Assumptions - General'!$E$27 &" millions" -> R$ millions | F31: =IF(F$16=1,IF(F30>0,MIN(F30,'Assumptions - Freight'!F48),0)," ") -> 0 | G31: =IF(G$16=1,IF(G30>0,MIN(G30,'Assumptions - Freight'!G48),0)," ") -> 0 | H31: =IF(H$16=1,IF(H30>0,MIN(H30,'Assumptions - Freight'!H48),0)," ") -> 0 | I31: =IF(I$16=1,IF(I30>0,MIN(I30,'Assumptions - Freight'!I48),0)," ") -> 0 | J31: =IF(J$16=1,IF(J30>0,MIN(J30,'Assumptions - Freight'!J48),0)," ") -> 0 | K31: =IF(K$16=1,IF(K30>0,MIN(K30,'Assumptions - Freight'!K48),0)," ") -> 0 | L31: =IF(L$16=1,IF(L30>0,MIN(L30,'Assumptions - Freight'!L48),0)," ") -> 0 | M31: =IF(M$16=1,IF(M30>0,MIN(M30,'Assumptions - Freight'!M48),0)," ") -> 0 | N31: =IF(N$16=1,IF(N30>0,MIN(N30,'Assumptions - Freight'!N48),0)," ") -> 0 | O31: =IF(O$16=1,IF(O30>0,MIN(O30,'Assumptions - Freight'!O48),0)," ") -> 0 | P31: =IF(P$16=1,IF(P30>0,MIN(P30,'Assumptions - Freight'!P48),0)," ") -> 0 | Q31: =IF(Q$16=1,IF(Q30>0,MIN(Q30,'Assumptions - Freight'!Q48),0)," ") -> 0 | R31: =IF(R$16=1,IF(R30>0,MIN(R30,'Assumptions - Freight'!R48),0)," ") -> 0 | S31: =IF(S$16=1,IF(S30>0,MIN(S30,'Assumptions - Freight'!S48),0)," ") -> 0 | T31: =IF(T$16=1,IF(T30>0,MIN(T30,'Assumptions - Freight'!T48),0)," ") -> 0 | U31: =IF(U$16=1,IF(U30>0,MIN(U30,'Assumptions - Freight'!U48),0)," ") -> 0 | V31: =IF(V$16=1,IF(V30>0,MIN(V30,'Assumptions - Freight'!V48),0)," ") -> 0 | W31: =IF(W$16=1,IF(W30>0,MIN(W30,'Assumptions - Freight'!W48),0)," ") -> 0 | X31: =IF(X$16=1,IF(X30>0,MIN(X30,'Assumptions - Freight'!X48),0)," ") -> 0 | Y31: =IF(Y$16=1,IF(Y30>0,MIN(Y30,'Assumptions - Freight'!Y48),0)," ") -> 0 | Z31: =IF(Z$16=1,IF(Z30>0,MIN(Z30,'Assumptions - Freight'!Z48),0)," ") -> 0 | AA31: =IF(AA$16=1,IF(AA30>0,MIN(AA30,'Assumptions - Freight'!AA48),0)," ") -> 0 | AB31: =IF(AB$16=1,IF(AB30>0,MIN(AB30,'Assumptions - Freight'!AB48),0)," ") -> 0 | AC31: =IF(AC$16=1,IF(AC30>0,MIN(AC30,'Assumptions - Freight'!AC48),0)," ") -> 0 | AD31: =IF(AD$16=1,IF(AD30>0,MIN(AD30,'Assumptions - Freight'!AD48),0)," ") -> 0 | AE31: =IF(AE$16=1,IF(AE30>0,MIN(AE30,'Assumptions - Freight'!AE48),0)," ") -> 0 | AF31: =IF(AF$16=1,IF(AF30>0,MIN(AF30,'Assumptions - Freight'!AF48),0)," ") -> 0 | AG31: =IF(AG$16=1,IF(AG30>0,MIN(AG30,'Assumptions - Freight'!AG48),0)," ") -> 0 | AH31: =IF(AH$16=1,IF(AH30>0,MIN(AH30,'Assumptions - Freight'!AH48),0)," ") -> 0
B32: =IF(A29=1,"Less depreciation of existing assets","Less depreciation of assets") -> Less depreciation of existing assets | D32: ='Assumptions - General'!$E$27 &" millions" -> R$ millions | F32: =IF(F$16=1,IF(F30-F31>0,(MIN((F30-F31),'Assumptions - Freight'!F59)),0)," ") -> 0 | G32: =IF(G$16=1,IF(G30-G31>0,(MIN((G30-G31),'Assumptions - Freight'!G59)),0)," ") -> 0 | H32: =IF(H$16=1,IF(H30-H31>0,(MIN((H30-H31),'Assumptions - Freight'!H59)),0)," ") -> 0 | I32: =IF(I$16=1,IF(I30-I31>0,(MIN((I30-I31),'Assumptions - Freight'!I59)),0)," ") -> 0 | J32: =IF(J$16=1,IF(J30-J31>0,(MIN((J30-J31),'Assumptions - Freight'!J59)),0)," ") -> 0 | K32: =IF(K$16=1,IF(K30-K31>0,(MIN((K30-K31),'Assumptions - Freight'!K59)),0)," ") -> 0 | L32: =IF(L$16=1,IF(L30-L31>0,(MIN((L30-L31),'Assumptions - Freight'!L59)),0)," ") -> 0 | M32: =IF(M$16=1,IF(M30-M31>0,(MIN((M30-M31),'Assumptions - Freight'!M59)),0)," ") -> 0 | N32: =IF(N$16=1,IF(N30-N31>0,(MIN((N30-N31),'Assumptions - Freight'!N59)),0)," ") -> 0 | O32: =IF(O$16=1,IF(O30-O31>0,(MIN((O30-O31),'Assumptions - Freight'!O59)),0)," ") -> 0 | P32: =IF(P$16=1,IF(P30-P31>0,(MIN((P30-P31),'Assumptions - Freight'!P59)),0)," ") -> 0 | Q32: =IF(Q$16=1,IF(Q30-Q31>0,(MIN((Q30-Q31),'Assumptions - Freight'!Q59)),0)," ") -> 0 | R32: =IF(R$16=1,IF(R30-R31>0,(MIN((R30-R31),'Assumptions - Freight'!R59)),0)," ") -> 0 | S32: =IF(S$16=1,IF(S30-S31>0,(MIN((S30-S31),'Assumptions - Freight'!S59)),0)," ") -> 0 | T32: =IF(T$16=1,IF(T30-T31>0,(MIN((T30-T31),'Assumptions - Freight'!T59)),0)," ") -> 0 | U32: =IF(U$16=1,IF(U30-U31>0,(MIN((U30-U31),'Assumptions - Freight'!U59)),0)," ") -> 0 | V32: =IF(V$16=1,IF(V30-V31>0,(MIN((V30-V31),'Assumptions - Freight'!V59)),0)," ") -> 0 | W32: =IF(W$16=1,IF(W30-W31>0,(MIN((W30-W31),'Assumptions - Freight'!W59)),0)," ") -> 0 | X32: =IF(X$16=1,IF(X30-X31>0,(MIN((X30-X31),'Assumptions - Freight'!X59)),0)," ") -> 0 | Y32: =IF(Y$16=1,IF(Y30-Y31>0,(MIN((Y30-Y31),'Assumptions - Freight'!Y59)),0)," ") -> 0 | Z32: =IF(Z$16=1,IF(Z30-Z31>0,(MIN((Z30-Z31),'Assumptions - Freight'!Z59)),0)," ") -> 0 | AA32: =IF(AA$16=1,IF(AA30-AA31>0,(MIN((AA30-AA31),'Assumptions - Freight'!AA59)),0)," ") -> 0 | AB32: =IF(AB$16=1,IF(AB30-AB31>0,(MIN((AB30-AB31),'Assumptions - Freight'!AB59)),0)," ") -> 0 | AC32: =IF(AC$16=1,IF(AC30-AC31>0,(MIN((AC30-AC31),'Assumptions - Freight'!AC59)),0)," ") -> 0 | AD32: =IF(AD$16=1,IF(AD30-AD31>0,(MIN((AD30-AD31),'Assumptions - Freight'!AD59)),0)," ") -> 0 | AE32: =IF(AE$16=1,IF(AE30-AE31>0,(MIN((AE30-AE31),'Assumptions - Freight'!AE59)),0)," ") -> 0 | AF32: =IF(AF$16=1,IF(AF30-AF31>0,(MIN((AF30-AF31),'Assumptions - Freight'!AF59)),0)," ") -> 0 | AG32: =IF(AG$16=1,IF(AG30-AG31>0,(MIN((AG30-AG31),'Assumptions - Freight'!AG59)),0)," ") -> 0 | AH32: =IF(AH$16=1,IF(AH30-AH31>0,(MIN((AH30-AH31),'Assumptions - Freight'!AH59)),0)," ") -> 0
B33: =IF(A29=1,"Accumulated depreciation of existing assets","Accumulated depreciation of assets") -> Accumulated depreciation of existing assets | D33: ='Assumptions - General'!$E$27 &" millions" -> R$ millions | F33: =IF(F$16=1,SUM($E32:F32)," ") -> 0 | G33: =IF(G$16=1,SUM($E32:G32)," ") -> 0 | H33: =IF(H$16=1,SUM($E32:H32)," ") -> 0 | I33: =IF(I$16=1,SUM($E32:I32)," ") -> 0 | J33: =IF(J$16=1,SUM($E32:J32)," ") -> 0 | K33: =IF(K$16=1,SUM($E32:K32)," ") -> 0 | L33: =IF(L$16=1,SUM($E32:L32)," ") -> 0 | M33: =IF(M$16=1,SUM($E32:M32)," ") -> 0 | N33: =IF(N$16=1,SUM($E32:N32)," ") -> 0 | O33: =IF(O$16=1,SUM($E32:O32)," ") -> 0 | P33: =IF(P$16=1,SUM($E32:P32)," ") -> 0 | Q33: =IF(Q$16=1,SUM($E32:Q32)," ") -> 0 | R33: =IF(R$16=1,SUM($E32:R32)," ") -> 0 | S33: =IF(S$16=1,SUM($E32:S32)," ") -> 0 | T33: =IF(T$16=1,SUM($E32:T32)," ") -> 0 | U33: =IF(U$16=1,SUM($E32:U32)," ") -> 0 | V33: =IF(V$16=1,SUM($E32:V32)," ") -> 0 | W33: =IF(W$16=1,SUM($E32:W32)," ") -> 0 | X33: =IF(X$16=1,SUM($E32:X32)," ") -> 0 | Y33: =IF(Y$16=1,SUM($E32:Y32)," ") -> 0 | Z33: =IF(Z$16=1,SUM($E32:Z32)," ") -> 0 | AA33: =IF(AA$16=1,SUM($E32:AA32)," ") -> 0 | AB33: =IF(AB$16=1,SUM($E32:AB32)," ") -> 0 | AC33: =IF(AC$16=1,SUM($E32:AC32)," ") -> 0 | AD33: =IF(AD$16=1,SUM($E32:AD32)," ") -> 0 | AE33: =IF(AE$16=1,SUM($E32:AE32)," ") -> 0 | AF33: =IF(AF$16=1,SUM($E32:AF32)," ") -> 0 | AG33: =IF(AG$16=1,SUM($E32:AG32)," ") -> 0 | AH33: =IF(AH$16=1,SUM($E32:AH32)," ") -> 0
B34: Ending value of existing assets | D34: ='Assumptions - General'!$E$27 &" millions" -> R$ millions | E34: =IF(E$16=1,'Assumptions - Freight'!E33," ") -> 100 | F34: =IF(F$16=1,F30-F31-F32," ") -> 100 | G34: =IF(G$16=1,G30-G31-G32," ") -> 100 | H34: 100 | I34: 100 | J34: 100 | K34: 100 | L34: 100 | M34: 100 | N34: 100 | O34: 100 | P34: 100 | Q34: 100 | R34: 100 | S34: 100 | T34: 100 | U34: 100 | V34: 100 | W34: 100 | X34: 100 | Y34: 100 | Z34: 100 | AA34: 100 | AB34: 100 | AC34: 100 | AD34: 100 | AE34: 100 | AF34: 100 | AG34: 100 | AH34: 100
B36: Starting value of new assets | D36: ='Assumptions - General'!$E$27 &" millions" -> R$ millions | F36: =IF(F16=1,E41," ") -> 0 | G36: 10 | H36: 19 | I36: 27.5 | J36: 35.5 | K36: 43 | L36: 50 | M36: 56.5 | N36: 62.5 | O36: 68 | P36: 73 | Q36: 77.5 | R36: 81.5 | S36: 85 | T36: 88 | U36: 90.5 | V36: 92.5 | W36: 94 | X36: 95 | Y36: 95.5 | Z36: 95.5 | AA36: 95 | AB36: 94 | AC36: 92.5 | AD36: 90.5 | AE36: 88 | AF36: 85 | AG36: 81.5 | AH36: 77.5
B37: Add CAPEX | D37: ='Assumptions - General'!$E$27 &" millions" -> R$ millions | F37: =IF(F$16=1,IF($D$25=1,$D$26*'Assumptions - Freight'!F40,'Assumptions - Freight'!F40)," ") -> 10 | G37: =IF(G$16=1,IF($D$25=1,$D$26*'Assumptions - Freight'!G40,'Assumptions - Freight'!G40)," ") -> 10 | H37: =IF(H$16=1,IF($D$25=1,$D$26*'Assumptions - Freight'!H40,'Assumptions - Freight'!H40)," ") -> 10 | I37: =IF(I$16=1,IF($D$25=1,$D$26*'Assumptions - Freight'!I40,'Assumptions - Freight'!I40)," ") -> 10 | J37: =IF(J$16=1,IF($D$25=1,$D$26*'Assumptions - Freight'!J40,'Assumptions - Freight'!J40)," ") -> 10 | K37: =IF(K$16=1,IF($D$25=1,$D$26*'Assumptions - Freight'!K40,'Assumptions - Freight'!K40)," ") -> 10 | L37: =IF(L$16=1,IF($D$25=1,$D$26*'Assumptions - Freight'!L40,'Assumptions - Freight'!L40)," ") -> 10 | M37: =IF(M$16=1,IF($D$25=1,$D$26*'Assumptions - Freight'!M40,'Assumptions - Freight'!M40)," ") -> 10 | N37: =IF(N$16=1,IF($D$25=1,$D$26*'Assumptions - Freight'!N40,'Assumptions - Freight'!N40)," ") -> 10 | O37: =IF(O$16=1,IF($D$25=1,$D$26*'Assumptions - Freight'!O40,'Assumptions - Freight'!O40)," ") -> 10 | P37: =IF(P$16=1,IF($D$25=1,$D$26*'Assumptions - Freight'!P40,'Assumptions - Freight'!P40)," ") -> 10 | Q37: =IF(Q$16=1,IF($D$25=1,$D$26*'Assumptions - Freight'!Q40,'Assumptions - Freight'!Q40)," ") -> 10 | R37: =IF(R$16=1,IF($D$25=1,$D$26*'Assumptions - Freight'!R40,'Assumptions - Freight'!R40)," ") -> 10 | S37: =IF(S$16=1,IF($D$25=1,$D$26*'Assumptions - Freight'!S40,'Assumptions - Freight'!S40)," ") -> 10 | T37: =IF(T$16=1,IF($D$25=1,$D$26*'Assumptions - Freight'!T40,'Assumptions - Freight'!T40)," ") -> 10 | U37: =IF(U$16=1,IF($D$25=1,$D$26*'Assumptions - Freight'!U40,'Assumptions - Freight'!U40)," ") -> 10 | V37: =IF(V$16=1,IF($D$25=1,$D$26*'Assumptions - Freight'!V40,'Assumptions - Freight'!V40)," ") -> 10 | W37: =IF(W$16=1,IF($D$25=1,$D$26*'Assumptions - Freight'!W40,'Assumptions - Freight'!W40)," ") -> 10 | X37: =IF(X$16=1,IF($D$25=1,$D$26*'Assumptions - Freight'!X40,'Assumptions - Freight'!X40)," ") -> 10 | Y37: =IF(Y$16=1,IF($D$25=1,$D$26*'Assumptions - Freight'!Y40,'Assumptions - Freight'!Y40)," ") -> 10 | Z37: =IF(Z$16=1,IF($D$25=1,$D$26*'Assumptions - Freight'!Z40,'Assumptions - Freight'!Z40)," ") -> 10 | AA37: =IF(AA$16=1,IF($D$25=1,$D$26*'Assumptions - Freight'!AA40,'Assumptions - Freight'!AA40)," ") -> 10 | AB37: =IF(AB$16=1,IF($D$25=1,$D$26*'Assumptions - Freight'!AB40,'Assumptions - Freight'!AB40)," ") -> 10 | AC37: =IF(AC$16=1,IF($D$25=1,$D$26*'Assumptions - Freight'!AC40,'Assumptions - Freight'!AC40)," ") -> 10 | AD37: =IF(AD$16=1,IF($D$25=1,$D$26*'Assumptions - Freight'!AD40,'Assumptions - Freight'!AD40)," ") -> 10 | AE37: =IF(AE$16=1,IF($D$25=1,$D$26*'Assumptions - Freight'!AE40,'Assumptions - Freight'!AE40)," ") -> 10 | AF37: =IF(AF$16=1,IF($D$25=1,$D$26*'Assumptions - Freight'!AF40,'Assumptions - Freight'!AF40)," ") -> 10 | AG37: =IF(AG$16=1,IF($D$25=1,$D$26*'Assumptions - Freight'!AG40,'Assumptions - Freight'!AG40)," ") -> 10 | AH37: =IF(AH$16=1,IF($D$25=1,$D$26*'Assumptions - Freight'!AH40,'Assumptions - Freight'!AH40)," ") -> 10
B38: Less sale of assets | D38: ='Assumptions - General'!$E$27 &" millions" -> R$ millions | F38: =IF(F$16=1,'Assumptions - Freight'!F48-Calculations!F31," ") -> 0 | G38: =IF(G$16=1,'Assumptions - Freight'!G48-Calculations!G31," ") -> 0 | H38: =IF(H$16=1,'Assumptions - Freight'!H48-Calculations!H31," ") -> 0 | I38: =IF(I$16=1,'Assumptions - Freight'!I48-Calculations!I31," ") -> 0 | J38: =IF(J$16=1,'Assumptions - Freight'!J48-Calculations!J31," ") -> 0 | K38: =IF(K$16=1,'Assumptions - Freight'!K48-Calculations!K31," ") -> 0 | L38: =IF(L$16=1,'Assumptions - Freight'!L48-Calculations!L31," ") -> 0 | M38: =IF(M$16=1,'Assumptions - Freight'!M48-Calculations!M31," ") -> 0 | N38: =IF(N$16=1,'Assumptions - Freight'!N48-Calculations!N31," ") -> 0 | O38: =IF(O$16=1,'Assumptions - Freight'!O48-Calculations!O31," ") -> 0 | P38: =IF(P$16=1,'Assumptions - Freight'!P48-Calculations!P31," ") -> 0 | Q38: =IF(Q$16=1,'Assumptions - Freight'!Q48-Calculations!Q31," ") -> 0 | R38: =IF(R$16=1,'Assumptions - Freight'!R48-Calculations!R31," ") -> 0 | S38: =IF(S$16=1,'Assumptions - Freight'!S48-Calculations!S31," ") -> 0 | T38: =IF(T$16=1,'Assumptions - Freight'!T48-Calculations!T31," ") -> 0 | U38: =IF(U$16=1,'Assumptions - Freight'!U48-Calculations!U31," ") -> 0 | V38: =IF(V$16=1,'Assumptions - Freight'!V48-Calculations!V31," ") -> 0 | W38: =IF(W$16=1,'Assumptions - Freight'!W48-Calculations!W31," ") -> 0 | X38: =IF(X$16=1,'Assumptions - Freight'!X48-Calculations!X31," ") -> 0 | Y38: =IF(Y$16=1,'Assumptions - Freight'!Y48-Calculations!Y31," ") -> 0 | Z38: =IF(Z$16=1,'Assumptions - Freight'!Z48-Calculations!Z31," ") -> 0 | AA38: =IF(AA$16=1,'Assumptions - Freight'!AA48-Calculations!AA31," ") -> 0 | AB38: =IF(AB$16=1,'Assumptions - Freight'!AB48-Calculations!AB31," ") -> 0 | AC38: =IF(AC$16=1,'Assumptions - Freight'!AC48-Calculations!AC31," ") -> 0 | AD38: =IF(AD$16=1,'Assumptions - Freight'!AD48-Calculations!AD31," ") -> 0 | AE38: =IF(AE$16=1,'Assumptions - Freight'!AE48-Calculations!AE31," ") -> 0 | AF38: =IF(AF$16=1,'Assumptions - Freight'!AF48-Calculations!AF31," ") -> 0 | AG38: =IF(AG$16=1,'Assumptions - Freight'!AG48-Calculations!AG31," ") -> 0 | AH38: =IF(AH$16=1,'Assumptions - Freight'!AH48-Calculations!AH31," ") -> 0
B39: Less depreciation of new assets | D39: ='Assumptions - General'!$E$27 &" millions" -> R$ millions | F39: =IF(F$16=1,(IF($A29=1,IF(F36-F38>0,(MIN((F36-F38),(SUM($E37:F37)-SUM($E38:F38))/'Assumptions - Freight'!$E62)),0),'Assumptions - Freight'!F63))," ") -> 0 | G39: =IF(G$16=1,(IF($A29=1,IF(G36-G38>0,(MIN((G36-G38),(SUM($E37:G37)-SUM($E38:G38))/'Assumptions - Freight'!$E62)),0),'Assumptions - Freight'!G63))," ") -> 1 | H39: =IF(H$16=1,(IF($A29=1,IF(H36-H38>0,(MIN((H36-H38),(SUM($E37:H37)-SUM($E38:H38))/'Assumptions - Freight'!$E62)),0),'Assumptions - Freight'!H63))," ") -> 1.5 | I39: =IF(I$16=1,(IF($A29=1,IF(I36-I38>0,(MIN((I36-I38),(SUM($E37:I37)-SUM($E38:I38))/'Assumptions - Freight'!$E62)),0),'Assumptions - Freight'!I63))," ") -> 2 | J39: =IF(J$16=1,(IF($A29=1,IF(J36-J38>0,(MIN((J36-J38),(SUM($E37:J37)-SUM($E38:J38))/'Assumptions - Freight'!$E62)),0),'Assumptions - Freight'!J63))," ") -> 2.5 | K39: =IF(K$16=1,(IF($A29=1,IF(K36-K38>0,(MIN((K36-K38),(SUM($E37:K37)-SUM($E38:K38))/'Assumptions - Freight'!$E62)),0),'Assumptions - Freight'!K63))," ") -> 3 | L39: =IF(L$16=1,(IF($A29=1,IF(L36-L38>0,(MIN((L36-L38),(SUM($E37:L37)-SUM($E38:L38))/'Assumptions - Freight'!$E62)),0),'Assumptions - Freight'!L63))," ") -> 3.5 | M39: =IF(M$16=1,(IF($A29=1,IF(M36-M38>0,(MIN((M36-M38),(SUM($E37:M37)-SUM($E38:M38))/'Assumptions - Freight'!$E62)),0),'Assumptions - Freight'!M63))," ") -> 4 | N39: =IF(N$16=1,(IF($A29=1,IF(N36-N38>0,(MIN((N36-N38),(SUM($E37:N37)-SUM($E38:N38))/'Assumptions - Freight'!$E62)),0),'Assumptions - Freight'!N63))," ") -> 4.5 | O39: =IF(O$16=1,(IF($A29=1,IF(O36-O38>0,(MIN((O36-O38),(SUM($E37:O37)-SUM($E38:O38))/'Assumptions - Freight'!$E62)),0),'Assumptions - Freight'!O63))," ") -> 5 | P39: =IF(P$16=1,(IF($A29=1,IF(P36-P38>0,(MIN((P36-P38),(SUM($E37:P37)-SUM($E38:P38))/'Assumptions - Freight'!$E62)),0),'Assumptions - Freight'!P63))," ") -> 5.5 | Q39: =IF(Q$16=1,(IF($A29=1,IF(Q36-Q38>0,(MIN((Q36-Q38),(SUM($E37:Q37)-SUM($E38:Q38))/'Assumptions - Freight'!$E62)),0),'Assumptions - Freight'!Q63))," ") -> 6 | R39: =IF(R$16=1,(IF($A29=1,IF(R36-R38>0,(MIN((R36-R38),(SUM($E37:R37)-SUM($E38:R38))/'Assumptions - Freight'!$E62)),0),'Assumptions - Freight'!R63))," ") -> 6.5 | S39: =IF(S$16=1,(IF($A29=1,IF(S36-S38>0,(MIN((S36-S38),(SUM($E37:S37)-SUM($E38:S38))/'Assumptions - Freight'!$E62)),0),'Assumptions - Freight'!S63))," ") -> 7 | T39: =IF(T$16=1,(IF($A29=1,IF(T36-T38>0,(MIN((T36-T38),(SUM($E37:T37)-SUM($E38:T38))/'Assumptions - Freight'!$E62)),0),'Assumptions - Freight'!T63))," ") -> 7.5 | U39: =IF(U$16=1,(IF($A29=1,IF(U36-U38>0,(MIN((U36-U38),(SUM($E37:U37)-SUM($E38:U38))/'Assumptions - Freight'!$E62)),0),'Assumptions - Freight'!U63))," ") -> 8 | V39: =IF(V$16=1,(IF($A29=1,IF(V36-V38>0,(MIN((V36-V38),(SUM($E37:V37)-SUM($E38:V38))/'Assumptions - Freight'!$E62)),0),'Assumptions - Freight'!V63))," ") -> 8.5 | W39: =IF(W$16=1,(IF($A29=1,IF(W36-W38>0,(MIN((W36-W38),(SUM($E37:W37)-SUM($E38:W38))/'Assumptions - Freight'!$E62)),0),'Assumptions - Freight'!W63))," ") -> 9 | X39: =IF(X$16=1,(IF($A29=1,IF(X36-X38>0,(MIN((X36-X38),(SUM($E37:X37)-SUM($E38:X38))/'Assumptions - Freight'!$E62)),0),'Assumptions - Freight'!X63))," ") -> 9.5 | Y39: =IF(Y$16=1,(IF($A29=1,IF(Y36-Y38>0,(MIN((Y36-Y38),(SUM($E37:Y37)-SUM($E38:Y38))/'Assumptions - Freight'!$E62)),0),'Assumptions - Freight'!Y63))," ") -> 10 | Z39: =IF(Z$16=1,(IF($A29=1,IF(Z36-Z38>0,(MIN((Z36-Z38),(SUM($E37:Z37)-SUM($E38:Z38))/'Assumptions - Freight'!$E62)),0),'Assumptions - Freight'!Z63))," ") -> 10.5 | AA39: =IF(AA$16=1,(IF($A29=1,IF(AA36-AA38>0,(MIN((AA36-AA38),(SUM($E37:AA37)-SUM($E38:AA38))/'Assumptions - Freight'!$E62)),0),'Assumptions - Freight'!AA63))," ") -> 11 | AB39: =IF(AB$16=1,(IF($A29=1,IF(AB36-AB38>0,(MIN((AB36-AB38),(SUM($E37:AB37)-SUM($E38:AB38))/'Assumptions - Freight'!$E62)),0),'Assumptions - Freight'!AB63))," ") -> 11.5 | AC39: =IF(AC$16=1,(IF($A29=1,IF(AC36-AC38>0,(MIN((AC36-AC38),(SUM($E37:AC37)-SUM($E38:AC38))/'Assumptions - Freight'!$E62)),0),'Assumptions - Freight'!AC63))," ") -> 12 | AD39: =IF(AD$16=1,(IF($A29=1,IF(AD36-AD38>0,(MIN((AD36-AD38),(SUM($E37:AD37)-SUM($E38:AD38))/'Assumptions - Freight'!$E62)),0),'Assumptions - Freight'!AD63))," ") -> 12.5 | AE39: =IF(AE$16=1,(IF($A29=1,IF(AE36-AE38>0,(MIN((AE36-AE38),(SUM($E37:AE37)-SUM($E38:AE38))/'Assumptions - Freight'!$E62)),0),'Assumptions - Freight'!AE63))," ") -> 13 | AF39: =IF(AF$16=1,(IF($A29=1,IF(AF36-AF38>0,(MIN((AF36-AF38),(SUM($E37:AF37)-SUM($E38:AF38))/'Assumptions - Freight'!$E62)),0),'Assumptions - Freight'!AF63))," ") -> 13.5 | AG39: =IF(AG$16=1,(IF($A29=1,IF(AG36-AG38>0,(MIN((AG36-AG38),(SUM($E37:AG37)-SUM($E38:AG38))/'Assumptions - Freight'!$E62)),0),'Assumptions - Freight'!AG63))," ") -> 14 | AH39: =IF(AH$16=1,(IF($A29=1,IF(AH36-AH38>0,(MIN((AH36-AH38),(SUM($E37:AH37)-SUM($E38:AH38))/'Assumptions - Freight'!$E62)),0),'Assumptions - Freight'!AH63))," ") -> 14.5
B40: Accumulated depreciation of new assets | D40: ='Assumptions - General'!$E$27 &" millions" -> R$ millions | F40: =IF(F$16=1,SUM($E39:F39)," ") -> 0 | G40: =IF(G$16=1,SUM($E39:G39)," ") -> 1 | H40: =IF(H$16=1,SUM($E39:H39)," ") -> 2.5 | I40: =IF(I$16=1,SUM($E39:I39)," ") -> 4.5 | J40: =IF(J$16=1,SUM($E39:J39)," ") -> 7 | K40: =IF(K$16=1,SUM($E39:K39)," ") -> 10 | L40: =IF(L$16=1,SUM($E39:L39)," ") -> 13.5 | M40: =IF(M$16=1,SUM($E39:M39)," ") -> 17.5 | N40: =IF(N$16=1,SUM($E39:N39)," ") -> 22 | O40: =IF(O$16=1,SUM($E39:O39)," ") -> 27 | P40: =IF(P$16=1,SUM($E39:P39)," ") -> 32.5 | Q40: =IF(Q$16=1,SUM($E39:Q39)," ") -> 38.5 | R40: =IF(R$16=1,SUM($E39:R39)," ") -> 45 | S40: =IF(S$16=1,SUM($E39:S39)," ") -> 52 | T40: =IF(T$16=1,SUM($E39:T39)," ") -> 59.5 | U40: =IF(U$16=1,SUM($E39:U39)," ") -> 67.5 | V40: =IF(V$16=1,SUM($E39:V39)," ") -> 76 | W40: =IF(W$16=1,SUM($E39:W39)," ") -> 85 | X40: =IF(X$16=1,SUM($E39:X39)," ") -> 94.5 | Y40: =IF(Y$16=1,SUM($E39:Y39)," ") -> 104.5 | Z40: =IF(Z$16=1,SUM($E39:Z39)," ") -> 115 | AA40: =IF(AA$16=1,SUM($E39:AA39)," ") -> 126 | AB40: =IF(AB$16=1,SUM($E39:AB39)," ") -> 137.5 | AC40: =IF(AC$16=1,SUM($E39:AC39)," ") -> 149.5 | AD40: =IF(AD$16=1,SUM($E39:AD39)," ") -> 162 | AE40: =IF(AE$16=1,SUM($E39:AE39)," ") -> 175 | AF40: =IF(AF$16=1,SUM($E39:AF39)," ") -> 188.5 | AG40: =IF(AG$16=1,SUM($E39:AG39)," ") -> 202.5 | AH40: =IF(AH$16=1,SUM($E39:AH39)," ") -> 217
B41: Ending value of new assets | D41: ='Assumptions - General'!$E$27 &" millions" -> R$ millions | F41: =IF(F16=1,F36+F37-F38-F39," ") -> 10 | G41: 19 | H41: 27.5 | I41: 35.5 | J41: 43 | K41: 50 | L41: 56.5 | M41: 62.5 | N41: 68 | O41: 73 | P41: 77.5 | Q41: 81.5 | R41: 85 | S41: 88 | T41: 90.5 | U41: 92.5 | V41: 94 | W41: 95 | X41: 95.5 | Y41: 95.5 | Z41: 95 | AA41: 94 | AB41: 92.5 | AC41: 90.5 | AD41: 88 | AE41: 85 | AF41: 81.5 | AG41: 77.5 | AH41: 73
B43: Total ending net asset value | D43: ='Assumptions - General'!$E$27 &" millions" -> R$ millions | E43: =IF(E16=1,E34+E41," ") -> 100 | F43: 110 | G43: 119 | H43: 127.5 | I43: 135.5 | J43: 143 | K43: 150 | L43: 156.5 | M43: 162.5 | N43: 168 | O43: 173 | P43: 177.5 | Q43: 181.5 | R43: 185 | S43: 188 | T43: 190.5 | U43: 192.5 | V43: 194 | W43: 195 | X43: 195.5 | Y43: 195.5 | Z43: 195 | AA43: 194 | AB43: 192.5 | AC43: 190.5 | AD43: 188 | AE43: 185 | AF43: 181.5 | AG43: 177.5 | AH43: 173
A45: ='Assumptions - Freight'!E65 -> 1 | B45: ='Assumptions - Freight'!E27 -> Buildings and structures
B46: ="Starting value " -> Starting value | D46: ='Assumptions - General'!$E$27 &" millions" -> R$ millions | F46: =IF(F$16=1,E50," ") -> 150 | G46: 124.2857143 | H46: 99.28571429 | I46: 75 | J46: 51.42857143 | K46: 28.57142857 | L46: 6.428571429 | M46: 0 | N46: 0 | O46: 0 | P46: 0 | Q46: 0 | R46: 0 | S46: 0 | T46: 0 | U46: 0 | V46: 0 | W46: 0 | X46: 0 | Y46: 0 | Z46: 0 | AA46: 0 | AB46: 0 | AC46: 0 | AD46: 0 | AE46: 0 | AF46: 0 | AG46: 0 | AH46: 0
B47: Less sale of assets | D47: ='Assumptions - General'!$E$27 &" millions" -> R$ millions | F47: =IF(F$16=1,IF(F46>0,MIN(F46,'Assumptions - Freight'!F49),0)," ") -> 5 | G47: =IF(G$16=1,IF(G46>0,MIN(G46,'Assumptions - Freight'!G49),0)," ") -> 5 | H47: =IF(H$16=1,IF(H46>0,MIN(H46,'Assumptions - Freight'!H49),0)," ") -> 5 | I47: =IF(I$16=1,IF(I46>0,MIN(I46,'Assumptions - Freight'!I49),0)," ") -> 5 | J47: =IF(J$16=1,IF(J46>0,MIN(J46,'Assumptions - Freight'!J49),0)," ") -> 5 | K47: =IF(K$16=1,IF(K46>0,MIN(K46,'Assumptions - Freight'!K49),0)," ") -> 5 | L47: =IF(L$16=1,IF(L46>0,MIN(L46,'Assumptions - Freight'!L49),0)," ") -> 5 | M47: =IF(M$16=1,IF(M46>0,MIN(M46,'Assumptions - Freight'!M49),0)," ") -> 0 | N47: =IF(N$16=1,IF(N46>0,MIN(N46,'Assumptions - Freight'!N49),0)," ") -> 0 | O47: =IF(O$16=1,IF(O46>0,MIN(O46,'Assumptions - Freight'!O49),0)," ") -> 0 | P47: =IF(P$16=1,IF(P46>0,MIN(P46,'Assumptions - Freight'!P49),0)," ") -> 0 | Q47: =IF(Q$16=1,IF(Q46>0,MIN(Q46,'Assumptions - Freight'!Q49),0)," ") -> 0 | R47: =IF(R$16=1,IF(R46>0,MIN(R46,'Assumptions - Freight'!R49),0)," ") -> 0 | S47: =IF(S$16=1,IF(S46>0,MIN(S46,'Assumptions - Freight'!S49),0)," ") -> 0 | T47: =IF(T$16=1,IF(T46>0,MIN(T46,'Assumptions - Freight'!T49),0)," ") -> 0 | U47: =IF(U$16=1,IF(U46>0,MIN(U46,'Assumptions - Freight'!U49),0)," ") -> 0 | V47: =IF(V$16=1,IF(V46>0,MIN(V46,'Assumptions - Freight'!V49),0)," ") -> 0 | W47: =IF(W$16=1,IF(W46>0,MIN(W46,'Assumptions - Freight'!W49),0)," ") -> 0 | X47: =IF(X$16=1,IF(X46>0,MIN(X46,'Assumptions - Freight'!X49),0)," ") -> 0 | Y47: =IF(Y$16=1,IF(Y46>0,MIN(Y46,'Assumptions - Freight'!Y49),0)," ") -> 0 | Z47: =IF(Z$16=1,IF(Z46>0,MIN(Z46,'Assumptions - Freight'!Z49),0)," ") -> 0 | AA47: =IF(AA$16=1,IF(AA46>0,MIN(AA46,'Assumptions - Freight'!AA49),0)," ") -> 0 | AB47: =IF(AB$16=1,IF(AB46>0,MIN(AB46,'Assumptions - Freight'!AB49),0)," ") -> 0 | AC47: =IF(AC$16=1,IF(AC46>0,MIN(AC46,'Assumptions - Freight'!AC49),0)," ") -> 0 | AD47: =IF(AD$16=1,IF(AD46>0,MIN(AD46,'Assumptions - Freight'!AD49),0)," ") -> 0 | AE47: =IF(AE$16=1,IF(AE46>0,MIN(AE46,'Assumptions - Freight'!AE49),0)," ") -> 0 | AF47: =IF(AF$16=1,IF(AF46>0,MIN(AF46,'Assumptions - Freight'!AF49),0)," ") -> 0 | AG47: =IF(AG$16=1,IF(AG46>0,MIN(AG46,'Assumptions - Freight'!AG49),0)," ") -> 0 | AH47: =IF(AH$16=1,IF(AH46>0,MIN(AH46,'Assumptions - Freight'!AH49),0)," ") -> 0
B48: =IF(A45=1,"Less depreciation of existing assets","Less depreciation of assets") -> Less depreciation of existing assets | D48: ='Assumptions - General'!$E$27 &" millions" -> R$ millions | F48: =IF(F$16=1,(IF($A45=1,IF(F46-F47>0,(MIN((F46-F47),($E50-SUM($E47:F47))/'Assumptions - Freight'!$E67)),0),'Assumptions - Freight'!F70))," ") -> 20.71428571 | G48: =IF(G$16=1,(IF($A45=1,IF(G46-G47>0,(MIN((G46-G47),($E50-SUM($E47:G47))/'Assumptions - Freight'!$E67)),0),'Assumptions - Freight'!G70))," ") -> 20 | H48: =IF(H$16=1,(IF($A45=1,IF(H46-H47>0,(MIN((H46-H47),($E50-SUM($E47:H47))/'Assumptions - Freight'!$E67)),0),'Assumptions - Freight'!H70))," ") -> 19.28571429 | I48: =IF(I$16=1,(IF($A45=1,IF(I46-I47>0,(MIN((I46-I47),($E50-SUM($E47:I47))/'Assumptions - Freight'!$E67)),0),'Assumptions - Freight'!I70))," ") -> 18.57142857 | J48: =IF(J$16=1,(IF($A45=1,IF(J46-J47>0,(MIN((J46-J47),($E50-SUM($E47:J47))/'Assumptions - Freight'!$E67)),0),'Assumptions - Freight'!J70))," ") -> 17.85714286 | K48: =IF(K$16=1,(IF($A45=1,IF(K46-K47>0,(MIN((K46-K47),($E50-SUM($E47:K47))/'Assumptions - Freight'!$E67)),0),'Assumptions - Freight'!K70))," ") -> 17.14285714 | L48: =IF(L$16=1,(IF($A45=1,IF(L46-L47>0,(MIN((L46-L47),($E50-SUM($E47:L47))/'Assumptions - Freight'!$E67)),0),'Assumptions - Freight'!L70))," ") -> 1.428571429 | M48: =IF(M$16=1,(IF($A45=1,IF(M46-M47>0,(MIN((M46-M47),($E50-SUM($E47:M47))/'Assumptions - Freight'!$E67)),0),'Assumptions - Freight'!M70))," ") -> 0 | N48: =IF(N$16=1,(IF($A45=1,IF(N46-N47>0,(MIN((N46-N47),($E50-SUM($E47:N47))/'Assumptions - Freight'!$E67)),0),'Assumptions - Freight'!N70))," ") -> 0 | O48: =IF(O$16=1,(IF($A45=1,IF(O46-O47>0,(MIN((O46-O47),($E50-SUM($E47:O47))/'Assumptions - Freight'!$E67)),0),'Assumptions - Freight'!O70))," ") -> 0 | P48: =IF(P$16=1,(IF($A45=1,IF(P46-P47>0,(MIN((P46-P47),($E50-SUM($E47:P47))/'Assumptions - Freight'!$E67)),0),'Assumptions - Freight'!P70))," ") -> 0 | Q48: =IF(Q$16=1,(IF($A45=1,IF(Q46-Q47>0,(MIN((Q46-Q47),($E50-SUM($E47:Q47))/'Assumptions - Freight'!$E67)),0),'Assumptions - Freight'!Q70))," ") -> 0 | R48: =IF(R$16=1,(IF($A45=1,IF(R46-R47>0,(MIN((R46-R47),($E50-SUM($E47:R47))/'Assumptions - Freight'!$E67)),0),'Assumptions - Freight'!R70))," ") -> 0 | S48: =IF(S$16=1,(IF($A45=1,IF(S46-S47>0,(MIN((S46-S47),($E50-SUM($E47:S47))/'Assumptions - Freight'!$E67)),0),'Assumptions - Freight'!S70))," ") -> 0 | T48: =IF(T$16=1,(IF($A45=1,IF(T46-T47>0,(MIN((T46-T47),($E50-SUM($E47:T47))/'Assumptions - Freight'!$E67)),0),'Assumptions - Freight'!T70))," ") -> 0 | U48: =IF(U$16=1,(IF($A45=1,IF(U46-U47>0,(MIN((U46-U47),($E50-SUM($E47:U47))/'Assumptions - Freight'!$E67)),0),'Assumptions - Freight'!U70))," ") -> 0 | V48: =IF(V$16=1,(IF($A45=1,IF(V46-V47>0,(MIN((V46-V47),($E50-SUM($E47:V47))/'Assumptions - Freight'!$E67)),0),'Assumptions - Freight'!V70))," ") -> 0 | W48: =IF(W$16=1,(IF($A45=1,IF(W46-W47>0,(MIN((W46-W47),($E50-SUM($E47:W47))/'Assumptions - Freight'!$E67)),0),'Assumptions - Freight'!W70))," ") -> 0 | X48: =IF(X$16=1,(IF($A45=1,IF(X46-X47>0,(MIN((X46-X47),($E50-SUM($E47:X47))/'Assumptions - Freight'!$E67)),0),'Assumptions - Freight'!X70))," ") -> 0 | Y48: =IF(Y$16=1,(IF($A45=1,IF(Y46-Y47>0,(MIN((Y46-Y47),($E50-SUM($E47:Y47))/'Assumptions - Freight'!$E67)),0),'Assumptions - Freight'!Y70))," ") -> 0 | Z48: =IF(Z$16=1,(IF($A45=1,IF(Z46-Z47>0,(MIN((Z46-Z47),($E50-SUM($E47:Z47))/'Assumptions - Freight'!$E67)),0),'Assumptions - Freight'!Z70))," ") -> 0 | AA48: =IF(AA$16=1,(IF($A45=1,IF(AA46-AA47>0,(MIN((AA46-AA47),($E50-SUM($E47:AA47))/'Assumptions - Freight'!$E67)),0),'Assumptions - Freight'!AA70))," ") -> 0 | AB48: =IF(AB$16=1,(IF($A45=1,IF(AB46-AB47>0,(MIN((AB46-AB47),($E50-SUM($E47:AB47))/'Assumptions - Freight'!$E67)),0),'Assumptions - Freight'!AB70))," ") -> 0 | AC48: =IF(AC$16=1,(IF($A45=1,IF(AC46-AC47>0,(MIN((AC46-AC47),($E50-SUM($E47:AC47))/'Assumptions - Freight'!$E67)),0),'Assumptions - Freight'!AC70))," ") -> 0 | AD48: =IF(AD$16=1,(IF($A45=1,IF(AD46-AD47>0,(MIN((AD46-AD47),($E50-SUM($E47:AD47))/'Assumptions - Freight'!$E67)),0),'Assumptions - Freight'!AD70))," ") -> 0 | AE48: =IF(AE$16=1,(IF($A45=1,IF(AE46-AE47>0,(MIN((AE46-AE47),($E50-SUM($E47:AE47))/'Assumptions - Freight'!$E67)),0),'Assumptions - Freight'!AE70))," ") -> 0 | AF48: =IF(AF$16=1,(IF($A45=1,IF(AF46-AF47>0,(MIN((AF46-AF47),($E50-SUM($E47:AF47))/'Assumptions - Freight'!$E67)),0),'Assumptions - Freight'!AF70))," ") -> 0 | AG48: =IF(AG$16=1,(IF($A45=1,IF(AG46-AG47>0,(MIN((AG46-AG47),($E50-SUM($E47:AG47))/'Assumptions - Freight'!$E67)),0),'Assumptions - Freight'!AG70))," ") -> 0 | AH48: =IF(AH$16=1,(IF($A45=1,IF(AH46-AH47>0,(MIN((AH46-AH47),($E50-SUM($E47:AH47))/'Assumptions - Freight'!$E67)),0),'Assumptions - Freight'!AH70))," ") -> 0
B49: =IF(A45=1,"Accumulated depreciation of existing assets","Accumulated depreciation of assets") -> Accumulated depreciation of existing assets | D49: ='Assumptions - General'!$E$27 &" millions" -> R$ millions | F49: =IF(F$16=1,SUM($E48:F48)," ") -> 20.71428571 | G49: =IF(G$16=1,SUM($E48:G48)," ") -> 40.71428571 | H49: =IF(H$16=1,SUM($E48:H48)," ") -> 60 | I49: =IF(I$16=1,SUM($E48:I48)," ") -> 78.57142857 | J49: =IF(J$16=1,SUM($E48:J48)," ") -> 96.42857143 | K49: =IF(K$16=1,SUM($E48:K48)," ") -> 113.5714286 | L49: =IF(L$16=1,SUM($E48:L48)," ") -> 115 | M49: =IF(M$16=1,SUM($E48:M48)," ") -> 115 | N49: =IF(N$16=1,SUM($E48:N48)," ") -> 115 | O49: =IF(O$16=1,SUM($E48:O48)," ") -> 115 | P49: =IF(P$16=1,SUM($E48:P48)," ") -> 115 | Q49: =IF(Q$16=1,SUM($E48:Q48)," ") -> 115 | R49: =IF(R$16=1,SUM($E48:R48)," ") -> 115 | S49: =IF(S$16=1,SUM($E48:S48)," ") -> 115 | T49: =IF(T$16=1,SUM($E48:T48)," ") -> 115 | U49: =IF(U$16=1,SUM($E48:U48)," ") -> 115 | V49: =IF(V$16=1,SUM($E48:V48)," ") -> 115 | W49: =IF(W$16=1,SUM($E48:W48)," ") -> 115 | X49: =IF(X$16=1,SUM($E48:X48)," ") -> 115 | Y49: =IF(Y$16=1,SUM($E48:Y48)," ") -> 115 | Z49: =IF(Z$16=1,SUM($E48:Z48)," ") -> 115 | AA49: =IF(AA$16=1,SUM($E48:AA48)," ") -> 115 | AB49: =IF(AB$16=1,SUM($E48:AB48)," ") -> 115 | AC49: =IF(AC$16=1,SUM($E48:AC48)," ") -> 115 | AD49: =IF(AD$16=1,SUM($E48:AD48)," ") -> 115 | AE49: =IF(AE$16=1,SUM($E48:AE48)," ") -> 115 | AF49: =IF(AF$16=1,SUM($E48:AF48)," ") -> 115 | AG49: =IF(AG$16=1,SUM($E48:AG48)," ") -> 115 | AH49: =IF(AH$16=1,SUM($E48:AH48)," ") -> 115
B50: Ending value of existing assets | D50: ='Assumptions - General'!$E$27 &" millions" -> R$ millions | E50: =IF(E$16=1,'Assumptions - Freight'!E34," ") -> 150 | F50: =IF(F$16=1,F46-F47-F48," ") -> 124.2857143 | G50: =IF(G$16=1,G46-G47-G48," ") -> 99.28571429 | H50: 75 | I50: 51.42857143 | J50: 28.57142857 | K50: 6.428571429 | L50: 0 | M50: 0 | N50: 0 | O50: 0 | P50: 0 | Q50: 0 | R50: 0 | S50: 0 | T50: 0 | U50: 0 | V50: 0 | W50: 0 | X50: 0 | Y50: 0 | Z50: 0 | AA50: 0 | AB50: 0 | AC50: 0 | AD50: 0 | AE50: 0 | AF50: 0 | AG50: 0 | AH50: 0
B52: Starting value of new assets | D52: ='Assumptions - General'!$E$27 &" millions" -> R$ millions | F52: =IF(F16=1,E57," ") -> 0 | G52: 20 | H52: 38 | I52: 55 | J52: 71 | K52: 86 | L52: 100 | M52: 113 | N52: 120.25 | O52: 126.75 | P52: 132.5 | Q52: 137.5 | R52: 141.75 | S52: 145.25 | T52: 148 | U52: 150 | V52: 151.25 | W52: 151.75 | X52: 151.5 | Y52: 150.5 | Z52: 148.75 | AA52: 146.25 | AB52: 143 | AC52: 139 | AD52: 134.25 | AE52: 128.75 | AF52: 122.5 | AG52: 115.5 | AH52: 107.75
B53: Add CAPEX | D53: ='Assumptions - General'!$E$27 &" millions" -> R$ millions | F53: =IF(F$16=1,IF($D$25=1,$D$26*'Assumptions - Freight'!F$41,'Assumptions - Freight'!F$41)," ") -> 20 | G53: =IF(G$16=1,IF($D$25=1,$D$26*'Assumptions - Freight'!G$41,'Assumptions - Freight'!G$41)," ") -> 20 | H53: =IF(H$16=1,IF($D$25=1,$D$26*'Assumptions - Freight'!H$41,'Assumptions - Freight'!H$41)," ") -> 20 | I53: =IF(I$16=1,IF($D$25=1,$D$26*'Assumptions - Freight'!I$41,'Assumptions - Freight'!I$41)," ") -> 20 | J53: =IF(J$16=1,IF($D$25=1,$D$26*'Assumptions - Freight'!J$41,'Assumptions - Freight'!J$41)," ") -> 20 | K53: =IF(K$16=1,IF($D$25=1,$D$26*'Assumptions - Freight'!K$41,'Assumptions - Freight'!K$41)," ") -> 20 | L53: =IF(L$16=1,IF($D$25=1,$D$26*'Assumptions - Freight'!L$41,'Assumptions - Freight'!L$41)," ") -> 20 | M53: =IF(M$16=1,IF($D$25=1,$D$26*'Assumptions - Freight'!M$41,'Assumptions - Freight'!M$41)," ") -> 20 | N53: =IF(N$16=1,IF($D$25=1,$D$26*'Assumptions - Freight'!N$41,'Assumptions - Freight'!N$41)," ") -> 20 | O53: =IF(O$16=1,IF($D$25=1,$D$26*'Assumptions - Freight'!O$41,'Assumptions - Freight'!O$41)," ") -> 20 | P53: =IF(P$16=1,IF($D$25=1,$D$26*'Assumptions - Freight'!P$41,'Assumptions - Freight'!P$41)," ") -> 20 | Q53: =IF(Q$16=1,IF($D$25=1,$D$26*'Assumptions - Freight'!Q$41,'Assumptions - Freight'!Q$41)," ") -> 20 | R53: =IF(R$16=1,IF($D$25=1,$D$26*'Assumptions - Freight'!R$41,'Assumptions - Freight'!R$41)," ") -> 20 | S53: =IF(S$16=1,IF($D$25=1,$D$26*'Assumptions - Freight'!S$41,'Assumptions - Freight'!S$41)," ") -> 20 | T53: =IF(T$16=1,IF($D$25=1,$D$26*'Assumptions - Freight'!T$41,'Assumptions - Freight'!T$41)," ") -> 20 | U53: =IF(U$16=1,IF($D$25=1,$D$26*'Assumptions - Freight'!U$41,'Assumptions - Freight'!U$41)," ") -> 20 | V53: =IF(V$16=1,IF($D$25=1,$D$26*'Assumptions - Freight'!V$41,'Assumptions - Freight'!V$41)," ") -> 20 | W53: =IF(W$16=1,IF($D$25=1,$D$26*'Assumptions - Freight'!W$41,'Assumptions - Freight'!W$41)," ") -> 20 | X53: =IF(X$16=1,IF($D$25=1,$D$26*'Assumptions - Freight'!X$41,'Assumptions - Freight'!X$41)," ") -> 20 | Y53: =IF(Y$16=1,IF($D$25=1,$D$26*'Assumptions - Freight'!Y$41,'Assumptions - Freight'!Y$41)," ") -> 20 | Z53: =IF(Z$16=1,IF($D$25=1,$D$26*'Assumptions - Freight'!Z$41,'Assumptions - Freight'!Z$41)," ") -> 20 | AA53: =IF(AA$16=1,IF($D$25=1,$D$26*'Assumptions - Freight'!AA$41,'Assumptions - Freight'!AA$41)," ") -> 20 | AB53: =IF(AB$16=1,IF($D$25=1,$D$26*'Assumptions - Freight'!AB$41,'Assumptions - Freight'!AB$41)," ") -> 20 | AC53: =IF(AC$16=1,IF($D$25=1,$D$26*'Assumptions - Freight'!AC$41,'Assumptions - Freight'!AC$41)," ") -> 20 | AD53: =IF(AD$16=1,IF($D$25=1,$D$26*'Assumptions - Freight'!AD$41,'Assumptions - Freight'!AD$41)," ") -> 20 | AE53: =IF(AE$16=1,IF($D$25=1,$D$26*'Assumptions - Freight'!AE$41,'Assumptions - Freight'!AE$41)," ") -> 20 | AF53: =IF(AF$16=1,IF($D$25=1,$D$26*'Assumptions - Freight'!AF$41,'Assumptions - Freight'!AF$41)," ") -> 20 | AG53: =IF(AG$16=1,IF($D$25=1,$D$26*'Assumptions - Freight'!AG$41,'Assumptions - Freight'!AG$41)," ") -> 20 | AH53: =IF(AH$16=1,IF($D$25=1,$D$26*'Assumptions - Freight'!AH$41,'Assumptions - Freight'!AH$41)," ") -> 20
B54: Less sale of assets | D54: ='Assumptions - General'!$E$27 &" millions" -> R$ millions | F54: =IF(F$16=1,'Assumptions - Freight'!F49-Calculations!F47," ") -> 0 | G54: =IF(G$16=1,'Assumptions - Freight'!G49-Calculations!G47," ") -> 0 | H54: =IF(H$16=1,'Assumptions - Freight'!H49-Calculations!H47," ") -> 0 | I54: =IF(I$16=1,'Assumptions - Freight'!I49-Calculations!I47," ") -> 0 | J54: =IF(J$16=1,'Assumptions - Freight'!J49-Calculations!J47," ") -> 0 | K54: =IF(K$16=1,'Assumptions - Freight'!K49-Calculations!K47," ") -> 0 | L54: =IF(L$16=1,'Assumptions - Freight'!L49-Calculations!L47," ") -> 0 | M54: =IF(M$16=1,'Assumptions - Freight'!M49-Calculations!M47," ") -> 5 | N54: =IF(N$16=1,'Assumptions - Freight'!N49-Calculations!N47," ") -> 5 | O54: =IF(O$16=1,'Assumptions - Freight'!O49-Calculations!O47," ") -> 5 | P54: =IF(P$16=1,'Assumptions - Freight'!P49-Calculations!P47," ") -> 5 | Q54: =IF(Q$16=1,'Assumptions - Freight'!Q49-Calculations!Q47," ") -> 5 | R54: =IF(R$16=1,'Assumptions - Freight'!R49-Calculations!R47," ") -> 5 | S54: =IF(S$16=1,'Assumptions - Freight'!S49-Calculations!S47," ") -> 5 | T54: =IF(T$16=1,'Assumptions - Freight'!T49-Calculations!T47," ") -> 5 | U54: =IF(U$16=1,'Assumptions - Freight'!U49-Calculations!U47," ") -> 5 | V54: =IF(V$16=1,'Assumptions - Freight'!V49-Calculations!V47," ") -> 5 | W54: =IF(W$16=1,'Assumptions - Freight'!W49-Calculations!W47," ") -> 5 | X54: =IF(X$16=1,'Assumptions - Freight'!X49-Calculations!X47," ") -> 5 | Y54: =IF(Y$16=1,'Assumptions - Freight'!Y49-Calculations!Y47," ") -> 5 | Z54: =IF(Z$16=1,'Assumptions - Freight'!Z49-Calculations!Z47," ") -> 5 | AA54: =IF(AA$16=1,'Assumptions - Freight'!AA49-Calculations!AA47," ") -> 5 | AB54: =IF(AB$16=1,'Assumptions - Freight'!AB49-Calculations!AB47," ") -> 5 | AC54: =IF(AC$16=1,'Assumptions - Freight'!AC49-Calculations!AC47," ") -> 5 | AD54: =IF(AD$16=1,'Assumptions - Freight'!AD49-Calculations!AD47," ") -> 5 | AE54: =IF(AE$16=1,'Assumptions - Freight'!AE49-Calculations!AE47," ") -> 5 | AF54: =IF(AF$16=1,'Assumptions - Freight'!AF49-Calculations!AF47," ") -> 5 | AG54: =IF(AG$16=1,'Assumptions - Freight'!AG49-Calculations!AG47," ") -> 5 | AH54: =IF(AH$16=1,'Assumptions - Freight'!AH49-Calculations!AH47," ") -> 5
